Workbook

Sheet 보정치 (hidden)
B2: 분류항목 | E2: 당기
B3: 1. 예배운영비 | E3: =SUM(E4:E7) -> 393900
B4: 1.1 성례예식비 | E4: 0
B5: 1.2 주보인쇄비 | E5: 0
B6: 1.3 강사접대비 | E6: 137000
B7: 1.4 예배준비비 | E7: =SUM(E8:E10) -> 256900
B8: 1.4.1 성전 꽃꽂이 | E8: 0
B9: 1.4.2 봉사자 식사 | E9: 256900
B10: 1.4.3 절기행사비 | E10: 0
B11: 2. 교육운영비 | E11: =SUM(E12:E19) -> 645480
B12: 2.1 주일성서연구운영비 | E12: 0
B13: 2.2 도서 및 교재 | E13: 326100
B14: 2.3 전교인수양회 행사비 | E14: 0
B15: 2.4 교목연수비 | E15: 0
B16: 2.5 교역자 교육훈련비 | E16: 319380
B17: 2.6 교사세미나/교역자worshop | E17: 0
B18: 2.7 교육부 운영비 | E18: 0
B19: 2.8 교육운영 예비비 | E19: 0
B20: 3. 선교비 | E20: =SUM(E21,E32,E34,E33,E35) -> 0
B21: 3.1 학원선교 | E21: =SUM(E22:E31) -> 0
B22: 3.1.1 간식나눔행사(신촌) | E22: 0
B23: 3.1.2 간식나눔행사(국제) | E23: 0
B24: 3.1.3 교목실 점심나눔 후원 | E24: 0
B25: 3.1.4 연세기독학생연합회 지원 | E25: 0
B26: 3.1.5 연세기독학생회찬양팀 후원 | E26: 0
B27: 3.1.6 YMK 후원 | E27: 0
B28: 3.1.7 통일한마당 | E28: 0
B29: 3.1.8 리틀언더우드 후원 | E29: 0
B30: 3.1.9 멘토멘티프로그램 | E30: 0
B31: 3.1.10 학원선교 기타 | E31: 0
B32: 3.2 국외선교 | E32: 0
B33: 3.3 이웃사랑 실천헌금 | E33: 0
B34: 3.4 지정헌금 | E34: 0
B35: 3.5 선교예비금 | E35: 0
B36: 4. 친교행사운영비 | E36: =SUM(E37:E44,E46,E47) -> 19890
B37: 4.1 주일공동식사 | E37: 0
B38: 4.2 야외예배 행사비 | E38: 0
B39: 4.3 경로행사비 | E39: 0
B40: 4.4 성탄행사비 | E40: 0
B41: 4.5 주일다과비 | E41: 19890
B42: 4.6 경조비 | E42: 0
B43: 4.7 교우친교비 | E43: 0
B44: 4.8 홍보출판비 | E44: =E45 -> 0
B45: 4.8.1 대학교회 회지 | E45: 0
B46: 4.9 교회봉사자 선물 | E46: 0
B47: 4.10 친교행사 예비비 | E47: 0
B48: 5. 인건비 | E48: =SUM(E49:E64,E67,E68) -> 0
B49: 5.1 외부강사 설교 사례 | E49: 0
B50: 5.2 외부강사 설교 사례(대학부-국제) | E50: 0
B51: 5.3 절기 예배 연주자 | E51: 0
B52: 5.4 국악 예배 연주자 | E52: 0
B53: 5.5 봉헌송 사례 | E53: 0
B54: 5.6 주일성서연구 강사사례 | E54: 0
B55: 5.8 담임목사 | E55: 0
B56: 5.9 동역목사 | E56: 0
B57: 5.10 전임교역자 | E57: 0
B58: 5.11 성가대지휘자 | E58: 0
B59: 5.12 오르가니스트 | E59: 0
B60: 5.13 교육부서 담당교역자 | E60: 0
B61: 5.14 성인 솔리스트 | E61: 0
B62: 5.15 통역자 | E62: 0
B63: 5.16 방송담당 | E63: 0
B64: 5.17 용원 사례비 | E64: =SUM(E65:E66) -> 0
B65: 5.17.1 관리실 여사 | E65: 0
B66: 5.17.2 관리실 반장 | E66: 0
B67: 5.18 퇴직위로금 | E67: 0
B68: 5.19 기타(교역자휴가 및 기타인건비) | E68: 0
B69: 6. 행정운영비 | E69: =SUM(E70:E72,E79:E83) -> 1409566
B70: 6.1 회의 및 교회위원회 | E70: 131500
B71: 6.2 사무운영비 | E71: 377270
B72: 6.3 부서운영비 | E72: =SUM(E73:E78) -> 204200
B73: 6.3.1 성가대 | E73: 204200
B74: 6.3.2 유치부 | E74: 0
B75: 6.3.3 초등부 | E75: 0
B76: 6.3.4 중고등부 | E76: 0
B77: 6.3.5 대학부(신촌) | E77: 0
B78: 6.3.6 대학부(국제) | E78: 0
B79: 6.4 목회활동비 | E79: 371700
B80: 6.5 용품 및 수리비 | E80: 0
B81: 6.6 연료비 및 통신비 | E81: 324896
B82: 6.7 악기구입 및 보수 | E82: 0
B83: 6.8 행정운영 예비비 | E83: 0
B84: 7. 장학금 | E84: =SUM(E85:E89) -> 0
B85: 7.1 교회학교 교사 | E85: 0
B86: 7.2 신촌 대학청년부 | E86: 0
B87: 7.3 국제 대학부 | E87: 0
B88: 7.4 학생 솔리스트 | E88: 0
B89: 7.5 기숙사지원 | E89: 0
B90: 8. 예비비 | E90: 0
B91: 9. 이웃사랑기금적립 | E91: 0
B92: 지출부총액 | E92: =SUM(E85,E69,E48,E36,E20,E11,E3) -> 2468836
B93: 차기이월 | E93: -2156900
B94: 총액 | E94: 0

Sheet 3월 약식
A1: 2023년 3월 결산보고서(약식)
A2: 회계년도: 2023년도 | I2: (2023-03-30 현재)
A3: 수입의 부 | F3: 지출의 부
A4: 항 목 | B4: 예산 | C4: 당월 수입 | D4: 수입 누계 | E4: 집행률(%) | F4: 항 목 | H4: 예산 | I4: 당월 지출 | J4: 지출 누계 | K4: 집행률(%)
A5: 1. 주일헌금 | B5: ='3월 수입 상세'!B5 -> 160,000,000 | C5: ='3월 수입 상세'!C5 -> 10,756,000 | D5: =C5 -> 10,756,000 | E5: =D5/B5 -> 6.7% | F5: 1. 예배운영비 | H5: ='3월 지출 상세'!B5 -> 22,700,000 | I5: ='3월 지출 상세'!C5 -> 2,318,650 | J5: =IF('3월 지출 상세'!$F$4="보정", '3월 지출 상세'!D5+'3월 지출 상세'!F5, '3월 지출 상세'!D5) -> 2,318,650 | K5: =J5/H5 -> 10.2%
A6: 2. 십일조 | B6: ='3월 수입 상세'!B6 -> 105,000,000 | C6: ='3월 수입 상세'!C6 -> 9,338,000 | D6: =C6 -> 9,338,000 | E6: 8.9% | F6: 2. 교육운영비 | H6: ='3월 지출 상세'!B13 -> 30,500,000 | I6: ='3월 지출 상세'!C13 -> 748,390 | J6: =IF('3월 지출 상세'!$F$4="보정", '3월 지출 상세'!D13+'3월 지출 상세'!F13, '3월 지출 상세'!D13) -> 748,390 | K6: 2.5%
A7: 3. 월정헌금 | B7: ='3월 수입 상세'!B7 -> 145,000,000 | C7: ='3월 수입 상세'!C7 -> 12,775,000 | D7: 12,775,000 | E7: 8.8% | F7: 3. 선교비 | H7: ='3월 지출 상세'!B22 -> 74,760,000 | I7: ='3월 지출 상세'!C22 -> 24,657,000 | J7: ='3월 지출 상세'!D22 -> 24,657,000 | K7: 33.0%
A8: 4. 감사헌금 | B8: ='3월 수입 상세'!B8 -> 35,000,000 | C8: ='3월 수입 상세'!C8 -> 1,954,000 | D8: 1,954,000 | E8: 5.6% | F8: 4. 친교행사운영비 | H8: ='3월 지출 상세'!B38 -> 27,600,000 | I8: ='3월 지출 상세'!C38 -> 616,320 | J8: =IF('3월 지출 상세'!$F$4="보정", '3월 지출 상세'!D38+'3월 지출 상세'!F38, '3월 지출 상세'!D38) -> 616,320 | K8: 2.2%
A9: 5. 교육부헌금 | B9: ='3월 수입 상세'!B9 -> 22,000,000 | C9: ='3월 수입 상세'!C9 -> 2,715,460 | D9: 2,715,460 | E9: 12.3% | F9: 5. 사례비 | H9: ='3월 지출 상세'!B50 -> 234,270,000 | I9: ='3월 지출 상세'!C50 -> 19,892,000 | J9: ='3월 지출 상세'!D50 -> 19,892,000 | K9: 8.5%
A10: 6. 절기헌금 | B10: ='3월 수입 상세'!B15 -> 35,000,000 | C10: ='3월 수입 상세'!C15 -> 0 | D10: 0 | E10: 0.0% | F10: 6. 행정운영비 | H10: ='3월 지출 상세'!B71 -> 90,700,000 | I10: ='3월 지출 상세'!C71 -> 6,718,660 | J10: =IF('3월 지출 상세'!$F$4="보정", '3월 지출 상세'!D71+'3월 지출 상세'!F71, '3월 지출 상세'!D71) -> 6,718,660 | K10: 7.4%
A11: 7. 선교헌금 | B11: ='3월 수입 상세'!B19 -> 5,000,000 | C11: ='3월 수입 상세'!C19 -> 305,000 | D11: 305,000 | E11: 6.1% | F11: 7. 장학금 | H11: ='3월 지출 상세'!B86 -> 66,720,000 | I11: ='3월 지출 상세'!C86 -> 19,800,000 | J11: ='3월 지출 상세'!D86 -> 19,800,000 | K11: 29.7%
A12: 8. 지정헌금 | B12: ='3월 수입 상세'!B22 -> 20,000,000 | C12: ='3월 수입 상세'!C22 -> 5,208,000 | D12: 5,208,000 | E12: 26.0% | F12: 8. 예비비 | H12: ='3월 지출 상세'!B92 -> 32,750,000 | I12: ='3월 지출 상세'!C92 -> 0 | J12: ='3월 지출 상세'!D92 -> 0 | K12: 0.0%
A13: 9. 특별헌금(이웃사랑실천헌금 등) | B13: ='3월 수입 상세'!B23 -> 13,000,000 | C13: ='3월 수입 상세'!C23 -> 0 | D13: 0 | E13: 0.0% | F13: 9. 이웃사랑기금적립 | H13: ='3월 지출 상세'!B93 -> 0 | I13: ='3월 지출 상세'!C93 -> 0 | J13: ='3월 지출 상세'!D93 -> 0
A14: 헌금 수입 소계 | B14: =SUM(B5:B13) -> 540,000,000 | C14: =SUM(C5:C13) -> 43,051,460 | D14: =SUM(D5:D13) -> 43,051,460 | E14: 8.0% | F14: 일반 지출 소계 | H14: =SUM(H5:H13) -> 580,000,000 | I14: =SUM(I5:I13) -> 74,751,020 | J14: =SUM(J5:J13) -> 74,751,020 | K14: =J14/H14 -> 12.9%
A15: 전기이월금 전입 | B15: 40,000,000 | C15: 40,000,000 | D15: =C15 -> 40,000,000 | E15: 100.0% | F15: 차월이월 | I15: =C14-I14 -> -31,699,560 | J15: =D19-J14 -> 30,177,340
A16: 전기이월금 추가전입 | C16: 21,876,900 | D16: 21,876,900
A17: 헌금외 기금 | C17: 0 | D17: 0
A18: 전월이월금 | C18: 0
A19: 수입부 총액 | B19: =SUM(B14:B18) -> 580,000,000 | C19: =SUM(C14:C18) -> 104,928,360 | D19: =SUM(D14:D18) -> 104,928,360 | E19: =D19/B19 -> 18.1% | F19: 지출부 총액 | H19: =SUM(H14:H18) -> 580,000,000 | I19: =SUM(I14:I18) -> 43,051,460 | J19: =SUM(J14:J18) -> 104,928,360 | K19: =J19/H19 -> 18.1%
A21: 기금 및 이월금 현황 (2023.3.1 기준) | F21: 헌금 수입 및 지출 누계 비교
A22: 기금명 | C22: 금액(이자포함) | G22: 2021년 3월 | H22: 2022년 3월 | I22: 2023년 3월
A23: 박명윤이행자선교기금(FAA003023) | C23: 53,380,953 | F23: 수입 누계 | G23: 55,302,354 | H23: 37,849,171 | I23: =D14 -> 43,051,460
A24: 대학교회건축기금(FBA113041) | C24: 0 | F24: 지출 누계 | G24: 25,531,010 | H24: 28,305,510 | I24: =J14 -> 74,751,020
A25: 국캠대학교회선교기금(FEA173001) | C25: 146,649
A26: 이웃사랑기금(FEA183001) | C26: 83,791,013
A27: 유초등부발전기금(FAA213008) | C27: 18,299,135
A28: 기금 총액 | C28: =SUM(C23:C27) -> 155,617,750
A30: *누적 이월금 (2023.3.1 기준 / 기금제외) | C30: 451,668,301

Sheet 3월 수입 상세
A1: 3월 수입 상세
A2: 회계연도: 2023년도 | F2: (2023-03-30 현재)
A4: 분류항목 | B4: 예산 | C4: 당월 | D4: 누계 | E4: 집행률(%) | F4: 비고
A5: 1. 주일헌금 | B5: 160,000,000 | C5: 10,756,000 | D5: =C5 -> 10,756,000 | E5: =D5/B5 -> 6.7%
A6: 2. 십일조 | B6: 105,000,000 | C6: 9,338,000 | D6: =C6 -> 9,338,000 | E6: =D6/B6 -> 8.9%
A7: 3. 월정헌금 | B7: 145,000,000 | C7: 12,775,000 | D7: 12,775,000 | E7: 8.8%
A8: 4. 감사헌금 | B8: 35,000,000 | C8: 1,954,000 | D8: 1,954,000 | E8: 5.6%
A9: 5. 교육부헌금 | B9: =SUM(B10:B14) -> 22,000,000 | C9: =SUM(C10:C14) -> 2,715,460 | D9: =SUM(D10:D14) -> 2,715,460 | E9: 12.3%
A10: 유치부 | B10: 700,000 | C10: 233,049 | D10: =C10 -> 233,049 | E10: 33.3%
A11: 초등부 | B11: 1,000,000 | C11: 147,500 | D11: =C11 -> 147,500 | E11: 14.8%
A12: 중고등부 | B12: 300,000 | C12: 25,722 | D12: 25,722 | E12: 8.6%
A13: 대학부(신촌) | B13: 7,000,000 | C13: 1,082,977 | D13: 1,082,977 | E13: 15.5%
A14: 대학부(국제) | B14: 13,000,000 | C14: 1,226,212 | D14: 1,226,212 | E14: 9.4%
A15: 6. 절기헌금 | B15: =SUM(B16:B18) -> 35,000,000 | C15: =SUM(C16:C18) -> 0 | D15: =SUM(D16:D18) -> 0 | E15: 0.0%
A16: 부활절 | B16: 10,000,000 | C16: 0 | D16: =C16 -> 0 | E16: 0.0%
A17: 추수감사절 | B17: 10,000,000 | C17: 0 | D17: =C17 -> 0 | E17: 0.0%
A18: 성탄절 | B18: 15,000,000 | C18: 0 | D18: 0 | E18: 0.0%
A19: 7. 선교헌금 | B19: 5,000,000 | C19: =SUM(C20:C21) -> 305,000 | D19: =SUM(D20:D21) -> 305,000 | E19: 6.1%
A20: 선교헌금 | B20: 2,500,000 | C20: 305,000 | D20: =C20 -> 305,000 | E20: 12.2%
A21: 특별선교헌금 | B21: 2,500,000 | C21: 0 | D21: =C21 -> 0 | E21: 0.0%
A22: 8. 지정헌금 | B22: 20,000,000 | C22: 5,208,000 | D22: =C22 -> 5,208,000 | E22: 26.0% | F22: 윤종규지정장학금 3,537,000원 헌화헌금 700,000원 사순절 묵상집 211,000원 튀르키예 560,000원
A23: 9. 특별헌금(이웃사랑실천헌금) | B23: 13,000,000 | C23: 0 | D23: =C23 -> 0 | E23: 0.0%
A24: 헌금 수입 소계 | B24: =SUM(B5,B6,B7,B8,B9,B15,B19,B22,B23) -> 540,000,000 | C24: =SUM(C5,C6,C7,C8,C9,C15,C19,C22,C23) -> 43,051,460 | D24: =SUM(D5,D6,D7,D8,D9,D15,D19,D22,D23) -> 43,051,460 | E24: 8.0%
A25: 전기이월금 전입 | B25: 40,000,000 | C25: 40,000,000 | D25: =C25 -> 40,000,000 | E25: 100.0%
A26: 헌금외 기금 | B26: 0 | C26: 0 | D26: =C26 -> 0
A27: 전월이월금 | B27: 0 | C27: 0 | D27: 0
A28: 수입부 총액 | B28: =B24+B25 -> 580,000,000 | C28: =SUM(C24:C27) -> 83,051,460 | D28: =SUM(D24:D27) -> 83,051,460 | E28: 14.3%

Sheet 3월 지출 상세
A1: 3월 지출 상세
A2: 회계연도: 2023년도
G3: (2023-03-30 현재)
A4: 분류항목 | B4: 예산 | C4: 당월 | D4: 누계 | E4: 집행률(%) | G4: 비고
A5: 1. 예배운영비 | B5: =SUM(B6:B9) -> 22,700,000 | C5: =SUM(C6:C12)-C9 -> 2,318,650 | D5: =SUM(D6:D9) -> 2,318,650 | E5: =D5/B5 -> 10.2% | F5: =SUM(F6:F9) -> 0
A6: 1.1 성례예식비 | B6: 1,200,000 | C6: 300,000 | D6: =C6 -> 300,000 | E6: =D6/B6 -> 25.0% | F6: =IF($F$4="보정", 보정치!E4) -> FALSE | G6: 성찬키트 구입
A7: 1.2 주보인쇄비 | B7: 4,000,000 | C7: 215,000 | D7: =C7 -> 215,000 | E7: 5.4% | F7: =IF($F$4="보정", 보정치!E5) -> FALSE
A8: 1.3 강사접대비 | B8: 2,500,000 | C8: 222,500 | D8: 222,500 | E8: 8.9% | F8: =IF($F$4="보정", 보정치!E6) -> FALSE
A9: 1.4 예배준비비 | B9: =SUM(B10:B12) -> 15,000,000 | C9: =SUM(C10:C12) -> 1,581,150 | D9: =SUM(D10:D12) -> 1,581,150 | E9: 10.5% | F9: =IF($F$4="보정", 보정치!E7) -> FALSE
A10: 1.4.1 성전 꽃꽂이 | B10: 10,000,000 | C10: 1,200,000 | D10: =C10 -> 1,200,000 | E10: 12.0% | F10: =IF($F$4="보정", 보정치!E8) -> FALSE | G10: 2, 3월 예배당 꽃장식비
A11: 1.4.2 봉사자 식사 | B11: 4,000,000 | C11: 381,150 | D11: =C11 -> 381,150 | E11: 9.5% | F11: =IF($F$4="보정", 보정치!E9) -> FALSE
A12: 1.4.3 절기행사비 | B12: 1,000,000 | C12: 0 | D12: =C12 -> 0 | E12: 0.0% | F12: =IF($F$4="보정", 보정치!E10) -> FALSE
A13: 2. 교육운영비 | B13: =SUM(B14:B21) -> 30,500,000 | C13: =SUM(C14:C21) -> 748,390 | D13: =SUM(D14:D21) -> 748,390 | E13: 2.5% | F13: =IF($F$4="보정", 보정치!E11) -> FALSE
A14: 2.1 주일성서연구운영비 | B14: 1,000,000 | C14: 0 | D14: =C14 -> 0 | E14: 0.0% | F14: =IF($F$4="보정", 보정치!E12) -> FALSE
A15: 2.2 도서 및 교재 | B15: 2,000,000 | C15: 326,100 | D15: =C15 -> 326,100 | E15: 16.3% | F15: =IF($F$4="보정", 보정치!E13) -> FALSE
A16: 2.3 전교인수양회 행사비 | B16: 14,000,000 | C16: 0 | D16: 0 | E16: 0.0% | F16: =IF($F$4="보정", 보정치!E14) -> FALSE
A17: 2.4 교목연수비 | B17: 0 | C17: 0 | D17: 0 | F17: =IF($F$4="보정", 보정치!E15) -> FALSE
A18: 2.5 교역자 교육훈련비 | B18: 3,000,000 | C18: 422,290 | D18: 422,290 | E18: 14.1% | F18: =IF($F$4="보정", 보정치!E16) -> FALSE
A19: 2.6 교사세미나/교역자workshop | B19: 3,000,000 | C19: 0 | D19: 0 | E19: 0.0% | F19: =IF($F$4="보정", 보정치!E17) -> FALSE
A20: 2.7 교육부 운영비 | B20: 7,500,000 | C20: 0 | D20: 0 | E20: 0.0% | F20: =IF($F$4="보정", 보정치!E18) -> FALSE
A21: 2.8 교육운영 예비비 | B21: 0 | C21: 0 | D21: 0 | F21: =IF($F$4="보정", 보정치!E19) -> FALSE
A22: 3. 선교비 | B22: =SUM(B23,B34,B35,B36,B37) -> 74,760,000 | C22: =SUM(C23,C34,C35,C36,C37) -> 24,657,000 | D22: =SUM(D23,D34,D36,D35,D37) -> 24,657,000 | E22: 33.0% | F22: =SUM(F23,F32,F33,F34,F35) -> 0
A23: 3.1 학원선교 | B23: =SUM(B24:B33) -> 50,960,000 | C23: =SUM(C24:C33) -> 1,000,000 | D23: =SUM(D24:D33) -> 1,000,000 | E23: 2.0% | F23: =SUM(F24:F31) -> 0
A24: 3.1.1 간식나눔행사(신촌) | B24: 2,000,000 | C24: 0 | D24: =C24 -> 0 | E24: 0.0% | F24: =IF($F$4="보정", 보정치!E22) -> FALSE
A25: 3.1.2 간식나눔행사(국제) | B25: 1,000,000 | C25: 0 | D25: =C25 -> 0 | E25: 0.0% | F25: =IF($F$4="보정", 보정치!E23) -> FALSE
A26: 3.1.3 교목실 점심나눔 후원 | B26: 27,000,000 | C26: 0 | D26: 0 | E26: 0.0% | F26: =IF($F$4="보정", 보정치!E24) -> FALSE
A27: 3.1.4 연세기독학생연합회 지원 | B27: 3,600,000 | C27: 300,000 | D27: 300,000 | E27: 8.3% | F27: =IF($F$4="보정", 보정치!E25) -> FALSE
A28: 3.1.5 연세기독학생회찬양팀 후원 | B28: 2,400,000 | C28: 200,000 | D28: 200,000 | E28: 8.3% | F28: =IF($F$4="보정", 보정치!E26) -> FALSE
A29: 3.1.6 YMK 후원 | B29: 3,600,000 | C29: 300,000 | D29: 300,000 | E29: 8.3% | F29: =IF($F$4="보정", 보정치!E27) -> FALSE
A30: 3.1.7 통일한마당 | B30: 2,400,000 | C30: 200,000 | D30: 200,000 | E30: 8.3% | F30: =IF($F$4="보정", 보정치!E28) -> FALSE
A31: 3.1.8 리틀언더우드 후원 | B31: 5,000,000 | C31: 0 | D31: 0 | E31: 0.0% | F31: 0
A32: 3.1.9 멘토멘티프로그램 | B32: 3,960,000 | C32: 0 | D32: 0 | E32: 0.0% | F32: 0
A33: 3.1.10 학원선교 기타 | B33: 0 | C33: 0 | D33: 0 | F33: =IF($F$4="보정", 보정치!E31) -> FALSE
A34: 3.2 국외선교 | B34: 4,800,000 | C34: 400,000 | D34: 400,000 | E34: 8.3% | F34: =IF($F$4="보정", 보정치!E32) -> FALSE | G34: 함정희, 노규래
A35: 3.3 이웃사랑 실천헌금 | B35: 9,000,000 | C35: 0 | D35: 0 | E35: 0.0% | F35: =IF($F$4="보정", 보정치!E33) -> FALSE
A36: 3.4 지정헌금 | B36: 10,000,000 | C36: 23,257,000 | D36: 23,257,000 | E36: 232.6% | F36: =IF($F$4="보정", 보정치!E34) -> FALSE | G36: 튀르키예 구제후원금 19,720,000원 윤종규 지정장학금 3,537,000원
A37: 3.5 선교예비금 | B37: 0 | C37: 0 | D37: 0 | F37: =IF($F$4="보정", 보정치!E35) -> FALSE
A38: 4. 친교행사운영비 | B38: =SUM(B39:B49)-B47 -> 27,600,000 | C38: =SUM(C39:C49)-C47 -> 616,320 | D38: =SUM(D39:D46,D48,D49) -> 616,320 | E38: 2.2% | F38: =SUM(F39:F49)-F47 -> 0
A39: 4.1 주일공동식사 | B39: 7,000,000 | C39: 0 | D39: =C39 -> 0 | E39: 0.0% | F39: =IF($F$4="보정", 보정치!E37) -> FALSE
A40: 4.2 야외예배 행사비 | B40: 0 | C40: 0 | D40: =C40 -> 0 | F40: =IF($F$4="보정", 보정치!E38) -> FALSE
A41: 4.3 경로행사비 | B41: 1,500,000 | C41: 0 | D41: 0 | E41: 0.0% | F41: =IF($F$4="보정", 보정치!E39) -> FALSE
A42: 4.4 성탄행사비 | B42: 2,100,000 | C42: 0 | D42: 0 | E42: 0.0% | F42: =IF($F$4="보정", 보정치!E40) -> FALSE
A43: 4.5 주일다과비 | B43: 5,000,000 | C43: 116,320 | D43: 116,320 | E43: 2.3% | F43: =IF($F$4="보정", 보정치!E41) -> FALSE
A44: 4.6 경조비 | B44: 4,000,000 | C44: 500,000 | D44: 500,000 | E44: 12.5% | F44: =IF($F$4="보정", 보정치!E42) -> FALSE
A45: 4.7 교우친교비 | B45: 2,000,000 | C45: 0 | D45: 0 | E45: 0.0% | F45: =IF($F$4="보정", 보정치!E43) -> FALSE
A46: 4.8 홍보출판비 | B46: 4,000,000 | C46: 0 | D46: =D47 -> 0 | E46: 0.0% | F46: =IF($F$4="보정", 보정치!E44) -> FALSE
A47: 4.8.1 대학교회 회지 | B47: 4,000,000 | C47: 0 | D47: =C47 -> 0 | E47: 0.0% | F47: =IF($F$4="보정", 보정치!E45) -> FALSE
A48: 4.9 교회봉사자 선물 | B48: 2,000,000 | C48: 0 | D48: =C48 -> 0 | E48: 0.0% | F48: =IF($F$4="보정", 보정치!E46) -> FALSE
A49: 4.10 친교행사 예비비 | B49: 0 | C49: 0 | D49: =C49 -> 0 | F49: =IF($F$4="보정", 보정치!E47) -> FALSE
A50: 5. 사례비 | B50: =SUM(B51:B66,B69,B70) -> 234,270,000 | C50: =SUM(C51:C66,C69,C70) -> 19,892,000 | D50: =SUM(D51:D66,D69,D70) -> 19,892,000 | E50: 8.5% | F50: =SUM(F51:F70) -> 0
A51: 5.1 외부강사 설교 사례 | B51: 12,000,000 | C51: 1,500,000 | D51: =C51 -> 1,500,000 | E51: 12.5% | F51: =IF($F$4="보정", 보정치!E47) -> FALSE
A52: 5.2 외부강사 설교 사례(대학부-국제) | B52: 2,400,000 | C52: 0 | D52: =C52 -> 0 | E52: 0.0% | F52: =IF($F$4="보정", 보정치!E48) -> FALSE
A53: 5.3 절기 예배 연주자 | B53: 800,000 | C53: 0 | D53: 0 | E53: 0.0% | F53: =IF($F$4="보정", 보정치!E49) -> FALSE
A54: 5.4 국악 예배 연주자 | B54: 1,800,000 | C54: 0 | D54: 0 | E54: 0.0% | F54: =IF($F$4="보정", 보정치!E50) -> FALSE
A55: 5.5 봉헌송 사례 | B55: 450,000 | C55: 0 | D55: 0 | E55: 0.0% | F55: =IF($F$4="보정", 보정치!E51) -> FALSE
A56: 5.6 주일성서연구 강사사례 | B56: 4,000,000 | C56: 0 | D56: 0 | E56: 0.0% | F56: =IF($F$4="보정", 보정치!E52) -> FALSE
A57: 5.8 담임목사 | B57: 14,400,000 | C57: 1,200,000 | D57: 1,200,000 | E57: 8.3% | F57: =IF($F$4="보정", 보정치!E53) -> FALSE
A58: 5.9 동역목사 | B58: 12,000,000 | C58: 600,000 | D58: 600,000 | E58: 5.0% | F58: =IF($F$4="보정", 보정치!E54) -> FALSE
A59: 5.10 전임교역자 | B59: 67,500,000 | C59: 7,500,000 | D59: 7,500,000 | E59: 11.1% | F59: =IF($F$4="보정", 보정치!E55) -> FALSE
A60: 5.11 성가대지휘자 | B60: 12,000,000 | C60: 1,000,000 | D60: 1,000,000 | E60: 8.3% | F60: =IF($F$4="보정", 보정치!E56) -> FALSE
A61: 5.12 오르가니스트 | B61: 12,000,000 | C61: 1,000,000 | D61: 1,000,000 | E61: 8.3% | F61: =IF($F$4="보정", 보정치!E57) -> FALSE
A62: 5.13 교육부서 담당교역자 | B62: 38,400,000 | C62: 3,200,000 | D62: 3,200,000 | E62: 8.3% | F62: =IF($F$4="보정", 보정치!E58) -> FALSE
A63: 5.14 성인 솔리스트 | B63: 23,520,000 | C63: 1,960,000 | D63: 1,960,000 | E63: 8.3% | F63: =IF($F$4="보정", 보정치!E59) -> FALSE
A64: 5.15 통역자 | B64: 4,000,000 | C64: 300,000 | D64: 300,000 | E64: 7.5% | F64: =IF($F$4="보정", 보정치!E60) -> FALSE
A65: 5.16 방송담당 | B65: 12,000,000 | C65: 900,000 | D65: 900,000 | E65: 7.5% | F65: =IF($F$4="보정", 보정치!E61) -> FALSE
A66: 5.17 용원 사례비 | B66: =SUM(B67:B68) -> 11,000,000 | C66: =SUM(C67,C68) -> 732,000 | D66: =SUM(D67:D68) -> 732,000 | E66: 6.7% | F66: =IF($F$4="보정", 보정치!E62) -> FALSE
A67: 5.17.1 관리실 여사 | B67: 6,000,000 | C67: 408,000 | D67: =C67 -> 408,000 | E67: 6.8% | F67: =IF($F$4="보정", 보정치!E63) -> FALSE
A68: 5.17.2 관리실 반장 | B68: 5,000,000 | C68: 324,000 | D68: =C68 -> 324,000 | E68: 6.5% | F68: =IF($F$4="보정", 보정치!E64) -> FALSE
A69: 5.18 퇴직위로금 | B69: 3,000,000 | C69: 0 | D69: =C69 -> 0 | E69: 0.0% | F69: =IF($F$4="보정", 보정치!E65) -> FALSE
A70: 5.19 기타(교역자휴가 및 기타인건비) | B70: 3,000,000 | C70: 0 | D70: =C70 -> 0 | E70: 0.0% | F70: =IF($F$4="보정", 보정치!E66) -> FALSE
A71: 6. 행정운영비 | B71: =SUM(B72:B74,B81,B82,B83,B84,B85) -> 90,700,000 | C71: =SUM(C72:C74,C81,C82,C83,C84,C85) -> 6,718,660 | D71: =SUM(D72:D74,D81,D82,D83,D84,D85) -> 6,718,660 | E71: 7.4% | F71: =SUM(F72:F74,F81,F82,F83,F84,F85) -> 0
A72: 6.1 회의 및 교회위원회 | B72: 6,000,000 | C72: 549,720 | D72: =C72 -> 549,720 | E72: 9.2% | F72: =IF($F$4="보정", 보정치!E70) -> FALSE
A73: 6.2 사무운영비 | B73: 13,000,000 | C73: 1,157,220 | D73: =C73 -> 1,157,220 | E73: =D73/B73 -> 8.9% | F73: =IF($F$4="보정", 보정치!E71) -> FALSE
A74: 6.3 부서운영비 | B74: =SUM(B75:B80) -> 52,000,000 | C74: =SUM(C75:C80) -> 4,404,200 | D74: =SUM(D75:D80) -> 4,404,200 | E74: 8.5% | F74: =IF($F$4="보정", 보정치!E72) -> FALSE
A75: 6.3.1 성가대 | B75: 14,300,000 | C75: 1,304,200 | D75: =C75 -> 1,304,200 | E75: 9.1% | F75: =IF($F$4="보정", 보정치!E73) -> FALSE
A76: 6.3.2 유치부 | B76: 4,500,000 | C76: 400,000 | D76: =C76 -> 400,000 | E76: 8.9% | F76: =IF($F$4="보정", 보정치!E74) -> FALSE
A77: 6.3.3 초등부 | B77: 7,100,000 | C77: 600,000 | D77: 600,000 | E77: 8.5% | F77: =IF($F$4="보정", 보정치!E75) -> FALSE
A78: 6.3.4 중고등부 | B78: 5,100,000 | C78: 500,000 | D78: 500,000 | E78: 9.8% | F78: =IF($F$4="보정", 보정치!E76) -> FALSE
A79: 6.3.5 대학부(신촌) | B79: 12,000,000 | C79: 700,000 | D79: 700,000 | E79: 5.8% | F79: =IF($F$4="보정", 보정치!E77) -> FALSE
A80: 6.3.6 대학부(국제) | B80: 9,000,000 | C80: 900,000 | D80: 900,000 | E80: 10.0% | F80: =IF($F$4="보정", 보정치!E78) -> FALSE
A81: 6.4 목회활동비 | B81: 7,200,000 | C81: 594,560 | D81: =C81 -> 594,560 | E81: 8.3% | F81: =IF($F$4="보정", 보정치!E79) -> FALSE
A82: 6.5 용품 및 수리비 | B82: 5,000,000 | C82: 0 | D82: 0 | E82: 0.0% | F82: =IF($F$4="보정", 보정치!E80) -> FALSE
A83: 6.6 연료비 및 통신비 | B83: 4,000,000 | C83: 12,960 | D83: 12,960 | E83: =D83/B83 -> 0.3% | F83: =IF($F$4="보정", 보정치!E81) -> FALSE
A84: 6.7 악기구입 및 보수 | B84: 3,500,000 | C84: 0 | D84: 0 | E84: =D84/B84 -> 0.0% | F84: =IF($F$4="보정", 보정치!E82) -> FALSE
A85: 6.8 행정운영 예비비 | B85: 0 | C85: 0 | D85: 0 | F85: =IF($F$4="보정", 보정치!E83) -> FALSE
A86: 7. 장학금 | B86: =SUM(B87:B91) -> 66,720,000 | C86: =SUM(C87:C91) -> 19,800,000 | D86: =SUM(D87:D91) -> 19,800,000 | E86: 29.7% | F86: =SUM(F87:F91) -> 0
A87: 7.1 교회학교 교사 | B87: 21,000,000 | C87: 1,200,000 | D87: =C87 -> 1,200,000 | E87: 5.7% | F87: =IF($F$4="보정", 보정치!E83) -> FALSE
A88: 7.2 신촌 대학청년부 | B88: 12,000,000 | C88: 5,400,000 | D88: =C88 -> 5,400,000 | E88: 45.0% | F88: =IF($F$4="보정", 보정치!E84) -> FALSE
A89: 7.3 국제 대학부 | B89: 9,000,000 | C89: 3,600,000 | D89: 3,600,000 | E89: 40.0% | F89: =IF($F$4="보정", 보정치!E85) -> FALSE
A90: 7.4 학생 솔리스트 | B90: 16,320,000 | C90: 5,400,000 | D90: 5,400,000 | E90: 33.1% | F90: =IF($F$4="보정", 보정치!E86) -> FALSE
A91: 7.5 기숙사지원 | B91: 8,400,000 | C91: 4,200,000 | D91: 4,200,000 | E91: 50.0% | F91: =IF($F$4="보정", 보정치!E87) -> FALSE
A92: 8. 예비비 | B92: 32,750,000 | C92: 0 | D92: =C92 -> 0 | E92: 0.0% | F92: =IF($F$4="보정", 보정치!E90) -> FALSE
A93: 9. 이웃사랑기금적립 | B93: 0 | C93: 0 | D93: 0 | E93: 0.0% | F93: =IF($F$4="보정", 보정치!E91) -> FALSE
A94: 일반 지출 소계 | B94: =SUM(B5,B13,B22,B38,B50,B71,B86,B92,B93) -> 580,000,000 | C94: =SUM(C5,C13,C22,C38,C50,C71,C86,C92,C93) -> 74,751,020 | D94: =SUM(D5,D13,D22,D38,D50,D71,D86,D92,D93) -> 74,751,020 | E94: 12.9% | F94: =SUM(F86,F71,F50,F38,F22,F13,F5) -> 0
A95: 차월이월 | C95: ='3월 수입 상세'!C24-'3월 지출 상세'!C94 -> -31,699,560 | D95: ='3월 수입 상세'!D25+'3월 수입 상세'!D26+'3월 지출 상세'!C95 -> 8,300,440
A96: 지출부 총액 | B96: =B94+B95 -> 580,000,000 | C96: =C94+C95 -> 43,051,460 | D96: =D94+D95 -> 83,051,460 | E96: 14.3%

Sheet 4월 약식
A1: 2023년 4월 결산보고서(약식)
A2: 회계년도: 2023년도 | I2: (2023-04-30 현재)
A3: 수입의 부 | F3: 지출의 부
A4: 항 목 | B4: 예산 | C4: 당월 수입 | D4: 수입 누계 | E4: 집행률(%) | F4: 항 목 | H4: 예산 | I4: 당월 지출 | J4: 지출 누계 | K4: 집행률(%)
A5: 1. 주일헌금 | B5: ='4월 수입 상세'!B5 -> 160,000,000 | C5: ='4월 수입 상세'!C5 -> 13,194,634 | D5: =VLOOKUP(A5, '4월 수입 상세'!$A$4:$F$28, 4, FALSE) -> 23,950,634 | E5: =D5/B5 -> 15.0% | F5: 1. 예배운영비 | H5: ='4월 지출 상세'!B5 -> 22,700,000 | I5: ='4월 지출 상세'!C5 -> 820,400 | J5: =VLOOKUP(F5, '4월 지출 상세'!$A$4:$G$96, 4, FALSE) -> 3,139,050 | K5: =J5/H5 -> 13.8%
A6: 2. 십일조 | B6: ='4월 수입 상세'!B6 -> 105,000,000 | C6: ='4월 수입 상세'!C6 -> 10,608,437 | D6: =VLOOKUP(A6, '4월 수입 상세'!$A$4:$F$28, 4, FALSE) -> 19,946,437 | E6: 19.0% | F6: 2. 교육운영비 | H6: ='4월 지출 상세'!B13 -> 30,500,000 | I6: ='4월 지출 상세'!C13 -> 0 | J6: =VLOOKUP(F6, '4월 지출 상세'!$A$4:$G$96, 4, FALSE) -> 748,390 | K6: 2.5%
A7: 3. 월정헌금 | B7: ='4월 수입 상세'!B7 -> 145,000,000 | C7: ='4월 수입 상세'!C7 -> 11,580,000 | D7: =VLOOKUP(A7, '4월 수입 상세'!$A$4:$F$28, 4, FALSE) -> 24,355,000 | E7: 16.8% | F7: 3. 선교비 | H7: ='4월 지출 상세'!B22 -> 74,760,000 | I7: ='4월 지출 상세'!C22 -> 1,266,000 | J7: =VLOOKUP(F7, '4월 지출 상세'!$A$4:$G$96, 4, FALSE) -> 25,923,000 | K7: 34.7%
A8: 4. 감사헌금 | B8: ='4월 수입 상세'!B8 -> 35,000,000 | C8: ='4월 수입 상세'!C8 -> 2,924,000 | D8: =VLOOKUP(A8, '4월 수입 상세'!$A$4:$F$28, 4, FALSE) -> 4,878,000 | E8: 13.9% | F8: 4. 친교행사운영비 | H8: ='4월 지출 상세'!B38 -> 27,600,000 | I8: ='4월 지출 상세'!C38 -> 2,972,460 | J8: =VLOOKUP(F8, '4월 지출 상세'!$A$4:$G$96, 4, FALSE) -> 3,588,780 | K8: 13.0%
A9: 5. 교육부헌금 | B9: ='4월 수입 상세'!B9 -> 22,000,000 | C9: ='4월 수입 상세'!C9 -> 2,007,000 | D9: =VLOOKUP(A9, '4월 수입 상세'!$A$4:$F$28, 4, FALSE) -> 4,722,460 | E9: 21.5% | F9: 5. 사례비 | H9: ='4월 지출 상세'!B50 -> 234,270,000 | I9: ='4월 지출 상세'!C50 -> 20,844,000 | J9: =VLOOKUP(F9, '4월 지출 상세'!$A$4:$G$96, 4, FALSE) -> 40,736,000 | K9: 17.4%
A10: 6. 절기헌금 | B10: ='4월 수입 상세'!B15 -> 35,000,000 | C10: ='4월 수입 상세'!C15 -> 14,256,000 | D10: =VLOOKUP(A10, '4월 수입 상세'!$A$4:$F$28, 4, FALSE) -> 14,256,000 | E10: 40.7% | F10: 6. 행정운영비 | H10: ='4월 지출 상세'!B71 -> 90,700,000 | I10: ='4월 지출 상세'!C71 -> 9,813,806 | J10: =VLOOKUP(F10, '4월 지출 상세'!$A$4:$G$96, 4, FALSE) -> 16,532,466 | K10: 18.2%
A11: 7. 선교헌금 | B11: ='4월 수입 상세'!B19 -> 5,000,000 | C11: ='4월 수입 상세'!C19 -> 514,000 | D11: =VLOOKUP(A11, '4월 수입 상세'!$A$4:$F$28, 4, FALSE) -> 819,000 | E11: 16.4% | F11: 7. 장학금 | H11: ='4월 지출 상세'!B86 -> 66,720,000 | I11: ='4월 지출 상세'!C86 -> 1,920,000 | J11: =VLOOKUP(F11, '4월 지출 상세'!$A$4:$G$96, 4, FALSE) -> 21,720,000 | K11: 32.6%
A12: 8. 지정헌금 | B12: ='4월 수입 상세'!B22 -> 20,000,000 | C12: ='4월 수입 상세'!C22 -> 530,000 | D12: =VLOOKUP(A12, '4월 수입 상세'!$A$4:$F$28, 4, FALSE) -> 5,738,000 | E12: 28.7% | F12: 8. 예비비 | H12: ='4월 지출 상세'!B92 -> 32,750,000 | I12: ='4월 지출 상세'!C92 -> 500,000 | J12: =VLOOKUP(F12, '4월 지출 상세'!$A$4:$G$96, 4, FALSE) -> 500,000 | K12: 1.5%
A13: 9. 특별헌금(이웃사랑실천헌금 등) | B13: ='4월 수입 상세'!B23 -> 13,000,000 | C13: ='4월 수입 상세'!C23 -> 0 | D13: =VLOOKUP(A13, '4월 수입 상세'!$A$4:$F$28, 4, FALSE) -> 0 | E13: 0.0% | F13: 9. 이웃사랑기금적립 | H13: ='4월 지출 상세'!B93 -> 0 | I13: ='4월 지출 상세'!C93 -> 0 | J13: =VLOOKUP(F13, '4월 지출 상세'!$A$4:$G$96, 4, FALSE) -> 0
A14: 헌금 수입 소계 | B14: =SUM(B5:B13) -> 540,000,000 | C14: =SUM(C5:C13) -> 55,614,071 | D14: =SUM(D5:D13) -> 98,665,531 | E14: 18.3% | F14: 일반 지출 소계 | H14: =SUM(H5:H13) -> 580,000,000 | I14: =SUM(I5:I13) -> 38,136,666 | J14: =SUM(J5:J13) -> 112,887,686 | K14: =J14/H14 -> 19.5%
A15: 전기이월금 전입 | B15: 40,000,000 | C15: 0 | D15: ='3월 약식'!D15+'4월 약식'!C15 -> 40,000,000 | E15: 100.0% | F15: 차월이월 | I15: =C14-I14 -> 17,477,405 | J15: =D19-J14 -> 47,654,745
A16: 전기이월금 추가전입 | C16: 0 | D16: ='3월 약식'!D16 -> 21,876,900
A17: 헌금외 기금 | C17: 0 | D17: 0
A18: 전월이월금 | C18: ='3월 약식'!I15 -> -31,699,560
A19: 수입부 총액 | B19: =SUM(B14:B18) -> 580,000,000 | C19: =SUM(C14:C18) -> 23,914,511 | D19: =SUM(D14:D18) -> 160,542,431 | E19: =D19/B19 -> 27.7% | F19: 지출부 총액 | H19: =SUM(H14:H18) -> 580,000,000 | I19: =SUM(I14:I18) -> 55,614,071 | J19: =SUM(J14:J18) -> 160,542,431 | K19: =J19/H19 -> 27.7%
A21: 기금 및 이월금 현황 (2023.3.1 기준) | F21: 헌금 수입 및 지출 누계 비교
A22: 기금명 | C22: 금액(이자포함) | G22: 2021년 4월 | H22: 2022년 4월 | I22: 2023년 4월
A23: 박명윤이행자선교기금(FAA003023) | C23: 53,380,953 | F23: 수입 누계 | G23: 106,817,860 | H23: 87,480,371 | I23: =D14 -> 98,665,531
A24: 대학교회건축기금(FBA113041) | C24: 0 | F24: 지출 누계 | G24: 88,113,793 | H24: 92,587,348 | I24: =J14 -> 112,887,686
A25: 국캠대학교회선교기금(FEA173001) | C25: 146,649
A26: 이웃사랑기금(FEA183001) | C26: 83,791,013
A27: 유초등부발전기금(FAA213008) | C27: 18,299,135
A28: 기금 총액 | C28: =SUM(C23:C27) -> 155,617,750
A30: *누적 이월금 (2023.3.1 기준 / 기금 및 전입금 제외) | C30: 453,597,137

Sheet 4월 수입 상세
A1: 4월 수입 상세
A2: 회계연도: 2023년도 | F2: (2023-04-30 현재)
A4: 분류항목 | B4: 예산 | C4: 당월 | D4: 누계 | E4: 집행률(%) | F4: 비고
A5: 1. 주일헌금 | B5: 160,000,000 | C5: 13,194,634 | D5: =SUM('3월 수입 상세'!D5+'4월 수입 상세'!C5) -> 23,950,634 | E5: =D5/B5 -> 15.0%
A6: 2. 십일조 | B6: 105,000,000 | C6: 10,608,437 | D6: =SUM('3월 수입 상세'!D6+'4월 수입 상세'!C6) -> 19,946,437 | E6: =D6/B6 -> 19.0%
A7: 3. 월정헌금 | B7: 145,000,000 | C7: 11,580,000 | D7: =SUM('3월 수입 상세'!D7+'4월 수입 상세'!C7) -> 24,355,000 | E7: 16.8%
A8: 4. 감사헌금 | B8: 35,000,000 | C8: 2,924,000 | D8: =SUM('3월 수입 상세'!D8+'4월 수입 상세'!C8) -> 4,878,000 | E8: 13.9%
A9: 5. 교육부헌금 | B9: =SUM(B10:B14) -> 22,000,000 | C9: =SUM(C10:C14) -> 2,007,000 | D9: =SUM(D10:D14) -> 4,722,460 | E9: 21.5%
A10: 유치부 | B10: 700,000 | C10: 128,000 | D10: =SUM('3월 수입 상세'!D10+'4월 수입 상세'!C10) -> 361,049 | E10: 51.6%
A11: 초등부 | B11: 1,000,000 | C11: 102,000 | D11: =SUM('3월 수입 상세'!D11+'4월 수입 상세'!C11) -> 249,500 | E11: 25.0%
A12: 중고등부 | B12: 300,000 | C12: 20,000 | D12: =SUM('3월 수입 상세'!D12+'4월 수입 상세'!C12) -> 45,722 | E12: 15.2%
A13: 대학부(신촌) | B13: 7,000,000 | C13: 1,186,000 | D13: =SUM('3월 수입 상세'!D13+'4월 수입 상세'!C13) -> 2,268,977 | E13: 32.4%
A14: 대학부(국제) | B14: 13,000,000 | C14: 571,000 | D14: =SUM('3월 수입 상세'!D14+'4월 수입 상세'!C14) -> 1,797,212 | E14: 13.8%
A15: 6. 절기헌금 | B15: =SUM(B16:B18) -> 35,000,000 | C15: =SUM(C16:C18) -> 14,256,000 | D15: =SUM('3월 수입 상세'!D15+'4월 수입 상세'!C15) -> 14,256,000 | E15: 40.7%
A16: 부활절 | B16: 10,000,000 | C16: 14,256,000 | D16: =SUM('3월 수입 상세'!D16+'4월 수입 상세'!C16) -> 14,256,000 | E16: 142.6%
A17: 추수감사절 | B17: 10,000,000 | C17: 0 | D17: =SUM('3월 수입 상세'!D17+'4월 수입 상세'!C17) -> 0 | E17: 0.0%
A18: 성탄절 | B18: 15,000,000 | C18: 0 | D18: =SUM('3월 수입 상세'!D18+'4월 수입 상세'!C18) -> 0 | E18: 0.0%
A19: 7. 선교헌금 | B19: 5,000,000 | C19: =SUM(C20:C21) -> 514,000 | D19: =SUM(D20:D21) -> 819,000 | E19: 16.4%
A20: 선교헌금 | B20: 2,500,000 | C20: 514,000 | D20: =SUM('3월 수입 상세'!D20+'4월 수입 상세'!C20) -> 819,000 | E20: 32.8%
A21: 특별선교헌금 | B21: 2,500,000 | C21: 0 | D21: =SUM('3월 수입 상세'!D21+'4월 수입 상세'!C21) -> 0 | E21: 0.0%
A22: 8. 지정헌금 | B22: 20,000,000 | C22: 530,000 | D22: =SUM('3월 수입 상세'!D22+'4월 수입 상세'!C22) -> 5,738,000 | E22: 28.7% | F22: 헌화헌금 53만 원
A23: 9. 특별헌금(이웃사랑실천헌금 등) | B23: 13,000,000 | C23: 0 | D23: =SUM('3월 수입 상세'!D23+'4월 수입 상세'!C23) -> 0 | E23: 0.0%
A24: 헌금 수입 소계 | B24: =SUM(B5,B6,B7,B8,B9,B15,B19,B22,B23) -> 540,000,000 | C24: =SUM(C5,C6,C7,C8,C9,C15,C19,C22,C23) -> 55,614,071 | D24: =SUM(D5,D6,D7,D8,D9,D15,D19,D22,D23) -> 98,665,531 | E24: 18.3%
A25: 전기이월금 전입 | B25: 40,000,000 | C25: 0 | D25: 40,000,000 | E25: 100.0%
A26: 헌금외 기금 | B26: 0 | C26: 0 | D26: =C26 -> 0
A27: 전월이월금 | B27: 0 | C27: ='4월 약식'!C18 -> -31,699,560 | D27: 0
A28: 수입부 총액 | B28: =B24+B25 -> 580,000,000 | C28: =SUM(C24:C27) -> 23,914,511 | D28: =SUM(D24:D27) -> 138,665,531 | E28: 23.9%

Sheet 4월 지출 상세
A1: 4월 지출 상세
A2: 회계연도: 2023년도
G3: (2023-04-30 현재)
A4: 분류항목 | B4: 예산 | C4: 당월 | D4: 누계 | E4: 집행률(%) | G4: 비고
A5: 1. 예배운영비 | B5: =SUM(B6:B9) -> 22,700,000 | C5: =SUM(C6:C12)-C9 -> 820,400 | D5: =SUM(D6:D9) -> 3,139,050 | E5: =D5/B5 -> 13.8% | F5: =SUM(F6:F9) -> 0
A6: 1.1 성례예식비 | B6: 1,200,000 | C6: 117,000 | D6: ='3월 지출 상세'!D6+'4월 지출 상세'!C6 -> 417,000 | E6: =D6/B6 -> 34.8% | F6: =IF($F$4="보정", 보정치!E4) -> FALSE | G6: 성찬키트 구입
A7: 1.2 주보인쇄비 | B7: 4,000,000 | C7: 150,000 | D7: ='3월 지출 상세'!D7+'4월 지출 상세'!C7 -> 365,000 | E7: 9.1% | F7: =IF($F$4="보정", 보정치!E5) -> FALSE
A8: 1.3 강사접대비 | B8: 2,500,000 | C8: 262,500 | D8: ='3월 지출 상세'!D8+'4월 지출 상세'!C8 -> 485,000 | E8: 19.4% | F8: =IF($F$4="보정", 보정치!E6) -> FALSE
A9: 1.4 예배준비비 | B9: =SUM(B10:B12) -> 15,000,000 | C9: =SUM(C10:C12) -> 290,900 | D9: ='3월 지출 상세'!D9+'4월 지출 상세'!C9 -> 1,872,050 | E9: 12.5% | F9: =IF($F$4="보정", 보정치!E7) -> FALSE
A10: 1.4.1 성전 꽃꽂이 | B10: 10,000,000 | C10: 0 | D10: ='3월 지출 상세'!D10+'4월 지출 상세'!C10 -> 1,200,000 | E10: 12.0% | F10: =IF($F$4="보정", 보정치!E8) -> FALSE | G10: 2, 3월 예배당 꽃장식비
A11: 1.4.2 봉사자 식사 | B11: 4,000,000 | C11: 181,100 | D11: ='3월 지출 상세'!D11+'4월 지출 상세'!C11 -> 562,250 | E11: 14.1% | F11: =IF($F$4="보정", 보정치!E9) -> FALSE
A12: 1.4.3 절기행사비 | B12: 1,000,000 | C12: 109,800 | D12: ='3월 지출 상세'!D12+'4월 지출 상세'!C12 -> 109,800 | E12: 11.0% | F12: =IF($F$4="보정", 보정치!E10) -> FALSE
A13: 2. 교육운영비 | B13: =SUM(B14:B21) -> 30,500,000 | C13: =SUM(C14:C21) -> 0 | D13: =SUM(D14:D21) -> 748,390 | E13: 2.5% | F13: =IF($F$4="보정", 보정치!E11) -> FALSE
A14: 2.1 주일성서연구운영비 | B14: 1,000,000 | C14: 0 | D14: ='3월 지출 상세'!D14+'4월 지출 상세'!C14 -> 0 | E14: 0.0% | F14: =IF($F$4="보정", 보정치!E12) -> FALSE
A15: 2.2 도서 및 교재 | B15: 2,000,000 | C15: 0 | D15: ='3월 지출 상세'!D15+'4월 지출 상세'!C15 -> 326,100 | E15: 16.3% | F15: =IF($F$4="보정", 보정치!E13) -> FALSE
A16: 2.3 전교인수양회 행사비 | B16: 14,000,000 | C16: 0 | D16: ='3월 지출 상세'!D16+'4월 지출 상세'!C16 -> 0 | E16: 0.0% | F16: =IF($F$4="보정", 보정치!E14) -> FALSE
A17: 2.4 교목연수비 | B17: 0 | C17: 0 | D17: ='3월 지출 상세'!D17+'4월 지출 상세'!C17 -> 0 | F17: =IF($F$4="보정", 보정치!E15) -> FALSE
A18: 2.5 교역자 교육훈련비 | B18: 3,000,000 | C18: 0 | D18: ='3월 지출 상세'!D18+'4월 지출 상세'!C18 -> 422,290 | E18: 14.1% | F18: =IF($F$4="보정", 보정치!E16) -> FALSE
A19: 2.6 교사세미나/교역자workshop | B19: 3,000,000 | C19: 0 | D19: ='3월 지출 상세'!D19+'4월 지출 상세'!C19 -> 0 | E19: 0.0% | F19: =IF($F$4="보정", 보정치!E17) -> FALSE
A20: 2.7 교육부 운영비 | B20: 7,500,000 | C20: 0 | D20: ='3월 지출 상세'!D20+'4월 지출 상세'!C20 -> 0 | E20: 0.0% | F20: =IF($F$4="보정", 보정치!E18) -> FALSE
A21: 2.8 교육운영 예비비 | B21: 0 | C21: 0 | D21: ='3월 지출 상세'!D21+'4월 지출 상세'!C21 -> 0 | F21: =IF($F$4="보정", 보정치!E19) -> FALSE
A22: 3. 선교비 | B22: =SUM(B23,B34,B35,B36,B37) -> 74,760,000 | C22: =SUM(C23,C34,C35,C36,C37) -> 1,266,000 | D22: =SUM(D23,D34:D37) -> 25,923,000 | E22: 34.7% | F22: =SUM(F23,F32,F33,F34,F35) -> 0
A23: 3.1 학원선교 | B23: =SUM(B24:B33) -> 50,960,000 | C23: =SUM(C24:C33) -> 866,000 | D23: =SUM(D24:D33) -> 1,866,000 | E23: 3.7% | F23: =SUM(F24:F31) -> 0
A24: 3.1.1 간식나눔행사(신촌) | B24: 2,000,000 | C24: 66,000 | D24: ='3월 지출 상세'!D24+'4월 지출 상세'!C24 -> 66,000 | E24: 3.3% | F24: =IF($F$4="보정", 보정치!E22) -> FALSE
A25: 3.1.2 간식나눔행사(국제) | B25: 1,000,000 | C25: 0 | D25: ='3월 지출 상세'!D25+'4월 지출 상세'!C25 -> 0 | E25: 0.0% | F25: =IF($F$4="보정", 보정치!E23) -> FALSE
A26: 3.1.3 교목실 점심나눔 후원 | B26: 27,000,000 | C26: 0 | D26: ='3월 지출 상세'!D26+'4월 지출 상세'!C26 -> 0 | E26: 0.0% | F26: =IF($F$4="보정", 보정치!E24) -> FALSE
A27: 3.1.4 연세기독학생연합회 지원 | B27: 3,600,000 | C27: 300,000 | D27: ='3월 지출 상세'!D27+'4월 지출 상세'!C27 -> 600,000 | E27: 16.7% | F27: =IF($F$4="보정", 보정치!E25) -> FALSE
A28: 3.1.5 연세기독학생회찬양팀 후원 | B28: 2,400,000 | C28: 200,000 | D28: ='3월 지출 상세'!D28+'4월 지출 상세'!C28 -> 400,000 | E28: 16.7% | F28: =IF($F$4="보정", 보정치!E26) -> FALSE
A29: 3.1.6 YMK 후원 | B29: 3,600,000 | C29: 300,000 | D29: ='3월 지출 상세'!D29+'4월 지출 상세'!C29 -> 600,000 | E29: 16.7% | F29: =IF($F$4="보정", 보정치!E27) -> FALSE
A30: 3.1.7 통일한마당 | B30: 2,400,000 | C30: 0 | D30: ='3월 지출 상세'!D30+'4월 지출 상세'!C30 -> 200,000 | E30: 8.3% | F30: =IF($F$4="보정", 보정치!E28) -> FALSE | G30: 지급정보 오류로 미지급
A31: 3.1.8 리틀언더우드 후원 | B31: 5,000,000 | C31: 0 | D31: ='3월 지출 상세'!D31+'4월 지출 상세'!C31 -> 0 | E31: 0.0% | F31: 0
A32: 3.1.9 멘토멘티프로그램 | B32: 3,960,000 | C32: 0 | D32: ='3월 지출 상세'!D32+'4월 지출 상세'!C32 -> 0 | E32: 0.0% | F32: 0
A33: 3.1.10 학원선교 기타 | B33: 0 | C33: 0 | D33: ='3월 지출 상세'!D33+'4월 지출 상세'!C33 -> 0 | F33: =IF($F$4="보정", 보정치!E31) -> FALSE
A34: 3.2 국외선교 | B34: 4,800,000 | C34: 400,000 | D34: ='3월 지출 상세'!D34+'4월 지출 상세'!C34 -> 800,000 | E34: 16.7% | F34: =IF($F$4="보정", 보정치!E32) -> FALSE | G34: 함정희, 노규래
A35: 3.3 이웃사랑 실천헌금 | B35: 9,000,000 | C35: 0 | D35: ='3월 지출 상세'!D35+'4월 지출 상세'!C35 -> 0 | E35: 0.0% | F35: =IF($F$4="보정", 보정치!E33) -> FALSE
A36: 3.4 지정헌금 | B36: 10,000,000 | C36: 0 | D36: ='3월 지출 상세'!D36+'4월 지출 상세'!C36 -> 23,257,000 | E36: 232.6% | F36: =IF($F$4="보정", 보정치!E34) -> FALSE
A37: 3.5 선교예비금 | B37: 0 | C37: 0 | D37: ='3월 지출 상세'!D37+'4월 지출 상세'!C37 -> 0 | F37: =IF($F$4="보정", 보정치!E35) -> FALSE
A38: 4. 친교행사운영비 | B38: =SUM(B39:B49)-B47 -> 27,600,000 | C38: =SUM(C39:C49)-C47 -> 2,972,460 | D38: =SUM(D39:D46,D48:D49) -> 3,588,780 | E38: 13.0% | F38: =SUM(F39:F49)-F47 -> 0
A39: 4.1 주일공동식사 | B39: 7,000,000 | C39: 2,228,200 | D39: ='3월 지출 상세'!D39+'4월 지출 상세'!C39 -> 2,228,200 | E39: 31.8% | F39: =IF($F$4="보정", 보정치!E37) -> FALSE
A40: 4.2 야외예배 행사비 | B40: 0 | C40: 0 | D40: ='3월 지출 상세'!D40+'4월 지출 상세'!C40 -> 0 | F40: =IF($F$4="보정", 보정치!E38) -> FALSE
A41: 4.3 경로행사비 | B41: 1,500,000 | C41: 0 | D41: ='3월 지출 상세'!D41+'4월 지출 상세'!C41 -> 0 | E41: 0.0% | F41: =IF($F$4="보정", 보정치!E39) -> FALSE
A42: 4.4 성탄행사비 | B42: 2,100,000 | C42: 0 | D42: ='3월 지출 상세'!D42+'4월 지출 상세'!C42 -> 0 | E42: 0.0% | F42: =IF($F$4="보정", 보정치!E40) -> FALSE
A43: 4.5 주일다과비 | B43: 5,000,000 | C43: 105,120 | D43: ='3월 지출 상세'!D43+'4월 지출 상세'!C43 -> 221,440 | E43: 4.4% | F43: =IF($F$4="보정", 보정치!E41) -> FALSE
A44: 4.6 경조비 | B44: 4,000,000 | C44: 200,000 | D44: ='3월 지출 상세'!D44+'4월 지출 상세'!C44 -> 700,000 | E44: 17.5% | F44: =IF($F$4="보정", 보정치!E42) -> FALSE
A45: 4.7 교우친교비 | B45: 2,000,000 | C45: 439,140 | D45: ='3월 지출 상세'!D45+'4월 지출 상세'!C45 -> 439,140 | E45: 22.0% | F45: =IF($F$4="보정", 보정치!E43) -> FALSE
A46: 4.8 홍보출판비 | B46: 4,000,000 | C46: =C47 -> 0 | D46: =D47 -> 0 | E46: 0.0% | F46: =IF($F$4="보정", 보정치!E44) -> FALSE
A47: 4.8.1 대학교회 회지 | B47: 4,000,000 | C47: 0 | D47: ='3월 지출 상세'!D47+'4월 지출 상세'!C47 -> 0 | E47: 0.0% | F47: =IF($F$4="보정", 보정치!E45) -> FALSE
A48: 4.9 교회봉사자 선물 | B48: 2,000,000 | C48: 0 | D48: ='3월 지출 상세'!D48+'4월 지출 상세'!C48 -> 0 | E48: 0.0% | F48: =IF($F$4="보정", 보정치!E46) -> FALSE
A49: 4.10 친교행사 예비비 | B49: 0 | C49: 0 | D49: ='3월 지출 상세'!D49+'4월 지출 상세'!C49 -> 0 | F49: =IF($F$4="보정", 보정치!E47) -> FALSE
A50: 5. 사례비 | B50: =SUM(B51:B66,B69,B70) -> 234,270,000 | C50: =SUM(C51:C66,C69,C70) -> 20,844,000 | D50: =SUM(D51:D66,D69:D70) -> 40,736,000 | E50: 17.4% | F50: =SUM(F51:F70) -> 0
A51: 5.1 외부강사 설교 사례 | B51: 12,000,000 | C51: 900,000 | D51: ='3월 지출 상세'!D51+'4월 지출 상세'!C51 -> 2,400,000 | E51: 20.0% | F51: =IF($F$4="보정", 보정치!E47) -> FALSE
A52: 5.2 외부강사 설교 사례(대학부-국제) | B52: 2,400,000 | C52: 0 | D52: ='3월 지출 상세'!D52+'4월 지출 상세'!C52 -> 0 | E52: 0.0% | F52: =IF($F$4="보정", 보정치!E48) -> FALSE
A53: 5.3 절기 예배 연주자 | B53: 800,000 | C53: 0 | D53: ='3월 지출 상세'!D53+'4월 지출 상세'!C53 -> 0 | E53: 0.0% | F53: =IF($F$4="보정", 보정치!E49) -> FALSE
A54: 5.4 국악 예배 연주자 | B54: 1,800,000 | C54: 0 | D54: ='3월 지출 상세'!D54+'4월 지출 상세'!C54 -> 0 | E54: 0.0% | F54: =IF($F$4="보정", 보정치!E50) -> FALSE
A55: 5.5 봉헌송 사례 | B55: 450,000 | C55: 0 | D55: ='3월 지출 상세'!D55+'4월 지출 상세'!C55 -> 0 | E55: 0.0% | F55: =IF($F$4="보정", 보정치!E51) -> FALSE
A56: 5.6 주일성서연구 강사사례 | B56: 4,000,000 | C56: 1,000,000 | D56: ='3월 지출 상세'!D56+'4월 지출 상세'!C56 -> 1,000,000 | E56: 25.0% | F56: =IF($F$4="보정", 보정치!E52) -> FALSE
A57: 5.8 담임목사 | B57: 14,400,000 | C57: 1,200,000 | D57: ='3월 지출 상세'!D57+'4월 지출 상세'!C57 -> 2,400,000 | E57: 16.7% | F57: =IF($F$4="보정", 보정치!E53) -> FALSE
A58: 5.9 동역목사 | B58: 12,000,000 | C58: 600,000 | D58: ='3월 지출 상세'!D58+'4월 지출 상세'!C58 -> 1,200,000 | E58: 10.0% | F58: =IF($F$4="보정", 보정치!E54) -> FALSE
A59: 5.10 전임교역자 | B59: 67,500,000 | C59: 7,500,000 | D59: ='3월 지출 상세'!D59+'4월 지출 상세'!C59 -> 15,000,000 | E59: 22.2% | F59: =IF($F$4="보정", 보정치!E55) -> FALSE
A60: 5.11 성가대지휘자 | B60: 12,000,000 | C60: 1,000,000 | D60: ='3월 지출 상세'!D60+'4월 지출 상세'!C60 -> 2,000,000 | E60: 16.7% | F60: =IF($F$4="보정", 보정치!E56) -> FALSE
A61: 5.12 오르가니스트 | B61: 12,000,000 | C61: 1,000,000 | D61: ='3월 지출 상세'!D61+'4월 지출 상세'!C61 -> 2,000,000 | E61: 16.7% | F61: =IF($F$4="보정", 보정치!E57) -> FALSE
A62: 5.13 교육부서 담당교역자 | B62: 38,400,000 | C62: 3,200,000 | D62: ='3월 지출 상세'!D62+'4월 지출 상세'!C62 -> 6,400,000 | E62: 16.7% | F62: =IF($F$4="보정", 보정치!E58) -> FALSE
A63: 5.14 성인 솔리스트 | B63: 23,520,000 | C63: 1,960,000 | D63: ='3월 지출 상세'!D63+'4월 지출 상세'!C63 -> 3,920,000 | E63: 16.7% | F63: =IF($F$4="보정", 보정치!E59) -> FALSE
A64: 5.15 통역자 | B64: 4,000,000 | C64: 375,000 | D64: ='3월 지출 상세'!D64+'4월 지출 상세'!C64 -> 675,000 | E64: 16.9% | F64: =IF($F$4="보정", 보정치!E60) -> FALSE
A65: 5.16 방송담당 | B65: 12,000,000 | C65: 1,275,000 | D65: ='3월 지출 상세'!D65+'4월 지출 상세'!C65 -> 2,175,000 | E65: 18.1% | F65: =IF($F$4="보정", 보정치!E61) -> FALSE
A66: 5.17 용원 사례비 | B66: =SUM(B67:B68) -> 11,000,000 | C66: =SUM(C67,C68) -> 834,000 | D66: =SUM(D67:D68) -> 1,566,000 | E66: 14.2% | F66: =IF($F$4="보정", 보정치!E62) -> FALSE
A67: 5.17.1 관리실 여사 | B67: 6,000,000 | C67: 510,000 | D67: ='3월 지출 상세'!D67+'4월 지출 상세'!C67 -> 918,000 | E67: 15.3% | F67: =IF($F$4="보정", 보정치!E63) -> FALSE
A68: 5.17.2 관리실 반장 | B68: 5,000,000 | C68: 324,000 | D68: ='3월 지출 상세'!D68+'4월 지출 상세'!C68 -> 648,000 | E68: 13.0% | F68: =IF($F$4="보정", 보정치!E64) -> FALSE
A69: 5.18 퇴직위로금 | B69: 3,000,000 | C69: 0 | D69: ='3월 지출 상세'!D69+'4월 지출 상세'!C69 -> 0 | E69: 0.0% | F69: =IF($F$4="보정", 보정치!E65) -> FALSE
A70: 5.19 기타(교역자휴가 및 기타인건비) | B70: 3,000,000 | C70: 0 | D70: ='3월 지출 상세'!D70+'4월 지출 상세'!C70 -> 0 | E70: 0.0% | F70: =IF($F$4="보정", 보정치!E66) -> FALSE
A71: 6. 행정운영비 | B71: =SUM(B72:B74,B81,B82,B83,B84,B85) -> 90,700,000 | C71: =SUM(C72:C74,C81,C82,C83,C84,C85) -> 9,813,806 | D71: =SUM(D72:D74,D81:D85) -> 16,532,466 | E71: 18.2% | F71: =SUM(F72:F74,F81,F82,F83,F84,F85) -> 0
A72: 6.1 회의 및 교회위원회 | B72: 6,000,000 | C72: 697,700 | D72: ='3월 지출 상세'!D72+'4월 지출 상세'!C72 -> 1,247,420 | E72: 20.8% | F72: =IF($F$4="보정", 보정치!E70) -> FALSE
A73: 6.2 사무운영비 | B73: 13,000,000 | C73: 1,545,856 | D73: ='3월 지출 상세'!D73+'4월 지출 상세'!C73 -> 2,703,076 | E73: =D73/B73 -> 20.8% | F73: =IF($F$4="보정", 보정치!E71) -> FALSE
A74: 6.3 부서운영비 | B74: =SUM(B75:B80) -> 52,000,000 | C74: =SUM(C75:C80) -> 5,584,000 | D74: =SUM(D75:D80) -> 9,988,200 | E74: 19.2% | F74: =IF($F$4="보정", 보정치!E72) -> FALSE
A75: 6.3.1 성가대 | B75: 14,300,000 | C75: 1,884,000 | D75: ='3월 지출 상세'!D75+'4월 지출 상세'!C75 -> 3,188,200 | E75: 22.3% | F75: =IF($F$4="보정", 보정치!E73) -> FALSE
A76: 6.3.2 유치부 | B76: 4,500,000 | C76: 400,000 | D76: ='3월 지출 상세'!D76+'4월 지출 상세'!C76 -> 800,000 | E76: 17.8% | F76: =IF($F$4="보정", 보정치!E74) -> FALSE
A77: 6.3.3 초등부 | B77: 7,100,000 | C77: 600,000 | D77: ='3월 지출 상세'!D77+'4월 지출 상세'!C77 -> 1,200,000 | E77: 16.9% | F77: =IF($F$4="보정", 보정치!E75) -> FALSE
A78: 6.3.4 중고등부 | B78: 5,100,000 | C78: 500,000 | D78: ='3월 지출 상세'!D78+'4월 지출 상세'!C78 -> 1,000,000 | E78: 19.6% | F78: =IF($F$4="보정", 보정치!E76) -> FALSE
A79: 6.3.5 대학부(신촌) | B79: 12,000,000 | C79: 1,300,000 | D79: ='3월 지출 상세'!D79+'4월 지출 상세'!C79 -> 2,000,000 | E79: 16.7% | F79: =IF($F$4="보정", 보정치!E77) -> FALSE
A80: 6.3.6 대학부(국제) | B80: 9,000,000 | C80: 900,000 | D80: ='3월 지출 상세'!D80+'4월 지출 상세'!C80 -> 1,800,000 | E80: 20.0% | F80: =IF($F$4="보정", 보정치!E78) -> FALSE
A81: 6.4 목회활동비 | B81: 7,200,000 | C81: 1,027,200 | D81: ='3월 지출 상세'!D81+'4월 지출 상세'!C81 -> 1,621,760 | E81: 22.5% | F81: =IF($F$4="보정", 보정치!E79) -> FALSE
A82: 6.5 용품 및 수리비 | B82: 5,000,000 | C82: 0 | D82: ='3월 지출 상세'!D82+'4월 지출 상세'!C82 -> 0 | E82: 0.0% | F82: =IF($F$4="보정", 보정치!E80) -> FALSE
A83: 6.6 연료비 및 통신비 | B83: 4,000,000 | C83: 389,050 | D83: ='3월 지출 상세'!D83+'4월 지출 상세'!C83 -> 402,010 | E83: =D83/B83 -> 10.1% | F83: =IF($F$4="보정", 보정치!E81) -> FALSE
A84: 6.7 악기구입 및 보수 | B84: 3,500,000 | C84: 570,000 | D84: ='3월 지출 상세'!D84+'4월 지출 상세'!C84 -> 570,000 | E84: =D84/B84 -> 16.3% | F84: =IF($F$4="보정", 보정치!E82) -> FALSE | G84: 오르간 및 피아노 조율비
A85: 6.8 행정운영 예비비 | B85: 0 | C85: 0 | D85: ='3월 지출 상세'!D85+'4월 지출 상세'!C85 -> 0 | F85: =IF($F$4="보정", 보정치!E83) -> FALSE
A86: 7. 장학금 | B86: =SUM(B87:B91) -> 66,720,000 | C86: =SUM(C87:C91) -> 1,920,000 | D86: =SUM(D87:D91) -> 21,720,000 | E86: 32.6% | F86: =SUM(F87:F91) -> 0
A87: 7.1 교회학교 교사 | B87: 21,000,000 | C87: 1,200,000 | D87: ='3월 지출 상세'!D87+'4월 지출 상세'!C87 -> 2,400,000 | E87: 11.4% | F87: =IF($F$4="보정", 보정치!E83) -> FALSE
A88: 7.2 신촌 대학청년부 | B88: 12,000,000 | C88: 0 | D88: ='3월 지출 상세'!D88+'4월 지출 상세'!C88 -> 5,400,000 | E88: 45.0% | F88: =IF($F$4="보정", 보정치!E84) -> FALSE
A89: 7.3 국제 대학부 | B89: 9,000,000 | C89: 0 | D89: ='3월 지출 상세'!D89+'4월 지출 상세'!C89 -> 3,600,000 | E89: 40.0% | F89: =IF($F$4="보정", 보정치!E85) -> FALSE
A90: 7.4 학생 솔리스트 | B90: 16,320,000 | C90: 720,000 | D90: ='3월 지출 상세'!D90+'4월 지출 상세'!C90 -> 6,120,000 | E90: 37.5% | F90: =IF($F$4="보정", 보정치!E86) -> FALSE | G90: 누락된 장학금 지급
A91: 7.5 기숙사지원 | B91: 8,400,000 | C91: 0 | D91: ='3월 지출 상세'!D91+'4월 지출 상세'!C91 -> 4,200,000 | E91: 50.0% | F91: =IF($F$4="보정", 보정치!E87) -> FALSE
A92: 8. 예비비 | B92: 32,750,000 | C92: 500,000 | D92: ='3월 지출 상세'!D92+'4월 지출 상세'!C92 -> 500,000 | E92: 1.5% | F92: =IF($F$4="보정", 보정치!E90) -> FALSE | G92: 국제캠퍼스 교목실 행사 후원
A93: 9. 이웃사랑기금적립 | B93: 0 | C93: 0 | D93: ='3월 지출 상세'!D93+'4월 지출 상세'!C93 -> 0 | E93: 0.0% | F93: =IF($F$4="보정", 보정치!E91) -> FALSE
A94: 일반 지출 소계 | B94: =SUM(B5,B13,B22,B38,B50,B71,B86,B92,B93) -> 580,000,000 | C94: =SUM(C5,C13,C22,C38,C50,C71,C86,C92,C93) -> 38,136,666 | D94: =SUM(D5,D13,D22,D38,D50,D71,D86,D92,D93) -> 112,887,686 | E94: 19.5% | F94: =SUM(F86,F71,F50,F38,F22,F13,F5) -> 0
A95: 차월이월 | C95: ='4월 수입 상세'!C24-'4월 지출 상세'!C94 -> 17,477,405 | D95: ='4월 수입 상세'!D25+'4월 수입 상세'!D26+'4월 지출 상세'!C95 -> 57,477,405
A96: 지출부 총액 | B96: =B94+B95 -> 580,000,000 | C96: =C94+C95 -> 55,614,071 | D96: =D94+D95 -> 170,365,091 | E96: 29.4%

Sheet 5월 약식
A1: 2023년 5월 결산보고서(약식)
A2: 회계년도: 2023년도 | I2: (2023-05-31 현재)
A3: 수입의 부 | F3: 지출의 부
A4: 항 목 | B4: 예산 | C4: 당월 수입 | D4: 수입 누계 | E4: 집행률(%) | F4: 항 목 | H4: 예산 | I4: 당월 지출 | J4: 지출 누계 | K4: 집행률(%)
A5: 1. 주일헌금 | B5: ='5월 수입 상세'!B5 -> 160,000,000 | C5: ='5월 수입 상세'!C5 -> 11,950,000 | D5: =VLOOKUP(A5, '5월 수입 상세'!$A$4:$F$29, 4, FALSE) -> 35,900,634 | E5: =D5/B5 -> 22.4% | F5: 1. 예배운영비 | H5: ='5월 지출 상세'!B5 -> 22,700,000 | I5: ='5월 지출 상세'!C5 -> 1,359,900 | J5: =VLOOKUP(F5, '5월 지출 상세'!$A$4:$G$96, 4, FALSE) -> 4,498,950 | K5: =J5/H5 -> 19.8%
A6: 2. 십일조 | B6: ='5월 수입 상세'!B6 -> 105,000,000 | C6: ='5월 수입 상세'!C6 -> 7,507,000 | D6: =VLOOKUP(A6, '5월 수입 상세'!$A$4:$F$29, 4, FALSE) -> 27,453,437 | E6: 26.1% | F6: 2. 교육운영비 | H6: ='5월 지출 상세'!B13 -> 30,500,000 | I6: ='5월 지출 상세'!C13 -> 61,250 | J6: =VLOOKUP(F6, '5월 지출 상세'!$A$4:$G$96, 4, FALSE) -> 809,640 | K6: 2.7%
A7: 3. 월정헌금 | B7: ='5월 수입 상세'!B7 -> 145,000,000 | C7: ='5월 수입 상세'!C7 -> 11,670,000 | D7: =VLOOKUP(A7, '5월 수입 상세'!$A$4:$F$29, 4, FALSE) -> 36,025,000 | E7: 24.8% | F7: 3. 선교비 | H7: ='5월 지출 상세'!B22 -> 74,760,000 | I7: ='5월 지출 상세'!C22 -> 1,311,200 | J7: =VLOOKUP(F7, '5월 지출 상세'!$A$4:$G$96, 4, FALSE) -> 27,234,200 | K7: 36.4%
A8: 4. 감사헌금 | B8: ='5월 수입 상세'!B8 -> 35,000,000 | C8: ='5월 수입 상세'!C8 -> 3,803,000 | D8: =VLOOKUP(A8, '5월 수입 상세'!$A$4:$F$29, 4, FALSE) -> 8,681,000 | E8: 24.8% | F8: 4. 친교행사운영비 | H8: ='5월 지출 상세'!B38 -> 27,600,000 | I8: ='5월 지출 상세'!C38 -> 786,200 | J8: =VLOOKUP(F8, '5월 지출 상세'!$A$4:$G$96, 4, FALSE) -> 4,374,980 | K8: 15.9%
A9: 5. 교육부헌금 | B9: ='5월 수입 상세'!B9 -> 22,000,000 | C9: ='5월 수입 상세'!C9 -> 1,291,500 | D9: =VLOOKUP(A9, '5월 수입 상세'!$A$4:$F$29, 4, FALSE) -> 6,013,960 | E9: 27.3% | F9: 5. 사례비 | H9: ='5월 지출 상세'!B50 -> 234,270,000 | I9: ='5월 지출 상세'!C50 -> 37,068,000 | J9: =VLOOKUP(F9, '5월 지출 상세'!$A$4:$G$96, 4, FALSE) -> 77,804,000 | K9: 33.2%
A10: 6. 절기헌금 | B10: ='5월 수입 상세'!B15 -> 35,000,000 | C10: ='5월 수입 상세'!C15 -> 0 | D10: =VLOOKUP(A10, '5월 수입 상세'!$A$4:$F$29, 4, FALSE) -> 14,256,000 | E10: 40.7% | F10: 6. 행정운영비 | H10: ='5월 지출 상세'!B71 -> 90,700,000 | I10: ='5월 지출 상세'!C71 -> 5,845,730 | J10: =VLOOKUP(F10, '5월 지출 상세'!$A$4:$G$96, 4, FALSE) -> 22,378,196 | K10: 24.7%
A11: 7. 선교헌금 | B11: ='5월 수입 상세'!B19 -> 5,000,000 | C11: ='5월 수입 상세'!C19 -> 100,000 | D11: =VLOOKUP(A11, '5월 수입 상세'!$A$4:$F$29, 4, FALSE) -> 919,000 | E11: 18.4% | F11: 7. 장학금 | H11: ='5월 지출 상세'!B86 -> 66,720,000 | I11: ='5월 지출 상세'!C86 -> 1,360,000 | J11: =VLOOKUP(F11, '5월 지출 상세'!$A$4:$G$96, 4, FALSE) -> 23,080,000 | K11: 34.6%
A12: 8. 지정헌금 | B12: ='5월 수입 상세'!B22 -> 20,000,000 | C12: ='5월 수입 상세'!C22 -> 760,000 | D12: =VLOOKUP(A12, '5월 수입 상세'!$A$4:$F$29, 4, FALSE) -> 6,498,000 | E12: 32.5% | F12: 8. 예비비 | H12: ='5월 지출 상세'!B92 -> 32,750,000 | I12: ='5월 지출 상세'!C92 -> 7,035,670 | J12: =VLOOKUP(F12, '5월 지출 상세'!$A$4:$G$96, 4, FALSE) -> 7,535,670 | K12: 23.0%
A13: 9. 특별헌금(이웃사랑실천헌금 등) | B13: ='5월 수입 상세'!B23 -> 13,000,000 | C13: ='5월 수입 상세'!C23 -> 100,000 | D13: =VLOOKUP(A13, '5월 수입 상세'!$A$4:$F$29, 4, FALSE) -> 100,000 | E13: 0.8% | F13: 9. 이웃사랑기금적립 | H13: ='5월 지출 상세'!B93 -> 0 | I13: ='5월 지출 상세'!C93 -> 0 | J13: =VLOOKUP(F13, '5월 지출 상세'!$A$4:$G$96, 4, FALSE) -> 0
A14: 헌금 수입 소계 | B14: =SUM(B5:B13) -> 540,000,000 | C14: =SUM(C5:C13) -> 37,181,500 | D14: =SUM(D5:D13) -> 135,847,031 | E14: 25.2% | F14: 일반 지출 소계 | H14: =SUM(H5:H13) -> 580,000,000 | I14: =SUM(I5:I13) -> 54,827,950 | J14: =SUM(J5:J13) -> 167,715,636 | K14: =J14/H14 -> 28.9%
A15: 전기이월금 전입 | B15: 40,000,000 | C15: 0 | D15: ='3월 약식'!D15+'5월 약식'!C15 -> 40,000,000 | E15: 100.0% | F15: 차월이월 | I15: =C14-I14 -> -17,646,450 | J15: =D19-J14 -> 30,008,295
A16: 전기이월금 추가전입 | C16: 0 | D16: ='3월 약식'!D16 -> 21,876,900
A17: 헌금외 기금 | C17: 0 | D17: 0
A18: 전월이월금 | C18: ='4월 약식'!I15 -> 17,477,405
A19: 수입부 총액 | B19: =SUM(B14:B18) -> 580,000,000 | C19: =SUM(C14:C18) -> 54,658,905 | D19: =SUM(D14:D18) -> 197,723,931 | E19: =D19/B19 -> 34.1% | F19: 지출부 총액 | H19: =SUM(H14:H18) -> 580,000,000 | I19: =SUM(I14:I18) -> 37,181,500 | J19: =SUM(J14:J18) -> 197,723,931 | K19: =J19/H19 -> 34.1%
A20: *지정헌금 내역(성가대_20만 원, 헌화 56만 원)
A21: 기금 및 이월금 현황 (2023.3.1 기준) | F21: 헌금 수입 및 지출 누계 비교
A22: 기금명 | C22: 금액(이자포함) | G22: 2021년 5월 | H22: 2022년 5월 | I22: 2023년 5월
A23: 박명윤이행자선교기금(FAA003023) | C23: 53,380,953 | F23: 수입 누계 | G23: 168,164,055 | H23: 134,058,854 | I23: =D14 -> 135,847,031
A24: 대학교회건축기금(FBA113041) | C24: 0 | F24: 지출 누계 | G24: 114,702,022 | H24: 122,683,803 | I24: =J14 -> 167,715,636
A25: 국캠대학교회선교기금(FEA173001) | C25: 146,649
A26: 이웃사랑기금(FEA183001) | C26: 83,791,013
A27: 유초등부발전기금(FAA213008) | C27: 18,299,135
A28: 기금 총액 | C28: =SUM(C23:C27) -> 155,617,750
A30: *누적 이월금 (2023.3.1 기준 / 기금 및 전입금 제외) | C30: 453,597,137

Sheet 5월 수입 상세
A1: 5월 수입 상세
A2: 회계연도: 2023년도 | F2: (2023-05-31 현재)
A4: 분류항목 | B4: 예산 | C4: 당월 | D4: 누계 | E4: 집행률(%) | F4: 비고
A5: 1. 주일헌금 | B5: 160,000,000 | C5: 11,950,000 | D5: =SUM('4월 수입 상세'!D5+'5월 수입 상세'!C5) -> 35,900,634 | E5: =D5/B5 -> 22.4%
A6: 2. 십일조 | B6: 105,000,000 | C6: 7,507,000 | D6: =SUM('4월 수입 상세'!D6+'5월 수입 상세'!C6) -> 27,453,437 | E6: =D6/B6 -> 26.1%
A7: 3. 월정헌금 | B7: 145,000,000 | C7: 11,670,000 | D7: =SUM('4월 수입 상세'!D7+'5월 수입 상세'!C7) -> 36,025,000 | E7: 24.8%
A8: 4. 감사헌금 | B8: 35,000,000 | C8: 3,803,000 | D8: =SUM('4월 수입 상세'!D8+'5월 수입 상세'!C8) -> 8,681,000 | E8: 24.8%
A9: 5. 교육부헌금 | B9: =SUM(B10:B14) -> 22,000,000 | C9: =SUM(C10:C14) -> 1,291,500 | D9: =SUM(D10:D14) -> 6,013,960 | E9: 27.3%
A10: 유치부 | B10: 700,000 | C10: 120,000 | D10: =SUM('4월 수입 상세'!D10+'5월 수입 상세'!C10) -> 481,049 | E10: 68.7%
A11: 초등부 | B11: 1,000,000 | C11: 106,000 | D11: =SUM('4월 수입 상세'!D11+'5월 수입 상세'!C11) -> 355,500 | E11: 35.6%
A12: 중고등부 | B12: 300,000 | C12: 17,000 | D12: =SUM('4월 수입 상세'!D12+'5월 수입 상세'!C12) -> 62,722 | E12: 20.9%
A13: 대학부(신촌) | B13: 7,000,000 | C13: 670,500 | D13: =SUM('4월 수입 상세'!D13+'5월 수입 상세'!C13) -> 2,939,477 | E13: 42.0%
A14: 대학부(국제) | B14: 13,000,000 | C14: 378,000 | D14: =SUM('4월 수입 상세'!D14+'5월 수입 상세'!C14) -> 2,175,212 | E14: 16.7%
A15: 6. 절기헌금 | B15: =SUM(B16:B18) -> 35,000,000 | C15: 0 | D15: =SUM('4월 수입 상세'!D15+'5월 수입 상세'!C15) -> 14,256,000 | E15: 40.7%
A16: 부활절 | B16: 10,000,000 | C16: 0 | D16: =SUM('4월 수입 상세'!D16+'5월 수입 상세'!C16) -> 14,256,000 | E16: 142.6%
A17: 추수감사절 | B17: 10,000,000 | C17: 0 | D17: =SUM('4월 수입 상세'!D17+'5월 수입 상세'!C17) -> 0 | E17: 0.0%
A18: 성탄절 | B18: 15,000,000 | C18: 0 | D18: =SUM('4월 수입 상세'!D18+'5월 수입 상세'!C18) -> 0 | E18: 0.0%
A19: 7. 선교헌금 | B19: 5,000,000 | C19: =SUM(C20:C21) -> 100,000 | D19: =SUM(D20:D21) -> 919,000 | E19: 18.4%
A20: 선교헌금 | B20: 2,500,000 | C20: 100,000 | D20: =SUM('4월 수입 상세'!D20+'5월 수입 상세'!C20) -> 919,000 | E20: 36.8%
A21: 특별선교헌금 | B21: 2,500,000 | C21: 0 | D21: =SUM('4월 수입 상세'!D21+'5월 수입 상세'!C21) -> 0 | E21: 0.0%
A22: 8. 지정헌금 | B22: 20,000,000 | C22: 760,000 | D22: =SUM('4월 수입 상세'!D22+'5월 수입 상세'!C22) -> 6,498,000 | E22: 32.5% | F22: 성가대 지정헌금 20만 원 헌화헌금 56만 원
A23: 9. 특별헌금(이웃사랑실천헌금 등) | B23: 13,000,000 | C23: 100,000 | D23: =SUM('4월 수입 상세'!D23+'5월 수입 상세'!C23) -> 100,000 | E23: 0.8%
A24: 헌금 수입 소계 | B24: =SUM(B5,B6,B7,B8,B9,B15,B19,B22,B23) -> 540,000,000 | C24: =SUM(C5,C6,C7,C8,C9,C15,C19,C22,C23) -> 37,181,500 | D24: =SUM(D5,D6,D7,D8,D9,D15,D19,D22,D23) -> 135,847,031 | E24: 25.2%
A25: 전기이월금 전입 | B25: 40,000,000 | C25: 0 | D25: 40,000,000 | E25: 100.0%
A26: 전기이월금 추가전입 | C26: 0 | D26: ='5월 약식'!D16 -> 21,876,900
A27: 헌금외 기금 | C27: 0 | D27: =C27 -> 0
A28: 전월이월금 | C28: ='5월 약식'!C18 -> 17,477,405
A29: 수입부 총액 | B29: =B24+B25 -> 580,000,000 | C29: =SUM(C24:C28) -> 54,658,905 | D29: =SUM(D24:D28) -> 197,723,931 | E29: 34.1%

Sheet 5월 지출 상세
A1: 5월 지출 상세
A2: 회계연도: 2023년도
G3: (2023-05-31 현재)
A4: 분류항목 | B4: 예산 | C4: 당월 | D4: 누계 | E4: 집행률(%) | G4: 비고
A5: 1. 예배운영비 | B5: =SUM(B6:B9) -> 22,700,000 | C5: =SUM(C6:C12)-C9 -> 1,359,900 | D5: =SUM(D6:D9) -> 4,498,950 | E5: =D5/B5 -> 19.8% | F5: =SUM(F6:F9) -> 0
A6: 1.1 성례예식비 | B6: 1,200,000 | C6: 0 | D6: ='4월 지출 상세'!D6+'5월 지출 상세'!C6 -> 417,000 | E6: =D6/B6 -> 34.8% | F6: =IF($F$4="보정", 보정치!E4) -> FALSE
A7: 1.2 주보인쇄비 | B7: 4,000,000 | C7: 160,000 | D7: ='4월 지출 상세'!D7+'5월 지출 상세'!C7 -> 525,000 | E7: 13.1% | F7: =IF($F$4="보정", 보정치!E5) -> FALSE
A8: 1.3 강사접대비 | B8: 2,500,000 | C8: 40,500 | D8: ='4월 지출 상세'!D8+'5월 지출 상세'!C8 -> 525,500 | E8: 21.0% | F8: =IF($F$4="보정", 보정치!E6) -> FALSE
A9: 1.4 예배준비비 | B9: =SUM(B10:B12) -> 15,000,000 | C9: =SUM(C10:C12) -> 1,159,400 | D9: ='4월 지출 상세'!D9+'5월 지출 상세'!C9 -> 3,031,450 | E9: 20.2% | F9: =IF($F$4="보정", 보정치!E7) -> FALSE
A10: 1.4.1 성전 꽃꽂이 | B10: 10,000,000 | C10: 1,000,000 | D10: ='4월 지출 상세'!D10+'5월 지출 상세'!C10 -> 2,200,000 | E10: 22.0% | F10: =IF($F$4="보정", 보정치!E8) -> FALSE
A11: 1.4.2 봉사자 식사 | B11: 4,000,000 | C11: 159,400 | D11: ='4월 지출 상세'!D11+'5월 지출 상세'!C11 -> 721,650 | E11: 18.0% | F11: =IF($F$4="보정", 보정치!E9) -> FALSE
A12: 1.4.3 절기행사비 | B12: 1,000,000 | C12: 0 | D12: ='4월 지출 상세'!D12+'5월 지출 상세'!C12 -> 109,800 | E12: 11.0% | F12: =IF($F$4="보정", 보정치!E10) -> FALSE
A13: 2. 교육운영비 | B13: =SUM(B14:B21) -> 30,500,000 | C13: =SUM(C14:C21) -> 61,250 | D13: ='4월 지출 상세'!D13+'5월 지출 상세'!C13 -> 809,640 | E13: 2.7% | F13: =IF($F$4="보정", 보정치!E11) -> FALSE
A14: 2.1 주일성서연구운영비 | B14: 1,000,000 | C14: 0 | D14: ='4월 지출 상세'!D14+'5월 지출 상세'!C14 -> 0 | E14: 0.0% | F14: =IF($F$4="보정", 보정치!E12) -> FALSE
A15: 2.2 도서 및 교재 | B15: 2,000,000 | C15: 0 | D15: ='4월 지출 상세'!D15+'5월 지출 상세'!C15 -> 326,100 | E15: 16.3% | F15: =IF($F$4="보정", 보정치!E13) -> FALSE
A16: 2.3 전교인수양회 행사비 | B16: 14,000,000 | C16: 0 | D16: ='4월 지출 상세'!D16+'5월 지출 상세'!C16 -> 0 | E16: 0.0% | F16: =IF($F$4="보정", 보정치!E14) -> FALSE
A17: 2.4 교목연수비 | B17: 0 | C17: 0 | D17: ='4월 지출 상세'!D17+'5월 지출 상세'!C17 -> 0 | F17: =IF($F$4="보정", 보정치!E15) -> FALSE
A18: 2.5 교역자 교육훈련비 | B18: 3,000,000 | C18: 61,250 | D18: ='4월 지출 상세'!D18+'5월 지출 상세'!C18 -> 483,540 | E18: 16.1% | F18: =IF($F$4="보정", 보정치!E16) -> FALSE
A19: 2.6 교사세미나/교역자workshop | B19: 3,000,000 | C19: 0 | D19: ='4월 지출 상세'!D19+'5월 지출 상세'!C19 -> 0 | E19: 0.0% | F19: =IF($F$4="보정", 보정치!E17) -> FALSE
A20: 2.7 교육부 운영비 | B20: 7,500,000 | C20: 0 | D20: ='4월 지출 상세'!D20+'5월 지출 상세'!C20 -> 0 | E20: 0.0% | F20: =IF($F$4="보정", 보정치!E18) -> FALSE
A21: 2.8 교육운영 예비비 | B21: 0 | C21: 0 | D21: ='4월 지출 상세'!D21+'5월 지출 상세'!C21 -> 0 | F21: =IF($F$4="보정", 보정치!E19) -> FALSE
A22: 3. 선교비 | B22: =SUM(B23,B34,B35,B36,B37) -> 74,760,000 | C22: =SUM(C23,C34,C35,C36,C37) -> 1,311,200 | D22: ='4월 지출 상세'!D22+'5월 지출 상세'!C22 -> 27,234,200 | E22: 36.4% | F22: =SUM(F23,F32,F33,F34,F35) -> 0
A23: 3.1 학원선교 | B23: =SUM(B24:B33) -> 50,960,000 | C23: =SUM(C24:C33) -> 911,200 | D23: ='4월 지출 상세'!D23+'5월 지출 상세'!C23 -> 2,777,200 | E23: 5.4% | F23: =SUM(F24:F31) -> 0
A24: 3.1.1 간식나눔행사(신촌) | B24: 2,000,000 | C24: 111,200 | D24: ='4월 지출 상세'!D24+'5월 지출 상세'!C24 -> 177,200 | E24: 8.9% | F24: =IF($F$4="보정", 보정치!E22) -> FALSE
A25: 3.1.2 간식나눔행사(국제) | B25: 1,000,000 | C25: 0 | D25: ='4월 지출 상세'!D25+'5월 지출 상세'!C25 -> 0 | E25: 0.0% | F25: =IF($F$4="보정", 보정치!E23) -> FALSE
A26: 3.1.3 교목실 점심나눔 후원 | B26: 27,000,000 | C26: 0 | D26: ='4월 지출 상세'!D26+'5월 지출 상세'!C26 -> 0 | E26: 0.0% | F26: =IF($F$4="보정", 보정치!E24) -> FALSE
A27: 3.1.4 연세기독학생연합회 지원 | B27: 3,600,000 | C27: 300,000 | D27: ='4월 지출 상세'!D27+'5월 지출 상세'!C27 -> 900,000 | E27: 25.0% | F27: =IF($F$4="보정", 보정치!E25) -> FALSE
A28: 3.1.5 연세기독학생회찬양팀 후원 | B28: 2,400,000 | C28: 200,000 | D28: ='4월 지출 상세'!D28+'5월 지출 상세'!C28 -> 600,000 | E28: 25.0% | F28: =IF($F$4="보정", 보정치!E26) -> FALSE
A29: 3.1.6 YMK 후원 | B29: 3,600,000 | C29: 300,000 | D29: ='4월 지출 상세'!D29+'5월 지출 상세'!C29 -> 900,000 | E29: 25.0% | F29: =IF($F$4="보정", 보정치!E27) -> FALSE
A30: 3.1.7 통일한마당 | B30: 2,400,000 | C30: 0 | D30: ='4월 지출 상세'!D30+'5월 지출 상세'!C30 -> 200,000 | E30: 8.3% | F30: =IF($F$4="보정", 보정치!E28) -> FALSE | G30: 지급정보 오류로 미지급
A31: 3.1.8 리틀언더우드 후원 | B31: 5,000,000 | C31: 0 | D31: ='4월 지출 상세'!D31+'5월 지출 상세'!C31 -> 0 | E31: 0.0% | F31: 0
A32: 3.1.9 멘토멘티프로그램 | B32: 3,960,000 | C32: 0 | D32: ='4월 지출 상세'!D32+'5월 지출 상세'!C32 -> 0 | E32: 0.0% | F32: 0
A33: 3.1.10 학원선교 기타 | B33: 0 | C33: 0 | D33: ='4월 지출 상세'!D33+'5월 지출 상세'!C33 -> 0 | F33: =IF($F$4="보정", 보정치!E31) -> FALSE
A34: 3.2 국외선교 | B34: 4,800,000 | C34: 400,000 | D34: ='4월 지출 상세'!D34+'5월 지출 상세'!C34 -> 1,200,000 | E34: 25.0% | F34: =IF($F$4="보정", 보정치!E32) -> FALSE | G34: 함정희, 노규래
A35: 3.3 이웃사랑 실천헌금 | B35: 9,000,000 | C35: 0 | D35: ='4월 지출 상세'!D35+'5월 지출 상세'!C35 -> 0 | E35: 0.0% | F35: =IF($F$4="보정", 보정치!E33) -> FALSE
A36: 3.4 지정헌금 | B36: 10,000,000 | C36: 0 | D36: ='4월 지출 상세'!D36+'5월 지출 상세'!C36 -> 23,257,000 | E36: 232.6% | F36: =IF($F$4="보정", 보정치!E34) -> FALSE
A37: 3.5 선교예비금 | B37: 0 | C37: 0 | D37: ='4월 지출 상세'!D37+'5월 지출 상세'!C37 -> 0 | F37: =IF($F$4="보정", 보정치!E35) -> FALSE
A38: 4. 친교행사운영비 | B38: =SUM(B39:B49)-B47 -> 27,600,000 | C38: =SUM(C39:C49)-C47 -> 786,200 | D38: ='4월 지출 상세'!D38+'5월 지출 상세'!C38 -> 4,374,980 | E38: 15.9% | F38: =SUM(F39:F49)-F47 -> 0
A39: 4.1 주일공동식사 | B39: 7,000,000 | C39: 0 | D39: ='4월 지출 상세'!D39+'5월 지출 상세'!C39 -> 2,228,200 | E39: 31.8% | F39: =IF($F$4="보정", 보정치!E37) -> FALSE
A40: 4.2 야외예배 행사비 | B40: 0 | C40: 0 | D40: ='4월 지출 상세'!D40+'5월 지출 상세'!C40 -> 0 | F40: =IF($F$4="보정", 보정치!E38) -> FALSE
A41: 4.3 경로행사비 | B41: 1,500,000 | C41: 316,000 | D41: ='4월 지출 상세'!D41+'5월 지출 상세'!C41 -> 316,000 | E41: 21.1% | F41: =IF($F$4="보정", 보정치!E39) -> FALSE
A42: 4.4 성탄행사비 | B42: 2,100,000 | C42: 0 | D42: ='4월 지출 상세'!D42+'5월 지출 상세'!C42 -> 0 | E42: 0.0% | F42: =IF($F$4="보정", 보정치!E40) -> FALSE
A43: 4.5 주일다과비 | B43: 5,000,000 | C43: 68,200 | D43: ='4월 지출 상세'!D43+'5월 지출 상세'!C43 -> 289,640 | E43: 5.8% | F43: =IF($F$4="보정", 보정치!E41) -> FALSE
A44: 4.6 경조비 | B44: 4,000,000 | C44: 402,000 | D44: ='4월 지출 상세'!D44+'5월 지출 상세'!C44 -> 1,102,000 | E44: 27.6% | F44: =IF($F$4="보정", 보정치!E42) -> FALSE
A45: 4.7 교우친교비 | B45: 2,000,000 | C45: 0 | D45: ='4월 지출 상세'!D45+'5월 지출 상세'!C45 -> 439,140 | E45: 22.0% | F45: =IF($F$4="보정", 보정치!E43) -> FALSE
A46: 4.8 홍보출판비 | B46: 4,000,000 | C46: =C47 -> 0 | D46: ='4월 지출 상세'!D46+'5월 지출 상세'!C46 -> 0 | E46: 0.0% | F46: =IF($F$4="보정", 보정치!E44) -> FALSE
A47: 4.8.1 대학교회 회지 | B47: 4,000,000 | C47: 0 | D47: ='4월 지출 상세'!D47+'5월 지출 상세'!C47 -> 0 | E47: 0.0% | F47: =IF($F$4="보정", 보정치!E45) -> FALSE
A48: 4.9 교회봉사자 선물 | B48: 2,000,000 | C48: 0 | D48: ='4월 지출 상세'!D48+'5월 지출 상세'!C48 -> 0 | E48: 0.0% | F48: =IF($F$4="보정", 보정치!E46) -> FALSE
A49: 4.10 친교행사 예비비 | B49: 0 | C49: 0 | D49: ='4월 지출 상세'!D49+'5월 지출 상세'!C49 -> 0 | F49: =IF($F$4="보정", 보정치!E47) -> FALSE
A50: 5. 사례비 | B50: =SUM(B51:B66,B69,B70) -> 234,270,000 | C50: =SUM(C51:C66,C69,C70) -> 37,068,000 | D50: ='4월 지출 상세'!D50+'5월 지출 상세'!C50 -> 77,804,000 | E50: 33.2% | F50: =SUM(F51:F70) -> 0
A51: 5.1 외부강사 설교 사례 | B51: 12,000,000 | C51: 1,300,000 | D51: ='4월 지출 상세'!D51+'5월 지출 상세'!C51 -> 3,700,000 | E51: 30.8% | F51: =IF($F$4="보정", 보정치!E47) -> FALSE
A52: 5.2 외부강사 설교 사례(대학부-국제) | B52: 2,400,000 | C52: 0 | D52: ='4월 지출 상세'!D52+'5월 지출 상세'!C52 -> 0 | E52: 0.0% | F52: =IF($F$4="보정", 보정치!E48) -> FALSE
A53: 5.3 절기 예배 연주자 | B53: 800,000 | C53: 0 | D53: ='4월 지출 상세'!D53+'5월 지출 상세'!C53 -> 0 | E53: 0.0% | F53: =IF($F$4="보정", 보정치!E49) -> FALSE
A54: 5.4 국악 예배 연주자 | B54: 1,800,000 | C54: 0 | D54: ='4월 지출 상세'!D54+'5월 지출 상세'!C54 -> 0 | E54: 0.0% | F54: =IF($F$4="보정", 보정치!E50) -> FALSE
A55: 5.5 봉헌송 사례 | B55: 450,000 | C55: 0 | D55: ='4월 지출 상세'!D55+'5월 지출 상세'!C55 -> 0 | E55: 0.0% | F55: =IF($F$4="보정", 보정치!E51) -> FALSE
A56: 5.6 주일성서연구 강사사례 | B56: 4,000,000 | C56: 1,000,000 | D56: ='4월 지출 상세'!D56+'5월 지출 상세'!C56 -> 2,000,000 | E56: 50.0% | F56: =IF($F$4="보정", 보정치!E52) -> FALSE
A57: 5.8 담임목사 | B57: 14,400,000 | C57: 2,400,000 | D57: ='4월 지출 상세'!D57+'5월 지출 상세'!C57 -> 4,800,000 | E57: 33.3% | F57: =IF($F$4="보정", 보정치!E53) -> FALSE
A58: 5.9 동역목사 | B58: 12,000,000 | C58: 200,000 | D58: ='4월 지출 상세'!D58+'5월 지출 상세'!C58 -> 1,400,000 | E58: 11.7% | F58: =IF($F$4="보정", 보정치!E54) -> FALSE
A59: 5.10 전임교역자 | B59: 67,500,000 | C59: 15,000,000 | D59: ='4월 지출 상세'!D59+'5월 지출 상세'!C59 -> 30,000,000 | E59: 44.4% | F59: =IF($F$4="보정", 보정치!E55) -> FALSE
A60: 5.11 성가대지휘자 | B60: 12,000,000 | C60: 2,000,000 | D60: ='4월 지출 상세'!D60+'5월 지출 상세'!C60 -> 4,000,000 | E60: 33.3% | F60: =IF($F$4="보정", 보정치!E56) -> FALSE
A61: 5.12 오르가니스트 | B61: 12,000,000 | C61: 2,000,000 | D61: ='4월 지출 상세'!D61+'5월 지출 상세'!C61 -> 4,000,000 | E61: 33.3% | F61: =IF($F$4="보정", 보정치!E57) -> FALSE
A62: 5.13 교육부서 담당교역자 | B62: 38,400,000 | C62: 6,400,000 | D62: ='4월 지출 상세'!D62+'5월 지출 상세'!C62 -> 12,800,000 | E62: 33.3% | F62: =IF($F$4="보정", 보정치!E58) -> FALSE
A63: 5.14 성인 솔리스트 | B63: 23,520,000 | C63: 3,240,000 | D63: ='4월 지출 상세'!D63+'5월 지출 상세'!C63 -> 7,160,000 | E63: 30.4% | F63: =IF($F$4="보정", 보정치!E59) -> FALSE
A64: 5.15 통역자 | B64: 4,000,000 | C64: 600,000 | D64: ='4월 지출 상세'!D64+'5월 지출 상세'!C64 -> 1,275,000 | E64: 31.9% | F64: =IF($F$4="보정", 보정치!E60) -> FALSE
A65: 5.16 방송담당 | B65: 12,000,000 | C65: 1,200,000 | D65: ='4월 지출 상세'!D65+'5월 지출 상세'!C65 -> 3,375,000 | E65: 28.1% | F65: =IF($F$4="보정", 보정치!E61) -> FALSE
A66: 5.17 용원 사례비 | B66: =SUM(B67:B68) -> 11,000,000 | C66: =SUM(C67,C68) -> 1,728,000 | D66: ='4월 지출 상세'!D66+'5월 지출 상세'!C66 -> 3,294,000 | E66: 29.9% | F66: =IF($F$4="보정", 보정치!E62) -> FALSE
A67: 5.17.1 관리실 여사 | B67: 6,000,000 | C67: 1,242,000 | D67: ='4월 지출 상세'!D67+'5월 지출 상세'!C67 -> 2,160,000 | E67: 36.0% | F67: =IF($F$4="보정", 보정치!E63) -> FALSE
A68: 5.17.2 관리실 반장 | B68: 5,000,000 | C68: 486,000 | D68: ='4월 지출 상세'!D68+'5월 지출 상세'!C68 -> 1,134,000 | E68: 22.7% | F68: =IF($F$4="보정", 보정치!E64) -> FALSE
A69: 5.18 퇴직위로금 | B69: 3,000,000 | C69: 0 | D69: ='4월 지출 상세'!D69+'5월 지출 상세'!C69 -> 0 | E69: 0.0% | F69: =IF($F$4="보정", 보정치!E65) -> FALSE
A70: 5.19 기타(교역자휴가 및 기타인건비) | B70: 3,000,000 | C70: 0 | D70: ='4월 지출 상세'!D70+'5월 지출 상세'!C70 -> 0 | E70: 0.0% | F70: =IF($F$4="보정", 보정치!E66) -> FALSE
A71: 6. 행정운영비 | B71: =SUM(B72:B74,B81,B82,B83,B84,B85) -> 90,700,000 | C71: =SUM(C72:C74,C81,C82,C83,C84,C85) -> 5,845,730 | D71: ='4월 지출 상세'!D71+'5월 지출 상세'!C71 -> 22,378,196 | E71: 24.7% | F71: =SUM(F72:F74,F81,F82,F83,F84,F85) -> 0
A72: 6.1 회의 및 교회위원회 | B72: 6,000,000 | C72: 378,780 | D72: ='4월 지출 상세'!D72+'5월 지출 상세'!C72 -> 1,626,200 | E72: 27.1% | F72: =IF($F$4="보정", 보정치!E70) -> FALSE
A73: 6.2 사무운영비 | B73: 13,000,000 | C73: 358,570 | D73: ='4월 지출 상세'!D73+'5월 지출 상세'!C73 -> 3,061,646 | E73: =D73/B73 -> 23.6% | F73: =IF($F$4="보정", 보정치!E71) -> FALSE
A74: 6.3 부서운영비 | B74: =SUM(B75:B80) -> 52,000,000 | C74: =SUM(C75:C80) -> 4,200,000 | D74: ='4월 지출 상세'!D74+'5월 지출 상세'!C74 -> 14,188,200 | E74: 27.3% | F74: =IF($F$4="보정", 보정치!E72) -> FALSE
A75: 6.3.1 성가대 | B75: 14,300,000 | C75: 1,100,000 | D75: ='4월 지출 상세'!D75+'5월 지출 상세'!C75 -> 4,288,200 | E75: 30.0% | F75: =IF($F$4="보정", 보정치!E73) -> FALSE
A76: 6.3.2 유치부 | B76: 4,500,000 | C76: 400,000 | D76: ='4월 지출 상세'!D76+'5월 지출 상세'!C76 -> 1,200,000 | E76: 26.7% | F76: =IF($F$4="보정", 보정치!E74) -> FALSE
A77: 6.3.3 초등부 | B77: 7,100,000 | C77: 600,000 | D77: ='4월 지출 상세'!D77+'5월 지출 상세'!C77 -> 1,800,000 | E77: 25.4% | F77: =IF($F$4="보정", 보정치!E75) -> FALSE
A78: 6.3.4 중고등부 | B78: 5,100,000 | C78: 500,000 | D78: ='4월 지출 상세'!D78+'5월 지출 상세'!C78 -> 1,500,000 | E78: 29.4% | F78: =IF($F$4="보정", 보정치!E76) -> FALSE
A79: 6.3.5 대학부(신촌) | B79: 12,000,000 | C79: 700,000 | D79: ='4월 지출 상세'!D79+'5월 지출 상세'!C79 -> 2,700,000 | E79: 22.5% | F79: =IF($F$4="보정", 보정치!E77) -> FALSE
A80: 6.3.6 대학부(국제) | B80: 9,000,000 | C80: 900,000 | D80: ='4월 지출 상세'!D80+'5월 지출 상세'!C80 -> 2,700,000 | E80: 30.0% | F80: =IF($F$4="보정", 보정치!E78) -> FALSE
A81: 6.4 목회활동비 | B81: 7,200,000 | C81: 419,000 | D81: ='4월 지출 상세'!D81+'5월 지출 상세'!C81 -> 2,040,760 | E81: 28.3% | F81: =IF($F$4="보정", 보정치!E79) -> FALSE
A82: 6.5 용품 및 수리비 | B82: 5,000,000 | C82: 202,100 | D82: ='4월 지출 상세'!D82+'5월 지출 상세'!C82 -> 202,100 | E82: 4.0% | F82: =IF($F$4="보정", 보정치!E80) -> FALSE
A83: 6.6 연료비 및 통신비 | B83: 4,000,000 | C83: 287,280 | D83: ='4월 지출 상세'!D83+'5월 지출 상세'!C83 -> 689,290 | E83: =D83/B83 -> 17.2% | F83: =IF($F$4="보정", 보정치!E81) -> FALSE
A84: 6.7 악기구입 및 보수 | B84: 3,500,000 | C84: 0 | D84: ='4월 지출 상세'!D84+'5월 지출 상세'!C84 -> 570,000 | E84: =D84/B84 -> 16.3% | F84: =IF($F$4="보정", 보정치!E82) -> FALSE
A85: 6.8 행정운영 예비비 | B85: 0 | C85: 0 | D85: ='4월 지출 상세'!D85+'5월 지출 상세'!C85 -> 0 | F85: =IF($F$4="보정", 보정치!E83) -> FALSE
A86: 7. 장학금 | B86: =SUM(B87:B91) -> 66,720,000 | C86: =SUM(C87:C91) -> 1,360,000 | D86: ='4월 지출 상세'!D86+'5월 지출 상세'!C86 -> 23,080,000 | E86: 34.6% | F86: =SUM(F87:F91) -> 0
A87: 7.1 교회학교 교사 | B87: 21,000,000 | C87: 0 | D87: ='4월 지출 상세'!D87+'5월 지출 상세'!C87 -> 2,400,000 | E87: 11.4% | F87: =IF($F$4="보정", 보정치!E83) -> FALSE
A88: 7.2 신촌 대학청년부 | B88: 12,000,000 | C88: 0 | D88: ='4월 지출 상세'!D88+'5월 지출 상세'!C88 -> 5,400,000 | E88: 45.0% | F88: =IF($F$4="보정", 보정치!E84) -> FALSE
A89: 7.3 국제 대학부 | B89: 9,000,000 | C89: 0 | D89: ='4월 지출 상세'!D89+'5월 지출 상세'!C89 -> 3,600,000 | E89: 40.0% | F89: =IF($F$4="보정", 보정치!E85) -> FALSE
A90: 7.4 학생 솔리스트 | B90: 16,320,000 | C90: 1,360,000 | D90: ='4월 지출 상세'!D90+'5월 지출 상세'!C90 -> 7,480,000 | E90: 45.8% | F90: =IF($F$4="보정", 보정치!E86) -> FALSE | G90: 김인서 학생 장학금
A91: 7.5 기숙사지원 | B91: 8,400,000 | C91: 0 | D91: ='4월 지출 상세'!D91+'5월 지출 상세'!C91 -> 4,200,000 | E91: 50.0% | F91: =IF($F$4="보정", 보정치!E87) -> FALSE
A92: 8. 예비비 | B92: 32,750,000 | C92: 7,035,670 | D92: ='4월 지출 상세'!D92+'5월 지출 상세'!C92 -> 7,535,670 | E92: 23.0% | F92: =IF($F$4="보정", 보정치!E90) -> FALSE | G92: 야외예배 진행비
A93: 9. 이웃사랑기금적립 | B93: 0 | C93: 0 | D93: ='4월 지출 상세'!D93+'5월 지출 상세'!C93 -> 0 | E93: 0.0% | F93: =IF($F$4="보정", 보정치!E91) -> FALSE
A94: 일반 지출 소계 | B94: =SUM(B5,B13,B22,B38,B50,B71,B86,B92,B93) -> 580,000,000 | C94: =SUM(C5,C13,C22,C38,C50,C71,C86,C92,C93) -> 54,827,950 | D94: =SUM(D5,D13,D22,D38,D50,D71,D86,D92,D93) -> 167,715,636 | E94: 28.9% | F94: =SUM(F86,F71,F50,F38,F22,F13,F5) -> 0
A95: 차월이월 | C95: ='5월 수입 상세'!C24-'5월 지출 상세'!C94 -> -17,646,450 | D95: ='5월 수입 상세'!D25+'5월 수입 상세'!D27+'5월 지출 상세'!C95 -> 22,353,550
A96: 지출부 총액 | B96: =B94+B95 -> 580,000,000 | C96: =C94+C95 -> 37,181,500 | D96: =D94+D95 -> 190,069,186 | E96: 32.8%

Sheet 6월 약식
A1: 2023년 6월 결산보고서(약식)
A2: 회계년도: 2023년도 | I2: (2023-06-30 현재)
A3: 수입의 부 | F3: 지출의 부
A4: 항 목 | B4: 예산 | C4: 당월 수입 | D4: 수입 누계 | E4: 집행률(%) | F4: 항 목 | H4: 예산 | I4: 당월 지출 | J4: 지출 누계 | K4: 집행률(%)
A5: 1. 주일헌금 | B5: ='6월 수입 상세'!B5 -> 160,000,000 | C5: ='6월 수입 상세'!C5 -> 11,596,000 | D5: =VLOOKUP(A5, '6월 수입 상세'!$A$4:$F$29, 4, FALSE) -> 47,496,634 | E5: =D5/B5 -> 29.7% | F5: 1. 예배운영비 | H5: ='6월 지출 상세'!B5 -> 22,700,000 | I5: ='6월 지출 상세'!C5 -> 1,534,600 | J5: =VLOOKUP(F5, '6월 지출 상세'!$A$4:$G$96, 4, FALSE) -> 6,033,550 | K5: =J5/H5 -> 26.6%
A6: 2. 십일조 | B6: ='6월 수입 상세'!B6 -> 105,000,000 | C6: ='6월 수입 상세'!C6 -> 8,549,000 | D6: =VLOOKUP(A6, '6월 수입 상세'!$A$4:$F$29, 4, FALSE) -> 36,002,437 | E6: 34.3% | F6: 2. 교육운영비 | H6: ='6월 지출 상세'!B13 -> 30,500,000 | I6: ='6월 지출 상세'!C13 -> 833,350 | J6: =VLOOKUP(F6, '6월 지출 상세'!$A$4:$G$96, 4, FALSE) -> 1,642,990 | K6: 5.4%
A7: 3. 월정헌금 | B7: ='6월 수입 상세'!B7 -> 145,000,000 | C7: ='6월 수입 상세'!C7 -> 11,740,000 | D7: =VLOOKUP(A7, '6월 수입 상세'!$A$4:$F$29, 4, FALSE) -> 47,765,000 | E7: 32.9% | F7: 3. 선교비 | H7: ='6월 지출 상세'!B22 -> 74,760,000 | I7: ='6월 지출 상세'!C22 -> 2,487,770 | J7: =VLOOKUP(F7, '6월 지출 상세'!$A$4:$G$96, 4, FALSE) -> 29,721,970 | K7: 39.8%
A8: 4. 감사헌금 | B8: ='6월 수입 상세'!B8 -> 35,000,000 | C8: ='6월 수입 상세'!C8 -> 1,142,000 | D8: =VLOOKUP(A8, '6월 수입 상세'!$A$4:$F$29, 4, FALSE) -> 9,823,000 | E8: 28.1% | F8: 4. 친교행사운영비 | H8: ='6월 지출 상세'!B38 -> 27,600,000 | I8: ='6월 지출 상세'!C38 -> 2,757,640 | J8: =VLOOKUP(F8, '6월 지출 상세'!$A$4:$G$96, 4, FALSE) -> 7,132,620 | K8: 25.8%
A9: 5. 교육부헌금 | B9: ='6월 수입 상세'!B9 -> 22,000,000 | C9: ='6월 수입 상세'!C9 -> 1,188,661 | D9: =VLOOKUP(A9, '6월 수입 상세'!$A$4:$F$29, 4, FALSE) -> 7,202,621 | E9: 32.7% | F9: 5. 사례비 | H9: ='6월 지출 상세'!B50 -> 234,270,000 | I9: ='6월 지출 상세'!C50 -> 5,440,000 | J9: =VLOOKUP(F9, '6월 지출 상세'!$A$4:$G$96, 4, FALSE) -> 83,244,000 | K9: 35.5%
A10: 6. 절기헌금 | B10: ='6월 수입 상세'!B15 -> 35,000,000 | C10: ='6월 수입 상세'!C15 -> 0 | D10: =VLOOKUP(A10, '6월 수입 상세'!$A$4:$F$29, 4, FALSE) -> 14,256,000 | E10: 40.7% | F10: 6. 행정운영비 | H10: ='6월 지출 상세'!B71 -> 90,700,000 | I10: ='6월 지출 상세'!C71 -> 10,527,500 | J10: =VLOOKUP(F10, '6월 지출 상세'!$A$4:$G$96, 4, FALSE) -> 32,905,696 | K10: 36.3%
A11: 7. 선교헌금 | B11: ='6월 수입 상세'!B19 -> 5,000,000 | C11: ='6월 수입 상세'!C19 -> 500,000 | D11: =VLOOKUP(A11, '6월 수입 상세'!$A$4:$F$29, 4, FALSE) -> 1,419,000 | E11: 28.4% | F11: 7. 장학금 | H11: ='6월 지출 상세'!B86 -> 66,720,000 | I11: ='6월 지출 상세'!C86 -> 0 | J11: =VLOOKUP(F11, '6월 지출 상세'!$A$4:$G$96, 4, FALSE) -> 23,080,000 | K11: 34.6%
A12: 8. 지정헌금 | B12: ='6월 수입 상세'!B22 -> 20,000,000 | C12: ='6월 수입 상세'!C22 -> 420,000 | D12: =VLOOKUP(A12, '6월 수입 상세'!$A$4:$F$29, 4, FALSE) -> 6,918,000 | E12: 34.6% | F12: 8. 예비비 | H12: ='6월 지출 상세'!B92 -> 32,750,000 | I12: ='6월 지출 상세'!C92 -> 0 | J12: =VLOOKUP(F12, '6월 지출 상세'!$A$4:$G$96, 4, FALSE) -> 7,535,670 | K12: 23.0%
A13: 9. 특별헌금(이웃사랑실천헌금 등) | B13: ='6월 수입 상세'!B23 -> 13,000,000 | C13: ='6월 수입 상세'!C23 -> 5,137,090 | D13: =VLOOKUP(A13, '6월 수입 상세'!$A$4:$F$29, 4, FALSE) -> 5,237,090 | E13: 40.3% | F13: 9. 이웃사랑기금적립 | H13: ='6월 지출 상세'!B93 -> 0 | I13: ='6월 지출 상세'!C93 -> 5,387,090 | J13: =VLOOKUP(F13, '6월 지출 상세'!$A$4:$G$96, 4, FALSE) -> 5,387,090
A14: 헌금 수입 소계 | B14: =SUM(B5:B13) -> 540,000,000 | C14: =SUM(C5:C13) -> 40,272,751 | D14: =SUM(D5:D13) -> 176,119,782 | E14: 32.6% | F14: 일반 지출 소계 | H14: =SUM(H5:H13) -> 580,000,000 | I14: =SUM(I5:I13) -> 28,967,950 | J14: =SUM(J5:J13) -> 196,683,586 | K14: =J14/H14 -> 33.9%
A15: 전기이월금 전입 | B15: 40,000,000 | C15: 0 | D15: ='3월 약식'!D15+'6월 약식'!C15 -> 40,000,000 | E15: 100.0% | F15: 차월이월 | I15: =C14-I14 -> 11,304,801 | J15: =D19-J14 -> 41,313,096
A16: 전기이월금 추가전입 | C16: 0 | D16: ='3월 약식'!D16 -> 21,876,900
A17: 헌금외 기금 | C17: 0 | D17: 0
A18: 전월이월금 | C18: ='5월 약식'!J15 -> 30,008,295
A19: 수입부 총액 | B19: =SUM(B14:B18) -> 580,000,000 | C19: =SUM(C14:C18) -> 70,281,046 | D19: =SUM(D14:D18) -> 237,996,682 | E19: =D19/B19 -> 41.0% | F19: 지출부 총액 | H19: =SUM(H14:H18) -> 580,000,000 | I19: =SUM(I14:I18) -> 40,272,751 | J19: =SUM(J14:J18) -> 237,996,682 | K19: =J19/H19 -> 41.0%
A20: *지정헌금 내역(헌화헌금_42만 원) / *이웃사랑기금의 수입과 지출 차액은 '십일조' 명목으로 이웃사랑 기금 계좌에 입금된 15만원이 반영된 것임.
A21: 기금 및 이월금 현황 (2023.3.1 기준) | F21: 헌금 수입 및 지출 누계 비교
A22: 기금명 | C22: 금액(이자포함) | G22: 2021년 6월 | H22: 2022년 6월 | I22: 2023년 6월
A23: 박명윤이행자선교기금(FAA003023) | C23: 53,380,953 | F23: 수입 누계 | G23: 206,280,682 | H23: 172,343,854 | I23: =D14 -> 176,119,782
A24: 대학교회건축기금(FBA113041) | C24: 0 | F24: 지출 누계 | G24: 173,035,258 | H24: 183,140,280 | I24: =J14 -> 196,683,586
A25: 국캠대학교회선교기금(FEA173001) | C25: 146,649
A26: 이웃사랑기금(FEA183001) | C26: 83,791,013
A27: 유초등부발전기금(FAA213008) | C27: 18,299,135
A28: 기금 총액 | C28: =SUM(C23:C27) -> 155,617,750
A30: *누적 이월금 (2023.3.1 기준 / 기금 및 전입금 제외) | C30: 453,597,137

Sheet 6월 수입 상세
A1: 6월 수입 상세
A2: 회계연도: 2023년도 | F2: (2023-06-30 현재)
A4: 분류항목 | B4: 예산 | C4: 당월 | D4: 누계 | E4: 집행률(%) | F4: 비고
A5: 1. 주일헌금 | B5: 160,000,000 | C5: 11,596,000 | D5: =SUM('5월 수입 상세'!D5+'6월 수입 상세'!C5) -> 47,496,634 | E5: =D5/B5 -> 29.7%
A6: 2. 십일조 | B6: 105,000,000 | C6: 8,549,000 | D6: =SUM('5월 수입 상세'!D6+'6월 수입 상세'!C6) -> 36,002,437 | E6: =D6/B6 -> 34.3%
A7: 3. 월정헌금 | B7: 145,000,000 | C7: 11,740,000 | D7: =SUM('5월 수입 상세'!D7+'6월 수입 상세'!C7) -> 47,765,000 | E7: 32.9%
A8: 4. 감사헌금 | B8: 35,000,000 | C8: 1,142,000 | D8: =SUM('5월 수입 상세'!D8+'6월 수입 상세'!C8) -> 9,823,000 | E8: 28.1%
A9: 5. 교육부헌금 | B9: =SUM(B10:B14) -> 22,000,000 | C9: =SUM(C10:C14) -> 1,188,661 | D9: =SUM('5월 수입 상세'!D9+'6월 수입 상세'!C9) -> 7,202,621 | E9: 32.7%
A10: 유치부 | B10: 700,000 | C10: 106,000 | D10: =SUM('5월 수입 상세'!D10+'6월 수입 상세'!C10) -> 587,049 | E10: 83.9%
A11: 초등부 | B11: 1,000,000 | C11: 116,000 | D11: =SUM('5월 수입 상세'!D11+'6월 수입 상세'!C11) -> 471,500 | E11: 47.2%
A12: 중고등부 | B12: 300,000 | C12: 12,000 | D12: =SUM('5월 수입 상세'!D12+'6월 수입 상세'!C12) -> 74,722 | E12: 24.9%
A13: 대학부(신촌) | B13: 7,000,000 | C13: 630,661 | D13: =SUM('5월 수입 상세'!D13+'6월 수입 상세'!C13) -> 3,570,138 | E13: 51.0%
A14: 대학부(국제) | B14: 13,000,000 | C14: 324,000 | D14: =SUM('5월 수입 상세'!D14+'6월 수입 상세'!C14) -> 2,499,212 | E14: 19.2%
A15: 6. 절기헌금 | B15: =SUM(B16:B18) -> 35,000,000 | C15: 0 | D15: =SUM('5월 수입 상세'!D15+'6월 수입 상세'!C15) -> 14,256,000 | E15: 40.7%
A16: 부활절 | B16: 10,000,000 | C16: 0 | D16: =SUM('5월 수입 상세'!D16+'6월 수입 상세'!C16) -> 14,256,000 | E16: 142.6%
A17: 추수감사절 | B17: 10,000,000 | C17: 0 | D17: =SUM('5월 수입 상세'!D17+'6월 수입 상세'!C17) -> 0 | E17: 0.0%
A18: 성탄절 | B18: 15,000,000 | C18: 0 | D18: =SUM('5월 수입 상세'!D18+'6월 수입 상세'!C18) -> 0 | E18: 0.0%
A19: 7. 선교헌금 | B19: 5,000,000 | C19: =SUM(C20:C21) -> 500,000 | D19: =SUM('5월 수입 상세'!D19+'6월 수입 상세'!C19) -> 1,419,000 | E19: 28.4%
A20: 선교헌금 | B20: 2,500,000 | C20: 500,000 | D20: =SUM('5월 수입 상세'!D20+'6월 수입 상세'!C20) -> 1,419,000 | E20: 56.8%
A21: 특별선교헌금 | B21: 2,500,000 | C21: 0 | D21: =SUM('5월 수입 상세'!D21+'6월 수입 상세'!C21) -> 0 | E21: 0.0%
A22: 8. 지정헌금 | B22: 20,000,000 | C22: 420,000 | D22: =SUM('5월 수입 상세'!D22+'6월 수입 상세'!C22) -> 6,918,000 | E22: 34.6% | F22: 헌화헌금 42만 원
A23: 9. 특별헌금(이웃사랑실천헌금 등) | B23: 13,000,000 | C23: 5,137,090 | D23: =SUM('5월 수입 상세'!D23+'6월 수입 상세'!C23) -> 5,237,090 | E23: 40.3%
A24: 헌금 수입 소계 | B24: =SUM(B5,B6,B7,B8,B9,B15,B19,B22,B23) -> 540,000,000 | C24: =SUM(C5,C6,C7,C8,C9,C15,C19,C22,C23) -> 40,272,751 | D24: =SUM(D5,D6,D7,D8,D9,D15,D19,D22,D23) -> 176,119,782 | E24: 32.6%
A25: 전기이월금 전입 | B25: 40,000,000 | C25: 0 | D25: 40,000,000 | E25: 100.0%
A26: 전기이월금 추가전입 | C26: 0 | D26: ='6월 약식'!D16 -> 21,876,900
A27: 헌금외 기금 | C27: 0 | D27: =C27 -> 0
A28: 전월이월금 | C28: ='6월 약식'!C18 -> 30,008,295
A29: 수입부 총액 | B29: =B24+B25 -> 580,000,000 | C29: =SUM(C24:C28) -> 70,281,046 | D29: =SUM(D24:D28) -> 237,996,682 | E29: 41.0%

Sheet 6월 지출 상세
A1: 6월 지출 상세
A2: 회계연도: 2023년도
G3: (2023-06-30 현재)
A4: 분류항목 | B4: 예산 | C4: 당월 | D4: 누계 | E4: 집행률(%) | G4: 비고
A5: 1. 예배운영비 | B5: =SUM(B6:B9) -> 22,700,000 | C5: 1,534,600 | D5: ='5월 지출 상세'!D5+'6월 지출 상세'!C5 -> 6,033,550 | E5: =D5/B5 -> 26.6% | F5: =SUM(F6:F9) -> 0
A6: 1.1 성례예식비 | B6: 1,200,000 | C6: 80,100 | D6: ='5월 지출 상세'!D6+'6월 지출 상세'!C6 -> 497,100 | E6: =D6/B6 -> 41.4% | F6: =IF($F$4="보정", 보정치!E4) -> FALSE
A7: 1.2 주보인쇄비 | B7: 4,000,000 | C7: 215,000 | D7: ='5월 지출 상세'!D7+'6월 지출 상세'!C7 -> 740,000 | E7: 18.5% | F7: =IF($F$4="보정", 보정치!E5) -> FALSE
A8: 1.3 강사접대비 | B8: 2,500,000 | C8: 254,000 | D8: ='5월 지출 상세'!D8+'6월 지출 상세'!C8 -> 779,500 | E8: 31.2% | F8: =IF($F$4="보정", 보정치!E6) -> FALSE
A9: 1.4 예배준비비 | B9: =SUM(B10:B12) -> 15,000,000 | C9: 985,500 | D9: ='5월 지출 상세'!D9+'6월 지출 상세'!C9 -> 4,016,950 | E9: 26.8% | F9: =IF($F$4="보정", 보정치!E7) -> FALSE
A10: 1.4.1 성전 꽃꽂이 | B10: 10,000,000 | C10: 600,000 | D10: ='5월 지출 상세'!D10+'6월 지출 상세'!C10 -> 2,800,000 | E10: 28.0% | F10: =IF($F$4="보정", 보정치!E8) -> FALSE
A11: 1.4.2 봉사자 식사 | B11: 4,000,000 | C11: 385,500 | D11: ='5월 지출 상세'!D11+'6월 지출 상세'!C11 -> 1,107,150 | E11: 27.7% | F11: =IF($F$4="보정", 보정치!E9) -> FALSE
A12: 1.4.3 절기행사비 | B12: 1,000,000 | C12: 0 | D12: ='5월 지출 상세'!D12+'6월 지출 상세'!C12 -> 109,800 | E12: 11.0% | F12: =IF($F$4="보정", 보정치!E10) -> FALSE
A13: 2. 교육운영비 | B13: =SUM(B14:B21) -> 30,500,000 | C13: 833,350 | D13: ='5월 지출 상세'!D13+'6월 지출 상세'!C13 -> 1,642,990 | E13: 5.4% | F13: =IF($F$4="보정", 보정치!E11) -> FALSE
A14: 2.1 주일성서연구운영비 | B14: 1,000,000 | C14: 0 | D14: ='5월 지출 상세'!D14+'6월 지출 상세'!C14 -> 0 | E14: 0.0% | F14: =IF($F$4="보정", 보정치!E12) -> FALSE
A15: 2.2 도서 및 교재 | B15: 2,000,000 | C15: 99,000 | D15: ='5월 지출 상세'!D15+'6월 지출 상세'!C15 -> 425,100 | E15: 21.3% | F15: =IF($F$4="보정", 보정치!E13) -> FALSE
A16: 2.3 전교인수양회 행사비 | B16: 14,000,000 | C16: 104,600 | D16: ='5월 지출 상세'!D16+'6월 지출 상세'!C16 -> 104,600 | E16: 0.7% | F16: =IF($F$4="보정", 보정치!E14) -> FALSE | G16: 전교인수양회 답사비
A17: 2.4 교목연수비 | B17: 0 | C17: 0 | D17: ='5월 지출 상세'!D17+'6월 지출 상세'!C17 -> 0 | F17: =IF($F$4="보정", 보정치!E15) -> FALSE
A18: 2.5 교역자 교육훈련비 | B18: 3,000,000 | C18: 23,750 | D18: ='5월 지출 상세'!D18+'6월 지출 상세'!C18 -> 507,290 | E18: 16.9% | F18: =IF($F$4="보정", 보정치!E16) -> FALSE
A19: 2.6 교사세미나/교역자workshop | B19: 3,000,000 | C19: 606,000 | D19: ='5월 지출 상세'!D19+'6월 지출 상세'!C19 -> 606,000 | E19: 20.2% | F19: =IF($F$4="보정", 보정치!E17) -> FALSE
A20: 2.7 교육부 운영비 | B20: 7,500,000 | C20: 0 | D20: ='5월 지출 상세'!D20+'6월 지출 상세'!C20 -> 0 | E20: 0.0% | F20: =IF($F$4="보정", 보정치!E18) -> FALSE
A21: 2.8 교육운영 예비비 | B21: 0 | C21: 0 | D21: ='5월 지출 상세'!D21+'6월 지출 상세'!C21 -> 0 | F21: =IF($F$4="보정", 보정치!E19) -> FALSE
A22: 3. 선교비 | B22: =SUM(B23,B34,B35,B36,B37) -> 74,760,000 | C22: 2,487,770 | D22: ='5월 지출 상세'!D22+'6월 지출 상세'!C22 -> 29,721,970 | E22: 39.8% | F22: =SUM(F23,F32,F33,F34,F35) -> 0
A23: 3.1 학원선교 | B23: =SUM(B24:B33) -> 50,960,000 | C23: 2,087,770 | D23: ='5월 지출 상세'!D23+'6월 지출 상세'!C23 -> 4,864,970 | E23: 9.5% | F23: =SUM(F24:F31) -> 0
A24: 3.1.1 간식나눔행사(신촌) | B24: 2,000,000 | C24: 1,287,770 | D24: ='5월 지출 상세'!D24+'6월 지출 상세'!C24 -> 1,464,970 | E24: 73.2% | F24: =IF($F$4="보정", 보정치!E22) -> FALSE | G24: 간식나눔행사 및 기숙사 수요예배
A25: 3.1.2 간식나눔행사(국제) | B25: 1,000,000 | C25: 0 | D25: ='5월 지출 상세'!D25+'6월 지출 상세'!C25 -> 0 | E25: 0.0% | F25: =IF($F$4="보정", 보정치!E23) -> FALSE
A26: 3.1.3 교목실 점심나눔 후원 | B26: 27,000,000 | C26: 0 | D26: ='5월 지출 상세'!D26+'6월 지출 상세'!C26 -> 0 | E26: 0.0% | F26: =IF($F$4="보정", 보정치!E24) -> FALSE
A27: 3.1.4 연세기독학생연합회 지원 | B27: 3,600,000 | C27: 300,000 | D27: ='5월 지출 상세'!D27+'6월 지출 상세'!C27 -> 1,200,000 | E27: 33.3% | F27: =IF($F$4="보정", 보정치!E25) -> FALSE
A28: 3.1.5 연세기독학생회찬양팀 후원 | B28: 2,400,000 | C28: 200,000 | D28: ='5월 지출 상세'!D28+'6월 지출 상세'!C28 -> 800,000 | E28: 33.3% | F28: =IF($F$4="보정", 보정치!E26) -> FALSE
A29: 3.1.6 YMK 후원 | B29: 3,600,000 | C29: 300,000 | D29: ='5월 지출 상세'!D29+'6월 지출 상세'!C29 -> 1,200,000 | E29: 33.3% | F29: =IF($F$4="보정", 보정치!E27) -> FALSE
A30: 3.1.7 통일한마당 | B30: 2,400,000 | C30: 0 | D30: ='5월 지출 상세'!D30+'6월 지출 상세'!C30 -> 200,000 | E30: 8.3% | F30: =IF($F$4="보정", 보정치!E28) -> FALSE | G30: 지급정보 오류로 미지급
A31: 3.1.8 리틀언더우드 후원 | B31: 5,000,000 | C31: 0 | D31: ='5월 지출 상세'!D31+'6월 지출 상세'!C31 -> 0 | E31: 0.0% | F31: 0
A32: 3.1.9 멘토멘티프로그램 | B32: 3,960,000 | C32: 0 | D32: ='5월 지출 상세'!D32+'6월 지출 상세'!C32 -> 0 | E32: 0.0% | F32: 0
A33: 3.1.10 학원선교 기타 | B33: 0 | C33: 0 | D33: ='5월 지출 상세'!D33+'6월 지출 상세'!C33 -> 0 | F33: =IF($F$4="보정", 보정치!E31) -> FALSE
A34: 3.2 국외선교 | B34: 4,800,000 | C34: 400,000 | D34: ='5월 지출 상세'!D34+'6월 지출 상세'!C34 -> 1,600,000 | E34: 33.3% | F34: =IF($F$4="보정", 보정치!E32) -> FALSE | G34: 함정희, 노규래
A35: 3.3 이웃사랑 실천헌금 | B35: 9,000,000 | C35: 0 | D35: ='5월 지출 상세'!D35+'6월 지출 상세'!C35 -> 0 | E35: 0.0% | F35: =IF($F$4="보정", 보정치!E33) -> FALSE
A36: 3.4 지정헌금 | B36: 10,000,000 | C36: 0 | D36: ='5월 지출 상세'!D36+'6월 지출 상세'!C36 -> 23,257,000 | E36: 232.6% | F36: =IF($F$4="보정", 보정치!E34) -> FALSE
A37: 3.5 선교예비금 | B37: 0 | C37: 0 | D37: ='5월 지출 상세'!D37+'6월 지출 상세'!C37 -> 0 | F37: =IF($F$4="보정", 보정치!E35) -> FALSE
A38: 4. 친교행사운영비 | B38: =SUM(B39:B49)-B47 -> 27,600,000 | C38: 2,757,640 | D38: ='5월 지출 상세'!D38+'6월 지출 상세'!C38 -> 7,132,620 | E38: 25.8% | F38: =SUM(F39:F49)-F47 -> 0
A39: 4.1 주일공동식사 | B39: 7,000,000 | C39: 0 | D39: ='5월 지출 상세'!D39+'6월 지출 상세'!C39 -> 2,228,200 | E39: 31.8% | F39: =IF($F$4="보정", 보정치!E37) -> FALSE
A40: 4.2 야외예배 행사비 | B40: 0 | C40: 0 | D40: ='5월 지출 상세'!D40+'6월 지출 상세'!C40 -> 0 | F40: =IF($F$4="보정", 보정치!E38) -> FALSE
A41: 4.3 경로행사비 | B41: 1,500,000 | C41: 1,184,000 | D41: ='5월 지출 상세'!D41+'6월 지출 상세'!C41 -> 1,500,000 | E41: 100.0% | F41: =IF($F$4="보정", 보정치!E39) -> FALSE
A42: 4.4 성탄행사비 | B42: 2,100,000 | C42: 0 | D42: ='5월 지출 상세'!D42+'6월 지출 상세'!C42 -> 0 | E42: 0.0% | F42: =IF($F$4="보정", 보정치!E40) -> FALSE
A43: 4.5 주일다과비 | B43: 5,000,000 | C43: 74,940 | D43: ='5월 지출 상세'!D43+'6월 지출 상세'!C43 -> 364,580 | E43: 7.3% | F43: =IF($F$4="보정", 보정치!E41) -> FALSE
A44: 4.6 경조비 | B44: 4,000,000 | C44: 188,400 | D44: ='5월 지출 상세'!D44+'6월 지출 상세'!C44 -> 1,290,400 | E44: 32.3% | F44: =IF($F$4="보정", 보정치!E42) -> FALSE
A45: 4.7 교우친교비 | B45: 2,000,000 | C45: 310,300 | D45: ='5월 지출 상세'!D45+'6월 지출 상세'!C45 -> 749,440 | E45: 37.5% | F45: =IF($F$4="보정", 보정치!E43) -> FALSE
A46: 4.8 홍보출판비 | B46: 4,000,000 | C46: 1,000,000 | D46: ='5월 지출 상세'!D46+'6월 지출 상세'!C46 -> 1,000,000 | E46: 25.0% | F46: =IF($F$4="보정", 보정치!E44) -> FALSE
A47: 4.8.1 대학교회 회지 | B47: 4,000,000 | C47: 1,000,000 | D47: ='5월 지출 상세'!D47+'6월 지출 상세'!C47 -> 1,000,000 | E47: 25.0% | F47: =IF($F$4="보정", 보정치!E45) -> FALSE
A48: 4.9 교회봉사자 선물 | B48: 2,000,000 | C48: 0 | D48: ='5월 지출 상세'!D48+'6월 지출 상세'!C48 -> 0 | E48: 0.0% | F48: =IF($F$4="보정", 보정치!E46) -> FALSE
A49: 4.10 친교행사 예비비 | B49: 0 | C49: 0 | D49: ='5월 지출 상세'!D49+'6월 지출 상세'!C49 -> 0 | F49: =IF($F$4="보정", 보정치!E47) -> FALSE
A50: 5. 사례비 | B50: =SUM(B51:B66,B69,B70) -> 234,270,000 | C50: 5,440,000 | D50: ='5월 지출 상세'!D50+'6월 지출 상세'!C50 -> 83,244,000 | E50: 35.5% | F50: =SUM(F51:F70) -> 0
A51: 5.1 외부강사 설교 사례 | B51: 12,000,000 | C51: 900,000 | D51: ='5월 지출 상세'!D51+'6월 지출 상세'!C51 -> 4,600,000 | E51: 38.3% | F51: =IF($F$4="보정", 보정치!E47) -> FALSE
A52: 5.2 외부강사 설교 사례(대학부-국제) | B52: 2,400,000 | C52: 0 | D52: ='5월 지출 상세'!D52+'6월 지출 상세'!C52 -> 0 | E52: 0.0% | F52: =IF($F$4="보정", 보정치!E48) -> FALSE
A53: 5.3 절기 예배 연주자 | B53: 800,000 | C53: 0 | D53: ='5월 지출 상세'!D53+'6월 지출 상세'!C53 -> 0 | E53: 0.0% | F53: =IF($F$4="보정", 보정치!E49) -> FALSE
A54: 5.4 국악 예배 연주자 | B54: 1,800,000 | C54: 0 | D54: ='5월 지출 상세'!D54+'6월 지출 상세'!C54 -> 0 | E54: 0.0% | F54: =IF($F$4="보정", 보정치!E50) -> FALSE
A55: 5.5 봉헌송 사례 | B55: 450,000 | C55: 0 | D55: ='5월 지출 상세'!D55+'6월 지출 상세'!C55 -> 0 | E55: 0.0% | F55: =IF($F$4="보정", 보정치!E51) -> FALSE
A56: 5.6 주일성서연구 강사사례 | B56: 4,000,000 | C56: 0 | D56: ='5월 지출 상세'!D56+'6월 지출 상세'!C56 -> 2,000,000 | E56: 50.0% | F56: =IF($F$4="보정", 보정치!E52) -> FALSE
A57: 5.8 담임목사 | B57: 14,400,000 | C57: 1,200,000 | D57: ='5월 지출 상세'!D57+'6월 지출 상세'!C57 -> 6,000,000 | E57: 41.7% | F57: =IF($F$4="보정", 보정치!E53) -> FALSE
A58: 5.9 동역목사 | B58: 12,000,000 | C58: 600,000 | D58: ='5월 지출 상세'!D58+'6월 지출 상세'!C58 -> 2,000,000 | E58: 16.7% | F58: =IF($F$4="보정", 보정치!E54) -> FALSE
A59: 5.10 전임교역자 | B59: 67,500,000 | C59: 0 | D59: ='5월 지출 상세'!D59+'6월 지출 상세'!C59 -> 30,000,000 | E59: 44.4% | F59: =IF($F$4="보정", 보정치!E55) -> FALSE
A60: 5.11 성가대지휘자 | B60: 12,000,000 | C60: 0 | D60: ='5월 지출 상세'!D60+'6월 지출 상세'!C60 -> 4,000,000 | E60: 33.3% | F60: =IF($F$4="보정", 보정치!E56) -> FALSE
A61: 5.12 오르가니스트 | B61: 12,000,000 | C61: 1,000,000 | D61: ='5월 지출 상세'!D61+'6월 지출 상세'!C61 -> 5,000,000 | E61: 41.7% | F61: =IF($F$4="보정", 보정치!E57) -> FALSE
A62: 5.13 교육부서 담당교역자 | B62: 38,400,000 | C62: 800,000 | D62: ='5월 지출 상세'!D62+'6월 지출 상세'!C62 -> 13,600,000 | E62: 35.4% | F62: =IF($F$4="보정", 보정치!E58) -> FALSE
A63: 5.14 성인 솔리스트 | B63: 23,520,000 | C63: 340,000 | D63: ='5월 지출 상세'!D63+'6월 지출 상세'!C63 -> 7,500,000 | E63: 31.9% | F63: =IF($F$4="보정", 보정치!E59) -> FALSE
A64: 5.15 통역자 | B64: 4,000,000 | C64: 0 | D64: ='5월 지출 상세'!D64+'6월 지출 상세'!C64 -> 1,275,000 | E64: 31.9% | F64: =IF($F$4="보정", 보정치!E60) -> FALSE
A65: 5.16 방송담당 | B65: 12,000,000 | C65: 600,000 | D65: ='5월 지출 상세'!D65+'6월 지출 상세'!C65 -> 3,975,000 | E65: 33.1% | F65: =IF($F$4="보정", 보정치!E61) -> FALSE
A66: 5.17 용원 사례비 | B66: =SUM(B67:B68) -> 11,000,000 | C66: 0 | D66: ='5월 지출 상세'!D66+'6월 지출 상세'!C66 -> 3,294,000 | E66: 29.9% | F66: =IF($F$4="보정", 보정치!E62) -> FALSE
A67: 5.17.1 관리실 여사 | B67: 6,000,000 | C67: 0 | D67: ='5월 지출 상세'!D67+'6월 지출 상세'!C67 -> 2,160,000 | E67: 36.0% | F67: =IF($F$4="보정", 보정치!E63) -> FALSE
A68: 5.17.2 관리실 반장 | B68: 5,000,000 | C68: 0 | D68: ='5월 지출 상세'!D68+'6월 지출 상세'!C68 -> 1,134,000 | E68: 22.7% | F68: =IF($F$4="보정", 보정치!E64) -> FALSE
A69: 5.18 퇴직위로금 | B69: 3,000,000 | C69: 0 | D69: ='5월 지출 상세'!D69+'6월 지출 상세'!C69 -> 0 | E69: 0.0% | F69: =IF($F$4="보정", 보정치!E65) -> FALSE
A70: 5.19 기타(교역자휴가 및 기타인건비) | B70: 3,000,000 | C70: 0 | D70: ='5월 지출 상세'!D70+'6월 지출 상세'!C70 -> 0 | E70: 0.0% | F70: =IF($F$4="보정", 보정치!E66) -> FALSE
A71: 6. 행정운영비 | B71: =SUM(B72:B74,B81,B82,B83,B84,B85) -> 90,700,000 | C71: 10,527,500 | D71: ='5월 지출 상세'!D71+'6월 지출 상세'!C71 -> 32,905,696 | E71: 36.3% | F71: =SUM(F72:F74,F81,F82,F83,F84,F85) -> 0
A72: 6.1 회의 및 교회위원회 | B72: 6,000,000 | C72: 924,200 | D72: ='5월 지출 상세'!D72+'6월 지출 상세'!C72 -> 2,550,400 | E72: 42.5% | F72: =IF($F$4="보정", 보정치!E70) -> FALSE
A73: 6.2 사무운영비 | B73: 13,000,000 | C73: 961,160 | D73: ='5월 지출 상세'!D73+'6월 지출 상세'!C73 -> 4,022,806 | E73: =D73/B73 -> 30.9% | F73: =IF($F$4="보정", 보정치!E71) -> FALSE
A74: 6.3 부서운영비 | B74: =SUM(B75:B80) -> 52,000,000 | C74: 4,346,740 | D74: ='5월 지출 상세'!D74+'6월 지출 상세'!C74 -> 18,534,940 | E74: 35.6% | F74: =IF($F$4="보정", 보정치!E72) -> FALSE
A75: 6.3.1 성가대 | B75: 14,300,000 | C75: 1,100,000 | D75: ='5월 지출 상세'!D75+'6월 지출 상세'!C75 -> 5,388,200 | E75: 37.7% | F75: =IF($F$4="보정", 보정치!E73) -> FALSE
A76: 6.3.2 유치부 | B76: 4,500,000 | C76: 400,000 | D76: ='5월 지출 상세'!D76+'6월 지출 상세'!C76 -> 1,600,000 | E76: 35.6% | F76: =IF($F$4="보정", 보정치!E74) -> FALSE
A77: 6.3.3 초등부 | B77: 7,100,000 | C77: 600,000 | D77: ='5월 지출 상세'!D77+'6월 지출 상세'!C77 -> 2,400,000 | E77: 33.8% | F77: =IF($F$4="보정", 보정치!E75) -> FALSE
A78: 6.3.4 중고등부 | B78: 5,100,000 | C78: 500,000 | D78: ='5월 지출 상세'!D78+'6월 지출 상세'!C78 -> 2,000,000 | E78: 39.2% | F78: =IF($F$4="보정", 보정치!E76) -> FALSE
A79: 6.3.5 대학부(신촌) | B79: 12,000,000 | C79: 846,740 | D79: ='5월 지출 상세'!D79+'6월 지출 상세'!C79 -> 3,546,740 | E79: 29.6% | F79: =IF($F$4="보정", 보정치!E77) -> FALSE
A80: 6.3.6 대학부(국제) | B80: 9,000,000 | C80: 900,000 | D80: ='5월 지출 상세'!D80+'6월 지출 상세'!C80 -> 3,600,000 | E80: 40.0% | F80: =IF($F$4="보정", 보정치!E78) -> FALSE
A81: 6.4 목회활동비 | B81: 7,200,000 | C81: 1,489,900 | D81: ='5월 지출 상세'!D81+'6월 지출 상세'!C81 -> 3,530,660 | E81: 49.0% | F81: =IF($F$4="보정", 보정치!E79) -> FALSE
A82: 6.5 용품 및 수리비 | B82: 5,000,000 | C82: 2,633,000 | D82: ='5월 지출 상세'!D82+'6월 지출 상세'!C82 -> 2,835,100 | E82: 56.7% | F82: =IF($F$4="보정", 보정치!E80) -> FALSE
A83: 6.6 연료비 및 통신비 | B83: 4,000,000 | C83: 172,500 | D83: ='5월 지출 상세'!D83+'6월 지출 상세'!C83 -> 861,790 | E83: =D83/B83 -> 21.5% | F83: =IF($F$4="보정", 보정치!E81) -> FALSE
A84: 6.7 악기구입 및 보수 | B84: 3,500,000 | C84: 0 | D84: ='5월 지출 상세'!D84+'6월 지출 상세'!C84 -> 570,000 | E84: =D84/B84 -> 16.3% | F84: =IF($F$4="보정", 보정치!E82) -> FALSE
A85: 6.8 행정운영 예비비 | B85: 0 | C85: 0 | D85: ='5월 지출 상세'!D85+'6월 지출 상세'!C85 -> 0 | F85: =IF($F$4="보정", 보정치!E83) -> FALSE
A86: 7. 장학금 | B86: =SUM(B87:B91) -> 66,720,000 | C86: 0 | D86: ='5월 지출 상세'!D86+'6월 지출 상세'!C86 -> 23,080,000 | E86: 34.6% | F86: =SUM(F87:F91) -> 0
A87: 7.1 교회학교 교사 | B87: 21,000,000 | C87: 0 | D87: ='5월 지출 상세'!D87+'6월 지출 상세'!C87 -> 2,400,000 | E87: 11.4% | F87: =IF($F$4="보정", 보정치!E83) -> FALSE
A88: 7.2 신촌 대학청년부 | B88: 12,000,000 | C88: 0 | D88: ='5월 지출 상세'!D88+'6월 지출 상세'!C88 -> 5,400,000 | E88: 45.0% | F88: =IF($F$4="보정", 보정치!E84) -> FALSE
A89: 7.3 국제 대학부 | B89: 9,000,000 | C89: 0 | D89: ='5월 지출 상세'!D89+'6월 지출 상세'!C89 -> 3,600,000 | E89: 40.0% | F89: =IF($F$4="보정", 보정치!E85) -> FALSE
A90: 7.4 학생 솔리스트 | B90: 16,320,000 | C90: 0 | D90: ='5월 지출 상세'!D90+'6월 지출 상세'!C90 -> 7,480,000 | E90: 45.8% | F90: =IF($F$4="보정", 보정치!E86) -> FALSE
A91: 7.5 기숙사지원 | B91: 8,400,000 | C91: 0 | D91: ='5월 지출 상세'!D91+'6월 지출 상세'!C91 -> 4,200,000 | E91: 50.0% | F91: =IF($F$4="보정", 보정치!E87) -> FALSE
A92: 8. 예비비 | B92: 32,750,000 | C92: 0 | D92: ='5월 지출 상세'!D92+'6월 지출 상세'!C92 -> 7,535,670 | E92: 23.0% | F92: =IF($F$4="보정", 보정치!E90) -> FALSE
A93: 9. 이웃사랑기금적립 | B93: 0 | C93: 5,387,090 | D93: ='5월 지출 상세'!D93+'6월 지출 상세'!C93 -> 5,387,090 | E93: 0.0% | F93: =IF($F$4="보정", 보정치!E91) -> FALSE
A94: 일반 지출 소계 | B94: =SUM(B5,B13,B22,B38,B50,B71,B86,B92,B93) -> 580,000,000 | C94: =SUM(C5,C13,C22,C38,C50,C71,C86,C92,C93) -> 28,967,950 | D94: =SUM(D5,D13,D22,D38,D50,D71,D86,D92,D93) -> 196,683,586 | E94: 33.9% | F94: =SUM(F86,F71,F50,F38,F22,F13,F5) -> 0
A95: 차월이월 | C95: ='6월 수입 상세'!C24-'6월 지출 상세'!C94 -> 11,304,801 | D95: ='6월 수입 상세'!D25+'6월 수입 상세'!D27+'6월 지출 상세'!C95 -> 51,304,801
A96: 지출부 총액 | B96: =B94+B95 -> 580,000,000 | C96: =C94+C95 -> 40,272,751 | D96: =D94+D95 -> 247,988,387 | E96: 42.8%

Sheet 7월 약식
A1: 2023년 7월 결산보고서(약식)
A2: 회계년도: 2023년도 | I2: (2023-07-31 현재)
A3: 수입의 부 | F3: 지출의 부
A4: 항 목 | B4: 예산 | C4: 당월 수입 | D4: 수입 누계 | E4: 집행률(%) | F4: 항 목 | H4: 예산 | I4: 당월 지출 | J4: 지출 누계 | K4: 집행률(%)
A5: 1. 주일헌금 | B5: ='7월 수입 상세'!B5 -> 160,000,000 | C5: ='7월 수입 상세'!C5 -> 13,743,000 | D5: =VLOOKUP(A5, '7월 수입 상세'!$A$4:$F$29, 4, FALSE) -> 61,239,634 | E5: =D5/B5 -> 38.3% | F5: 1. 예배운영비 | H5: ='7월 지출 상세'!B5 -> 22,700,000 | I5: ='7월 지출 상세'!C5 -> 734,600 | J5: =VLOOKUP(F5, '7월 지출 상세'!$A$4:$G$96, 4, FALSE) -> 6,768,150 | K5: =J5/H5 -> 29.8%
A6: 2. 십일조 | B6: ='7월 수입 상세'!B6 -> 105,000,000 | C6: ='7월 수입 상세'!C6 -> 10,097,000 | D6: =VLOOKUP(A6, '7월 수입 상세'!$A$4:$F$29, 4, FALSE) -> 46,099,437 | E6: 43.9% | F6: 2. 교육운영비 | H6: ='7월 지출 상세'!B13 -> 30,500,000 | I6: ='7월 지출 상세'!C13 -> 229,550 | J6: =VLOOKUP(F6, '7월 지출 상세'!$A$4:$G$96, 4, FALSE) -> 1,872,540 | K6: 6.1%
A7: 3. 월정헌금 | B7: ='7월 수입 상세'!B7 -> 145,000,000 | C7: ='7월 수입 상세'!C7 -> 14,790,000 | D7: =VLOOKUP(A7, '7월 수입 상세'!$A$4:$F$29, 4, FALSE) -> 62,555,000 | E7: 43.1% | F7: 3. 선교비 | H7: ='7월 지출 상세'!B22 -> 74,760,000 | I7: ='7월 지출 상세'!C22 -> 7,000,000 | J7: =VLOOKUP(F7, '7월 지출 상세'!$A$4:$G$96, 4, FALSE) -> 36,721,970 | K7: 49.1%
A8: 4. 감사헌금 | B8: ='7월 수입 상세'!B8 -> 35,000,000 | C8: ='7월 수입 상세'!C8 -> 5,721,000 | D8: =VLOOKUP(A8, '7월 수입 상세'!$A$4:$F$29, 4, FALSE) -> 15,544,000 | E8: 44.4% | F8: 4. 친교행사운영비 | H8: ='7월 지출 상세'!B38 -> 27,600,000 | I8: ='7월 지출 상세'!C38 -> 393,350 | J8: =VLOOKUP(F8, '7월 지출 상세'!$A$4:$G$96, 4, FALSE) -> 7,525,970 | K8: 27.3%
A9: 5. 교육부헌금 | B9: ='7월 수입 상세'!B9 -> 22,000,000 | C9: ='7월 수입 상세'!C9 -> 1,346,200 | D9: =VLOOKUP(A9, '7월 수입 상세'!$A$4:$F$29, 4, FALSE) -> 8,548,821 | E9: 38.9% | F9: 5. 사례비 | H9: ='7월 지출 상세'!B50 -> 234,270,000 | I9: ='7월 지출 상세'!C50 -> 16,200,000 | J9: =VLOOKUP(F9, '7월 지출 상세'!$A$4:$G$96, 4, FALSE) -> 99,444,000 | K9: 42.4%
A10: 6. 절기헌금 | B10: ='7월 수입 상세'!B15 -> 35,000,000 | C10: ='7월 수입 상세'!C15 -> 0 | D10: =VLOOKUP(A10, '7월 수입 상세'!$A$4:$F$29, 4, FALSE) -> 14,256,000 | E10: 40.7% | F10: 6. 행정운영비 | H10: ='7월 지출 상세'!B71 -> 90,700,000 | I10: ='7월 지출 상세'!C71 -> 7,094,100 | J10: =VLOOKUP(F10, '7월 지출 상세'!$A$4:$G$96, 4, FALSE) -> 39,999,796 | K10: 44.1%
A11: 7. 선교헌금 | B11: ='7월 수입 상세'!B19 -> 5,000,000 | C11: ='7월 수입 상세'!C19 -> 432,000 | D11: =VLOOKUP(A11, '7월 수입 상세'!$A$4:$F$29, 4, FALSE) -> 1,851,000 | E11: 37.0% | F11: 7. 장학금 | H11: ='7월 지출 상세'!B86 -> 66,720,000 | I11: ='7월 지출 상세'!C86 -> 0 | J11: =VLOOKUP(F11, '7월 지출 상세'!$A$4:$G$96, 4, FALSE) -> 23,080,000 | K11: 34.6%
A12: 8. 지정헌금 | B12: ='7월 수입 상세'!B22 -> 20,000,000 | C12: ='7월 수입 상세'!C22 -> 280,000 | D12: =VLOOKUP(A12, '7월 수입 상세'!$A$4:$F$29, 4, FALSE) -> 7,198,000 | E12: 36.0% | F12: 8. 예비비 | H12: ='7월 지출 상세'!B92 -> 32,750,000 | I12: ='7월 지출 상세'!C92 -> 0 | J12: =VLOOKUP(F12, '7월 지출 상세'!$A$4:$G$96, 4, FALSE) -> 7,535,670 | K12: 23.0%
A13: 9. 특별헌금(이웃사랑실천헌금 등) | B13: ='7월 수입 상세'!B23 -> 13,000,000 | C13: ='7월 수입 상세'!C23 -> 0 | D13: =VLOOKUP(A13, '7월 수입 상세'!$A$4:$F$29, 4, FALSE) -> 5,237,090 | E13: 40.3% | F13: 9. 이웃사랑기금적립 | H13: ='7월 지출 상세'!B93 -> 0 | I13: ='7월 지출 상세'!C93 -> 0 | J13: =VLOOKUP(F13, '7월 지출 상세'!$A$4:$G$96, 4, FALSE) -> 5,387,090
A14: 헌금 수입 소계 | B14: =SUM(B5:B13) -> 540,000,000 | C14: =SUM(C5:C13) -> 46,409,200 | D14: =SUM(D5:D13) -> 222,528,982 | E14: 41.2% | F14: 일반 지출 소계 | H14: =SUM(H5:H13) -> 580,000,000 | I14: =SUM(I5:I13) -> 31,651,600 | J14: =SUM(J5:J13) -> 228,335,186 | K14: =J14/H14 -> 39.4%
A15: 전기이월금 전입 | B15: 40,000,000 | C15: 0 | D15: ='3월 약식'!D15+'7월 약식'!C15 -> 40,000,000 | E15: 100.0% | F15: 차월이월 | I15: =C14-I14 -> 14,757,600 | J15: =D19-J14 -> 56,070,696
A16: 전기이월금 추가전입 | C16: 0 | D16: ='3월 약식'!D16 -> 21,876,900
A17: 헌금외 기금 | C17: 0 | D17: 0
A18: 전월이월금 | C18: ='6월 약식'!J15 -> 41,313,096
A19: 수입부 총액 | B19: =SUM(B14:B18) -> 580,000,000 | C19: =SUM(C14:C18) -> 87,722,296 | D19: =SUM(D14:D18) -> 284,405,882 | E19: =D19/B19 -> 49.0% | F19: 지출부 총액 | H19: =SUM(H14:H18) -> 580,000,000 | I19: =SUM(I14:I18) -> 46,409,200 | J19: =SUM(J14:J18) -> 284,405,882 | K19: =J19/H19 -> 49.0%
A20: *지정헌금 내역(헌화헌금_28만 원
A21: 기금 및 이월금 현황 (2023.3.1 기준) | F21: 헌금 수입 및 지출 누계 비교
A22: 기금명 | C22: 금액(이자포함) | G22: 2021년 7월 | H22: 2022년 7월 | I22: 2023년 7월
A23: 박명윤이행자선교기금(FAA003023) | C23: 53,380,953 | F23: 수입 누계 | G23: 251,711,887 | H23: 218,233,814 | I23: =D14 -> 222,528,982
A24: 대학교회건축기금(FBA113041) | C24: 0 | F24: 지출 누계 | G24: 197,508,198 | H24: 211,334,558 | I24: =J14 -> 228,335,186
A25: 국캠대학교회선교기금(FEA173001) | C25: 146,649
A26: 이웃사랑기금(FEA183001) | C26: 83,791,013
A27: 유초등부발전기금(FAA213008) | C27: 18,299,135
A28: 기금 총액 | C28: =SUM(C23:C27) -> 155,617,750
A30: *누적 이월금 (2023.3.1 기준 / 기금 및 전입금 제외) | C30: 453,597,137

Sheet 7월 수입 상세
A1: 7월 수입 상세
A2: 회계연도: 2023년도 | F2: (2023-07-31 현재)
A4: 분류항목 | B4: 예산 | C4: 당월 | D4: 누계 | E4: 집행률(%) | F4: 비고
A5: 1. 주일헌금 | B5: 160,000,000 | C5: 13,743,000 | D5: =SUM('6월 수입 상세'!D5+'7월 수입 상세'!C5) -> 61,239,634 | E5: =D5/B5 -> 38.3%
A6: 2. 십일조 | B6: 105,000,000 | C6: 10,097,000 | D6: =SUM('6월 수입 상세'!D6+'7월 수입 상세'!C6) -> 46,099,437 | E6: =D6/B6 -> 43.9%
A7: 3. 월정헌금 | B7: 145,000,000 | C7: 14,790,000 | D7: =SUM('6월 수입 상세'!D7+'7월 수입 상세'!C7) -> 62,555,000 | E7: 43.1%
A8: 4. 감사헌금 | B8: 35,000,000 | C8: 5,721,000 | D8: =SUM('6월 수입 상세'!D8+'7월 수입 상세'!C8) -> 15,544,000 | E8: 44.4%
A9: 5. 교육부헌금 | B9: =SUM(B10:B14) -> 22,000,000 | C9: 1,346,200 | D9: =SUM('6월 수입 상세'!D9+'7월 수입 상세'!C9) -> 8,548,821 | E9: 38.9%
A10: 유치부 | B10: 700,000 | C10: 136,000 | D10: =SUM('6월 수입 상세'!D10+'7월 수입 상세'!C10) -> 723,049 | E10: 103.3%
A11: 초등부 | B11: 1,000,000 | C11: 140,000 | D11: =SUM('6월 수입 상세'!D11+'7월 수입 상세'!C11) -> 611,500 | E11: 61.2%
A12: 중고등부 | B12: 300,000 | C12: 17,000 | D12: =SUM('6월 수입 상세'!D12+'7월 수입 상세'!C12) -> 91,722 | E12: 30.6%
A13: 대학부(신촌) | B13: 7,000,000 | C13: 903,200 | D13: =SUM('6월 수입 상세'!D13+'7월 수입 상세'!C13) -> 4,473,338 | E13: 63.9%
A14: 대학부(국제) | B14: 13,000,000 | C14: 150,000 | D14: =SUM('6월 수입 상세'!D14+'7월 수입 상세'!C14) -> 2,649,212 | E14: 20.4%
A15: 6. 절기헌금 | B15: =SUM(B16:B18) -> 35,000,000 | C15: 0 | D15: =SUM('6월 수입 상세'!D15+'7월 수입 상세'!C15) -> 14,256,000 | E15: 40.7%
A16: 부활절 | B16: 10,000,000 | C16: 0 | D16: =SUM('6월 수입 상세'!D16+'7월 수입 상세'!C16) -> 14,256,000 | E16: 142.6%
A17: 추수감사절 | B17: 10,000,000 | C17: 0 | D17: =SUM('6월 수입 상세'!D17+'7월 수입 상세'!C17) -> 0 | E17: 0.0%
A18: 성탄절 | B18: 15,000,000 | C18: 0 | D18: =SUM('6월 수입 상세'!D18+'7월 수입 상세'!C18) -> 0 | E18: 0.0%
A19: 7. 선교헌금 | B19: 5,000,000 | C19: 432,000 | D19: =SUM('6월 수입 상세'!D19+'7월 수입 상세'!C19) -> 1,851,000 | E19: 37.0%
A20: 선교헌금 | B20: 2,500,000 | C20: 432,000 | D20: =SUM('6월 수입 상세'!D20+'7월 수입 상세'!C20) -> 1,851,000 | E20: 74.0%
A21: 특별선교헌금 | B21: 2,500,000 | C21: 0 | D21: =SUM('6월 수입 상세'!D21+'7월 수입 상세'!C21) -> 0 | E21: 0.0%
A22: 8. 지정헌금 | B22: 20,000,000 | C22: 280,000 | D22: =SUM('6월 수입 상세'!D22+'7월 수입 상세'!C22) -> 7,198,000 | E22: 36.0% | F22: 헌화헌금 28만 원
A23: 9. 특별헌금(이웃사랑실천헌금 등) | B23: 13,000,000 | C23: 0 | D23: =SUM('6월 수입 상세'!D23+'7월 수입 상세'!C23) -> 5,237,090 | E23: 40.3%
A24: 헌금 수입 소계 | B24: =SUM(B5,B6,B7,B8,B9,B15,B19,B22,B23) -> 540,000,000 | C24: =SUM(C5,C6,C7,C8,C9,C15,C19,C22,C23) -> 46,409,200 | D24: =SUM(D5,D6,D7,D8,D9,D15,D19,D22,D23) -> 222,528,982 | E24: 41.2%
A25: 전기이월금 전입 | B25: 40,000,000 | C25: 0 | D25: 40,000,000 | E25: 100.0%
A26: 전기이월금 추가전입 | C26: 0 | D26: ='7월 약식'!D16 -> 21,876,900
A27: 헌금외 기금 | C27: 0 | D27: =C27 -> 0
A28: 전월이월금 | C28: ='7월 약식'!C18 -> 41,313,096
A29: 수입부 총액 | B29: =B24+B25 -> 580,000,000 | C29: =SUM(C24:C28) -> 87,722,296 | D29: =SUM(D24:D28) -> 284,405,882 | E29: 49.0%

Sheet 7월 지출 상세
A1: 7월 지출 상세
A2: 회계연도: 2023년도
G3: (2023-07-31 현재)
A4: 분류항목 | B4: 예산 | C4: 당월 | D4: 누계 | E4: 집행률(%) | G4: 비고
A5: 1. 예배운영비 | B5: =SUM(B6:B9) -> 22,700,000 | C5: 734,600 | D5: ='6월 지출 상세'!D5+'7월 지출 상세'!C5 -> 6,768,150 | E5: =D5/B5 -> 29.8% | F5: =SUM(F6:F9) -> 0
A6: 1.1 성례예식비 | B6: 1,200,000 | C6: 0 | D6: ='6월 지출 상세'!D6+'7월 지출 상세'!C6 -> 497,100 | E6: =D6/B6 -> 41.4% | F6: =IF($F$4="보정", 보정치!E4) -> FALSE
A7: 1.2 주보인쇄비 | B7: 4,000,000 | C7: 355,000 | D7: ='6월 지출 상세'!D7+'7월 지출 상세'!C7 -> 1,095,000 | E7: 27.4% | F7: =IF($F$4="보정", 보정치!E5) -> FALSE
A8: 1.3 강사접대비 | B8: 2,500,000 | C8: 95,000 | D8: ='6월 지출 상세'!D8+'7월 지출 상세'!C8 -> 874,500 | E8: 35.0% | F8: =IF($F$4="보정", 보정치!E6) -> FALSE
A9: 1.4 예배준비비 | B9: =SUM(B10:B12) -> 15,000,000 | C9: 284,600 | D9: ='6월 지출 상세'!D9+'7월 지출 상세'!C9 -> 4,301,550 | E9: 28.7% | F9: =IF($F$4="보정", 보정치!E7) -> FALSE
A10: 1.4.1 성전 꽃꽂이 | B10: 10,000,000 | C10: 0 | D10: ='6월 지출 상세'!D10+'7월 지출 상세'!C10 -> 2,800,000 | E10: 28.0% | F10: =IF($F$4="보정", 보정치!E8) -> FALSE
A11: 1.4.2 봉사자 식사 | B11: 4,000,000 | C11: 284,600 | D11: ='6월 지출 상세'!D11+'7월 지출 상세'!C11 -> 1,391,750 | E11: 34.8% | F11: =IF($F$4="보정", 보정치!E9) -> FALSE
A12: 1.4.3 절기행사비 | B12: 1,000,000 | C12: 0 | D12: ='6월 지출 상세'!D12+'7월 지출 상세'!C12 -> 109,800 | E12: 11.0% | F12: =IF($F$4="보정", 보정치!E10) -> FALSE
A13: 2. 교육운영비 | B13: =SUM(B14:B21) -> 30,500,000 | C13: 229,550 | D13: ='6월 지출 상세'!D13+'7월 지출 상세'!C13 -> 1,872,540 | E13: 6.1% | F13: =IF($F$4="보정", 보정치!E11) -> FALSE
A14: 2.1 주일성서연구운영비 | B14: 1,000,000 | C14: 0 | D14: ='6월 지출 상세'!D14+'7월 지출 상세'!C14 -> 0 | E14: 0.0% | F14: =IF($F$4="보정", 보정치!E12) -> FALSE
A15: 2.2 도서 및 교재 | B15: 2,000,000 | C15: 205,800 | D15: ='6월 지출 상세'!D15+'7월 지출 상세'!C15 -> 630,900 | E15: 31.5% | F15: =IF($F$4="보정", 보정치!E13) -> FALSE
A16: 2.3 전교인수양회 행사비 | B16: 14,000,000 | C16: 0 | D16: ='6월 지출 상세'!D16+'7월 지출 상세'!C16 -> 104,600 | E16: 0.7% | F16: =IF($F$4="보정", 보정치!E14) -> FALSE
A17: 2.4 교목연수비 | B17: 0 | C17: 0 | D17: ='6월 지출 상세'!D17+'7월 지출 상세'!C17 -> 0 | F17: =IF($F$4="보정", 보정치!E15) -> FALSE
A18: 2.5 교역자 교육훈련비 | B18: 3,000,000 | C18: 23,750 | D18: ='6월 지출 상세'!D18+'7월 지출 상세'!C18 -> 531,040 | E18: 17.7% | F18: =IF($F$4="보정", 보정치!E16) -> FALSE
A19: 2.6 교사세미나/교역자workshop | B19: 3,000,000 | C19: 0 | D19: ='6월 지출 상세'!D19+'7월 지출 상세'!C19 -> 606,000 | E19: 20.2% | F19: =IF($F$4="보정", 보정치!E17) -> FALSE
A20: 2.7 교육부 운영비 | B20: 7,500,000 | C20: 0 | D20: ='6월 지출 상세'!D20+'7월 지출 상세'!C20 -> 0 | E20: 0.0% | F20: =IF($F$4="보정", 보정치!E18) -> FALSE
A21: 2.8 교육운영 예비비 | B21: 0 | C21: 0 | D21: ='6월 지출 상세'!D21+'7월 지출 상세'!C21 -> 0 | F21: =IF($F$4="보정", 보정치!E19) -> FALSE
A22: 3. 선교비 | B22: =SUM(B23,B34,B35,B36,B37) -> 74,760,000 | C22: 7,000,000 | D22: ='6월 지출 상세'!D22+'7월 지출 상세'!C22 -> 36,721,970 | E22: 49.1% | F22: =SUM(F23,F32,F33,F34,F35) -> 0
A23: 3.1 학원선교 | B23: =SUM(B24:B33) -> 50,960,000 | C23: 6,600,000 | D23: ='6월 지출 상세'!D23+'7월 지출 상세'!C23 -> 11,464,970 | E23: 22.5% | F23: =SUM(F24:F31) -> 0
A24: 3.1.1 간식나눔행사(신촌) | B24: 2,000,000 | C24: 0 | D24: ='6월 지출 상세'!D24+'7월 지출 상세'!C24 -> 1,464,970 | E24: 73.2% | F24: =IF($F$4="보정", 보정치!E22) -> FALSE
A25: 3.1.2 간식나눔행사(국제) | B25: 1,000,000 | C25: 0 | D25: ='6월 지출 상세'!D25+'7월 지출 상세'!C25 -> 0 | E25: 0.0% | F25: =IF($F$4="보정", 보정치!E23) -> FALSE
A26: 3.1.3 교목실 점심나눔 후원 | B26: 27,000,000 | C26: 0 | D26: ='6월 지출 상세'!D26+'7월 지출 상세'!C26 -> 0 | E26: 0.0% | F26: =IF($F$4="보정", 보정치!E24) -> FALSE
A27: 3.1.4 연세기독학생연합회 지원 | B27: 3,600,000 | C27: 300,000 | D27: ='6월 지출 상세'!D27+'7월 지출 상세'!C27 -> 1,500,000 | E27: 41.7% | F27: =IF($F$4="보정", 보정치!E25) -> FALSE
A28: 3.1.5 연세기독학생회찬양팀 후원 | B28: 2,400,000 | C28: 200,000 | D28: ='6월 지출 상세'!D28+'7월 지출 상세'!C28 -> 1,000,000 | E28: 41.7% | F28: =IF($F$4="보정", 보정치!E26) -> FALSE
A29: 3.1.6 YMK 후원 | B29: 3,600,000 | C29: 300,000 | D29: ='6월 지출 상세'!D29+'7월 지출 상세'!C29 -> 1,500,000 | E29: 41.7% | F29: =IF($F$4="보정", 보정치!E27) -> FALSE
A30: 3.1.7 통일한마당 | B30: 2,400,000 | C30: 800,000 | D30: ='6월 지출 상세'!D30+'7월 지출 상세'!C30 -> 1,000,000 | E30: 41.7% | F30: =IF($F$4="보정", 보정치!E28) -> FALSE | G30: 4-7월 지원비 일괄지급
A31: 3.1.8 리틀언더우드 후원 | B31: 5,000,000 | C31: 5,000,000 | D31: ='6월 지출 상세'!D31+'7월 지출 상세'!C31 -> 5,000,000 | E31: 100.0% | F31: 0 | G31: 언더우드 영 리더 프로그램 후원
A32: 3.1.9 멘토멘티프로그램 | B32: 3,960,000 | C32: 0 | D32: ='6월 지출 상세'!D32+'7월 지출 상세'!C32 -> 0 | E32: 0.0% | F32: 0
A33: 3.1.10 학원선교 기타 | B33: 0 | C33: 0 | D33: ='6월 지출 상세'!D33+'7월 지출 상세'!C33 -> 0 | F33: =IF($F$4="보정", 보정치!E31) -> FALSE
A34: 3.2 국외선교 | B34: 4,800,000 | C34: 400,000 | D34: ='6월 지출 상세'!D34+'7월 지출 상세'!C34 -> 2,000,000 | E34: 41.7% | F34: =IF($F$4="보정", 보정치!E32) -> FALSE | G34: 함정희, 노규래
A35: 3.3 이웃사랑 실천헌금 | B35: 9,000,000 | C35: 0 | D35: ='6월 지출 상세'!D35+'7월 지출 상세'!C35 -> 0 | E35: 0.0% | F35: =IF($F$4="보정", 보정치!E33) -> FALSE
A36: 3.4 지정헌금 | B36: 10,000,000 | C36: 0 | D36: ='6월 지출 상세'!D36+'7월 지출 상세'!C36 -> 23,257,000 | E36: 232.6% | F36: =IF($F$4="보정", 보정치!E34) -> FALSE
A37: 3.5 선교예비금 | B37: 0 | C37: 0 | D37: ='6월 지출 상세'!D37+'7월 지출 상세'!C37 -> 0 | F37: =IF($F$4="보정", 보정치!E35) -> FALSE
A38: 4. 친교행사운영비 | B38: =SUM(B39:B49)-B47 -> 27,600,000 | C38: 393,350 | D38: ='6월 지출 상세'!D38+'7월 지출 상세'!C38 -> 7,525,970 | E38: 27.3% | F38: =SUM(F39:F49)-F47 -> 0
A39: 4.1 주일공동식사 | B39: 7,000,000 | C39: 0 | D39: ='6월 지출 상세'!D39+'7월 지출 상세'!C39 -> 2,228,200 | E39: 31.8% | F39: =IF($F$4="보정", 보정치!E37) -> FALSE
A40: 4.2 야외예배 행사비 | B40: 0 | C40: 0 | D40: ='6월 지출 상세'!D40+'7월 지출 상세'!C40 -> 0 | F40: =IF($F$4="보정", 보정치!E38) -> FALSE
A41: 4.3 경로행사비 | B41: 1,500,000 | C41: 0 | D41: ='6월 지출 상세'!D41+'7월 지출 상세'!C41 -> 1,500,000 | E41: 100.0% | F41: =IF($F$4="보정", 보정치!E39) -> FALSE
A42: 4.4 성탄행사비 | B42: 2,100,000 | C42: 0 | D42: ='6월 지출 상세'!D42+'7월 지출 상세'!C42 -> 0 | E42: 0.0% | F42: =IF($F$4="보정", 보정치!E40) -> FALSE
A43: 4.5 주일다과비 | B43: 5,000,000 | C43: 86,750 | D43: ='6월 지출 상세'!D43+'7월 지출 상세'!C43 -> 451,330 | E43: 9.0% | F43: =IF($F$4="보정", 보정치!E41) -> FALSE
A44: 4.6 경조비 | B44: 4,000,000 | C44: 306,600 | D44: ='6월 지출 상세'!D44+'7월 지출 상세'!C44 -> 1,597,000 | E44: 39.9% | F44: =IF($F$4="보정", 보정치!E42) -> FALSE
A45: 4.7 교우친교비 | B45: 2,000,000 | C45: 0 | D45: ='6월 지출 상세'!D45+'7월 지출 상세'!C45 -> 749,440 | E45: 37.5% | F45: =IF($F$4="보정", 보정치!E43) -> FALSE
A46: 4.8 홍보출판비 | B46: 4,000,000 | C46: 0 | D46: ='6월 지출 상세'!D46+'7월 지출 상세'!C46 -> 1,000,000 | E46: 25.0% | F46: =IF($F$4="보정", 보정치!E44) -> FALSE
A47: 4.8.1 대학교회 회지 | B47: 4,000,000 | C47: 0 | D47: ='6월 지출 상세'!D47+'7월 지출 상세'!C47 -> 1,000,000 | E47: 25.0% | F47: =IF($F$4="보정", 보정치!E45) -> FALSE
A48: 4.9 교회봉사자 선물 | B48: 2,000,000 | C48: 0 | D48: ='6월 지출 상세'!D48+'7월 지출 상세'!C48 -> 0 | E48: 0.0% | F48: =IF($F$4="보정", 보정치!E46) -> FALSE
A49: 4.10 친교행사 예비비 | B49: 0 | C49: 0 | D49: ='6월 지출 상세'!D49+'7월 지출 상세'!C49 -> 0 | F49: =IF($F$4="보정", 보정치!E47) -> FALSE
A50: 5. 사례비 | B50: =SUM(B51:B66,B69,B70) -> 234,270,000 | C50: 16,200,000 | D50: ='6월 지출 상세'!D50+'7월 지출 상세'!C50 -> 99,444,000 | E50: 42.4% | F50: =SUM(F51:F70) -> 0
A51: 5.1 외부강사 설교 사례 | B51: 12,000,000 | C51: 900,000 | D51: ='6월 지출 상세'!D51+'7월 지출 상세'!C51 -> 5,500,000 | E51: 45.8% | F51: =IF($F$4="보정", 보정치!E47) -> FALSE
A52: 5.2 외부강사 설교 사례(대학부-국제) | B52: 2,400,000 | C52: 0 | D52: ='6월 지출 상세'!D52+'7월 지출 상세'!C52 -> 0 | E52: 0.0% | F52: =IF($F$4="보정", 보정치!E48) -> FALSE
A53: 5.3 절기 예배 연주자 | B53: 800,000 | C53: 0 | D53: ='6월 지출 상세'!D53+'7월 지출 상세'!C53 -> 0 | E53: 0.0% | F53: =IF($F$4="보정", 보정치!E49) -> FALSE
A54: 5.4 국악 예배 연주자 | B54: 1,800,000 | C54: 0 | D54: ='6월 지출 상세'!D54+'7월 지출 상세'!C54 -> 0 | E54: 0.0% | F54: =IF($F$4="보정", 보정치!E50) -> FALSE
A55: 5.5 봉헌송 사례 | B55: 450,000 | C55: 0 | D55: ='6월 지출 상세'!D55+'7월 지출 상세'!C55 -> 0 | E55: 0.0% | F55: =IF($F$4="보정", 보정치!E51) -> FALSE
A56: 5.6 주일성서연구 강사사례 | B56: 4,000,000 | C56: 0 | D56: ='6월 지출 상세'!D56+'7월 지출 상세'!C56 -> 2,000,000 | E56: 50.0% | F56: =IF($F$4="보정", 보정치!E52) -> FALSE
A57: 5.8 담임목사 | B57: 14,400,000 | C57: 0 | D57: ='6월 지출 상세'!D57+'7월 지출 상세'!C57 -> 6,000,000 | E57: 41.7% | F57: =IF($F$4="보정", 보정치!E53) -> FALSE
A58: 5.9 동역목사 | B58: 12,000,000 | C58: 400,000 | D58: ='6월 지출 상세'!D58+'7월 지출 상세'!C58 -> 2,400,000 | E58: 20.0% | F58: =IF($F$4="보정", 보정치!E54) -> FALSE
A59: 5.10 전임교역자 | B59: 67,500,000 | C59: 9,900,000 | D59: ='6월 지출 상세'!D59+'7월 지출 상세'!C59 -> 39,900,000 | E59: 59.1% | F59: =IF($F$4="보정", 보정치!E55) -> FALSE
A60: 5.11 성가대지휘자 | B60: 12,000,000 | C60: 1,000,000 | D60: ='6월 지출 상세'!D60+'7월 지출 상세'!C60 -> 5,000,000 | E60: 41.7% | F60: =IF($F$4="보정", 보정치!E56) -> FALSE
A61: 5.12 오르가니스트 | B61: 12,000,000 | C61: 0 | D61: ='6월 지출 상세'!D61+'7월 지출 상세'!C61 -> 5,000,000 | E61: 41.7% | F61: =IF($F$4="보정", 보정치!E57) -> FALSE
A62: 5.13 교육부서 담당교역자 | B62: 38,400,000 | C62: 0 | D62: ='6월 지출 상세'!D62+'7월 지출 상세'!C62 -> 13,600,000 | E62: 35.4% | F62: =IF($F$4="보정", 보정치!E58) -> FALSE
A63: 5.14 성인 솔리스트 | B63: 23,520,000 | C63: 1,960,000 | D63: ='6월 지출 상세'!D63+'7월 지출 상세'!C63 -> 9,460,000 | E63: 40.2% | F63: =IF($F$4="보정", 보정치!E59) -> FALSE
A64: 5.15 통역자 | B64: 4,000,000 | C64: 375,000 | D64: ='6월 지출 상세'!D64+'7월 지출 상세'!C64 -> 1,650,000 | E64: 41.3% | F64: =IF($F$4="보정", 보정치!E60) -> FALSE
A65: 5.16 방송담당 | B65: 12,000,000 | C65: 750,000 | D65: ='6월 지출 상세'!D65+'7월 지출 상세'!C65 -> 4,725,000 | E65: 39.4% | F65: =IF($F$4="보정", 보정치!E61) -> FALSE
A66: 5.17 용원 사례비 | B66: =SUM(B67:B68) -> 11,000,000 | C66: 915,000 | D66: ='6월 지출 상세'!D66+'7월 지출 상세'!C66 -> 4,209,000 | E66: 38.3% | F66: =IF($F$4="보정", 보정치!E62) -> FALSE
A67: 5.17.1 관리실 여사 | B67: 6,000,000 | C67: 510,000 | D67: ='6월 지출 상세'!D67+'7월 지출 상세'!C67 -> 2,670,000 | E67: 44.5% | F67: =IF($F$4="보정", 보정치!E63) -> FALSE
A68: 5.17.2 관리실 반장 | B68: 5,000,000 | C68: 405,000 | D68: ='6월 지출 상세'!D68+'7월 지출 상세'!C68 -> 1,539,000 | E68: 30.8% | F68: =IF($F$4="보정", 보정치!E64) -> FALSE
A69: 5.18 퇴직위로금 | B69: 3,000,000 | C69: 0 | D69: ='6월 지출 상세'!D69+'7월 지출 상세'!C69 -> 0 | E69: 0.0% | F69: =IF($F$4="보정", 보정치!E65) -> FALSE
A70: 5.19 기타(교역자휴가 및 기타인건비) | B70: 3,000,000 | C70: 0 | D70: ='6월 지출 상세'!D70+'7월 지출 상세'!C70 -> 0 | E70: 0.0% | F70: =IF($F$4="보정", 보정치!E66) -> FALSE
A71: 6. 행정운영비 | B71: =SUM(B72:B74,B81,B82,B83,B84,B85) -> 90,700,000 | C71: =SUM(C72:C74,C81:C83) -> 7,094,100 | D71: ='6월 지출 상세'!D71+'7월 지출 상세'!C71 -> 39,999,796 | E71: 44.1% | F71: =SUM(F72:F74,F81,F82,F83,F84,F85) -> 0
A72: 6.1 회의 및 교회위원회 | B72: 6,000,000 | C72: 254,200 | D72: ='6월 지출 상세'!D72+'7월 지출 상세'!C72 -> 2,804,600 | E72: 46.7% | F72: =IF($F$4="보정", 보정치!E70) -> FALSE
A73: 6.2 사무운영비 | B73: 13,000,000 | C73: 637,250 | D73: ='6월 지출 상세'!D73+'7월 지출 상세'!C73 -> 4,660,056 | E73: =D73/B73 -> 35.8% | F73: =IF($F$4="보정", 보정치!E71) -> FALSE
A74: 6.3 부서운영비 | B74: =SUM(B75:B80) -> 52,000,000 | C74: =SUM(C75:C80) -> 5,275,000 | D74: ='6월 지출 상세'!D74+'7월 지출 상세'!C74 -> 23,809,940 | E74: 45.8% | F74: =IF($F$4="보정", 보정치!E72) -> FALSE
A75: 6.3.1 성가대 | B75: 14,300,000 | C75: 1,375,000 | D75: ='6월 지출 상세'!D75+'7월 지출 상세'!C75 -> 6,763,200 | E75: 47.3% | F75: =IF($F$4="보정", 보정치!E73) -> FALSE
A76: 6.3.2 유치부 | B76: 4,500,000 | C76: 500,000 | D76: ='6월 지출 상세'!D76+'7월 지출 상세'!C76 -> 2,100,000 | E76: 46.7% | F76: =IF($F$4="보정", 보정치!E74) -> FALSE
A77: 6.3.3 초등부 | B77: 7,100,000 | C77: 1,100,000 | D77: ='6월 지출 상세'!D77+'7월 지출 상세'!C77 -> 3,500,000 | E77: 49.3% | F77: =IF($F$4="보정", 보정치!E75) -> FALSE
A78: 6.3.4 중고등부 | B78: 5,100,000 | C78: 600,000 | D78: ='6월 지출 상세'!D78+'7월 지출 상세'!C78 -> 2,600,000 | E78: 51.0% | F78: =IF($F$4="보정", 보정치!E76) -> FALSE
A79: 6.3.5 대학부(신촌) | B79: 12,000,000 | C79: 1,250,000 | D79: ='6월 지출 상세'!D79+'7월 지출 상세'!C79 -> 4,796,740 | E79: 40.0% | F79: =IF($F$4="보정", 보정치!E77) -> FALSE
A80: 6.3.6 대학부(국제) | B80: 9,000,000 | C80: 450,000 | D80: ='6월 지출 상세'!D80+'7월 지출 상세'!C80 -> 4,050,000 | E80: 45.0% | F80: =IF($F$4="보정", 보정치!E78) -> FALSE
A81: 6.4 목회활동비 | B81: 7,200,000 | C81: 655,480 | D81: ='6월 지출 상세'!D81+'7월 지출 상세'!C81 -> 4,186,140 | E81: 58.1% | F81: =IF($F$4="보정", 보정치!E79) -> FALSE
A82: 6.5 용품 및 수리비 | B82: 5,000,000 | C82: 18,980 | D82: ='6월 지출 상세'!D82+'7월 지출 상세'!C82 -> 2,854,080 | E82: 57.1% | F82: =IF($F$4="보정", 보정치!E80) -> FALSE
A83: 6.6 연료비 및 통신비 | B83: 4,000,000 | C83: 253,190 | D83: ='6월 지출 상세'!D83+'7월 지출 상세'!C83 -> 1,114,980 | E83: =D83/B83 -> 27.9% | F83: =IF($F$4="보정", 보정치!E81) -> FALSE
A84: 6.7 악기구입 및 보수 | B84: 3,500,000 | C84: 0 | D84: ='6월 지출 상세'!D84+'7월 지출 상세'!C84 -> 570,000 | E84: =D84/B84 -> 16.3% | F84: =IF($F$4="보정", 보정치!E82) -> FALSE
A85: 6.8 행정운영 예비비 | B85: 0 | C85: 0 | D85: ='6월 지출 상세'!D85+'7월 지출 상세'!C85 -> 0 | F85: =IF($F$4="보정", 보정치!E83) -> FALSE
A86: 7. 장학금 | B86: =SUM(B87:B91) -> 66,720,000 | C86: 0 | D86: ='6월 지출 상세'!D86+'7월 지출 상세'!C86 -> 23,080,000 | E86: 34.6% | F86: =SUM(F87:F91) -> 0
A87: 7.1 교회학교 교사 | B87: 21,000,000 | C87: 0 | D87: ='6월 지출 상세'!D87+'7월 지출 상세'!C87 -> 2,400,000 | E87: 11.4% | F87: =IF($F$4="보정", 보정치!E83) -> FALSE
A88: 7.2 신촌 대학청년부 | B88: 12,000,000 | C88: 0 | D88: ='6월 지출 상세'!D88+'7월 지출 상세'!C88 -> 5,400,000 | E88: 45.0% | F88: =IF($F$4="보정", 보정치!E84) -> FALSE
A89: 7.3 국제 대학부 | B89: 9,000,000 | C89: 0 | D89: ='6월 지출 상세'!D89+'7월 지출 상세'!C89 -> 3,600,000 | E89: 40.0% | F89: =IF($F$4="보정", 보정치!E85) -> FALSE
A90: 7.4 학생 솔리스트 | B90: 16,320,000 | C90: 0 | D90: ='6월 지출 상세'!D90+'7월 지출 상세'!C90 -> 7,480,000 | E90: 45.8% | F90: =IF($F$4="보정", 보정치!E86) -> FALSE
A91: 7.5 기숙사지원 | B91: 8,400,000 | C91: 0 | D91: ='6월 지출 상세'!D91+'7월 지출 상세'!C91 -> 4,200,000 | E91: 50.0% | F91: =IF($F$4="보정", 보정치!E87) -> FALSE
A92: 8. 예비비 | B92: 32,750,000 | C92: 0 | D92: ='6월 지출 상세'!D92+'7월 지출 상세'!C92 -> 7,535,670 | E92: 23.0% | F92: =IF($F$4="보정", 보정치!E90) -> FALSE
A93: 9. 이웃사랑기금적립 | B93: 0 | C93: 0 | D93: ='6월 지출 상세'!D93+'7월 지출 상세'!C93 -> 5,387,090 | E93: 0.0% | F93: =IF($F$4="보정", 보정치!E91) -> FALSE
A94: 일반 지출 소계 | B94: =SUM(B5,B13,B22,B38,B50,B71,B86,B92,B93) -> 580,000,000 | C94: =SUM(C5,C13,C22,C38,C50,C71,C86,C92,C93) -> 31,651,600 | D94: =SUM(D5,D13,D22,D38,D50,D71,D86,D92,D93) -> 228,335,186 | E94: 39.4% | F94: =SUM(F86,F71,F50,F38,F22,F13,F5) -> 0
A95: 차월이월 | C95: ='7월 수입 상세'!C24-'7월 지출 상세'!C94 -> 14,757,600 | D95: ='7월 수입 상세'!D25+'7월 수입 상세'!D27+'7월 지출 상세'!C95 -> 54,757,600
A96: 지출부 총액 | B96: =B94+B95 -> 580,000,000 | C96: =C94+C95 -> 46,409,200 | D96: =D94+D95 -> 283,092,786 | E96: 48.8%

Sheet 8월 약식
A1: 2023년 8월 결산보고서(약식)
A2: 회계년도: 2023년도 | I2: (2023-08-31 현재)
A3: 수입의 부 | F3: 지출의 부
A4: 항 목 | B4: 예산 | C4: 당월 수입 | D4: 수입 누계 | E4: 집행률(%) | F4: 항 목 | H4: 예산 | I4: 당월 지출 | J4: 지출 누계 | K4: 집행률(%)
A5: 1. 주일헌금 | B5: ='8월 수입 상세'!B5 -> 160,000,000 | C5: ='8월 수입 상세'!C5 -> 10,744,000 | D5: =VLOOKUP(A5, '8월 수입 상세'!$A$4:$F$29, 4, FALSE) -> 71,983,634 | E5: =D5/B5 -> 45.0% | F5: 1. 예배운영비 | H5: ='8월 지출 상세'!B5 -> 22,700,000 | I5: ='8월 지출 상세'!C5 -> 1,707,900 | J5: =VLOOKUP(F5, '8월 지출 상세'!$A$4:$G$96, 4, FALSE) -> 8,476,050 | K5: =J5/H5 -> 37.3%
A6: 2. 십일조 | B6: ='8월 수입 상세'!B6 -> 105,000,000 | C6: ='8월 수입 상세'!C6 -> 6,777,000 | D6: =VLOOKUP(A6, '8월 수입 상세'!$A$4:$F$29, 4, FALSE) -> 52,876,437 | E6: 50.4% | F6: 2. 교육운영비 | H6: ='8월 지출 상세'!B13 -> 30,500,000 | I6: ='8월 지출 상세'!C13 -> 10,842,975 | J6: =VLOOKUP(F6, '8월 지출 상세'!$A$4:$G$96, 4, FALSE) -> 12,715,515 | K6: 41.7%
A7: 3. 월정헌금 | B7: ='8월 수입 상세'!B7 -> 145,000,000 | C7: ='8월 수입 상세'!C7 -> 10,820,000 | D7: =VLOOKUP(A7, '8월 수입 상세'!$A$4:$F$29, 4, FALSE) -> 73,375,000 | E7: 50.6% | F7: 3. 선교비 | H7: ='8월 지출 상세'!B22 -> 74,760,000 | I7: ='8월 지출 상세'!C22 -> 1,400,000 | J7: =VLOOKUP(F7, '8월 지출 상세'!$A$4:$G$96, 4, FALSE) -> 38,121,970 | K7: 51.0%
A8: 4. 감사헌금 | B8: ='8월 수입 상세'!B8 -> 35,000,000 | C8: ='8월 수입 상세'!C8 -> 3,114,000 | D8: =VLOOKUP(A8, '8월 수입 상세'!$A$4:$F$29, 4, FALSE) -> 18,658,000 | E8: 53.3% | F8: 4. 친교행사운영비 | H8: ='8월 지출 상세'!B38 -> 27,600,000 | I8: ='8월 지출 상세'!C38 -> 439,570 | J8: =VLOOKUP(F8, '8월 지출 상세'!$A$4:$G$96, 4, FALSE) -> 7,965,540 | K8: 28.9%
A9: 5. 교육부헌금 | B9: ='8월 수입 상세'!B9 -> 22,000,000 | C9: ='8월 수입 상세'!C9 -> 906,000 | D9: =VLOOKUP(A9, '8월 수입 상세'!$A$4:$F$29, 4, FALSE) -> 9,454,821 | E9: 43.0% | F9: 5. 사례비 | H9: ='8월 지출 상세'!B50 -> 234,270,000 | I9: ='8월 지출 상세'!C50 -> 20,367,000 | J9: =VLOOKUP(F9, '8월 지출 상세'!$A$4:$G$96, 4, FALSE) -> 119,811,000 | K9: 51.1%
A10: 6. 절기헌금 | B10: ='8월 수입 상세'!B15 -> 35,000,000 | C10: ='8월 수입 상세'!C15 -> 0 | D10: =VLOOKUP(A10, '8월 수입 상세'!$A$4:$F$29, 4, FALSE) -> 14,256,000 | E10: 40.7% | F10: 6. 행정운영비 | H10: ='8월 지출 상세'!B71 -> 90,700,000 | I10: ='8월 지출 상세'!C71 -> 7,250,290 | J10: =VLOOKUP(F10, '8월 지출 상세'!$A$4:$G$96, 4, FALSE) -> 47,250,086 | K10: 52.1%
A11: 7. 선교헌금 | B11: ='8월 수입 상세'!B19 -> 5,000,000 | C11: ='8월 수입 상세'!C19 -> 762,000 | D11: =VLOOKUP(A11, '8월 수입 상세'!$A$4:$F$29, 4, FALSE) -> 2,613,000 | E11: 52.3% | F11: 7. 장학금 | H11: ='8월 지출 상세'!B86 -> 66,720,000 | I11: ='8월 지출 상세'!C86 -> -840,000 | J11: =VLOOKUP(F11, '8월 지출 상세'!$A$4:$G$96, 4, FALSE) -> 22,240,000 | K11: 33.3%
A12: 8. 지정헌금 | B12: ='8월 수입 상세'!B22 -> 20,000,000 | C12: ='8월 수입 상세'!C22 -> 340,000 | D12: =VLOOKUP(A12, '8월 수입 상세'!$A$4:$F$29, 4, FALSE) -> 7,538,000 | E12: 37.7% | F12: 8. 예비비 | H12: ='8월 지출 상세'!B92 -> 32,750,000 | I12: ='8월 지출 상세'!C92 -> 0 | J12: =VLOOKUP(F12, '8월 지출 상세'!$A$4:$G$96, 4, FALSE) -> 7,535,670 | K12: 23.0%
A13: 9. 특별헌금(이웃사랑실천헌금 등) | B13: ='8월 수입 상세'!B23 -> 13,000,000 | C13: ='8월 수입 상세'!C23 -> 1,000,000 | D13: =VLOOKUP(A13, '8월 수입 상세'!$A$4:$F$29, 4, FALSE) -> 6,237,090 | E13: 48.0% | F13: 9. 이웃사랑기금적립 | H13: ='8월 지출 상세'!B93 -> 0 | I13: ='8월 지출 상세'!C93 -> 1,000,000 | J13: =VLOOKUP(F13, '8월 지출 상세'!$A$4:$G$96, 4, FALSE) -> 6,387,090
A14: 헌금 수입 소계 | B14: =SUM(B5:B13) -> 540,000,000 | C14: =SUM(C5:C13) -> 34,463,000 | D14: =SUM(D5:D13) -> 256,991,982 | E14: 47.6% | F14: 일반 지출 소계 | H14: =SUM(H5:H13) -> 580,000,000 | I14: =SUM(I5:I13) -> 42,167,735 | J14: =SUM(J5:J13) -> 270,502,921 | K14: =J14/H14 -> 46.6%
A15: 전기이월금 전입 | B15: 40,000,000 | C15: 0 | D15: ='3월 약식'!D15+'8월 약식'!C15 -> 40,000,000 | E15: 100.0% | F15: 차월이월 | I15: =C14-I14 -> -7,704,735 | J15: =D19-J14 -> 48,365,961
A16: 전기이월금 추가전입 | C16: 0 | D16: ='3월 약식'!D16 -> 21,876,900
A17: 헌금외 기금 | C17: 0 | D17: 0
A18: 전월이월금 | C18: ='7월 약식'!J15 -> 56,070,696
A19: 수입부 총액 | B19: =SUM(B14:B18) -> 580,000,000 | C19: =SUM(C14:C18) -> 90,533,696 | D19: =SUM(D14:D18) -> 318,868,882 | E19: =D19/B19 -> 55.0% | F19: 지출부 총액 | H19: =SUM(H14:H18) -> 580,000,000 | I19: =SUM(I14:I18) -> 34,463,000 | J19: =SUM(J14:J18) -> 318,868,882 | K19: =J19/H19 -> 55.0%
A20: *지정헌금 내역(헌화헌금_14만 원, 성가대 지정헌금_20만 원) *지출부 7.장학금의 84만 원은 중도휴학으로 취소된 금액을 반영한 것임.
A21: 기금 및 이월금 현황 (2023.8.31 기준) | F21: 헌금 수입 및 지출 누계 비교
A22: 기금명 | C22: 금액(이자포함) | G22: 2021년 8월 | H22: 2022년 8월 | I22: 2023년 8월
A23: 박명윤이행자선교기금(FAA003023) | C23: 53,656,313 | F23: 수입 누계 | G23: 288,711,968 | H23: 256,002,814 | I23: =D14 -> 256,991,982
A24: 대학교회건축기금(FBA113041) | C24: 0 | F24: 지출 누계 | G24: 225,833,843 | H24: 247,565,208 | I24: =J14 -> 270,502,921
A25: 국캠대학교회선교기금(FEA173001) | C25: 147,405
A26: 이웃사랑기금(FEA183001) | C26: 90,623,173
A27: 유초등부발전기금(FAA213008) | C27: 18,393,529
A28: 기금 총액 | C28: =SUM(C23:C27) -> 162,820,420
A30: *누적 이월금 (2023.3.1 기준 / 기금 및 전입금 제외) | C30: 453,597,137

Sheet 8월 수입 상세
A1: 8월 수입 상세
A2: 회계연도: 2023년도 | F2: (2023-08-31 현재)
A4: 분류항목 | B4: 예산 | C4: 당월 | D4: 누계 | E4: 집행률(%) | F4: 비고
A5: 1. 주일헌금 | B5: 160,000,000 | C5: 10,744,000 | D5: =SUM('7월 수입 상세'!D5+'8월 수입 상세'!C5) -> 71,983,634 | E5: =D5/B5 -> 45.0%
A6: 2. 십일조 | B6: 105,000,000 | C6: 6,777,000 | D6: =SUM('7월 수입 상세'!D6+'8월 수입 상세'!C6) -> 52,876,437 | E6: =D6/B6 -> 50.4%
A7: 3. 월정헌금 | B7: 145,000,000 | C7: 10,820,000 | D7: =SUM('7월 수입 상세'!D7+'8월 수입 상세'!C7) -> 73,375,000 | E7: 50.6%
A8: 4. 감사헌금 | B8: 35,000,000 | C8: 3,114,000 | D8: =SUM('7월 수입 상세'!D8+'8월 수입 상세'!C8) -> 18,658,000 | E8: 53.3%
A9: 5. 교육부헌금 | B9: =SUM(B10:B14) -> 22,000,000 | C9: =SUM(C10:C14) -> 906,000 | D9: =SUM('7월 수입 상세'!D9+'8월 수입 상세'!C9) -> 9,454,821 | E9: 43.0%
A10: 유치부 | B10: 700,000 | C10: 47,000 | D10: =SUM('7월 수입 상세'!D10+'8월 수입 상세'!C10) -> 770,049 | E10: 110.0%
A11: 초등부 | B11: 1,000,000 | C11: 92,000 | D11: =SUM('7월 수입 상세'!D11+'8월 수입 상세'!C11) -> 703,500 | E11: 70.4%
A12: 중고등부 | B12: 300,000 | C12: 7,000 | D12: =SUM('7월 수입 상세'!D12+'8월 수입 상세'!C12) -> 98,722 | E12: 32.9%
A13: 대학부(신촌) | B13: 7,000,000 | C13: 670,000 | D13: =SUM('7월 수입 상세'!D13+'8월 수입 상세'!C13) -> 5,143,338 | E13: 73.5%
A14: 대학부(국제) | B14: 13,000,000 | C14: 90,000 | D14: =SUM('7월 수입 상세'!D14+'8월 수입 상세'!C14) -> 2,739,212 | E14: 21.1%
A15: 6. 절기헌금 | B15: =SUM(B16:B18) -> 35,000,000 | C15: 0 | D15: =SUM('7월 수입 상세'!D15+'8월 수입 상세'!C15) -> 14,256,000 | E15: 40.7%
A16: 부활절 | B16: 10,000,000 | C16: 0 | D16: =SUM('7월 수입 상세'!D16+'8월 수입 상세'!C16) -> 14,256,000 | E16: 142.6%
A17: 추수감사절 | B17: 10,000,000 | C17: 0 | D17: =SUM('7월 수입 상세'!D17+'8월 수입 상세'!C17) -> 0 | E17: 0.0%
A18: 성탄절 | B18: 15,000,000 | C18: 0 | D18: =SUM('7월 수입 상세'!D18+'8월 수입 상세'!C18) -> 0 | E18: 0.0%
A19: 7. 선교헌금 | B19: 5,000,000 | C19: =SUM(C20:C21) -> 762,000 | D19: =SUM('7월 수입 상세'!D19+'8월 수입 상세'!C19) -> 2,613,000 | E19: 52.3%
A20: 선교헌금 | B20: 2,500,000 | C20: 762,000 | D20: =SUM('7월 수입 상세'!D20+'8월 수입 상세'!C20) -> 2,613,000 | E20: 104.5%
A21: 특별선교헌금 | B21: 2,500,000 | C21: 0 | D21: =SUM('7월 수입 상세'!D21+'8월 수입 상세'!C21) -> 0 | E21: 0.0%
A22: 8. 지정헌금 | B22: 20,000,000 | C22: 340,000 | D22: =SUM('7월 수입 상세'!D22+'8월 수입 상세'!C22) -> 7,538,000 | E22: 37.7% | F22: 헌화헌금 28만 원
A23: 9. 특별헌금(이웃사랑실천헌금 등) | B23: 13,000,000 | C23: 1,000,000 | D23: =SUM('7월 수입 상세'!D23+'8월 수입 상세'!C23) -> 6,237,090 | E23: 48.0%
A24: 헌금 수입 소계 | B24: =SUM(B5,B6,B7,B8,B9,B15,B19,B22,B23) -> 540,000,000 | C24: =SUM(C5,C6,C7,C8,C9,C15,C19,C22,C23) -> 34,463,000 | D24: =SUM(D5,D6,D7,D8,D9,D15,D19,D22,D23) -> 256,991,982 | E24: 47.6%
A25: 전기이월금 전입 | B25: 40,000,000 | C25: 0 | D25: 40,000,000 | E25: 100.0%
A26: 전기이월금 추가전입 | C26: 0 | D26: ='8월 약식'!D16 -> 21,876,900
A27: 헌금외 기금 | C27: 0 | D27: =C27 -> 0
A28: 전월이월금 | C28: ='8월 약식'!C18 -> 56,070,696
A29: 수입부 총액 | B29: =B24+B25 -> 580,000,000 | C29: =SUM(C24:C28) -> 90,533,696 | D29: =SUM(D24:D28) -> 318,868,882 | E29: 55.0%

Sheet 8월 지출 상세
A1: 8월 지출 상세
A2: 회계연도: 2023년도
G3: (2023-08-31 현재)
A4: 분류항목 | B4: 예산 | C4: 당월 | D4: 누계 | E4: 집행률(%) | G4: 비고
A5: 1. 예배운영비 | B5: =SUM(B6:B9) -> 22,700,000 | C5: 1,707,900 | D5: ='7월 지출 상세'!D5+'8월 지출 상세'!C5 -> 8,476,050 | E5: =D5/B5 -> 37.3% | F5: =SUM(F6:F9) -> 0
A6: 1.1 성례예식비 | B6: 1,200,000 | C6: 0 | D6: ='7월 지출 상세'!D6+'8월 지출 상세'!C6 -> 497,100 | E6: =D6/B6 -> 41.4% | F6: =IF($F$4="보정", 보정치!E4) -> FALSE
A7: 1.2 주보인쇄비 | B7: 4,000,000 | C7: 0 | D7: ='7월 지출 상세'!D7+'8월 지출 상세'!C7 -> 1,095,000 | E7: 27.4% | F7: =IF($F$4="보정", 보정치!E5) -> FALSE
A8: 1.3 강사접대비 | B8: 2,500,000 | C8: 165,000 | D8: ='7월 지출 상세'!D8+'8월 지출 상세'!C8 -> 1,039,500 | E8: 41.6% | F8: =IF($F$4="보정", 보정치!E6) -> FALSE
A9: 1.4 예배준비비 | B9: =SUM(B10:B12) -> 15,000,000 | C9: 1,542,900 | D9: ='7월 지출 상세'!D9+'8월 지출 상세'!C9 -> 5,844,450 | E9: 39.0% | F9: =IF($F$4="보정", 보정치!E7) -> FALSE
A10: 1.4.1 성전 꽃꽂이 | B10: 10,000,000 | C10: 1,350,000 | D10: ='7월 지출 상세'!D10+'8월 지출 상세'!C10 -> 4,150,000 | E10: 41.5% | F10: =IF($F$4="보정", 보정치!E8) -> FALSE
A11: 1.4.2 봉사자 식사 | B11: 4,000,000 | C11: 192,900 | D11: ='7월 지출 상세'!D11+'8월 지출 상세'!C11 -> 1,584,650 | E11: 39.6% | F11: =IF($F$4="보정", 보정치!E9) -> FALSE
A12: 1.4.3 절기행사비 | B12: 1,000,000 | C12: 0 | D12: ='7월 지출 상세'!D12+'8월 지출 상세'!C12 -> 109,800 | E12: 11.0% | F12: =IF($F$4="보정", 보정치!E10) -> FALSE
A13: 2. 교육운영비 | B13: =SUM(B14:B21) -> 30,500,000 | C13: 10,842,975 | D13: ='7월 지출 상세'!D13+'8월 지출 상세'!C13 -> 12,715,515 | E13: 41.7% | F13: =IF($F$4="보정", 보정치!E11) -> FALSE
A14: 2.1 주일성서연구운영비 | B14: 1,000,000 | C14: 0 | D14: ='7월 지출 상세'!D14+'8월 지출 상세'!C14 -> 0 | E14: 0.0% | F14: =IF($F$4="보정", 보정치!E12) -> FALSE
A15: 2.2 도서 및 교재 | B15: 2,000,000 | C15: 0 | D15: ='7월 지출 상세'!D15+'8월 지출 상세'!C15 -> 630,900 | E15: 31.5% | F15: =IF($F$4="보정", 보정치!E13) -> FALSE
A16: 2.3 전교인수양회 행사비 | B16: 14,000,000 | C16: 8,252,700 | D16: ='7월 지출 상세'!D16+'8월 지출 상세'!C16 -> 8,357,300 | E16: 59.7% | F16: =IF($F$4="보정", 보정치!E14) -> FALSE
A17: 2.4 교목연수비 | B17: 0 | C17: 0 | D17: ='7월 지출 상세'!D17+'8월 지출 상세'!C17 -> 0 | F17: =IF($F$4="보정", 보정치!E15) -> FALSE
A18: 2.5 교역자 교육훈련비 | B18: 3,000,000 | C18: 0 | D18: ='7월 지출 상세'!D18+'8월 지출 상세'!C18 -> 531,040 | E18: 17.7% | F18: =IF($F$4="보정", 보정치!E16) -> FALSE
A19: 2.6 교사세미나/교역자workshop | B19: 3,000,000 | C19: 1,538,275 | D19: ='7월 지출 상세'!D19+'8월 지출 상세'!C19 -> 2,144,275 | E19: 71.5% | F19: =IF($F$4="보정", 보정치!E17) -> FALSE
A20: 2.7 교육부 운영비 | B20: 7,500,000 | C20: 1,052,000 | D20: ='7월 지출 상세'!D20+'8월 지출 상세'!C20 -> 1,052,000 | E20: 14.0% | F20: =IF($F$4="보정", 보정치!E18) -> FALSE
A21: 2.8 교육운영 예비비 | B21: 0 | C21: 0 | D21: ='7월 지출 상세'!D21+'8월 지출 상세'!C21 -> 0 | F21: =IF($F$4="보정", 보정치!E19) -> FALSE
A22: 3. 선교비 | B22: =SUM(B23,B34,B35,B36,B37) -> 74,760,000 | C22: 1,400,000 | D22: ='7월 지출 상세'!D22+'8월 지출 상세'!C22 -> 38,121,970 | E22: 51.0% | F22: =SUM(F23,F32,F33,F34,F35) -> 0
A23: 3.1 학원선교 | B23: =SUM(B24:B33) -> 50,960,000 | C23: 1,000,000 | D23: ='7월 지출 상세'!D23+'8월 지출 상세'!C23 -> 12,464,970 | E23: 24.5% | F23: =SUM(F24:F31) -> 0
A24: 3.1.1 간식나눔행사(신촌) | B24: 2,000,000 | C24: 0 | D24: ='7월 지출 상세'!D24+'8월 지출 상세'!C24 -> 1,464,970 | E24: 73.2% | F24: =IF($F$4="보정", 보정치!E22) -> FALSE
A25: 3.1.2 간식나눔행사(국제) | B25: 1,000,000 | C25: 0 | D25: ='7월 지출 상세'!D25+'8월 지출 상세'!C25 -> 0 | E25: 0.0% | F25: =IF($F$4="보정", 보정치!E23) -> FALSE
A26: 3.1.3 교목실 점심나눔 후원 | B26: 27,000,000 | C26: 0 | D26: ='7월 지출 상세'!D26+'8월 지출 상세'!C26 -> 0 | E26: 0.0% | F26: =IF($F$4="보정", 보정치!E24) -> FALSE
A27: 3.1.4 연세기독학생연합회 지원 | B27: 3,600,000 | C27: 300,000 | D27: ='7월 지출 상세'!D27+'8월 지출 상세'!C27 -> 1,800,000 | E27: 50.0% | F27: =IF($F$4="보정", 보정치!E25) -> FALSE
A28: 3.1.5 연세기독학생회찬양팀 후원 | B28: 2,400,000 | C28: 200,000 | D28: ='7월 지출 상세'!D28+'8월 지출 상세'!C28 -> 1,200,000 | E28: 50.0% | F28: =IF($F$4="보정", 보정치!E26) -> FALSE
A29: 3.1.6 YMK 후원 | B29: 3,600,000 | C29: 300,000 | D29: ='7월 지출 상세'!D29+'8월 지출 상세'!C29 -> 1,800,000 | E29: 50.0% | F29: =IF($F$4="보정", 보정치!E27) -> FALSE
A30: 3.1.7 통일한마당 | B30: 2,400,000 | C30: 200,000 | D30: ='7월 지출 상세'!D30+'8월 지출 상세'!C30 -> 1,200,000 | E30: 50.0% | F30: =IF($F$4="보정", 보정치!E28) -> FALSE
A31: 3.1.8 리틀언더우드 후원 | B31: 5,000,000 | C31: 0 | D31: ='7월 지출 상세'!D31+'8월 지출 상세'!C31 -> 5,000,000 | E31: 100.0% | F31: 0
A32: 3.1.9 멘토멘티프로그램 | B32: 3,960,000 | C32: 0 | D32: ='7월 지출 상세'!D32+'8월 지출 상세'!C32 -> 0 | E32: 0.0% | F32: 0
A33: 3.1.10 학원선교 기타 | B33: 0 | C33: 0 | D33: ='7월 지출 상세'!D33+'8월 지출 상세'!C33 -> 0 | F33: =IF($F$4="보정", 보정치!E31) -> FALSE
A34: 3.2 국외선교 | B34: 4,800,000 | C34: 400,000 | D34: ='7월 지출 상세'!D34+'8월 지출 상세'!C34 -> 2,400,000 | E34: 50.0% | F34: =IF($F$4="보정", 보정치!E32) -> FALSE | G34: 함정희, 노규래
A35: 3.3 이웃사랑 실천헌금 | B35: 9,000,000 | C35: 0 | D35: ='7월 지출 상세'!D35+'8월 지출 상세'!C35 -> 0 | E35: 0.0% | F35: =IF($F$4="보정", 보정치!E33) -> FALSE
A36: 3.4 지정헌금 | B36: 10,000,000 | C36: 0 | D36: ='7월 지출 상세'!D36+'8월 지출 상세'!C36 -> 23,257,000 | E36: 232.6% | F36: =IF($F$4="보정", 보정치!E34) -> FALSE
A37: 3.5 선교예비금 | B37: 0 | C37: 0 | D37: ='7월 지출 상세'!D37+'8월 지출 상세'!C37 -> 0 | F37: =IF($F$4="보정", 보정치!E35) -> FALSE
A38: 4. 친교행사운영비 | B38: =SUM(B39:B49)-B47 -> 27,600,000 | C38: 439,570 | D38: ='7월 지출 상세'!D38+'8월 지출 상세'!C38 -> 7,965,540 | E38: 28.9% | F38: =SUM(F39:F49)-F47 -> 0
A39: 4.1 주일공동식사 | B39: 7,000,000 | C39: 0 | D39: ='7월 지출 상세'!D39+'8월 지출 상세'!C39 -> 2,228,200 | E39: 31.8% | F39: =IF($F$4="보정", 보정치!E37) -> FALSE
A40: 4.2 야외예배 행사비 | B40: 0 | C40: 0 | D40: ='7월 지출 상세'!D40+'8월 지출 상세'!C40 -> 0 | F40: =IF($F$4="보정", 보정치!E38) -> FALSE
A41: 4.3 경로행사비 | B41: 1,500,000 | C41: 0 | D41: ='7월 지출 상세'!D41+'8월 지출 상세'!C41 -> 1,500,000 | E41: 100.0% | F41: =IF($F$4="보정", 보정치!E39) -> FALSE
A42: 4.4 성탄행사비 | B42: 2,100,000 | C42: 0 | D42: ='7월 지출 상세'!D42+'8월 지출 상세'!C42 -> 0 | E42: 0.0% | F42: =IF($F$4="보정", 보정치!E40) -> FALSE
A43: 4.5 주일다과비 | B43: 5,000,000 | C43: 107,570 | D43: ='7월 지출 상세'!D43+'8월 지출 상세'!C43 -> 558,900 | E43: 11.2% | F43: =IF($F$4="보정", 보정치!E41) -> FALSE
A44: 4.6 경조비 | B44: 4,000,000 | C44: 200,000 | D44: ='7월 지출 상세'!D44+'8월 지출 상세'!C44 -> 1,797,000 | E44: 44.9% | F44: =IF($F$4="보정", 보정치!E42) -> FALSE
A45: 4.7 교우친교비 | B45: 2,000,000 | C45: 132,000 | D45: ='7월 지출 상세'!D45+'8월 지출 상세'!C45 -> 881,440 | E45: 44.1% | F45: =IF($F$4="보정", 보정치!E43) -> FALSE
A46: 4.8 홍보출판비 | B46: 4,000,000 | C46: 0 | D46: ='7월 지출 상세'!D46+'8월 지출 상세'!C46 -> 1,000,000 | E46: 25.0% | F46: =IF($F$4="보정", 보정치!E44) -> FALSE
A47: 4.8.1 대학교회 회지 | B47: 4,000,000 | C47: 0 | D47: ='7월 지출 상세'!D47+'8월 지출 상세'!C47 -> 1,000,000 | E47: 25.0% | F47: =IF($F$4="보정", 보정치!E45) -> FALSE
A48: 4.9 교회봉사자 선물 | B48: 2,000,000 | C48: 0 | D48: ='7월 지출 상세'!D48+'8월 지출 상세'!C48 -> 0 | E48: 0.0% | F48: =IF($F$4="보정", 보정치!E46) -> FALSE
A49: 4.10 친교행사 예비비 | B49: 0 | C49: 0 | D49: ='7월 지출 상세'!D49+'8월 지출 상세'!C49 -> 0 | F49: =IF($F$4="보정", 보정치!E47) -> FALSE
A50: 5. 사례비 | B50: =SUM(B51:B66,B69,B70) -> 234,270,000 | C50: 20,367,000 | D50: ='7월 지출 상세'!D50+'8월 지출 상세'!C50 -> 119,811,000 | E50: 51.1% | F50: =SUM(F51:F70) -> 0
A51: 5.1 외부강사 설교 사례 | B51: 12,000,000 | C51: 300,000 | D51: ='7월 지출 상세'!D51+'8월 지출 상세'!C51 -> 5,800,000 | E51: 48.3% | F51: =IF($F$4="보정", 보정치!E47) -> FALSE
A52: 5.2 외부강사 설교 사례(대학부-국제) | B52: 2,400,000 | C52: 0 | D52: ='7월 지출 상세'!D52+'8월 지출 상세'!C52 -> 0 | E52: 0.0% | F52: =IF($F$4="보정", 보정치!E48) -> FALSE
A53: 5.3 절기 예배 연주자 | B53: 800,000 | C53: 0 | D53: ='7월 지출 상세'!D53+'8월 지출 상세'!C53 -> 0 | E53: 0.0% | F53: =IF($F$4="보정", 보정치!E49) -> FALSE
A54: 5.4 국악 예배 연주자 | B54: 1,800,000 | C54: 0 | D54: ='7월 지출 상세'!D54+'8월 지출 상세'!C54 -> 0 | E54: 0.0% | F54: =IF($F$4="보정", 보정치!E50) -> FALSE
A55: 5.5 봉헌송 사례 | B55: 450,000 | C55: 0 | D55: ='7월 지출 상세'!D55+'8월 지출 상세'!C55 -> 0 | E55: 0.0% | F55: =IF($F$4="보정", 보정치!E51) -> FALSE
A56: 5.6 주일성서연구 강사사례 | B56: 4,000,000 | C56: 0 | D56: ='7월 지출 상세'!D56+'8월 지출 상세'!C56 -> 2,000,000 | E56: 50.0% | F56: =IF($F$4="보정", 보정치!E52) -> FALSE
A57: 5.8 담임목사 | B57: 14,400,000 | C57: 1,200,000 | D57: ='7월 지출 상세'!D57+'8월 지출 상세'!C57 -> 7,200,000 | E57: 50.0% | F57: =IF($F$4="보정", 보정치!E53) -> FALSE
A58: 5.9 동역목사 | B58: 12,000,000 | C58: 0 | D58: ='7월 지출 상세'!D58+'8월 지출 상세'!C58 -> 2,400,000 | E58: 20.0% | F58: =IF($F$4="보정", 보정치!E54) -> FALSE
A59: 5.10 전임교역자 | B59: 67,500,000 | C59: 7,500,000 | D59: ='7월 지출 상세'!D59+'8월 지출 상세'!C59 -> 47,400,000 | E59: 70.2% | F59: =IF($F$4="보정", 보정치!E55) -> FALSE
A60: 5.11 성가대지휘자 | B60: 12,000,000 | C60: 1,000,000 | D60: ='7월 지출 상세'!D60+'8월 지출 상세'!C60 -> 6,000,000 | E60: 50.0% | F60: =IF($F$4="보정", 보정치!E56) -> FALSE
A61: 5.12 오르가니스트 | B61: 12,000,000 | C61: 1,000,000 | D61: ='7월 지출 상세'!D61+'8월 지출 상세'!C61 -> 6,000,000 | E61: 50.0% | F61: =IF($F$4="보정", 보정치!E57) -> FALSE
A62: 5.13 교육부서 담당교역자 | B62: 38,400,000 | C62: 3,200,000 | D62: ='7월 지출 상세'!D62+'8월 지출 상세'!C62 -> 16,800,000 | E62: 43.8% | F62: =IF($F$4="보정", 보정치!E58) -> FALSE
A63: 5.14 성인 솔리스트 | B63: 23,520,000 | C63: 1,960,000 | D63: ='7월 지출 상세'!D63+'8월 지출 상세'!C63 -> 11,420,000 | E63: 48.6% | F63: =IF($F$4="보정", 보정치!E59) -> FALSE
A64: 5.15 통역자 | B64: 4,000,000 | C64: 300,000 | D64: ='7월 지출 상세'!D64+'8월 지출 상세'!C64 -> 1,950,000 | E64: 48.8% | F64: =IF($F$4="보정", 보정치!E60) -> FALSE
A65: 5.16 방송담당 | B65: 12,000,000 | C65: 975,000 | D65: ='7월 지출 상세'!D65+'8월 지출 상세'!C65 -> 5,700,000 | E65: 47.5% | F65: =IF($F$4="보정", 보정치!E61) -> FALSE
A66: 5.17 용원 사례비 | B66: =SUM(B67:B68) -> 11,000,000 | C66: 732,000 | D66: ='7월 지출 상세'!D66+'8월 지출 상세'!C66 -> 4,941,000 | E66: 44.9% | F66: =IF($F$4="보정", 보정치!E62) -> FALSE
A67: 5.17.1 관리실 여사 | B67: 6,000,000 | C67: 408,000 | D67: ='7월 지출 상세'!D67+'8월 지출 상세'!C67 -> 3,078,000 | E67: 51.3% | F67: =IF($F$4="보정", 보정치!E63) -> FALSE
A68: 5.17.2 관리실 반장 | B68: 5,000,000 | C68: 324,000 | D68: ='7월 지출 상세'!D68+'8월 지출 상세'!C68 -> 1,863,000 | E68: 37.3% | F68: =IF($F$4="보정", 보정치!E64) -> FALSE
A69: 5.18 퇴직위로금 | B69: 3,000,000 | C69: 0 | D69: ='7월 지출 상세'!D69+'8월 지출 상세'!C69 -> 0 | E69: 0.0% | F69: =IF($F$4="보정", 보정치!E65) -> FALSE
A70: 5.19 기타(교역자휴가 및 기타인건비) | B70: 3,000,000 | C70: 2,200,000 | D70: ='7월 지출 상세'!D70+'8월 지출 상세'!C70 -> 2,200,000 | E70: 73.3% | F70: =IF($F$4="보정", 보정치!E66) -> FALSE
A71: 6. 행정운영비 | B71: =SUM(B72:B74,B81,B82,B83,B84,B85) -> 90,700,000 | C71: 7,250,290 | D71: ='7월 지출 상세'!D71+'8월 지출 상세'!C71 -> 47,250,086 | E71: 52.1% | F71: =SUM(F72:F74,F81,F82,F83,F84,F85) -> 0
A72: 6.1 회의 및 교회위원회 | B72: 6,000,000 | C72: 540,700 | D72: ='7월 지출 상세'!D72+'8월 지출 상세'!C72 -> 3,345,300 | E72: 55.8% | F72: =IF($F$4="보정", 보정치!E70) -> FALSE
A73: 6.2 사무운영비 | B73: 13,000,000 | C73: 382,000 | D73: ='7월 지출 상세'!D73+'8월 지출 상세'!C73 -> 5,042,056 | E73: =D73/B73 -> 38.8% | F73: =IF($F$4="보정", 보정치!E71) -> FALSE
A74: 6.3 부서운영비 | B74: =SUM(B75:B80) -> 52,000,000 | C74: 3,839,400 | D74: ='7월 지출 상세'!D74+'8월 지출 상세'!C74 -> 27,649,340 | E74: 53.2% | F74: =IF($F$4="보정", 보정치!E72) -> FALSE
A75: 6.3.1 성가대 | B75: 14,300,000 | C75: 1,100,000 | D75: ='7월 지출 상세'!D75+'8월 지출 상세'!C75 -> 7,863,200 | E75: 55.0% | F75: =IF($F$4="보정", 보정치!E73) -> FALSE
A76: 6.3.2 유치부 | B76: 4,500,000 | C76: 400,000 | D76: ='7월 지출 상세'!D76+'8월 지출 상세'!C76 -> 2,500,000 | E76: 55.6% | F76: =IF($F$4="보정", 보정치!E74) -> FALSE
A77: 6.3.3 초등부 | B77: 7,100,000 | C77: 600,000 | D77: ='7월 지출 상세'!D77+'8월 지출 상세'!C77 -> 4,100,000 | E77: 57.7% | F77: =IF($F$4="보정", 보정치!E75) -> FALSE
A78: 6.3.4 중고등부 | B78: 5,100,000 | C78: 500,000 | D78: ='7월 지출 상세'!D78+'8월 지출 상세'!C78 -> 3,100,000 | E78: 60.8% | F78: =IF($F$4="보정", 보정치!E76) -> FALSE
A79: 6.3.5 대학부(신촌) | B79: 12,000,000 | C79: 789,400 | D79: ='7월 지출 상세'!D79+'8월 지출 상세'!C79 -> 5,586,140 | E79: 46.6% | F79: =IF($F$4="보정", 보정치!E77) -> FALSE
A80: 6.3.6 대학부(국제) | B80: 9,000,000 | C80: 450,000 | D80: ='7월 지출 상세'!D80+'8월 지출 상세'!C80 -> 4,500,000 | E80: 50.0% | F80: =IF($F$4="보정", 보정치!E78) -> FALSE
A81: 6.4 목회활동비 | B81: 7,200,000 | C81: 636,900 | D81: ='7월 지출 상세'!D81+'8월 지출 상세'!C81 -> 4,823,040 | E81: 67.0% | F81: =IF($F$4="보정", 보정치!E79) -> FALSE
A82: 6.5 용품 및 수리비 | B82: 5,000,000 | C82: 1,650,000 | D82: ='7월 지출 상세'!D82+'8월 지출 상세'!C82 -> 4,504,080 | E82: 90.1% | F82: =IF($F$4="보정", 보정치!E80) -> FALSE
A83: 6.6 연료비 및 통신비 | B83: 4,000,000 | C83: 201,290 | D83: ='7월 지출 상세'!D83+'8월 지출 상세'!C83 -> 1,316,270 | E83: =D83/B83 -> 32.9% | F83: =IF($F$4="보정", 보정치!E81) -> FALSE
A84: 6.7 악기구입 및 보수 | B84: 3,500,000 | D84: ='7월 지출 상세'!D84+'8월 지출 상세'!C84 -> 570,000 | E84: =D84/B84 -> 16.3% | F84: =IF($F$4="보정", 보정치!E82) -> FALSE
A85: 6.8 행정운영 예비비 | B85: 0 | C85: 0 | D85: ='7월 지출 상세'!D85+'8월 지출 상세'!C85 -> 0 | F85: =IF($F$4="보정", 보정치!E83) -> FALSE
A86: 7. 장학금 | B86: =SUM(B87:B91) -> 66,720,000 | C86: -840,000 | D86: ='7월 지출 상세'!D86+'8월 지출 상세'!C86 -> 22,240,000 | E86: 33.3% | F86: =SUM(F87:F91) -> 0
A87: 7.1 교회학교 교사 | B87: 21,000,000 | C87: 0 | D87: ='7월 지출 상세'!D87+'8월 지출 상세'!C87 -> 2,400,000 | E87: 11.4% | F87: =IF($F$4="보정", 보정치!E83) -> FALSE
A88: 7.2 신촌 대학청년부 | B88: 12,000,000 | C88: 0 | D88: ='7월 지출 상세'!D88+'8월 지출 상세'!C88 -> 5,400,000 | E88: 45.0% | F88: =IF($F$4="보정", 보정치!E84) -> FALSE
A89: 7.3 국제 대학부 | B89: 9,000,000 | C89: 0 | D89: ='7월 지출 상세'!D89+'8월 지출 상세'!C89 -> 3,600,000 | E89: 40.0% | F89: =IF($F$4="보정", 보정치!E85) -> FALSE
A90: 7.4 학생 솔리스트 | B90: 16,320,000 | C90: 0 | D90: ='7월 지출 상세'!D90+'8월 지출 상세'!C90 -> 7,480,000 | E90: 45.8% | F90: =IF($F$4="보정", 보정치!E86) -> FALSE
A91: 7.5 기숙사지원 | B91: 8,400,000 | C91: -840,000 | D91: ='7월 지출 상세'!D91+'8월 지출 상세'!C91 -> 3,360,000 | E91: 40.0% | F91: =IF($F$4="보정", 보정치!E87) -> FALSE | G91: 중도 휴학으로 인한 장학금 반환금
A92: 8. 예비비 | B92: 32,750,000 | C92: 0 | D92: ='7월 지출 상세'!D92+'8월 지출 상세'!C92 -> 7,535,670 | E92: 23.0% | F92: =IF($F$4="보정", 보정치!E90) -> FALSE
A93: 9. 이웃사랑기금적립 | B93: 0 | C93: 1,000,000 | D93: ='7월 지출 상세'!D93+'8월 지출 상세'!C93 -> 6,387,090 | E93: 0.0% | F93: =IF($F$4="보정", 보정치!E91) -> FALSE
A94: 일반 지출 소계 | B94: =SUM(B5,B13,B22,B38,B50,B71,B86,B92,B93) -> 580,000,000 | C94: =SUM(C5,C13,C22,C38,C50,C71,C86,C92,C93) -> 42,167,735 | D94: =SUM(D5,D13,D22,D38,D50,D71,D86,D92,D93) -> 270,502,921 | E94: 46.6% | F94: =SUM(F86,F71,F50,F38,F22,F13,F5) -> 0
A95: 차월이월 | C95: ='8월 수입 상세'!C24-'8월 지출 상세'!C94 -> -7,704,735 | D95: ='8월 수입 상세'!D25+'8월 수입 상세'!D27+'8월 지출 상세'!C95 -> 32,295,265
A96: 지출부 총액 | B96: =B94+B95 -> 580,000,000 | C96: =C94+C95 -> 34,463,000 | D96: =D94+D95 -> 302,798,186 | E96: 52.2%

Sheet 9월 약식
A1: 2023년 9월 결산보고서(약식)
A2: 회계년도: 2023년도 | I2: (2023-09-30 현재)
A3: 수입의 부 | F3: 지출의 부
A4: 항 목 | B4: 예산 | C4: 당월 수입 | D4: 수입 누계 | E4: 집행률(%) | F4: 항 목 | H4: 예산 | I4: 당월 지출 | J4: 지출 누계 | K4: 집행률(%)
A5: 1. 주일헌금 | B5: ='9월 수입 상세'!B5 -> 160,000,000 | C5: ='9월 수입 상세'!C5 -> 15,048,690 | D5: =VLOOKUP(A5, '9월 수입 상세'!$A$4:$F$29, 4, FALSE) -> 87,032,324 | E5: =D5/B5 -> 54.4% | F5: 1. 예배운영비 | H5: ='9월 지출 상세'!B5 -> 22,700,000 | I5: ='9월 지출 상세'!C5 -> 972,650 | J5: =VLOOKUP(F5, '9월 지출 상세'!$A$4:$G$96, 4, FALSE) -> 9,448,700 | K5: =J5/H5 -> 41.6%
A6: 2. 십일조 | B6: ='9월 수입 상세'!B6 -> 105,000,000 | C6: ='9월 수입 상세'!C6 -> 6,866,000 | D6: =VLOOKUP(A6, '9월 수입 상세'!$A$4:$F$29, 4, FALSE) -> 59,742,437 | E6: 56.9% | F6: 2. 교육운영비 | H6: ='9월 지출 상세'!B13 -> 30,500,000 | I6: ='9월 지출 상세'!C13 -> 8,265,690 | J6: =VLOOKUP(F6, '9월 지출 상세'!$A$4:$G$96, 4, FALSE) -> 20,981,205 | K6: 68.8%
A7: 3. 월정헌금 | B7: ='9월 수입 상세'!B7 -> 145,000,000 | C7: ='9월 수입 상세'!C7 -> 10,870,000 | D7: =VLOOKUP(A7, '9월 수입 상세'!$A$4:$F$29, 4, FALSE) -> 84,245,000 | E7: 58.1% | F7: 3. 선교비 | H7: ='9월 지출 상세'!B22 -> 94,480,000 | I7: ='9월 지출 상세'!C22 -> 2,400,000 | J7: =VLOOKUP(F7, '9월 지출 상세'!$A$4:$G$96, 4, FALSE) -> 40,521,970 | K7: 42.9%
A8: 4. 감사헌금 | B8: ='9월 수입 상세'!B8 -> 35,000,000 | C8: ='9월 수입 상세'!C8 -> 2,291,000 | D8: =VLOOKUP(A8, '9월 수입 상세'!$A$4:$F$29, 4, FALSE) -> 20,949,000 | E8: 59.9% | F8: 4. 친교행사운영비 | H8: ='9월 지출 상세'!B38 -> 27,600,000 | I8: ='9월 지출 상세'!C38 -> 907,670 | J8: =VLOOKUP(F8, '9월 지출 상세'!$A$4:$G$96, 4, FALSE) -> 8,873,210 | K8: 32.1%
A9: 5. 교육부헌금 | B9: ='9월 수입 상세'!B9 -> 22,000,000 | C9: ='9월 수입 상세'!C9 -> 870,000 | D9: =VLOOKUP(A9, '9월 수입 상세'!$A$4:$F$29, 4, FALSE) -> 10,324,821 | E9: 46.9% | F9: 5. 사례비 | H9: ='9월 지출 상세'!B50 -> 266,770,000 | I9: ='9월 지출 상세'!C50 -> 21,392,000 | J9: =VLOOKUP(F9, '9월 지출 상세'!$A$4:$G$96, 4, FALSE) -> 141,203,000 | K9: 52.9%
A10: 6. 절기헌금 | B10: ='9월 수입 상세'!B15 -> 35,000,000 | C10: ='9월 수입 상세'!C15 -> 0 | D10: =VLOOKUP(A10, '9월 수입 상세'!$A$4:$F$29, 4, FALSE) -> 14,256,000 | E10: 40.7% | F10: 6. 행정운영비 | H10: ='9월 지출 상세'!B71 -> 91,784,670 | I10: ='9월 지출 상세'!C71 -> 6,250,970 | J10: =VLOOKUP(F10, '9월 지출 상세'!$A$4:$G$96, 4, FALSE) -> 53,501,056 | K10: 58.3%
A11: 7. 선교헌금 | B11: ='9월 수입 상세'!B19 -> 5,000,000 | C11: ='9월 수입 상세'!C19 -> 202,000 | D11: =VLOOKUP(A11, '9월 수입 상세'!$A$4:$F$29, 4, FALSE) -> 2,815,000 | E11: 56.3% | F11: 7. 장학금 | H11: ='9월 지출 상세'!B86 -> 66,720,000 | I11: ='9월 지출 상세'!C86 -> 0 | J11: =VLOOKUP(F11, '9월 지출 상세'!$A$4:$G$96, 4, FALSE) -> 22,240,000 | K11: 33.3%
A12: 8. 지정헌금 | B12: ='9월 수입 상세'!B22 -> 20,000,000 | C12: ='9월 수입 상세'!C22 -> 490,000 | D12: =VLOOKUP(A12, '9월 수입 상세'!$A$4:$F$29, 4, FALSE) -> 8,028,000 | E12: 40.1% | F12: 8. 예비비 | H12: ='9월 지출 상세'!B92 -> 32,750,000 | I12: ='9월 지출 상세'!C92 -> 1,000,000 | J12: =VLOOKUP(F12, '9월 지출 상세'!$A$4:$G$96, 4, FALSE) -> 8,535,670 | K12: 26.1%
A13: 9. 특별헌금(이웃사랑실천헌금 등) | B13: ='9월 수입 상세'!B23 -> 13,000,000 | C13: ='9월 수입 상세'!C23 -> 24,500,000 | D13: =VLOOKUP(A13, '9월 수입 상세'!$A$4:$F$29, 4, FALSE) -> 30,737,090 | E13: 236.4% | F13: 9. 이웃사랑기금적립 | H13: ='9월 지출 상세'!B93 -> 0 | I13: ='9월 지출 상세'!C93 -> 23,600,000 | J13: =VLOOKUP(F13, '9월 지출 상세'!$A$4:$G$96, 4, FALSE) -> 29,987,090
A14: 헌금 수입 소계 | B14: =SUM(B5:B13) -> 540,000,000 | C14: =SUM(C5:C13) -> 61,137,690 | D14: =SUM(D5:D13) -> 318,129,672 | E14: 58.9% | F14: 일반 지출 소계 | H14: =SUM(H5:H13) -> 633,304,670 | I14: =SUM(I5:I13) -> 64,788,980 | J14: =SUM(J5:J13) -> 335,291,901 | K14: =J14/H14 -> 52.9%
A15: 전기이월금 전입 | B15: ='9월 수입 상세'!B25 -> 40,000,000 | C15: 0 | D15: ='3월 약식'!D15+'9월 약식'!C15 -> 40,000,000 | E15: 100.0% | F15: 차월이월 | I15: =C14-I14 -> -3,651,290 | J15: =D19-J14 -> 77,142,441
A16: 전기이월금 추가전입 | B16: ='9월 수입 상세'!B26 -> 53,304,670 | C16: ='9월 수입 상세'!C26 -> 31,427,770 | D16: ='9월 수입 상세'!D26 -> 53,304,670
A17: 헌금외 기금 | C17: ='9월 수입 상세'!C27 -> 1,000,000 | D17: ='9월 수입 상세'!D27 -> 1,000,000
A18: 전월이월금 | C18: ='8월 약식'!J15 -> 48,365,961
A19: 수입부 총액 | B19: =SUM(B14:B18) -> 633,304,670 | C19: =SUM(C14:C18) -> 141,931,421 | D19: =SUM(D14:D18) -> 412,434,342 | E19: =D19/B19 -> 65.1% | F19: 지출부 총액 | H19: =SUM(H14:H18) -> 633,304,670 | I19: =SUM(I14:I18) -> 61,137,690 | J19: =SUM(J14:J18) -> 412,434,342 | K19: =J19/H19 -> 65.1%
A20: *지정헌금 내역(헌화헌금_49만 원)
A21: 기금 및 이월금 현황 (2023.8.31 기준) | F21: 헌금 수입 및 지출 누계 비교
A22: 기금명 | C22: 금액(이자포함) | G22: 2021년 9월 | H22: 2022년 9월 | I22: 2023년 9월
A23: 박명윤이행자선교기금(FAA003023) | C23: 53,656,313 | F23: 수입 누계 | G23: 332,099,968 | H23: 307,401,975 | I23: =D14 -> 318,129,672
A24: 대학교회건축기금(FBA113041) | C24: 0 | F24: 지출 누계 | G24: 292,384,326 | H24: 282,528,340 | I24: =J14 -> 335,291,901
A25: 국캠대학교회선교기금(FEA173001) | C25: 147,405
A26: 이웃사랑기금(FEA183001) | C26: 90,623,173
A27: 유초등부발전기금(FAA213008) | C27: 18,393,529
A28: 기금 총액 | C28: =SUM(C23:C27) -> 162,820,420
A30: *누적 이월금 (2023.3.1 기준 / 기금 및 전입금 제외) | C30: 453,597,137

Sheet 9월 수입 상세
A1: 9월 수입 상세
A2: 회계연도: 2023년도 | F2: (2023-09-30 현재)
A4: 분류항목 | B4: 예산 | C4: 당월 | D4: 누계 | E4: 집행률(%) | F4: 비고
A5: 1. 주일헌금 | B5: 160,000,000 | C5: 15,048,690 | D5: =SUM('8월 수입 상세'!D5+'9월 수입 상세'!C5) -> 87,032,324 | E5: =D5/B5 -> 54.4%
A6: 2. 십일조 | B6: 105,000,000 | C6: 6,866,000 | D6: =SUM('8월 수입 상세'!D6+'9월 수입 상세'!C6) -> 59,742,437 | E6: =D6/B6 -> 56.9%
A7: 3. 월정헌금 | B7: 145,000,000 | C7: 10,870,000 | D7: =SUM('8월 수입 상세'!D7+'9월 수입 상세'!C7) -> 84,245,000 | E7: 58.1%
A8: 4. 감사헌금 | B8: 35,000,000 | C8: 2,291,000 | D8: =SUM('8월 수입 상세'!D8+'9월 수입 상세'!C8) -> 20,949,000 | E8: 59.9%
A9: 5. 교육부헌금 | B9: =SUM(B10:B14) -> 22,000,000 | C9: =SUM(C10:C14) -> 870,000 | D9: =SUM('8월 수입 상세'!D9+'9월 수입 상세'!C9) -> 10,324,821 | E9: 46.9%
A10: 유치부 | B10: 700,000 | C10: 52,000 | D10: =SUM('8월 수입 상세'!D10+'9월 수입 상세'!C10) -> 822,049 | E10: 117.4%
A11: 초등부 | B11: 1,000,000 | C11: 136,000 | D11: =SUM('8월 수입 상세'!D11+'9월 수입 상세'!C11) -> 839,500 | E11: 84.0%
A12: 중고등부 | B12: 300,000 | C12: 15,000 | D12: =SUM('8월 수입 상세'!D12+'9월 수입 상세'!C12) -> 113,722 | E12: 37.9%
A13: 대학부(신촌) | B13: 7,000,000 | C13: 462,000 | D13: =SUM('8월 수입 상세'!D13+'9월 수입 상세'!C13) -> 5,605,338 | E13: 80.1%
A14: 대학부(국제) | B14: 13,000,000 | C14: 205,000 | D14: =SUM('8월 수입 상세'!D14+'9월 수입 상세'!C14) -> 2,944,212 | E14: 22.6%
A15: 6. 절기헌금 | B15: =SUM(B16:B18) -> 35,000,000 | C15: 0 | D15: =SUM('8월 수입 상세'!D15+'9월 수입 상세'!C15) -> 14,256,000 | E15: 40.7%
A16: 부활절 | B16: 10,000,000 | C16: 0 | D16: =SUM('8월 수입 상세'!D16+'9월 수입 상세'!C16) -> 14,256,000 | E16: 142.6%
A17: 추수감사절 | B17: 10,000,000 | C17: 0 | D17: =SUM('8월 수입 상세'!D17+'9월 수입 상세'!C17) -> 0 | E17: 0.0%
A18: 성탄절 | B18: 15,000,000 | C18: 0 | D18: =SUM('8월 수입 상세'!D18+'9월 수입 상세'!C18) -> 0 | E18: 0.0%
A19: 7. 선교헌금 | B19: 5,000,000 | C19: =SUM(C20:C21) -> 202,000 | D19: =SUM('8월 수입 상세'!D19+'9월 수입 상세'!C19) -> 2,815,000 | E19: 56.3%
A20: 선교헌금 | B20: 2,500,000 | C20: 202,000 | D20: =SUM('8월 수입 상세'!D20+'9월 수입 상세'!C20) -> 2,815,000 | E20: 112.6%
A21: 특별선교헌금 | B21: 2,500,000 | C21: 0 | D21: =SUM('8월 수입 상세'!D21+'9월 수입 상세'!C21) -> 0 | E21: 0.0%
A22: 8. 지정헌금 | B22: 20,000,000 | C22: 490,000 | D22: =SUM('8월 수입 상세'!D22+'9월 수입 상세'!C22) -> 8,028,000 | E22: 40.1% | F22: 헌화헌금 49만 원
A23: 9. 특별헌금(이웃사랑실천헌금 등) | B23: 13,000,000 | C23: 24,500,000 | D23: =SUM('8월 수입 상세'!D23+'9월 수입 상세'!C23) -> 30,737,090 | E23: 236.4%
A24: 헌금 수입 소계 | B24: =SUM(B5,B6,B7,B8,B9,B15,B19,B22,B23) -> 540,000,000 | C24: =SUM(C5,C6,C7,C8,C9,C15,C19,C22,C23) -> 61,137,690 | D24: =SUM(D5,D6,D7,D8,D9,D15,D19,D22,D23) -> 318,129,672 | E24: 58.9%
A25: 전기이월금 전입 | B25: 40,000,000 | C25: 0 | D25: 40,000,000 | E25: 100.0%
A26: 전기이월금 추가전입 | B26: 53,304,670 | C26: 31,427,770 | D26: =B26 -> 53,304,670
A27: 헌금외 기금 | C27: 1,000,000 | D27: =C27 -> 1,000,000
A28: 전월이월금 | C28: ='9월 약식'!C18 -> 48,365,961
A29: 수입부 총액 | B29: =B24+B25+B26 -> 633,304,670 | C29: =SUM(C24:C28) -> 141,931,421 | D29: =SUM(D24:D28) -> 412,434,342 | E29: 65.1%

Sheet 9월 지출 상세
A1: 9월 지출 상세
A2: 회계연도: 2023년도
G3: (2023-09-30 현재)
A4: 분류항목 | B4: 예산 | C4: 당월 | D4: 누계 | E4: 집행률(%) | G4: 비고
A5: 1. 예배운영비 | B5: =SUM(B6:B9) -> 22,700,000 | C5: =SUM(C6:C9) -> 972,650 | D5: ='8월 지출 상세'!D5+'9월 지출 상세'!C5 -> 9,448,700 | E5: =D5/B5 -> 41.6% | F5: =SUM(F6:F9) -> 0
A6: 1.1 성례예식비 | B6: 1,200,000 | C6: 0 | D6: ='8월 지출 상세'!D6+'9월 지출 상세'!C6 -> 497,100 | E6: =D6/B6 -> 41.4% | F6: =IF($F$4="보정", 보정치!E4) -> FALSE
A7: 1.2 주보인쇄비 | B7: 4,000,000 | C7: 150,000 | D7: ='8월 지출 상세'!D7+'9월 지출 상세'!C7 -> 1,245,000 | E7: 31.1% | F7: =IF($F$4="보정", 보정치!E5) -> FALSE
A8: 1.3 강사접대비 | B8: 2,500,000 | C8: 20,700 | D8: ='8월 지출 상세'!D8+'9월 지출 상세'!C8 -> 1,060,200 | E8: 42.4% | F8: =IF($F$4="보정", 보정치!E6) -> FALSE
A9: 1.4 예배준비비 | B9: =SUM(B10:B12) -> 15,000,000 | C9: =SUM(C10:C12) -> 801,950 | D9: ='8월 지출 상세'!D9+'9월 지출 상세'!C9 -> 6,646,400 | E9: 44.3% | F9: =IF($F$4="보정", 보정치!E7) -> FALSE
A10: 1.4.1 성전 꽃꽂이 | B10: 10,000,000 | C10: 450,000 | D10: ='8월 지출 상세'!D10+'9월 지출 상세'!C10 -> 4,600,000 | E10: 46.0% | F10: =IF($F$4="보정", 보정치!E8) -> FALSE
A11: 1.4.2 봉사자 식사 | B11: 4,000,000 | C11: 351,950 | D11: ='8월 지출 상세'!D11+'9월 지출 상세'!C11 -> 1,936,600 | E11: 48.4% | F11: =IF($F$4="보정", 보정치!E9) -> FALSE
A12: 1.4.3 절기행사비 | B12: 1,000,000 | C12: 0 | D12: ='8월 지출 상세'!D12+'9월 지출 상세'!C12 -> 109,800 | E12: 11.0% | F12: =IF($F$4="보정", 보정치!E10) -> FALSE
A13: 2. 교육운영비 | B13: =SUM(B14:B21) -> 30,500,000 | C13: =SUM(C14:C21) -> 8,265,690 | D13: ='8월 지출 상세'!D13+'9월 지출 상세'!C13 -> 20,981,205 | E13: 68.8% | F13: =IF($F$4="보정", 보정치!E11) -> FALSE
A14: 2.1 주일성서연구운영비 | B14: 1,000,000 | C14: 0 | D14: ='8월 지출 상세'!D14+'9월 지출 상세'!C14 -> 0 | E14: 0.0% | F14: =IF($F$4="보정", 보정치!E12) -> FALSE
A15: 2.2 도서 및 교재 | B15: 2,000,000 | C15: 0 | D15: ='8월 지출 상세'!D15+'9월 지출 상세'!C15 -> 630,900 | E15: 31.5% | F15: =IF($F$4="보정", 보정치!E13) -> FALSE
A16: 2.3 전교인수양회 행사비 | B16: 14,000,000 | C16: 8,243,690 | D16: ='8월 지출 상세'!D16+'9월 지출 상세'!C16 -> 16,600,990 | E16: 118.6% | F16: =IF($F$4="보정", 보정치!E14) -> FALSE
A17: 2.4 교목연수비 | B17: 0 | C17: 0 | D17: ='8월 지출 상세'!D17+'9월 지출 상세'!C17 -> 0 | F17: =IF($F$4="보정", 보정치!E15) -> FALSE
A18: 2.5 교역자 교육훈련비 | B18: 3,000,000 | C18: 0 | D18: ='8월 지출 상세'!D18+'9월 지출 상세'!C18 -> 531,040 | E18: 17.7% | F18: =IF($F$4="보정", 보정치!E16) -> FALSE
A19: 2.6 교사세미나/교역자workshop | B19: 3,000,000 | C19: 22,000 | D19: ='8월 지출 상세'!D19+'9월 지출 상세'!C19 -> 2,166,275 | E19: 72.2% | F19: =IF($F$4="보정", 보정치!E17) -> FALSE
A20: 2.7 교육부 운영비 | B20: 7,500,000 | C20: 0 | D20: ='8월 지출 상세'!D20+'9월 지출 상세'!C20 -> 1,052,000 | E20: 14.0% | F20: =IF($F$4="보정", 보정치!E18) -> FALSE
A21: 2.8 교육운영 예비비 | B21: 0 | C21: 0 | D21: ='8월 지출 상세'!D21+'9월 지출 상세'!C21 -> 0 | F21: =IF($F$4="보정", 보정치!E19) -> FALSE
A22: 3. 선교비 | B22: =SUM(B23,B34,B35,B36,B37) -> 94,480,000 | C22: =SUM(C23,C34:C37) -> 2,400,000 | D22: ='8월 지출 상세'!D22+'9월 지출 상세'!C22 -> 40,521,970 | E22: 42.9% | F22: =SUM(F23,F32,F33,F34,F35) -> 0
A23: 3.1 학원선교 | B23: =SUM(B24:B33) -> 50,960,000 | C23: =SUM(C24:C33) -> 1,000,000 | D23: ='8월 지출 상세'!D23+'9월 지출 상세'!C23 -> 13,464,970 | E23: 26.4% | F23: =SUM(F24:F31) -> 0
A24: 3.1.1 간식나눔행사(신촌) | B24: 2,000,000 | C24: 0 | D24: ='8월 지출 상세'!D24+'9월 지출 상세'!C24 -> 1,464,970 | E24: 73.2% | F24: =IF($F$4="보정", 보정치!E22) -> FALSE
A25: 3.1.2 간식나눔행사(국제) | B25: 1,000,000 | C25: 0 | D25: ='8월 지출 상세'!D25+'9월 지출 상세'!C25 -> 0 | E25: 0.0% | F25: =IF($F$4="보정", 보정치!E23) -> FALSE
A26: 3.1.3 교목실 점심나눔 후원 | B26: 27,000,000 | C26: 0 | D26: ='8월 지출 상세'!D26+'9월 지출 상세'!C26 -> 0 | E26: 0.0% | F26: =IF($F$4="보정", 보정치!E24) -> FALSE
A27: 3.1.4 연세기독학생연합회 지원 | B27: 3,600,000 | C27: 300,000 | D27: ='8월 지출 상세'!D27+'9월 지출 상세'!C27 -> 2,100,000 | E27: 58.3% | F27: =IF($F$4="보정", 보정치!E25) -> FALSE
A28: 3.1.5 연세기독학생회찬양팀 후원 | B28: 2,400,000 | C28: 200,000 | D28: ='8월 지출 상세'!D28+'9월 지출 상세'!C28 -> 1,400,000 | E28: 58.3% | F28: =IF($F$4="보정", 보정치!E26) -> FALSE
A29: 3.1.6 YMK 후원 | B29: 3,600,000 | C29: 300,000 | D29: ='8월 지출 상세'!D29+'9월 지출 상세'!C29 -> 2,100,000 | E29: 58.3% | F29: =IF($F$4="보정", 보정치!E27) -> FALSE
A30: 3.1.7 통일한마당 | B30: 2,400,000 | C30: 200,000 | D30: ='8월 지출 상세'!D30+'9월 지출 상세'!C30 -> 1,400,000 | E30: 58.3% | F30: =IF($F$4="보정", 보정치!E28) -> FALSE
A31: 3.1.8 리틀언더우드 후원 | B31: 5,000,000 | C31: 0 | D31: ='8월 지출 상세'!D31+'9월 지출 상세'!C31 -> 5,000,000 | E31: 100.0% | F31: 0
A32: 3.1.9 멘토멘티프로그램 | B32: 3,960,000 | C32: 0 | D32: ='8월 지출 상세'!D32+'9월 지출 상세'!C32 -> 0 | E32: 0.0% | F32: 0
A33: 3.1.10 학원선교 기타 | B33: 0 | C33: 0 | D33: ='8월 지출 상세'!D33+'9월 지출 상세'!C33 -> 0 | F33: =IF($F$4="보정", 보정치!E31) -> FALSE
A34: 3.2 국외선교 | B34: 4,800,000 | C34: 400,000 | D34: ='8월 지출 상세'!D34+'9월 지출 상세'!C34 -> 2,800,000 | E34: 58.3% | F34: =IF($F$4="보정", 보정치!E32) -> FALSE | G34: 함정희, 노규래
A35: 3.3 이웃사랑 실천헌금 | B35: 9,000,000 | C35: 0 | D35: ='8월 지출 상세'!D35+'9월 지출 상세'!C35 -> 0 | E35: 0.0% | F35: =IF($F$4="보정", 보정치!E33) -> FALSE
A36: 3.4 지정헌금 | B36: 29,720,000 | C36: 1,000,000 | D36: ='8월 지출 상세'!D36+'9월 지출 상세'!C36 -> 24,257,000 | E36: 81.6% | F36: =IF($F$4="보정", 보정치!E34) -> FALSE | G36: 김명준학생 장학금
A37: 3.5 선교예비금 | B37: 0 | C37: 0 | D37: ='8월 지출 상세'!D37+'9월 지출 상세'!C37 -> 0 | F37: =IF($F$4="보정", 보정치!E35) -> FALSE
A38: 4. 친교행사운영비 | B38: =SUM(B39:B49)-B47 -> 27,600,000 | C38: =SUM(C39:C46,C48:C49) -> 907,670 | D38: ='8월 지출 상세'!D38+'9월 지출 상세'!C38 -> 8,873,210 | E38: 32.1% | F38: =SUM(F39:F49)-F47 -> 0
A39: 4.1 주일공동식사 | B39: 7,000,000 | C39: 0 | D39: ='8월 지출 상세'!D39+'9월 지출 상세'!C39 -> 2,228,200 | E39: 31.8% | F39: =IF($F$4="보정", 보정치!E37) -> FALSE
A40: 4.2 야외예배 행사비 | B40: 0 | C40: 0 | D40: ='8월 지출 상세'!D40+'9월 지출 상세'!C40 -> 0 | F40: =IF($F$4="보정", 보정치!E38) -> FALSE
A41: 4.3 경로행사비 | B41: 1,500,000 | C41: 0 | D41: ='8월 지출 상세'!D41+'9월 지출 상세'!C41 -> 1,500,000 | E41: 100.0% | F41: =IF($F$4="보정", 보정치!E39) -> FALSE
A42: 4.4 성탄행사비 | B42: 2,100,000 | C42: 0 | D42: ='8월 지출 상세'!D42+'9월 지출 상세'!C42 -> 0 | E42: 0.0% | F42: =IF($F$4="보정", 보정치!E40) -> FALSE
A43: 4.5 주일다과비 | B43: 5,000,000 | C43: 77,880 | D43: ='8월 지출 상세'!D43+'9월 지출 상세'!C43 -> 636,780 | E43: 12.7% | F43: =IF($F$4="보정", 보정치!E41) -> FALSE
A44: 4.6 경조비 | B44: 4,000,000 | C44: 200,000 | D44: ='8월 지출 상세'!D44+'9월 지출 상세'!C44 -> 1,997,000 | E44: 49.9% | F44: =IF($F$4="보정", 보정치!E42) -> FALSE
A45: 4.7 교우친교비 | B45: 2,000,000 | C45: 0 | D45: ='8월 지출 상세'!D45+'9월 지출 상세'!C45 -> 881,440 | E45: 44.1% | F45: =IF($F$4="보정", 보정치!E43) -> FALSE
A46: 4.8 홍보출판비 | B46: 4,000,000 | C46: =C47 -> 0 | D46: ='8월 지출 상세'!D46+'9월 지출 상세'!C46 -> 1,000,000 | E46: 25.0% | F46: =IF($F$4="보정", 보정치!E44) -> FALSE
A47: 4.8.1 대학교회 회지 | B47: 4,000,000 | C47: 0 | D47: ='8월 지출 상세'!D47+'9월 지출 상세'!C47 -> 1,000,000 | E47: 25.0% | F47: =IF($F$4="보정", 보정치!E45) -> FALSE
A48: 4.9 교회봉사자 선물 | B48: 2,000,000 | C48: 629,790 | D48: ='8월 지출 상세'!D48+'9월 지출 상세'!C48 -> 629,790 | E48: 31.5% | F48: =IF($F$4="보정", 보정치!E46) -> FALSE
A49: 4.10 친교행사 예비비 | B49: 0 | C49: 0 | D49: ='8월 지출 상세'!D49+'9월 지출 상세'!C49 -> 0 | F49: =IF($F$4="보정", 보정치!E47) -> FALSE
A50: 5. 사례비 | B50: =SUM(B51:B66,B69,B70) -> 266,770,000 | C50: =SUM(C51:C66,C69:C70) -> 21,392,000 | D50: ='8월 지출 상세'!D50+'9월 지출 상세'!C50 -> 141,203,000 | E50: 52.9% | F50: =SUM(F51:F70) -> 0
A51: 5.1 외부강사 설교 사례 | B51: 12,000,000 | C51: 1,700,000 | D51: ='8월 지출 상세'!D51+'9월 지출 상세'!C51 -> 7,500,000 | E51: 62.5% | F51: =IF($F$4="보정", 보정치!E47) -> FALSE
A52: 5.2 외부강사 설교 사례(대학부-국제) | B52: 2,400,000 | C52: 0 | D52: ='8월 지출 상세'!D52+'9월 지출 상세'!C52 -> 0 | E52: 0.0% | F52: =IF($F$4="보정", 보정치!E48) -> FALSE
A53: 5.3 절기 예배 연주자 | B53: 800,000 | C53: 0 | D53: ='8월 지출 상세'!D53+'9월 지출 상세'!C53 -> 0 | E53: 0.0% | F53: =IF($F$4="보정", 보정치!E49) -> FALSE
A54: 5.4 국악 예배 연주자 | B54: 1,800,000 | C54: 0 | D54: ='8월 지출 상세'!D54+'9월 지출 상세'!C54 -> 0 | E54: 0.0% | F54: =IF($F$4="보정", 보정치!E50) -> FALSE
A55: 5.5 봉헌송 사례 | B55: 450,000 | C55: 150,000 | D55: ='8월 지출 상세'!D55+'9월 지출 상세'!C55 -> 150,000 | E55: 33.3% | F55: =IF($F$4="보정", 보정치!E51) -> FALSE
A56: 5.6 주일성서연구 강사사례 | B56: 4,000,000 | C56: 1,000,000 | D56: ='8월 지출 상세'!D56+'9월 지출 상세'!C56 -> 3,000,000 | E56: 75.0% | F56: =IF($F$4="보정", 보정치!E52) -> FALSE
A57: 5.8 담임목사 | B57: 14,400,000 | C57: 1,200,000 | D57: ='8월 지출 상세'!D57+'9월 지출 상세'!C57 -> 8,400,000 | E57: 58.3% | F57: =IF($F$4="보정", 보정치!E53) -> FALSE
A58: 5.9 동역목사 | B58: 12,000,000 | C58: 600,000 | D58: ='8월 지출 상세'!D58+'9월 지출 상세'!C58 -> 3,000,000 | E58: 25.0% | F58: =IF($F$4="보정", 보정치!E54) -> FALSE
A59: 5.10 전임교역자 | B59: 100,000,000 | C59: 7,500,000 | D59: ='8월 지출 상세'!D59+'9월 지출 상세'!C59 -> 54,900,000 | E59: 54.9% | F59: =IF($F$4="보정", 보정치!E55) -> FALSE
A60: 5.11 성가대지휘자 | B60: 12,000,000 | C60: 1,000,000 | D60: ='8월 지출 상세'!D60+'9월 지출 상세'!C60 -> 7,000,000 | E60: 58.3% | F60: =IF($F$4="보정", 보정치!E56) -> FALSE
A61: 5.12 오르가니스트 | B61: 12,000,000 | C61: 1,000,000 | D61: ='8월 지출 상세'!D61+'9월 지출 상세'!C61 -> 7,000,000 | E61: 58.3% | F61: =IF($F$4="보정", 보정치!E57) -> FALSE
A62: 5.13 교육부서 담당교역자 | B62: 38,400,000 | C62: 3,200,000 | D62: ='8월 지출 상세'!D62+'9월 지출 상세'!C62 -> 20,000,000 | E62: 52.1% | F62: =IF($F$4="보정", 보정치!E58) -> FALSE
A63: 5.14 성인 솔리스트 | B63: 23,520,000 | C63: 1,960,000 | D63: ='8월 지출 상세'!D63+'9월 지출 상세'!C63 -> 13,380,000 | E63: 56.9% | F63: =IF($F$4="보정", 보정치!E59) -> FALSE
A64: 5.15 통역자 | B64: 4,000,000 | C64: 300,000 | D64: ='8월 지출 상세'!D64+'9월 지출 상세'!C64 -> 2,250,000 | E64: 56.3% | F64: =IF($F$4="보정", 보정치!E60) -> FALSE
A65: 5.16 방송담당 | B65: 12,000,000 | C65: 1,050,000 | D65: ='8월 지출 상세'!D65+'9월 지출 상세'!C65 -> 6,750,000 | E65: 56.3% | F65: =IF($F$4="보정", 보정치!E61) -> FALSE
A66: 5.17 용원 사례비 | B66: =SUM(B67:B68) -> 11,000,000 | C66: =SUM(C67:C68) -> 732,000 | D66: ='8월 지출 상세'!D66+'9월 지출 상세'!C66 -> 5,673,000 | E66: 51.6% | F66: =IF($F$4="보정", 보정치!E62) -> FALSE
A67: 5.17.1 관리실 여사 | B67: 6,000,000 | C67: 408,000 | D67: ='8월 지출 상세'!D67+'9월 지출 상세'!C67 -> 3,486,000 | E67: 58.1% | F67: =IF($F$4="보정", 보정치!E63) -> FALSE
A68: 5.17.2 관리실 반장 | B68: 5,000,000 | C68: 324,000 | D68: ='8월 지출 상세'!D68+'9월 지출 상세'!C68 -> 2,187,000 | E68: 43.7% | F68: =IF($F$4="보정", 보정치!E64) -> FALSE
A69: 5.18 퇴직위로금 | B69: 3,000,000 | C69: 0 | D69: ='8월 지출 상세'!D69+'9월 지출 상세'!C69 -> 0 | E69: 0.0% | F69: =IF($F$4="보정", 보정치!E65) -> FALSE
A70: 5.19 기타(교역자휴가 및 기타인건비) | B70: 3,000,000 | C70: 0 | D70: ='8월 지출 상세'!D70+'9월 지출 상세'!C70 -> 2,200,000 | E70: 73.3% | F70: =IF($F$4="보정", 보정치!E66) -> FALSE
A71: 6. 행정운영비 | B71: =SUM(B72:B74,B81,B82,B83,B84,B85) -> 91,784,670 | C71: =SUM(C72:C74,C81:C85) -> 6,250,970 | D71: ='8월 지출 상세'!D71+'9월 지출 상세'!C71 -> 53,501,056 | E71: 58.3% | F71: =SUM(F72:F74,F81,F82,F83,F84,F85) -> 0
A72: 6.1 회의 및 교회위원회 | B72: 6,131,500 | C72: 325,700 | D72: ='8월 지출 상세'!D72+'9월 지출 상세'!C72 -> 3,671,000 | E72: 59.9% | F72: =IF($F$4="보정", 보정치!E70) -> FALSE
A73: 6.2 사무운영비 | B73: 13,377,270 | C73: 880,350 | D73: ='8월 지출 상세'!D73+'9월 지출 상세'!C73 -> 5,922,406 | E73: =D73/B73 -> 44.3% | F73: =IF($F$4="보정", 보정치!E71) -> FALSE
A74: 6.3 부서운영비 | B74: =SUM(B75:B80) -> 52,204,200 | C74: =SUM(C75:C80) -> 4,339,240 | D74: ='8월 지출 상세'!D74+'9월 지출 상세'!C74 -> 31,988,580 | E74: 61.3% | F74: =IF($F$4="보정", 보정치!E72) -> FALSE
A75: 6.3.1 성가대 | B75: 14,504,200 | C75: 1,100,000 | D75: ='8월 지출 상세'!D75+'9월 지출 상세'!C75 -> 8,963,200 | E75: 61.8% | F75: =IF($F$4="보정", 보정치!E73) -> FALSE
A76: 6.3.2 유치부 | B76: 4,500,000 | C76: 400,000 | D76: ='8월 지출 상세'!D76+'9월 지출 상세'!C76 -> 2,900,000 | E76: 64.4% | F76: =IF($F$4="보정", 보정치!E74) -> FALSE
A77: 6.3.3 초등부 | B77: 7,100,000 | C77: 600,000 | D77: ='8월 지출 상세'!D77+'9월 지출 상세'!C77 -> 4,700,000 | E77: 66.2% | F77: =IF($F$4="보정", 보정치!E75) -> FALSE
A78: 6.3.4 중고등부 | B78: 5,100,000 | C78: 500,000 | D78: ='8월 지출 상세'!D78+'9월 지출 상세'!C78 -> 3,600,000 | E78: 70.6% | F78: =IF($F$4="보정", 보정치!E76) -> FALSE
A79: 6.3.5 대학부(신촌) | B79: 12,000,000 | C79: 839,240 | D79: ='8월 지출 상세'!D79+'9월 지출 상세'!C79 -> 6,425,380 | E79: 53.5% | F79: =IF($F$4="보정", 보정치!E77) -> FALSE
A80: 6.3.6 대학부(국제) | B80: 9,000,000 | C80: 900,000 | D80: ='8월 지출 상세'!D80+'9월 지출 상세'!C80 -> 5,400,000 | E80: 60.0% | F80: =IF($F$4="보정", 보정치!E78) -> FALSE
A81: 6.4 목회활동비 | B81: 7,571,700 | C81: 416,000 | D81: ='8월 지출 상세'!D81+'9월 지출 상세'!C81 -> 5,239,040 | E81: 69.2% | F81: =IF($F$4="보정", 보정치!E79) -> FALSE
A82: 6.5 용품 및 수리비 | B82: 5,000,000 | C82: 0 | D82: ='8월 지출 상세'!D82+'9월 지출 상세'!C82 -> 4,504,080 | E82: 90.1% | F82: =IF($F$4="보정", 보정치!E80) -> FALSE
A83: 6.6 연료비 및 통신비 | B83: 4,000,000 | C83: 209,680 | D83: ='8월 지출 상세'!D83+'9월 지출 상세'!C83 -> 1,525,950 | E83: =D83/B83 -> 38.1% | F83: =IF($F$4="보정", 보정치!E81) -> FALSE
A84: 6.7 악기구입 및 보수 | B84: 3,500,000 | C84: 80,000 | D84: ='8월 지출 상세'!D84+'9월 지출 상세'!C84 -> 650,000 | E84: =D84/B84 -> 18.6% | F84: =IF($F$4="보정", 보정치!E82) -> FALSE
A85: 6.8 행정운영 예비비 | B85: 0 | C85: 0 | D85: ='8월 지출 상세'!D85+'9월 지출 상세'!C85 -> 0 | F85: =IF($F$4="보정", 보정치!E83) -> FALSE
A86: 7. 장학금 | B86: =SUM(B87:B91) -> 66,720,000 | C86: =SUM(C87:C91) -> 0 | D86: ='8월 지출 상세'!D86+'9월 지출 상세'!C86 -> 22,240,000 | E86: 33.3% | F86: =SUM(F87:F91) -> 0
A87: 7.1 교회학교 교사 | B87: 21,000,000 | C87: 0 | D87: ='8월 지출 상세'!D87+'9월 지출 상세'!C87 -> 2,400,000 | E87: 11.4% | F87: =IF($F$4="보정", 보정치!E83) -> FALSE
A88: 7.2 신촌 대학청년부 | B88: 12,000,000 | C88: 0 | D88: ='8월 지출 상세'!D88+'9월 지출 상세'!C88 -> 5,400,000 | E88: 45.0% | F88: =IF($F$4="보정", 보정치!E84) -> FALSE
A89: 7.3 국제 대학부 | B89: 9,000,000 | C89: 0 | D89: ='8월 지출 상세'!D89+'9월 지출 상세'!C89 -> 3,600,000 | E89: 40.0% | F89: =IF($F$4="보정", 보정치!E85) -> FALSE
A90: 7.4 학생 솔리스트 | B90: 16,320,000 | C90: 0 | D90: ='8월 지출 상세'!D90+'9월 지출 상세'!C90 -> 7,480,000 | E90: 45.8% | F90: =IF($F$4="보정", 보정치!E86) -> FALSE
A91: 7.5 기숙사지원 | B91: 8,400,000 | C91: 0 | D91: ='8월 지출 상세'!D91+'9월 지출 상세'!C91 -> 3,360,000 | E91: 40.0% | F91: =IF($F$4="보정", 보정치!E87) -> FALSE
A92: 8. 예비비 | B92: 32,750,000 | C92: 1,000,000 | D92: ='8월 지출 상세'!D92+'9월 지출 상세'!C92 -> 8,535,670 | E92: 26.1% | F92: =IF($F$4="보정", 보정치!E90) -> FALSE | G92: 바로크협회 후원금
A93: 9. 이웃사랑기금적립 | B93: 0 | C93: 23,600,000 | D93: ='8월 지출 상세'!D93+'9월 지출 상세'!C93 -> 29,987,090 | E93: 0.0% | F93: =IF($F$4="보정", 보정치!E91) -> FALSE
A94: 일반 지출 소계 | B94: =SUM(B5,B13,B22,B38,B50,B71,B86,B92,B93) -> 633,304,670 | C94: =SUM(C5,C13,C22,C38,C50,C71,C86,C92,C93) -> 64,788,980 | D94: =SUM(D5,D13,D22,D38,D50,D71,D86,D92,D93) -> 335,291,901 | E94: 52.9% | F94: =SUM(F86,F71,F50,F38,F22,F13,F5) -> 0
A95: 차월이월 | C95: ='9월 수입 상세'!C24-'9월 지출 상세'!C94 -> -3,651,290 | D95: ='9월 수입 상세'!D29-'9월 지출 상세'!D94 -> 77,142,441
A96: 지출부 총액 | B96: =B94+B95 -> 633,304,670 | C96: =C94+C95 -> 61,137,690 | D96: =D94+D95 -> 412,434,342 | E96: 65.1%

Sheet 10월 약식
A1: 2023년 10월 결산보고서(약식)
A2: 회계년도: 2023년도 | I2: (2023-10-31 현재)
A3: 수입의 부 | F3: 지출의 부
A4: 항 목 | B4: 예산 | C4: 당월 수입 | D4: 수입 누계 | E4: 집행률(%) | F4: 항 목 | H4: 예산 | I4: 당월 지출 | J4: 지출 누계 | K4: 집행률(%)
A5: 1. 주일헌금 | B5: ='9월 수입 상세'!B5 -> 160,000,000 | C5: ='10월 수입 상세'!C5 -> 16,042,000 | D5: =VLOOKUP(A5, '10월 수입 상세'!$A$4:$F$29, 4, FALSE) -> 103,074,324 | E5: =D5/B5 -> 64.4% | F5: 1. 예배운영비 | H5: ='10월 지출 상세'!B5 -> 22,700,000 | I5: ='10월 지출 상세'!C5 -> 1,225,050 | J5: =VLOOKUP(F5, '10월 지출 상세'!$A$4:$G$96, 4, FALSE) -> 10,673,750 | K5: =J5/H5 -> 47.0%
A6: 2. 십일조 | B6: ='9월 수입 상세'!B6 -> 105,000,000 | C6: ='10월 수입 상세'!C6 -> 10,409,000 | D6: =VLOOKUP(A6, '10월 수입 상세'!$A$4:$F$29, 4, FALSE) -> 70,151,437 | E6: 66.8% | F6: 2. 교육운영비 | H6: ='10월 지출 상세'!B13 -> 30,500,000 | I6: ='10월 지출 상세'!C13 -> 152,100 | J6: =VLOOKUP(F6, '10월 지출 상세'!$A$4:$G$96, 4, FALSE) -> 21,133,305 | K6: 69.3%
A7: 3. 월정헌금 | B7: ='9월 수입 상세'!B7 -> 145,000,000 | C7: ='10월 수입 상세'!C7 -> 12,090,000 | D7: =VLOOKUP(A7, '10월 수입 상세'!$A$4:$F$29, 4, FALSE) -> 96,335,000 | E7: 66.4% | F7: 3. 선교비 | H7: ='10월 지출 상세'!B22 -> 94,480,000 | I7: ='10월 지출 상세'!C22 -> 4,970,350 | J7: =VLOOKUP(F7, '10월 지출 상세'!$A$4:$G$96, 4, FALSE) -> 45,492,320 | K7: 48.2%
A8: 4. 감사헌금 | B8: ='9월 수입 상세'!B8 -> 35,000,000 | C8: ='10월 수입 상세'!C8 -> 3,272,000 | D8: =VLOOKUP(A8, '10월 수입 상세'!$A$4:$F$29, 4, FALSE) -> 24,221,000 | E8: 69.2% | F8: 4. 친교행사운영비 | H8: ='10월 지출 상세'!B38 -> 27,600,000 | I8: ='10월 지출 상세'!C38 -> 2,485,610 | J8: =VLOOKUP(F8, '10월 지출 상세'!$A$4:$G$96, 4, FALSE) -> 11,358,820 | K8: 41.2%
A9: 5. 교육부헌금 | B9: ='9월 수입 상세'!B9 -> 22,000,000 | C9: ='10월 수입 상세'!C9 -> 2,120,000 | D9: =VLOOKUP(A9, '10월 수입 상세'!$A$4:$F$29, 4, FALSE) -> 12,444,821 | E9: 56.6% | F9: 5. 사례비 | H9: ='10월 지출 상세'!B50 -> 266,770,000 | I9: ='10월 지출 상세'!C50 -> 21,889,000 | J9: =VLOOKUP(F9, '10월 지출 상세'!$A$4:$G$96, 4, FALSE) -> 163,092,000 | K9: 61.1%
A10: 6. 절기헌금 | B10: ='9월 수입 상세'!B15 -> 35,000,000 | C10: ='10월 수입 상세'!C15 -> 8,859,000 | D10: =VLOOKUP(A10, '10월 수입 상세'!$A$4:$F$29, 4, FALSE) -> 23,115,000 | E10: 66.0% | F10: 6. 행정운영비 | H10: ='10월 지출 상세'!B71 -> 91,784,670 | I10: ='10월 지출 상세'!C71 -> 6,439,000 | J10: =VLOOKUP(F10, '10월 지출 상세'!$A$4:$G$96, 4, FALSE) -> 59,940,056 | K10: 65.3%
A11: 7. 선교헌금 | B11: ='9월 수입 상세'!B19 -> 5,000,000 | C11: ='10월 수입 상세'!C19 -> 1,055,000 | D11: =VLOOKUP(A11, '10월 수입 상세'!$A$4:$F$29, 4, FALSE) -> 3,870,000 | E11: 77.4% | F11: 7. 장학금 | H11: ='10월 지출 상세'!B86 -> 66,720,000 | I11: ='10월 지출 상세'!C86 -> 26,220,000 | J11: =VLOOKUP(F11, '10월 지출 상세'!$A$4:$G$96, 4, FALSE) -> 48,460,000 | K11: 72.6%
A12: 8. 지정헌금 | B12: ='9월 수입 상세'!B22 -> 20,000,000 | C12: ='10월 수입 상세'!C22 -> 4,672,000 | D12: =VLOOKUP(A12, '10월 수입 상세'!$A$4:$F$29, 4, FALSE) -> 12,700,000 | E12: 63.5% | F12: 8. 예비비 | H12: ='10월 지출 상세'!B92 -> 32,750,000 | I12: ='10월 지출 상세'!C92 -> 500,000 | J12: =VLOOKUP(F12, '10월 지출 상세'!$A$4:$G$96, 4, FALSE) -> 9,035,670 | K12: 27.6%
A13: 9. 특별헌금(이웃사랑실천헌금 등) | B13: ='9월 수입 상세'!B23 -> 13,000,000 | C13: ='10월 수입 상세'!C23 -> 5,000,000 | D13: =VLOOKUP(A13, '10월 수입 상세'!$A$4:$F$29, 4, FALSE) -> 35,737,090 | E13: 274.9% | F13: 9. 이웃사랑기금적립 | H13: ='10월 지출 상세'!B93 -> 0 | I13: ='10월 지출 상세'!C93 -> 6,218,000 | J13: =VLOOKUP(F13, '10월 지출 상세'!$A$4:$G$96, 4, FALSE) -> 36,205,090
A14: 헌금 수입 소계 | B14: =SUM(B5:B13) -> 540,000,000 | C14: =SUM(C5:C13) -> 63,519,000 | D14: =SUM(D5:D13) -> 381,648,672 | E14: 70.7% | F14: 일반 지출 소계 | H14: =SUM(H5:H13) -> 633,304,670 | I14: =SUM(I5:I13) -> 70,099,110 | J14: =SUM(J5:J13) -> 405,391,011 | K14: =J14/H14 -> 64.0%
A15: 전기이월금 전입 | B15: ='9월 수입 상세'!B25 -> 40,000,000 | C15: 0 | D15: 40,000,000 | E15: 100.0% | F15: 차월이월 | I15: =C14-I14 -> -6,580,110 | J15: =D19-J14 -> 71,562,331
A16: 전기이월금 추가전입 | B16: ='9월 수입 상세'!B26 -> 53,304,670 | C16: 0 | D16: 53,304,670
A17: 헌금외 기금 | C17: ='9월 수입 상세'!C27 -> 1,000,000 | D17: 2,000,000
A18: 전월이월금 | C18: ='9월 약식'!J15 -> 77,142,441
A19: 수입부 총액 | B19: =SUM(B14:B18) -> 633,304,670 | C19: =SUM(C14:C18) -> 141,661,441 | D19: =SUM(D14:D18) -> 476,953,342 | E19: =D19/B19 -> 75.3% | F19: 지출부 총액 | H19: =SUM(H14:H18) -> 633,304,670 | I19: =SUM(I14:I18) -> 63,519,000 | J19: =SUM(J14:J18) -> 476,953,342 | K19: =J19/H19 -> 75.3%
A20: *지정헌금 내역(윤종규지정장학금_3,564,000원, GIT 후원금_300,000원, 헌화헌금_808,000원)
A21: 기금 및 이월금 현황 (2023.8.31 기준) | F21: 헌금 수입 및 지출 누계 비교
A22: 기금명 | C22: 금액(이자포함) | G22: 2021년 10월 | H22: 2022년 10월 | I22: 2023년 10월
A23: 박명윤이행자선교기금(FAA003023) | C23: 53,656,313 | F23: 수입 누계 | G23: 382,691,768 | H23: 370,233,275 | I23: =D14 -> 381,648,672
A24: 대학교회건축기금(FBA113041) | C24: 0 | F24: 지출 누계 | G24: 315,676,185 | H24: 389,274,961 | I24: =J14 -> 405,391,011
A25: 국캠대학교회선교기금(FEA173001) | C25: 147,405
A26: 이웃사랑기금(FEA183001) | C26: 90,623,173
A27: 유초등부발전기금(FAA213008) | C27: 18,393,529
A28: 기금 총액 | C28: =SUM(C23:C27) -> 162,820,420
A30: *누적 이월금 (2023.3.1 기준 / 기금 및 전입금 제외) | C30: 453,597,137

Sheet 10월 수입 상세
A1: 10월 수입 상세
A2: 회계연도: 2023년도 | F2: (2023-10-31 현재)
A4: 분류항목 | B4: 예산 | C4: 당월 | D4: 누계 | E4: 집행률(%) | F4: 비고
A5: 1. 주일헌금 | B5: 160,000,000 | C5: 16,042,000 | D5: =SUM('9월 수입 상세'!D5+'10월 수입 상세'!C5) -> 103,074,324 | E5: =D5/B5 -> 64.4%
A6: 2. 십일조 | B6: 105,000,000 | C6: 10,409,000 | D6: =SUM('9월 수입 상세'!D6+'10월 수입 상세'!C6) -> 70,151,437 | E6: =D6/B6 -> 66.8%
A7: 3. 월정헌금 | B7: 145,000,000 | C7: 12,090,000 | D7: =SUM('9월 수입 상세'!D7+'10월 수입 상세'!C7) -> 96,335,000 | E7: 66.4%
A8: 4. 감사헌금 | B8: 35,000,000 | C8: 3,272,000 | D8: =SUM('9월 수입 상세'!D8+'10월 수입 상세'!C8) -> 24,221,000 | E8: 69.2%
A9: 5. 교육부헌금 | B9: =SUM(B10:B14) -> 22,000,000 | C9: =SUM(C10:C14) -> 2,120,000 | D9: =SUM('9월 수입 상세'!D9+'10월 수입 상세'!C9) -> 12,444,821 | E9: 56.6%
A10: 유치부 | B10: 700,000 | C10: 89,000 | D10: =SUM('9월 수입 상세'!D10+'10월 수입 상세'!C10) -> 911,049 | E10: 130.1%
A11: 초등부 | B11: 1,000,000 | C11: 207,000 | D11: =SUM('9월 수입 상세'!D11+'10월 수입 상세'!C11) -> 1,046,500 | E11: 104.7%
A12: 중고등부 | B12: 300,000 | C12: 23,000 | D12: =SUM('9월 수입 상세'!D12+'10월 수입 상세'!C12) -> 136,722 | E12: 45.6%
A13: 대학부(신촌) | B13: 7,000,000 | C13: 1,513,000 | D13: =SUM('9월 수입 상세'!D13+'10월 수입 상세'!C13) -> 7,118,338 | E13: 101.7%
A14: 대학부(국제) | B14: 13,000,000 | C14: 288,000 | D14: =SUM('9월 수입 상세'!D14+'10월 수입 상세'!C14) -> 3,232,212 | E14: 24.9%
A15: 6. 절기헌금 | B15: =SUM(B16:B18) -> 35,000,000 | C15: =SUM(C16:C18) -> 8,859,000 | D15: =SUM('9월 수입 상세'!D15+'10월 수입 상세'!C15) -> 23,115,000 | E15: 66.0%
A16: 부활절 | B16: 10,000,000 | C16: 0 | D16: =SUM('9월 수입 상세'!D16+'10월 수입 상세'!C16) -> 14,256,000 | E16: 142.6%
A17: 추수감사절 | B17: 10,000,000 | C17: 8,859,000 | D17: =SUM('9월 수입 상세'!D17+'10월 수입 상세'!C17) -> 8,859,000 | E17: 88.6%
A18: 성탄절 | B18: 15,000,000 | C18: 0 | D18: =SUM('9월 수입 상세'!D18+'10월 수입 상세'!C18) -> 0 | E18: 0.0%
A19: 7. 선교헌금 | B19: 5,000,000 | C19: =SUM(C20:C21) -> 1,055,000 | D19: =SUM('9월 수입 상세'!D19+'10월 수입 상세'!C19) -> 3,870,000 | E19: 77.4%
A20: 선교헌금 | B20: 2,500,000 | C20: 1,055,000 | D20: =SUM('9월 수입 상세'!D20+'10월 수입 상세'!C20) -> 3,870,000 | E20: 154.8%
A21: 특별선교헌금 | B21: 2,500,000 | C21: 0 | D21: =SUM('9월 수입 상세'!D21+'10월 수입 상세'!C21) -> 0 | E21: 0.0%
A22: 8. 지정헌금 | B22: 20,000,000 | C22: 4,672,000 | D22: =SUM('9월 수입 상세'!D22+'10월 수입 상세'!C22) -> 12,700,000 | E22: 63.5% | F22: 윤종규 지정장학금 3,564,000원 GIT 후원 300,000원 헌화헌금 808,000원
A23: 9. 특별헌금(이웃사랑실천헌금 등) | B23: 13,000,000 | C23: 5,000,000 | D23: =SUM('9월 수입 상세'!D23+'10월 수입 상세'!C23) -> 35,737,090 | E23: 274.9%
A24: 헌금 수입 소계 | B24: =SUM(B5,B6,B7,B8,B9,B15,B19,B22,B23) -> 540,000,000 | C24: =SUM(C5,C6,C7,C8,C9,C15,C19,C22,C23) -> 63,519,000 | D24: =SUM('9월 수입 상세'!D24+'10월 수입 상세'!C24) -> 381,648,672 | E24: 70.7%
A25: 전기이월금 전입 | B25: 40,000,000 | C25: 0 | D25: 40,000,000 | E25: 100.0%
A26: 전기이월금 추가전입 | B26: 53,304,670 | C26: 0 | D26: 53,304,670
A27: 헌금외 기금 | C27: 1,000,000 | D27: 2,000,000
A28: 전월이월금 | C28: ='10월 약식'!C18 -> 77,142,441
A29: 수입부 총액 | B29: =B24+B25+B26 -> 633,304,670 | C29: =SUM(C24:C28) -> 141,661,441 | D29: =SUM(D24:D28) -> 476,953,342 | E29: 75.3%

Sheet 10월 지출 상세
A1: 10월 지출 상세
A2: 회계연도: 2023년도
G3: (2023-10-31 현재)
A4: 분류항목 | B4: 예산 | C4: 당월 | D4: 누계 | E4: 집행률(%) | G4: 비고
A5: 1. 예배운영비 | B5: =SUM(B6:B9) -> 22,700,000 | C5: =SUM(C6:C9) -> 1,225,050 | D5: ='9월 지출 상세'!D5+'10월 지출 상세'!C5 -> 10,673,750 | E5: =D5/B5 -> 47.0% | F5: =SUM(F6:F9) -> 0
A6: 1.1 성례예식비 | B6: 1,200,000 | C6: 91,850 | D6: ='9월 지출 상세'!D6+'10월 지출 상세'!C6 -> 588,950 | E6: =D6/B6 -> 49.1% | F6: =IF($F$4="보정", 보정치!E4) -> FALSE
A7: 1.2 주보인쇄비 | B7: 4,000,000 | C7: 130,000 | D7: ='9월 지출 상세'!D7+'10월 지출 상세'!C7 -> 1,375,000 | E7: 34.4% | F7: =IF($F$4="보정", 보정치!E5) -> FALSE
A8: 1.3 강사접대비 | B8: 2,500,000 | C8: 48,500 | D8: ='9월 지출 상세'!D8+'10월 지출 상세'!C8 -> 1,108,700 | E8: 44.3% | F8: =IF($F$4="보정", 보정치!E6) -> FALSE
A9: 1.4 예배준비비 | B9: =SUM(B10:B12) -> 15,000,000 | C9: =SUM(C10:C12) -> 954,700 | D9: ='9월 지출 상세'!D9+'10월 지출 상세'!C9 -> 7,601,100 | E9: 50.7% | F9: =IF($F$4="보정", 보정치!E7) -> FALSE
A10: 1.4.1 성전 꽃꽂이 | B10: 10,000,000 | C10: 750,000 | D10: ='9월 지출 상세'!D10+'10월 지출 상세'!C10 -> 5,350,000 | E10: 53.5% | F10: =IF($F$4="보정", 보정치!E8) -> FALSE
A11: 1.4.2 봉사자 식사 | B11: 4,000,000 | C11: 204,700 | D11: ='9월 지출 상세'!D11+'10월 지출 상세'!C11 -> 2,141,300 | E11: 53.5% | F11: =IF($F$4="보정", 보정치!E9) -> FALSE
A12: 1.4.3 절기행사비 | B12: 1,000,000 | C12: 0 | D12: ='9월 지출 상세'!D12+'10월 지출 상세'!C12 -> 109,800 | E12: 11.0% | F12: =IF($F$4="보정", 보정치!E10) -> FALSE
A13: 2. 교육운영비 | B13: =SUM(B14:B21) -> 30,500,000 | C13: =SUM(C14:C21) -> 152,100 | D13: ='9월 지출 상세'!D13+'10월 지출 상세'!C13 -> 21,133,305 | E13: 69.3% | F13: =IF($F$4="보정", 보정치!E11) -> FALSE
A14: 2.1 주일성서연구운영비 | B14: 1,000,000 | C14: 0 | D14: ='9월 지출 상세'!D14+'10월 지출 상세'!C14 -> 0 | E14: 0.0% | F14: =IF($F$4="보정", 보정치!E12) -> FALSE
A15: 2.2 도서 및 교재 | B15: 2,000,000 | C15: 0 | D15: ='9월 지출 상세'!D15+'10월 지출 상세'!C15 -> 630,900 | E15: 31.5% | F15: =IF($F$4="보정", 보정치!E13) -> FALSE
A16: 2.3 전교인수양회 행사비 | B16: 14,000,000 | C16: 0 | D16: ='9월 지출 상세'!D16+'10월 지출 상세'!C16 -> 16,600,990 | E16: 118.6% | F16: =IF($F$4="보정", 보정치!E14) -> FALSE
A17: 2.4 교목연수비 | B17: 0 | C17: 0 | D17: ='9월 지출 상세'!D17+'10월 지출 상세'!C17 -> 0 | F17: =IF($F$4="보정", 보정치!E15) -> FALSE
A18: 2.5 교역자 교육훈련비 | B18: 3,000,000 | C18: 152,100 | D18: ='9월 지출 상세'!D18+'10월 지출 상세'!C18 -> 683,140 | E18: 22.8% | F18: =IF($F$4="보정", 보정치!E16) -> FALSE
A19: 2.6 교사세미나/교역자workshop | B19: 3,000,000 | C19: 0 | D19: ='9월 지출 상세'!D19+'10월 지출 상세'!C19 -> 2,166,275 | E19: 72.2% | F19: =IF($F$4="보정", 보정치!E17) -> FALSE
A20: 2.7 교육부 운영비 | B20: 7,500,000 | C20: 0 | D20: ='9월 지출 상세'!D20+'10월 지출 상세'!C20 -> 1,052,000 | E20: 14.0% | F20: =IF($F$4="보정", 보정치!E18) -> FALSE
A21: 2.8 교육운영 예비비 | B21: 0 | C21: 0 | D21: ='9월 지출 상세'!D21+'10월 지출 상세'!C21 -> 0 | F21: =IF($F$4="보정", 보정치!E19) -> FALSE
A22: 3. 선교비 | B22: =SUM(B23,B34,B35,B36,B37) -> 94,480,000 | C22: =SUM(C23,C34:C37) -> 4,970,350 | D22: ='9월 지출 상세'!D22+'10월 지출 상세'!C22 -> 45,492,320 | E22: 48.2% | F22: =SUM(F23,F32,F33,F34,F35) -> 0
A23: 3.1 학원선교 | B23: =SUM(B24:B33) -> 50,960,000 | C23: =SUM(C24:C33) -> 1,006,350 | D23: ='9월 지출 상세'!D23+'10월 지출 상세'!C23 -> 14,471,320 | E23: 28.4% | F23: =SUM(F24:F31) -> 0
A24: 3.1.1 간식나눔행사(신촌) | B24: 2,000,000 | C24: 6,350 | D24: ='9월 지출 상세'!D24+'10월 지출 상세'!C24 -> 1,471,320 | E24: 73.6% | F24: =IF($F$4="보정", 보정치!E22) -> FALSE
A25: 3.1.2 간식나눔행사(국제) | B25: 1,000,000 | C25: 0 | D25: ='9월 지출 상세'!D25+'10월 지출 상세'!C25 -> 0 | E25: 0.0% | F25: =IF($F$4="보정", 보정치!E23) -> FALSE
A26: 3.1.3 교목실 점심나눔 후원 | B26: 27,000,000 | C26: 0 | D26: ='9월 지출 상세'!D26+'10월 지출 상세'!C26 -> 0 | E26: 0.0% | F26: =IF($F$4="보정", 보정치!E24) -> FALSE
A27: 3.1.4 연세기독학생연합회 지원 | B27: 3,600,000 | C27: 300,000 | D27: ='9월 지출 상세'!D27+'10월 지출 상세'!C27 -> 2,400,000 | E27: 66.7% | F27: =IF($F$4="보정", 보정치!E25) -> FALSE
A28: 3.1.5 연세기독학생회찬양팀 후원 | B28: 2,400,000 | C28: 200,000 | D28: ='9월 지출 상세'!D28+'10월 지출 상세'!C28 -> 1,600,000 | E28: 66.7% | F28: =IF($F$4="보정", 보정치!E26) -> FALSE
A29: 3.1.6 YMK 후원 | B29: 3,600,000 | C29: 300,000 | D29: ='9월 지출 상세'!D29+'10월 지출 상세'!C29 -> 2,400,000 | E29: 66.7% | F29: =IF($F$4="보정", 보정치!E27) -> FALSE
A30: 3.1.7 통일한마당 | B30: 2,400,000 | C30: 200,000 | D30: ='9월 지출 상세'!D30+'10월 지출 상세'!C30 -> 1,600,000 | E30: 66.7% | F30: =IF($F$4="보정", 보정치!E28) -> FALSE
A31: 3.1.8 리틀언더우드 후원 | B31: 5,000,000 | C31: 0 | D31: ='9월 지출 상세'!D31+'10월 지출 상세'!C31 -> 5,000,000 | E31: 100.0% | F31: 0
A32: 3.1.9 멘토멘티프로그램 | B32: 3,960,000 | C32: 0 | D32: ='9월 지출 상세'!D32+'10월 지출 상세'!C32 -> 0 | E32: 0.0% | F32: 0
A33: 3.1.10 학원선교 기타 | B33: 0 | C33: 0 | D33: ='9월 지출 상세'!D33+'10월 지출 상세'!C33 -> 0 | F33: =IF($F$4="보정", 보정치!E31) -> FALSE
A34: 3.2 국외선교 | B34: 4,800,000 | C34: 400,000 | D34: ='9월 지출 상세'!D34+'10월 지출 상세'!C34 -> 3,200,000 | E34: 66.7% | F34: =IF($F$4="보정", 보정치!E32) -> FALSE | G34: 함정희, 노규래
A35: 3.3 이웃사랑 실천헌금 | B35: 9,000,000 | C35: 0 | D35: ='9월 지출 상세'!D35+'10월 지출 상세'!C35 -> 0 | E35: 0.0% | F35: =IF($F$4="보정", 보정치!E33) -> FALSE
A36: 3.4 지정헌금 | B36: 29,720,000 | C36: 3,564,000 | D36: ='9월 지출 상세'!D36+'10월 지출 상세'!C36 -> 27,821,000 | E36: 93.6% | F36: =IF($F$4="보정", 보정치!E34) -> FALSE | G36: 윤종규 지정장학금
A37: 3.5 선교예비금 | B37: 0 | C37: 0 | D37: ='9월 지출 상세'!D37+'10월 지출 상세'!C37 -> 0 | F37: =IF($F$4="보정", 보정치!E35) -> FALSE
A38: 4. 친교행사운영비 | B38: =SUM(B39:B49)-B47 -> 27,600,000 | C38: =SUM(C39:C46,C48:C49) -> 2,485,610 | D38: ='9월 지출 상세'!D38+'10월 지출 상세'!C38 -> 11,358,820 | E38: 41.2% | F38: =SUM(F39:F49)-F47 -> 0
A39: 4.1 주일공동식사 | B39: 7,000,000 | C39: 1,680,000 | D39: ='9월 지출 상세'!D39+'10월 지출 상세'!C39 -> 3,908,200 | E39: 55.8% | F39: =IF($F$4="보정", 보정치!E37) -> FALSE
A40: 4.2 야외예배 행사비 | B40: 0 | C40: 0 | D40: ='9월 지출 상세'!D40+'10월 지출 상세'!C40 -> 0 | F40: =IF($F$4="보정", 보정치!E38) -> FALSE
A41: 4.3 경로행사비 | B41: 1,500,000 | C41: 0 | D41: ='9월 지출 상세'!D41+'10월 지출 상세'!C41 -> 1,500,000 | E41: 100.0% | F41: =IF($F$4="보정", 보정치!E39) -> FALSE
A42: 4.4 성탄행사비 | B42: 2,100,000 | C42: 0 | D42: ='9월 지출 상세'!D42+'10월 지출 상세'!C42 -> 0 | E42: 0.0% | F42: =IF($F$4="보정", 보정치!E40) -> FALSE
A43: 4.5 주일다과비 | B43: 5,000,000 | C43: 75,610 | D43: ='9월 지출 상세'!D43+'10월 지출 상세'!C43 -> 712,390 | E43: 14.2% | F43: =IF($F$4="보정", 보정치!E41) -> FALSE
A44: 4.6 경조비 | B44: 4,000,000 | C44: 400,000 | D44: ='9월 지출 상세'!D44+'10월 지출 상세'!C44 -> 2,397,000 | E44: 59.9% | F44: =IF($F$4="보정", 보정치!E42) -> FALSE
A45: 4.7 교우친교비 | B45: 2,000,000 | C45: 0 | D45: ='9월 지출 상세'!D45+'10월 지출 상세'!C45 -> 881,440 | E45: 44.1% | F45: =IF($F$4="보정", 보정치!E43) -> FALSE
A46: 4.8 홍보출판비 | B46: 4,000,000 | C46: =C47 -> 0 | D46: ='9월 지출 상세'!D46+'10월 지출 상세'!C46 -> 1,000,000 | E46: 25.0% | F46: =IF($F$4="보정", 보정치!E44) -> FALSE
A47: 4.8.1 대학교회 회지 | B47: 4,000,000 | C47: 0 | D47: ='9월 지출 상세'!D47+'10월 지출 상세'!C47 -> 1,000,000 | E47: 25.0% | F47: =IF($F$4="보정", 보정치!E45) -> FALSE
A48: 4.9 교회봉사자 선물 | B48: 2,000,000 | C48: 330,000 | D48: ='9월 지출 상세'!D48+'10월 지출 상세'!C48 -> 959,790 | E48: 48.0% | F48: =IF($F$4="보정", 보정치!E46) -> FALSE
A49: 4.10 친교행사 예비비 | B49: 0 | C49: 0 | D49: ='9월 지출 상세'!D49+'10월 지출 상세'!C49 -> 0 | F49: =IF($F$4="보정", 보정치!E47) -> FALSE
A50: 5. 사례비 | B50: =SUM(B51:B66,B69,B70) -> 266,770,000 | C50: =SUM(C51:C66,C69:C70) -> 21,889,000 | D50: ='9월 지출 상세'!D50+'10월 지출 상세'!C50 -> 163,092,000 | E50: 61.1% | F50: =SUM(F51:F70) -> 0
A51: 5.1 외부강사 설교 사례 | B51: 12,000,000 | C51: 1,200,000 | D51: ='9월 지출 상세'!D51+'10월 지출 상세'!C51 -> 8,700,000 | E51: 72.5% | F51: =IF($F$4="보정", 보정치!E47) -> FALSE
A52: 5.2 외부강사 설교 사례(대학부-국제) | B52: 2,400,000 | C52: 0 | D52: ='9월 지출 상세'!D52+'10월 지출 상세'!C52 -> 0 | E52: 0.0% | F52: =IF($F$4="보정", 보정치!E48) -> FALSE
A53: 5.3 절기 예배 연주자 | B53: 800,000 | C53: 0 | D53: ='9월 지출 상세'!D53+'10월 지출 상세'!C53 -> 0 | E53: 0.0% | F53: =IF($F$4="보정", 보정치!E49) -> FALSE
A54: 5.4 국악 예배 연주자 | B54: 1,800,000 | C54: 1,800,000 | D54: ='9월 지출 상세'!D54+'10월 지출 상세'!C54 -> 1,800,000 | E54: 100.0% | F54: =IF($F$4="보정", 보정치!E50) -> FALSE
A55: 5.5 봉헌송 사례 | B55: 450,000 | C55: 150,000 | D55: ='9월 지출 상세'!D55+'10월 지출 상세'!C55 -> 300,000 | E55: 66.7% | F55: =IF($F$4="보정", 보정치!E51) -> FALSE
A56: 5.6 주일성서연구 강사사례 | B56: 4,000,000 | C56: 0 | D56: ='9월 지출 상세'!D56+'10월 지출 상세'!C56 -> 3,000,000 | E56: 75.0% | F56: =IF($F$4="보정", 보정치!E52) -> FALSE
A57: 5.8 담임목사 | B57: 14,400,000 | C57: 1,200,000 | D57: ='9월 지출 상세'!D57+'10월 지출 상세'!C57 -> 9,600,000 | E57: 66.7% | F57: =IF($F$4="보정", 보정치!E53) -> FALSE
A58: 5.9 동역목사 | B58: 12,000,000 | C58: 200,000 | D58: ='9월 지출 상세'!D58+'10월 지출 상세'!C58 -> 3,200,000 | E58: 26.7% | F58: =IF($F$4="보정", 보정치!E54) -> FALSE
A59: 5.10 전임교역자 | B59: 100,000,000 | C59: 7,500,000 | D59: ='9월 지출 상세'!D59+'10월 지출 상세'!C59 -> 62,400,000 | E59: 62.4% | F59: =IF($F$4="보정", 보정치!E55) -> FALSE
A60: 5.11 성가대지휘자 | B60: 12,000,000 | C60: 1,000,000 | D60: ='9월 지출 상세'!D60+'10월 지출 상세'!C60 -> 8,000,000 | E60: 66.7% | F60: =IF($F$4="보정", 보정치!E56) -> FALSE
A61: 5.12 오르가니스트 | B61: 12,000,000 | C61: 1,000,000 | D61: ='9월 지출 상세'!D61+'10월 지출 상세'!C61 -> 8,000,000 | E61: 66.7% | F61: =IF($F$4="보정", 보정치!E57) -> FALSE
A62: 5.13 교육부서 담당교역자 | B62: 38,400,000 | C62: 3,200,000 | D62: ='9월 지출 상세'!D62+'10월 지출 상세'!C62 -> 23,200,000 | E62: 60.4% | F62: =IF($F$4="보정", 보정치!E58) -> FALSE
A63: 5.14 성인 솔리스트 | B63: 23,520,000 | C63: 1,960,000 | D63: ='9월 지출 상세'!D63+'10월 지출 상세'!C63 -> 15,340,000 | E63: 65.2% | F63: =IF($F$4="보정", 보정치!E59) -> FALSE
A64: 5.15 통역자 | B64: 4,000,000 | C64: 375,000 | D64: ='9월 지출 상세'!D64+'10월 지출 상세'!C64 -> 2,625,000 | E64: 65.6% | F64: =IF($F$4="보정", 보정치!E60) -> FALSE
A65: 5.16 방송담당 | B65: 12,000,000 | C65: 1,125,000 | D65: ='9월 지출 상세'!D65+'10월 지출 상세'!C65 -> 7,875,000 | E65: 65.6% | F65: =IF($F$4="보정", 보정치!E61) -> FALSE
A66: 5.17 용원 사례비 | B66: =SUM(B67:B68) -> 11,000,000 | C66: =SUM(C67:C68) -> 1,179,000 | D66: ='9월 지출 상세'!D66+'10월 지출 상세'!C66 -> 6,852,000 | E66: 62.3% | F66: =IF($F$4="보정", 보정치!E62) -> FALSE
A67: 5.17.1 관리실 여사 | B67: 6,000,000 | C67: 612,000 | D67: ='9월 지출 상세'!D67+'10월 지출 상세'!C67 -> 4,098,000 | E67: 68.3% | F67: =IF($F$4="보정", 보정치!E63) -> FALSE
A68: 5.17.2 관리실 반장 | B68: 5,000,000 | C68: 567,000 | D68: ='9월 지출 상세'!D68+'10월 지출 상세'!C68 -> 2,754,000 | E68: 55.1% | F68: =IF($F$4="보정", 보정치!E64) -> FALSE
A69: 5.18 퇴직위로금 | B69: 3,000,000 | C69: 0 | D69: ='9월 지출 상세'!D69+'10월 지출 상세'!C69 -> 0 | E69: 0.0% | F69: =IF($F$4="보정", 보정치!E65) -> FALSE
A70: 5.19 기타(교역자휴가 및 기타인건비) | B70: 3,000,000 | C70: 0 | D70: ='9월 지출 상세'!D70+'10월 지출 상세'!C70 -> 2,200,000 | E70: 73.3% | F70: =IF($F$4="보정", 보정치!E66) -> FALSE
A71: 6. 행정운영비 | B71: =SUM(B72:B74,B81,B82,B83,B84,B85) -> 91,784,670 | C71: =SUM(C72:C74,C81:C85) -> 6,439,000 | D71: ='9월 지출 상세'!D71+'10월 지출 상세'!C71 -> 59,940,056 | E71: 65.3% | F71: =SUM(F72:F74,F81,F82,F83,F84,F85) -> 0
A72: 6.1 회의 및 교회위원회 | B72: 6,131,500 | C72: 99,850 | D72: ='9월 지출 상세'!D72+'10월 지출 상세'!C72 -> 3,770,850 | E72: 61.5% | F72: =IF($F$4="보정", 보정치!E70) -> FALSE
A73: 6.2 사무운영비 | B73: 13,377,270 | C73: 568,680 | D73: ='9월 지출 상세'!D73+'10월 지출 상세'!C73 -> 6,491,086 | E73: =D73/B73 -> 48.5% | F73: =IF($F$4="보정", 보정치!E71) -> FALSE
A74: 6.3 부서운영비 | B74: =SUM(B75:B80) -> 52,204,200 | C74: =SUM(C75:C80) -> 4,685,000 | D74: ='9월 지출 상세'!D74+'10월 지출 상세'!C74 -> 36,673,580 | E74: 70.3% | F74: =IF($F$4="보정", 보정치!E72) -> FALSE
A75: 6.3.1 성가대 | B75: 14,504,200 | C75: 1,375,000 | D75: ='9월 지출 상세'!D75+'10월 지출 상세'!C75 -> 10,338,200 | E75: 71.3% | F75: =IF($F$4="보정", 보정치!E73) -> FALSE
A76: 6.3.2 유치부 | B76: 4,500,000 | C76: 400,000 | D76: ='9월 지출 상세'!D76+'10월 지출 상세'!C76 -> 3,300,000 | E76: 73.3% | F76: =IF($F$4="보정", 보정치!E74) -> FALSE
A77: 6.3.3 초등부 | B77: 7,100,000 | C77: 600,000 | D77: ='9월 지출 상세'!D77+'10월 지출 상세'!C77 -> 5,300,000 | E77: 74.6% | F77: =IF($F$4="보정", 보정치!E75) -> FALSE
A78: 6.3.4 중고등부 | B78: 5,100,000 | C78: 500,000 | D78: ='9월 지출 상세'!D78+'10월 지출 상세'!C78 -> 4,100,000 | E78: 80.4% | F78: =IF($F$4="보정", 보정치!E76) -> FALSE
A79: 6.3.5 대학부(신촌) | B79: 12,000,000 | C79: 910,000 | D79: ='9월 지출 상세'!D79+'10월 지출 상세'!C79 -> 7,335,380 | E79: 61.1% | F79: =IF($F$4="보정", 보정치!E77) -> FALSE
A80: 6.3.6 대학부(국제) | B80: 9,000,000 | C80: 900,000 | D80: ='9월 지출 상세'!D80+'10월 지출 상세'!C80 -> 6,300,000 | E80: 70.0% | F80: =IF($F$4="보정", 보정치!E78) -> FALSE
A81: 6.4 목회활동비 | B81: 7,571,700 | C81: 391,000 | D81: ='9월 지출 상세'!D81+'10월 지출 상세'!C81 -> 5,630,040 | E81: 74.4% | F81: =IF($F$4="보정", 보정치!E79) -> FALSE
A82: 6.5 용품 및 수리비 | B82: 5,000,000 | C82: 0 | D82: ='9월 지출 상세'!D82+'10월 지출 상세'!C82 -> 4,504,080 | E82: 90.1% | F82: =IF($F$4="보정", 보정치!E80) -> FALSE
A83: 6.6 연료비 및 통신비 | B83: 4,000,000 | C83: 254,470 | D83: ='9월 지출 상세'!D83+'10월 지출 상세'!C83 -> 1,780,420 | E83: =D83/B83 -> 44.5% | F83: =IF($F$4="보정", 보정치!E81) -> FALSE
A84: 6.7 악기구입 및 보수 | B84: 3,500,000 | C84: 440,000 | D84: ='9월 지출 상세'!D84+'10월 지출 상세'!C84 -> 1,090,000 | E84: =D84/B84 -> 31.1% | F84: =IF($F$4="보정", 보정치!E82) -> FALSE
A85: 6.8 행정운영 예비비 | B85: 0 | C85: 0 | D85: ='9월 지출 상세'!D85+'10월 지출 상세'!C85 -> 0 | F85: =IF($F$4="보정", 보정치!E83) -> FALSE
A86: 7. 장학금 | B86: =SUM(B87:B91) -> 66,720,000 | C86: =SUM(C87:C91) -> 26,220,000 | D86: ='9월 지출 상세'!D86+'10월 지출 상세'!C86 -> 48,460,000 | E86: 72.6% | F86: =SUM(F87:F91) -> 0
A87: 7.1 교회학교 교사 | B87: 21,000,000 | C87: 6,000,000 | D87: ='9월 지출 상세'!D87+'10월 지출 상세'!C87 -> 8,400,000 | E87: 40.0% | F87: =IF($F$4="보정", 보정치!E83) -> FALSE
A88: 7.2 신촌 대학청년부 | B88: 12,000,000 | C88: 5,100,000 | D88: ='9월 지출 상세'!D88+'10월 지출 상세'!C88 -> 10,500,000 | E88: 87.5% | F88: =IF($F$4="보정", 보정치!E84) -> FALSE
A89: 7.3 국제 대학부 | B89: 9,000,000 | C89: 3,600,000 | D89: ='9월 지출 상세'!D89+'10월 지출 상세'!C89 -> 7,200,000 | E89: 80.0% | F89: =IF($F$4="보정", 보정치!E85) -> FALSE
A90: 7.4 학생 솔리스트 | B90: 16,320,000 | C90: 8,160,000 | D90: ='9월 지출 상세'!D90+'10월 지출 상세'!C90 -> 15,640,000 | E90: 95.8% | F90: =IF($F$4="보정", 보정치!E86) -> FALSE
A91: 7.5 기숙사지원 | B91: 8,400,000 | C91: 3,360,000 | D91: ='9월 지출 상세'!D91+'10월 지출 상세'!C91 -> 6,720,000 | E91: 80.0% | F91: =IF($F$4="보정", 보정치!E87) -> FALSE
A92: 8. 예비비 | B92: 32,750,000 | C92: 500,000 | D92: ='9월 지출 상세'!D92+'10월 지출 상세'!C92 -> 9,035,670 | E92: 27.6% | F92: =IF($F$4="보정", 보정치!E90) -> FALSE | G92: 연세연합예배 후원금
A93: 9. 이웃사랑기금적립 | B93: 0 | C93: 6,218,000 | D93: ='9월 지출 상세'!D93+'10월 지출 상세'!C93 -> 36,205,090 | E93: 0.0% | F93: =IF($F$4="보정", 보정치!E91) -> FALSE
A94: 일반 지출 소계 | B94: =SUM(B5,B13,B22,B38,B50,B71,B86,B92,B93) -> 633,304,670 | C94: =SUM(C5,C13,C22,C38,C50,C71,C86,C92,C93) -> 70,099,110 | D94: =SUM(D5,D13,D22,D38,D50,D71,D86,D92,D93) -> 405,391,011 | E94: 64.0% | F94: =SUM(F86,F71,F50,F38,F22,F13,F5) -> 0
A95: 차월이월 | C95: ='10월 수입 상세'!C24-'10월 지출 상세'!C94 -> -6,580,110 | D95: ='10월 수입 상세'!D29-'10월 지출 상세'!D94 -> 71,562,331
A96: 지출부 총액 | B96: =B94+B95 -> 633,304,670 | C96: =C94+C95 -> 63,519,000 | D96: =D94+D95 -> 476,953,342 | E96: 75.3%

Sheet 11월 약식
A1: 2023년 11월 결산보고서(약식)
A2: 회계년도: 2023년도 | I2: (2023-11-30 현재)
A3: 수입의 부 | F3: 지출의 부
A4: 항 목 | B4: 예산 | C4: 당월 수입 | D4: 수입 누계 | E4: 집행률(%) | F4: 항 목 | H4: 예산 | I4: 당월 지출 | J4: 지출 누계 | K4: 집행률(%)
A5: 1. 주일헌금 | B5: ='9월 수입 상세'!B5 -> 160,000,000 | C5: ='11월 수입 상세'!C5 -> 11,297,000 | D5: =VLOOKUP(A5, '11월 수입 상세'!$A$4:$F$29, 4, FALSE) -> 114,371,324 | E5: =D5/B5 -> 71.5% | F5: 1. 예배운영비 | H5: ='11월 지출 상세'!B5 -> 22,700,000 | I5: ='11월 지출 상세'!C5 -> 1,091,550 | J5: =VLOOKUP(F5, '11월 지출 상세'!$A$4:$G$96, 4, FALSE) -> 11,765,300 | K5: =J5/H5 -> 51.8%
A6: 2. 십일조 | B6: ='9월 수입 상세'!B6 -> 105,000,000 | C6: ='11월 수입 상세'!C6 -> 8,577,000 | D6: =VLOOKUP(A6, '11월 수입 상세'!$A$4:$F$29, 4, FALSE) -> 78,728,437 | E6: 75.0% | F6: 2. 교육운영비 | H6: ='11월 지출 상세'!B13 -> 30,500,000 | I6: ='11월 지출 상세'!C13 -> 580,000 | J6: =VLOOKUP(F6, '11월 지출 상세'!$A$4:$G$96, 4, FALSE) -> 21,713,305 | K6: 71.2%
A7: 3. 월정헌금 | B7: ='9월 수입 상세'!B7 -> 145,000,000 | C7: ='11월 수입 상세'!C7 -> 11,270,000 | D7: =VLOOKUP(A7, '11월 수입 상세'!$A$4:$F$29, 4, FALSE) -> 107,605,000 | E7: 74.2% | F7: 3. 선교비 | H7: ='11월 지출 상세'!B22 -> 94,480,000 | I7: ='11월 지출 상세'!C22 -> 58,317,770 | J7: =VLOOKUP(F7, '11월 지출 상세'!$A$4:$G$96, 4, FALSE) -> 103,810,090 | K7: 109.9%
A8: 4. 감사헌금 | B8: ='9월 수입 상세'!B8 -> 35,000,000 | C8: ='11월 수입 상세'!C8 -> 2,792,000 | D8: =VLOOKUP(A8, '11월 수입 상세'!$A$4:$F$29, 4, FALSE) -> 27,013,000 | E8: 77.2% | F8: 4. 친교행사운영비 | H8: ='11월 지출 상세'!B38 -> 27,600,000 | I8: ='11월 지출 상세'!C38 -> 1,249,680 | J8: =VLOOKUP(F8, '11월 지출 상세'!$A$4:$G$96, 4, FALSE) -> 12,608,500 | K8: 45.7%
A9: 5. 교육부헌금 | B9: ='9월 수입 상세'!B9 -> 22,000,000 | C9: ='11월 수입 상세'!C9 -> 2,072,500 | D9: =VLOOKUP(A9, '11월 수입 상세'!$A$4:$F$29, 4, FALSE) -> 14,517,321 | E9: 66.0% | F9: 5. 사례비 | H9: ='11월 지출 상세'!B50 -> 266,770,000 | I9: ='11월 지출 상세'!C50 -> 18,992,000 | J9: =VLOOKUP(F9, '11월 지출 상세'!$A$4:$G$96, 4, FALSE) -> 182,084,000 | K9: 68.3%
A10: 6. 절기헌금 | B10: ='9월 수입 상세'!B15 -> 35,000,000 | C10: ='11월 수입 상세'!C15 -> 700,000 | D10: =VLOOKUP(A10, '11월 수입 상세'!$A$4:$F$29, 4, FALSE) -> 23,815,000 | E10: 68.0% | F10: 6. 행정운영비 | H10: ='11월 지출 상세'!B71 -> 91,784,670 | I10: ='11월 지출 상세'!C71 -> 5,965,130 | J10: =VLOOKUP(F10, '11월 지출 상세'!$A$4:$G$96, 4, FALSE) -> 65,905,186 | K10: 71.8%
A11: 7. 선교헌금 | B11: ='9월 수입 상세'!B19 -> 5,000,000 | C11: ='11월 수입 상세'!C19 -> 1,000 | D11: =VLOOKUP(A11, '11월 수입 상세'!$A$4:$F$29, 4, FALSE) -> 3,871,000 | E11: 77.4% | F11: 7. 장학금 | H11: ='11월 지출 상세'!B86 -> 66,720,000 | I11: ='11월 지출 상세'!C86 -> 840,000 | J11: =VLOOKUP(F11, '11월 지출 상세'!$A$4:$G$96, 4, FALSE) -> 49,300,000 | K11: 73.9%
A12: 8. 지정헌금 | B12: ='9월 수입 상세'!B22 -> 20,000,000 | C12: ='11월 수입 상세'!C22 -> 440,000 | D12: =VLOOKUP(A12, '11월 수입 상세'!$A$4:$F$29, 4, FALSE) -> 13,140,000 | E12: 65.7% | F12: 8. 예비비 | H12: ='11월 지출 상세'!B92 -> 32,750,000 | I12: ='11월 지출 상세'!C92 -> 8,000,000 | J12: =VLOOKUP(F12, '11월 지출 상세'!$A$4:$G$96, 4, FALSE) -> 17,035,670 | K12: 52.0%
A13: 9. 특별헌금(이웃사랑실천헌금 등) | B13: ='9월 수입 상세'!B23 -> 13,000,000 | C13: ='11월 수입 상세'!C23 -> 0 | D13: =VLOOKUP(A13, '11월 수입 상세'!$A$4:$F$29, 4, FALSE) -> 35,737,090 | E13: 274.9% | F13: 9. 이웃사랑기금적립 | H13: ='11월 지출 상세'!B93 -> 0 | I13: ='11월 지출 상세'!C93 -> 0 | J13: =VLOOKUP(F13, '11월 지출 상세'!$A$4:$G$96, 4, FALSE) -> 36,205,090
A14: 헌금 수입 소계 | B14: =SUM(B5:B13) -> 540,000,000 | C14: =SUM(C5:C13) -> 37,149,500 | D14: =SUM(D5:D13) -> 418,798,172 | E14: 77.6% | F14: 일반 지출 소계 | H14: =SUM(H5:H13) -> 633,304,670 | I14: =SUM(I5:I13) -> 95,036,130 | J14: =SUM(J5:J13) -> 500,427,141 | K14: =J14/H14 -> 79.0%
A15: 전기이월금 전입 | B15: ='11월 수입 상세'!B25 -> 40,000,000 | C15: ='11월 수입 상세'!C25 -> 0 | D15: ='11월 수입 상세'!D25 -> 40,000,000 | E15: 100.0% | F15: 차월이월 | I15: =C14-I14 -> -57,886,630 | J15: =D19-J14 -> 41,675,701
A16: 전기이월금 추가전입 | B16: ='11월 수입 상세'!B26 -> 53,304,670 | C16: ='11월 수입 상세'!C26 -> 0 | D16: ='11월 수입 상세'!D26 -> 53,304,670
A17: 헌금외 기금 | C17: ='11월 수입 상세'!C27 -> 28,000,000 | D17: ='11월 수입 상세'!D27 -> 30,000,000
A18: 전월이월금 | C18: ='11월 수입 상세'!C28 -> 71,562,331
A19: 수입부 총액 | B19: =SUM(B14:B18) -> 633,304,670 | C19: =SUM(C14:C18) -> 136,711,831 | D19: =SUM(D14:D18) -> 542,102,842 | E19: =D19/B19 -> 85.6% | F19: 지출부 총액 | H19: =SUM(H14:H18) -> 633,304,670 | I19: =SUM(I14:I18) -> 37,149,500 | J19: =SUM(J14:J18) -> 542,102,842 | K19: =J19/H19 -> 85.6%
A20: *지정헌금 내역(GIT 후원금_90,000원, 헌화헌금_350,000원)
A21: 기금 및 이월금 현황 (2023.8.31 기준) | F21: 헌금 수입 및 지출 누계 비교
A22: 기금명 | C22: 금액(이자포함) | G22: 2021년 11월 | H22: 2022년 11월 | I22: 2023년 11월
A23: 박명윤이행자선교기금(FAA003023) | C23: 53,656,313 | F23: 수입 누계 | G23: 427,803,907 | H23: 403,316,875 | I23: =D14 -> 418,798,172
A24: 대학교회건축기금(FBA113041) | C24: 0 | F24: 지출 누계 | G24: 359,183,476 | H24: 414,815,761 | I24: =J14 -> 500,427,141
A25: 국캠대학교회선교기금(FEA173001) | C25: 147,405
A26: 이웃사랑기금(FEA183001) | C26: 90,623,173
A27: 유초등부발전기금(FAA213008) | C27: 18,393,529
A28: 기금 총액 | C28: =SUM(C23:C27) -> 162,820,420
A30: *누적 이월금 (2023.3.1 기준 / 기금 및 전입금 제외) | C30: 453,597,137

Sheet 11월 수입 상세
A1: 11월 수입 상세
A2: 회계연도: 2023년도 | F2: (2023-11-30 현재)
A4: 분류항목 | B4: 예산 | C4: 당월 | D4: 누계 | E4: 집행률(%) | F4: 비고
A5: 1. 주일헌금 | B5: 160,000,000 | C5: 11,297,000 | D5: =SUM('10월 수입 상세'!D5+'11월 수입 상세'!C5) -> 114,371,324 | E5: =D5/B5 -> 71.5%
A6: 2. 십일조 | B6: 105,000,000 | C6: 8,577,000 | D6: =SUM('10월 수입 상세'!D6+'11월 수입 상세'!C6) -> 78,728,437 | E6: =D6/B6 -> 75.0%
A7: 3. 월정헌금 | B7: 145,000,000 | C7: 11,270,000 | D7: =SUM('10월 수입 상세'!D7+'11월 수입 상세'!C7) -> 107,605,000 | E7: 74.2%
A8: 4. 감사헌금 | B8: 35,000,000 | C8: 2,792,000 | D8: =SUM('10월 수입 상세'!D8+'11월 수입 상세'!C8) -> 27,013,000 | E8: 77.2%
A9: 5. 교육부헌금 | B9: =SUM(B10:B14) -> 22,000,000 | C9: =SUM(C10:C14) -> 2,072,500 | D9: =SUM('10월 수입 상세'!D9+'11월 수입 상세'!C9) -> 14,517,321 | E9: 66.0%
A10: 유치부 | B10: 700,000 | C10: 27,000 | D10: 848,049 | E10: 121.1% | F10: 타 부서로 잘못 분류된 헌금 조정
A11: 초등부 | B11: 1,000,000 | C11: 84,500 | D11: 1,205,000 | E11: 120.5% | F11: 타 부서로 잘못 분류된 헌금 조정
A12: 중고등부 | B12: 300,000 | C12: 20,000 | D12: 172,722 | E12: 57.6% | F12: 타 부서로 잘못 분류된 헌금 조정
A13: 대학부(신촌) | B13: 7,000,000 | C13: 1,191,000 | D13: =SUM('10월 수입 상세'!D13+'11월 수입 상세'!C13) -> 8,309,338 | E13: 118.7%
A14: 대학부(국제) | B14: 13,000,000 | C14: 750,000 | D14: =SUM('10월 수입 상세'!D14+'11월 수입 상세'!C14) -> 3,982,212 | E14: 30.6%
A15: 6. 절기헌금 | B15: =SUM(B16:B18) -> 35,000,000 | C15: =SUM(C16:C18) -> 700,000 | D15: =SUM('10월 수입 상세'!D15+'11월 수입 상세'!C15) -> 23,815,000 | E15: 68.0%
A16: 부활절 | B16: 10,000,000 | C16: 0 | D16: =SUM('10월 수입 상세'!D16+'11월 수입 상세'!C16) -> 14,256,000 | E16: 142.6%
A17: 추수감사절 | B17: 10,000,000 | C17: 0 | D17: =SUM('10월 수입 상세'!D17+'11월 수입 상세'!C17) -> 8,859,000 | E17: 88.6%
A18: 성탄절 | B18: 15,000,000 | C18: 700,000 | D18: =SUM('10월 수입 상세'!D18+'11월 수입 상세'!C18) -> 700,000 | E18: 4.7%
A19: 7. 선교헌금 | B19: 5,000,000 | C19: =SUM(C20:C21) -> 1,000 | D19: =SUM('10월 수입 상세'!D19+'11월 수입 상세'!C19) -> 3,871,000 | E19: 77.4%
A20: 선교헌금 | B20: 2,500,000 | C20: 1,000 | D20: =SUM('10월 수입 상세'!D20+'11월 수입 상세'!C20) -> 3,871,000 | E20: 154.8%
A21: 특별선교헌금 | B21: 2,500,000 | C21: 0 | D21: =SUM('10월 수입 상세'!D21+'11월 수입 상세'!C21) -> 0 | E21: 0.0%
A22: 8. 지정헌금 | B22: 20,000,000 | C22: 440,000 | D22: =SUM('10월 수입 상세'!D22+'11월 수입 상세'!C22) -> 13,140,000 | E22: 65.7% | F22: 헌화헌금 350,000원 GIT 후원금 90,000원
A23: 9. 특별헌금(이웃사랑실천헌금 등) | B23: 13,000,000 | C23: 0 | D23: =SUM('10월 수입 상세'!D23+'11월 수입 상세'!C23) -> 35,737,090 | E23: 274.9%
A24: 헌금 수입 소계 | B24: =SUM(B5,B6,B7,B8,B9,B15,B19,B22,B23) -> 540,000,000 | C24: =SUM(C5,C6,C7,C8,C9,C15,C19,C22,C23) -> 37,149,500 | D24: =SUM('10월 수입 상세'!D24+'11월 수입 상세'!C24) -> 418,798,172 | E24: 77.6%
A25: 전기이월금 전입 | B25: 40,000,000 | C25: 0 | D25: 40,000,000 | E25: 100.0%
A26: 전기이월금 추가전입 | B26: 53,304,670 | C26: 0 | D26: 53,304,670
A27: 헌금외 기금 | C27: 28,000,000 | D27: 30,000,000
A28: 전월이월금 | C28: ='10월 약식'!J15 -> 71,562,331
A29: 수입부 총액 | B29: =B24+B25+B26 -> 633,304,670 | C29: =SUM(C24:C28) -> 136,711,831 | D29: =SUM(D24:D28) -> 542,102,842 | E29: 85.6%

Sheet 11월 지출 상세
A1: 11월 지출 상세
A2: 회계연도: 2023년도
G3: (2023-11-30 현재)
A4: 분류항목 | B4: 예산 | C4: 당월 | D4: 누계 | E4: 집행률(%) | G4: 비고
A5: 1. 예배운영비 | B5: =SUM(B6:B9) -> 22,700,000 | C5: =SUM(C6:C9) -> 1,091,550 | D5: ='10월 지출 상세'!D5+'11월 지출 상세'!C5 -> 11,765,300 | E5: =D5/B5 -> 51.8% | F5: =SUM(F6:F9) -> 0
A6: 1.1 성례예식비 | B6: 1,200,000 | C6: 0 | D6: ='10월 지출 상세'!D6+'11월 지출 상세'!C6 -> 588,950 | E6: =D6/B6 -> 49.1% | F6: =IF($F$4="보정", 보정치!E4) -> FALSE
A7: 1.2 주보인쇄비 | B7: 4,000,000 | C7: 0 | D7: ='10월 지출 상세'!D7+'11월 지출 상세'!C7 -> 1,375,000 | E7: 34.4% | F7: =IF($F$4="보정", 보정치!E5) -> FALSE
A8: 1.3 강사접대비 | B8: 2,500,000 | C8: 35,550 | D8: ='10월 지출 상세'!D8+'11월 지출 상세'!C8 -> 1,144,250 | E8: 45.8% | F8: =IF($F$4="보정", 보정치!E6) -> FALSE
A9: 1.4 예배준비비 | B9: =SUM(B10:B12) -> 15,000,000 | C9: =SUM(C10:C12) -> 1,056,000 | D9: ='10월 지출 상세'!D9+'11월 지출 상세'!C9 -> 8,657,100 | E9: 57.7% | F9: =IF($F$4="보정", 보정치!E7) -> FALSE
A10: 1.4.1 성전 꽃꽂이 | B10: 10,000,000 | C10: 850,000 | D10: ='10월 지출 상세'!D10+'11월 지출 상세'!C10 -> 6,200,000 | E10: 62.0% | F10: =IF($F$4="보정", 보정치!E8) -> FALSE
A11: 1.4.2 봉사자 식사 | B11: 4,000,000 | C11: 206,000 | D11: ='10월 지출 상세'!D11+'11월 지출 상세'!C11 -> 2,347,300 | E11: 58.7% | F11: =IF($F$4="보정", 보정치!E9) -> FALSE
A12: 1.4.3 절기행사비 | B12: 1,000,000 | C12: 0 | D12: ='10월 지출 상세'!D12+'11월 지출 상세'!C12 -> 109,800 | E12: 11.0% | F12: =IF($F$4="보정", 보정치!E10) -> FALSE
A13: 2. 교육운영비 | B13: =SUM(B14:B21) -> 30,500,000 | C13: =SUM(C14:C21) -> 580,000 | D13: ='10월 지출 상세'!D13+'11월 지출 상세'!C13 -> 21,713,305 | E13: 71.2% | F13: =IF($F$4="보정", 보정치!E11) -> FALSE
A14: 2.1 주일성서연구운영비 | B14: 1,000,000 | C14: 0 | D14: ='10월 지출 상세'!D14+'11월 지출 상세'!C14 -> 0 | E14: 0.0% | F14: =IF($F$4="보정", 보정치!E12) -> FALSE
A15: 2.2 도서 및 교재 | B15: 2,000,000 | C15: 0 | D15: ='10월 지출 상세'!D15+'11월 지출 상세'!C15 -> 630,900 | E15: 31.5% | F15: =IF($F$4="보정", 보정치!E13) -> FALSE
A16: 2.3 전교인수양회 행사비 | B16: 14,000,000 | C16: 0 | D16: ='10월 지출 상세'!D16+'11월 지출 상세'!C16 -> 16,600,990 | E16: 118.6% | F16: =IF($F$4="보정", 보정치!E14) -> FALSE
A17: 2.4 교목연수비 | B17: 0 | C17: 0 | D17: ='10월 지출 상세'!D17+'11월 지출 상세'!C17 -> 0 | F17: =IF($F$4="보정", 보정치!E15) -> FALSE
A18: 2.5 교역자 교육훈련비 | B18: 3,000,000 | C18: 0 | D18: ='10월 지출 상세'!D18+'11월 지출 상세'!C18 -> 683,140 | E18: 22.8% | F18: =IF($F$4="보정", 보정치!E16) -> FALSE
A19: 2.6 교사세미나/교역자workshop | B19: 3,000,000 | C19: 0 | D19: ='10월 지출 상세'!D19+'11월 지출 상세'!C19 -> 2,166,275 | E19: 72.2% | F19: =IF($F$4="보정", 보정치!E17) -> FALSE
A20: 2.7 교육부 운영비 | B20: 7,500,000 | C20: 580,000 | D20: ='10월 지출 상세'!D20+'11월 지출 상세'!C20 -> 1,632,000 | E20: 21.8% | F20: =IF($F$4="보정", 보정치!E18) -> FALSE
A21: 2.8 교육운영 예비비 | B21: 0 | C21: 0 | D21: ='10월 지출 상세'!D21+'11월 지출 상세'!C21 -> 0 | F21: =IF($F$4="보정", 보정치!E19) -> FALSE
A22: 3. 선교비 | B22: =SUM(B23,B34,B35,B36,B37) -> 94,480,000 | C22: =SUM(C23,C34:C37) -> 58,317,770 | D22: ='10월 지출 상세'!D22+'11월 지출 상세'!C22 -> 103,810,090 | E22: 109.9% | F22: =SUM(F23,F32,F33,F34,F35) -> 0
A23: 3.1 학원선교 | B23: =SUM(B24:B33) -> 50,960,000 | C23: =SUM(C24:C33) -> 28,528,680 | D23: ='10월 지출 상세'!D23+'11월 지출 상세'!C23 -> 43,000,000 | E23: 84.4% | F23: =SUM(F24:F31) -> 0
A24: 3.1.1 간식나눔행사(신촌) | B24: 2,000,000 | C24: 528,680 | D24: ='10월 지출 상세'!D24+'11월 지출 상세'!C24 -> 2,000,000 | E24: 100.0% | F24: =IF($F$4="보정", 보정치!E22) -> FALSE
A25: 3.1.2 간식나눔행사(국제) | B25: 1,000,000 | C25: 0 | D25: ='10월 지출 상세'!D25+'11월 지출 상세'!C25 -> 0 | E25: 0.0% | F25: =IF($F$4="보정", 보정치!E23) -> FALSE
A26: 3.1.3 교목실 점심나눔 후원 | B26: 27,000,000 | C26: 27,000,000 | D26: ='10월 지출 상세'!D26+'11월 지출 상세'!C26 -> 27,000,000 | E26: 100.0% | F26: =IF($F$4="보정", 보정치!E24) -> FALSE
A27: 3.1.4 연세기독학생연합회 지원 | B27: 3,600,000 | C27: 300,000 | D27: ='10월 지출 상세'!D27+'11월 지출 상세'!C27 -> 2,700,000 | E27: 75.0% | F27: =IF($F$4="보정", 보정치!E25) -> FALSE
A28: 3.1.5 연세기독학생회찬양팀 후원 | B28: 2,400,000 | C28: 200,000 | D28: ='10월 지출 상세'!D28+'11월 지출 상세'!C28 -> 1,800,000 | E28: 75.0% | F28: =IF($F$4="보정", 보정치!E26) -> FALSE
A29: 3.1.6 YMK 후원 | B29: 3,600,000 | C29: 300,000 | D29: ='10월 지출 상세'!D29+'11월 지출 상세'!C29 -> 2,700,000 | E29: 75.0% | F29: =IF($F$4="보정", 보정치!E27) -> FALSE
A30: 3.1.7 통일한마당 | B30: 2,400,000 | C30: 200,000 | D30: ='10월 지출 상세'!D30+'11월 지출 상세'!C30 -> 1,800,000 | E30: 75.0% | F30: =IF($F$4="보정", 보정치!E28) -> FALSE
A31: 3.1.8 리틀언더우드 후원 | B31: 5,000,000 | C31: 0 | D31: ='10월 지출 상세'!D31+'11월 지출 상세'!C31 -> 5,000,000 | E31: 100.0% | F31: 0
A32: 3.1.9 멘토멘티프로그램 | B32: 3,960,000 | C32: 0 | D32: ='10월 지출 상세'!D32+'11월 지출 상세'!C32 -> 0 | E32: 0.0% | F32: 0
A33: 3.1.10 학원선교 기타 | B33: 0 | C33: 0 | D33: ='10월 지출 상세'!D33+'11월 지출 상세'!C33 -> 0 | F33: =IF($F$4="보정", 보정치!E31) -> FALSE
A34: 3.2 국외선교 | B34: 4,800,000 | C34: 400,000 | D34: ='10월 지출 상세'!D34+'11월 지출 상세'!C34 -> 3,600,000 | E34: 75.0% | F34: =IF($F$4="보정", 보정치!E32) -> FALSE | G34: 함정희, 노규래
A35: 3.3 이웃사랑 실천헌금 | B35: 9,000,000 | C35: 0 | D35: ='10월 지출 상세'!D35+'11월 지출 상세'!C35 -> 0 | E35: 0.0% | F35: =IF($F$4="보정", 보정치!E33) -> FALSE
A36: 3.4 지정헌금 | B36: 29,720,000 | C36: 29,389,090 | D36: ='10월 지출 상세'!D36+'11월 지출 상세'!C36 -> 57,210,090 | E36: 192.5% | F36: =IF($F$4="보정", 보정치!E34) -> FALSE | G36: 점심나눔후원 23,000,000원 수해복구후원 5,000,000원 아미음악학교 1,000,000원 GIT나눔의날 389,090원
A37: 3.5 선교예비금 | B37: 0 | C37: 0 | D37: ='10월 지출 상세'!D37+'11월 지출 상세'!C37 -> 0 | F37: =IF($F$4="보정", 보정치!E35) -> FALSE
A38: 4. 친교행사운영비 | B38: =SUM(B39:B49)-B47 -> 27,600,000 | C38: =SUM(C39:C46,C48:C49) -> 1,249,680 | D38: ='10월 지출 상세'!D38+'11월 지출 상세'!C38 -> 12,608,500 | E38: 45.7% | F38: =SUM(F39:F49)-F47 -> 0
A39: 4.1 주일공동식사 | B39: 7,000,000 | C39: 521,200 | D39: ='10월 지출 상세'!D39+'11월 지출 상세'!C39 -> 4,429,400 | E39: 63.3% | F39: =IF($F$4="보정", 보정치!E37) -> FALSE
A40: 4.2 야외예배 행사비 | B40: 0 | C40: 0 | D40: ='10월 지출 상세'!D40+'11월 지출 상세'!C40 -> 0 | F40: =IF($F$4="보정", 보정치!E38) -> FALSE
A41: 4.3 경로행사비 | B41: 1,500,000 | C41: 0 | D41: ='10월 지출 상세'!D41+'11월 지출 상세'!C41 -> 1,500,000 | E41: 100.0% | F41: =IF($F$4="보정", 보정치!E39) -> FALSE
A42: 4.4 성탄행사비 | B42: 2,100,000 | C42: 0 | D42: ='10월 지출 상세'!D42+'11월 지출 상세'!C42 -> 0 | E42: 0.0% | F42: =IF($F$4="보정", 보정치!E40) -> FALSE
A43: 4.5 주일다과비 | B43: 5,000,000 | C43: 133,480 | D43: ='10월 지출 상세'!D43+'11월 지출 상세'!C43 -> 845,870 | E43: 16.9% | F43: =IF($F$4="보정", 보정치!E41) -> FALSE
A44: 4.6 경조비 | B44: 4,000,000 | C44: 380,000 | D44: ='10월 지출 상세'!D44+'11월 지출 상세'!C44 -> 2,777,000 | E44: 69.4% | F44: =IF($F$4="보정", 보정치!E42) -> FALSE
A45: 4.7 교우친교비 | B45: 2,000,000 | C45: 215,000 | D45: ='10월 지출 상세'!D45+'11월 지출 상세'!C45 -> 1,096,440 | E45: 54.8% | F45: =IF($F$4="보정", 보정치!E43) -> FALSE
A46: 4.8 홍보출판비 | B46: 4,000,000 | C46: 0 | D46: ='10월 지출 상세'!D46+'11월 지출 상세'!C46 -> 1,000,000 | E46: 25.0% | F46: =IF($F$4="보정", 보정치!E44) -> FALSE
A47: 4.8.1 대학교회 회지 | B47: 4,000,000 | C47: 0 | D47: ='10월 지출 상세'!D47+'11월 지출 상세'!C47 -> 1,000,000 | E47: 25.0% | F47: =IF($F$4="보정", 보정치!E45) -> FALSE
A48: 4.9 교회봉사자 선물 | B48: 2,000,000 | C48: 0 | D48: ='10월 지출 상세'!D48+'11월 지출 상세'!C48 -> 959,790 | E48: 48.0% | F48: =IF($F$4="보정", 보정치!E46) -> FALSE
A49: 4.10 친교행사 예비비 | B49: 0 | C49: 0 | D49: ='10월 지출 상세'!D49+'11월 지출 상세'!C49 -> 0 | F49: =IF($F$4="보정", 보정치!E47) -> FALSE
A50: 5. 사례비 | B50: =SUM(B51:B66,B69,B70) -> 266,770,000 | C50: =SUM(C51:C66,C69:C70) -> 18,992,000 | D50: ='10월 지출 상세'!D50+'11월 지출 상세'!C50 -> 182,084,000 | E50: 68.3% | F50: =SUM(F51:F70) -> 0
A51: 5.1 외부강사 설교 사례 | B51: 12,000,000 | C51: 600,000 | D51: ='10월 지출 상세'!D51+'11월 지출 상세'!C51 -> 9,300,000 | E51: 77.5% | F51: =IF($F$4="보정", 보정치!E47) -> FALSE
A52: 5.2 외부강사 설교 사례(대학부-국제) | B52: 2,400,000 | C52: 0 | D52: ='10월 지출 상세'!D52+'11월 지출 상세'!C52 -> 0 | E52: 0.0% | F52: =IF($F$4="보정", 보정치!E48) -> FALSE
A53: 5.3 절기 예배 연주자 | B53: 800,000 | C53: 0 | D53: ='10월 지출 상세'!D53+'11월 지출 상세'!C53 -> 0 | E53: 0.0% | F53: =IF($F$4="보정", 보정치!E49) -> FALSE
A54: 5.4 국악 예배 연주자 | B54: 1,800,000 | C54: 0 | D54: ='10월 지출 상세'!D54+'11월 지출 상세'!C54 -> 1,800,000 | E54: 100.0% | F54: =IF($F$4="보정", 보정치!E50) -> FALSE
A55: 5.5 봉헌송 사례 | B55: 450,000 | C55: 0 | D55: ='10월 지출 상세'!D55+'11월 지출 상세'!C55 -> 300,000 | E55: 66.7% | F55: =IF($F$4="보정", 보정치!E51) -> FALSE
A56: 5.6 주일성서연구 강사사례 | B56: 4,000,000 | C56: 0 | D56: ='10월 지출 상세'!D56+'11월 지출 상세'!C56 -> 3,000,000 | E56: 75.0% | F56: =IF($F$4="보정", 보정치!E52) -> FALSE
A57: 5.8 담임목사 | B57: 14,400,000 | C57: 1,200,000 | D57: ='10월 지출 상세'!D57+'11월 지출 상세'!C57 -> 10,800,000 | E57: 75.0% | F57: =IF($F$4="보정", 보정치!E53) -> FALSE
A58: 5.9 동역목사 | B58: 12,000,000 | C58: 600,000 | D58: ='10월 지출 상세'!D58+'11월 지출 상세'!C58 -> 3,800,000 | E58: 31.7% | F58: =IF($F$4="보정", 보정치!E54) -> FALSE
A59: 5.10 전임교역자 | B59: 100,000,000 | C59: 7,500,000 | D59: ='10월 지출 상세'!D59+'11월 지출 상세'!C59 -> 69,900,000 | E59: 69.9% | F59: =IF($F$4="보정", 보정치!E55) -> FALSE
A60: 5.11 성가대지휘자 | B60: 12,000,000 | C60: 1,000,000 | D60: ='10월 지출 상세'!D60+'11월 지출 상세'!C60 -> 9,000,000 | E60: 75.0% | F60: =IF($F$4="보정", 보정치!E56) -> FALSE
A61: 5.12 오르가니스트 | B61: 12,000,000 | C61: 1,000,000 | D61: ='10월 지출 상세'!D61+'11월 지출 상세'!C61 -> 9,000,000 | E61: 75.0% | F61: =IF($F$4="보정", 보정치!E57) -> FALSE
A62: 5.13 교육부서 담당교역자 | B62: 38,400,000 | C62: 3,200,000 | D62: ='10월 지출 상세'!D62+'11월 지출 상세'!C62 -> 26,400,000 | E62: 68.8% | F62: =IF($F$4="보정", 보정치!E58) -> FALSE
A63: 5.14 성인 솔리스트 | B63: 23,520,000 | C63: 1,960,000 | D63: ='10월 지출 상세'!D63+'11월 지출 상세'!C63 -> 17,300,000 | E63: 73.6% | F63: =IF($F$4="보정", 보정치!E59) -> FALSE
A64: 5.15 통역자 | B64: 4,000,000 | C64: 300,000 | D64: ='10월 지출 상세'!D64+'11월 지출 상세'!C64 -> 2,925,000 | E64: 73.1% | F64: =IF($F$4="보정", 보정치!E60) -> FALSE
A65: 5.16 방송담당 | B65: 12,000,000 | C65: 900,000 | D65: ='10월 지출 상세'!D65+'11월 지출 상세'!C65 -> 8,775,000 | E65: 73.1% | F65: =IF($F$4="보정", 보정치!E61) -> FALSE
A66: 5.17 용원 사례비 | B66: =SUM(B67:B68) -> 11,000,000 | C66: =SUM(C67:C68) -> 732,000 | D66: ='10월 지출 상세'!D66+'11월 지출 상세'!C66 -> 7,584,000 | E66: 68.9% | F66: =IF($F$4="보정", 보정치!E62) -> FALSE
A67: 5.17.1 관리실 여사 | B67: 6,000,000 | C67: 408,000 | D67: ='10월 지출 상세'!D67+'11월 지출 상세'!C67 -> 4,506,000 | E67: 75.1% | F67: =IF($F$4="보정", 보정치!E63) -> FALSE
A68: 5.17.2 관리실 반장 | B68: 5,000,000 | C68: 324,000 | D68: ='10월 지출 상세'!D68+'11월 지출 상세'!C68 -> 3,078,000 | E68: 61.6% | F68: =IF($F$4="보정", 보정치!E64) -> FALSE
A69: 5.18 퇴직위로금 | B69: 3,000,000 | C69: 0 | D69: ='10월 지출 상세'!D69+'11월 지출 상세'!C69 -> 0 | E69: 0.0% | F69: =IF($F$4="보정", 보정치!E65) -> FALSE
A70: 5.19 기타(교역자휴가 및 기타인건비) | B70: 3,000,000 | C70: 0 | D70: ='10월 지출 상세'!D70+'11월 지출 상세'!C70 -> 2,200,000 | E70: 73.3% | F70: =IF($F$4="보정", 보정치!E66) -> FALSE
A71: 6. 행정운영비 | B71: =SUM(B72:B74,B81,B82,B83,B84,B85) -> 91,784,670 | C71: =SUM(C72:C74,C81:C85) -> 5,965,130 | D71: ='10월 지출 상세'!D71+'11월 지출 상세'!C71 -> 65,905,186 | E71: 71.8% | F71: =SUM(F72:F74,F81,F82,F83,F84,F85) -> 0
A72: 6.1 회의 및 교회위원회 | B72: 6,131,500 | C72: 211,100 | D72: ='10월 지출 상세'!D72+'11월 지출 상세'!C72 -> 3,981,950 | E72: 64.9% | F72: =IF($F$4="보정", 보정치!E70) -> FALSE
A73: 6.2 사무운영비 | B73: 13,377,270 | C73: 746,400 | D73: ='10월 지출 상세'!D73+'11월 지출 상세'!C73 -> 7,237,486 | E73: =D73/B73 -> 54.1% | F73: =IF($F$4="보정", 보정치!E71) -> FALSE
A74: 6.3 부서운영비 | B74: =SUM(B75:B80) -> 52,204,200 | C74: =SUM(C75:C80) -> 4,586,100 | D74: ='10월 지출 상세'!D74+'11월 지출 상세'!C74 -> 41,259,680 | E74: 79.0% | F74: =IF($F$4="보정", 보정치!E72) -> FALSE
A75: 6.3.1 성가대 | B75: 14,504,200 | C75: 1,100,000 | D75: ='10월 지출 상세'!D75+'11월 지출 상세'!C75 -> 11,438,200 | E75: 78.9% | F75: =IF($F$4="보정", 보정치!E73) -> FALSE
A76: 6.3.2 유치부 | B76: 4,500,000 | C76: 400,000 | D76: ='10월 지출 상세'!D76+'11월 지출 상세'!C76 -> 3,700,000 | E76: 82.2% | F76: =IF($F$4="보정", 보정치!E74) -> FALSE
A77: 6.3.3 초등부 | B77: 7,100,000 | C77: 600,000 | D77: ='10월 지출 상세'!D77+'11월 지출 상세'!C77 -> 5,900,000 | E77: 83.1% | F77: =IF($F$4="보정", 보정치!E75) -> FALSE
A78: 6.3.4 중고등부 | B78: 5,100,000 | C78: 500,000 | D78: ='10월 지출 상세'!D78+'11월 지출 상세'!C78 -> 4,600,000 | E78: 90.2% | F78: =IF($F$4="보정", 보정치!E76) -> FALSE
A79: 6.3.5 대학부(신촌) | B79: 12,000,000 | C79: 1,086,100 | D79: ='10월 지출 상세'!D79+'11월 지출 상세'!C79 -> 8,421,480 | E79: 70.2% | F79: =IF($F$4="보정", 보정치!E77) -> FALSE
A80: 6.3.6 대학부(국제) | B80: 9,000,000 | C80: 900,000 | D80: ='10월 지출 상세'!D80+'11월 지출 상세'!C80 -> 7,200,000 | E80: 80.0% | F80: =IF($F$4="보정", 보정치!E78) -> FALSE
A81: 6.4 목회활동비 | B81: 7,571,700 | C81: 153,100 | D81: ='10월 지출 상세'!D81+'11월 지출 상세'!C81 -> 5,783,140 | E81: 76.4% | F81: =IF($F$4="보정", 보정치!E79) -> FALSE
A82: 6.5 용품 및 수리비 | B82: 5,000,000 | C82: 17,300 | D82: ='10월 지출 상세'!D82+'11월 지출 상세'!C82 -> 4,521,380 | E82: 90.4% | F82: =IF($F$4="보정", 보정치!E80) -> FALSE
A83: 6.6 연료비 및 통신비 | B83: 4,000,000 | C83: 251,130 | D83: ='10월 지출 상세'!D83+'11월 지출 상세'!C83 -> 2,031,550 | E83: =D83/B83 -> 50.8% | F83: =IF($F$4="보정", 보정치!E81) -> FALSE
A84: 6.7 악기구입 및 보수 | B84: 3,500,000 | C84: 0 | D84: ='10월 지출 상세'!D84+'11월 지출 상세'!C84 -> 1,090,000 | E84: =D84/B84 -> 31.1% | F84: =IF($F$4="보정", 보정치!E82) -> FALSE
A85: 6.8 행정운영 예비비 | B85: 0 | C85: 0 | D85: ='10월 지출 상세'!D85+'11월 지출 상세'!C85 -> 0 | F85: =IF($F$4="보정", 보정치!E83) -> FALSE
A86: 7. 장학금 | B86: =SUM(B87:B91) -> 66,720,000 | C86: =SUM(C87:C91) -> 840,000 | D86: ='10월 지출 상세'!D86+'11월 지출 상세'!C86 -> 49,300,000 | E86: 73.9% | F86: =SUM(F87:F91) -> 0
A87: 7.1 교회학교 교사 | B87: 21,000,000 | C87: 0 | D87: ='10월 지출 상세'!D87+'11월 지출 상세'!C87 -> 8,400,000 | E87: 40.0% | F87: =IF($F$4="보정", 보정치!E83) -> FALSE
A88: 7.2 신촌 대학청년부 | B88: 12,000,000 | C88: 0 | D88: ='10월 지출 상세'!D88+'11월 지출 상세'!C88 -> 10,500,000 | E88: 87.5% | F88: =IF($F$4="보정", 보정치!E84) -> FALSE
A89: 7.3 국제 대학부 | B89: 9,000,000 | C89: 0 | D89: ='10월 지출 상세'!D89+'11월 지출 상세'!C89 -> 7,200,000 | E89: 80.0% | F89: =IF($F$4="보정", 보정치!E85) -> FALSE
A90: 7.4 학생 솔리스트 | B90: 16,320,000 | C90: 0 | D90: ='10월 지출 상세'!D90+'11월 지출 상세'!C90 -> 15,640,000 | E90: 95.8% | F90: =IF($F$4="보정", 보정치!E86) -> FALSE
A91: 7.5 기숙사지원 | B91: 8,400,000 | C91: 840,000 | D91: ='10월 지출 상세'!D91+'11월 지출 상세'!C91 -> 7,560,000 | E91: 90.0% | F91: =IF($F$4="보정", 보정치!E87) -> FALSE
A92: 8. 예비비 | B92: 32,750,000 | C92: 8,000,000 | D92: ='10월 지출 상세'!D92+'11월 지출 상세'!C92 -> 17,035,670 | E92: 52.0% | F92: =IF($F$4="보정", 보정치!E90) -> FALSE | G92: 수해복구후원금 500만 원 유동식 아카이브 후원 300만 원
A93: 9. 이웃사랑기금적립 | B93: 0 | C93: 0 | D93: ='10월 지출 상세'!D93+'11월 지출 상세'!C93 -> 36,205,090 | E93: 0.0% | F93: =IF($F$4="보정", 보정치!E91) -> FALSE
A94: 일반 지출 소계 | B94: =SUM(B5,B13,B22,B38,B50,B71,B86,B92,B93) -> 633,304,670 | C94: =SUM(C5,C13,C22,C38,C50,C71,C86,C92,C93) -> 95,036,130 | D94: ='10월 지출 상세'!D94+'11월 지출 상세'!C94 -> 500,427,141 | E94: 79.0% | F94: =SUM(F86,F71,F50,F38,F22,F13,F5) -> 0
A95: 차월이월 | C95: ='11월 수입 상세'!C24-'11월 지출 상세'!C94 -> -57,886,630 | D95: ='11월 수입 상세'!D29-'11월 지출 상세'!D94 -> 41,675,701
A96: 지출부 총액 | B96: =B94+B95 -> 633,304,670 | C96: =C94+C95 -> 37,149,500 | D96: =D94+D95 -> 542,102,842 | E96: 85.6%

Sheet 12월 약식
A1: 2023년 12월 결산보고서(약식)
A2: 회계년도: 2023년도 | I2: (2023-12-31 현재)
A3: 수입의 부 | F3: 지출의 부
A4: 항 목 | B4: 예산 | C4: 당월 수입 | D4: 수입 누계 | E4: 집행률(%) | F4: 항 목 | H4: 예산 | I4: 당월 지출 | J4: 지출 누계 | K4: 집행률(%)
A5: 1. 주일헌금 | B5: ='9월 수입 상세'!B5 -> 160,000,000 | C5: ='12월 수입 상세'!C5 -> 15,603,000 | D5: =VLOOKUP(A5, '12월 수입 상세'!$A$4:$F$29, 4, FALSE) -> 129,974,324 | E5: =D5/B5 -> 81.2% | F5: 1. 예배운영비 | H5: ='12월 지출 상세'!B5 -> 22,700,000 | I5: ='12월 지출 상세'!C5 -> 1,293,300 | J5: =VLOOKUP(F5, '12월 지출 상세'!$A$4:$G$96, 4, FALSE) -> 13,058,600 | K5: =J5/H5 -> 57.5%
A6: 2. 십일조 | B6: ='9월 수입 상세'!B6 -> 105,000,000 | C6: ='12월 수입 상세'!C6 -> 26,185,000 | D6: =VLOOKUP(A6, '12월 수입 상세'!$A$4:$F$29, 4, FALSE) -> 104,913,437 | E6: 99.9% | F6: 2. 교육운영비 | H6: ='12월 지출 상세'!B13 -> 30,500,000 | I6: ='12월 지출 상세'!C13 -> 1,068,300 | J6: =VLOOKUP(F6, '12월 지출 상세'!$A$4:$G$96, 4, FALSE) -> 22,781,605 | K6: 74.7%
A7: 3. 월정헌금 | B7: ='9월 수입 상세'!B7 -> 145,000,000 | C7: ='12월 수입 상세'!C7 -> 16,020,000 | D7: =VLOOKUP(A7, '12월 수입 상세'!$A$4:$F$29, 4, FALSE) -> 123,625,000 | E7: 85.3% | F7: 3. 선교비 | H7: ='12월 지출 상세'!B22 -> 94,480,000 | I7: ='12월 지출 상세'!C22 -> 1,400,000 | J7: =VLOOKUP(F7, '12월 지출 상세'!$A$4:$G$96, 4, FALSE) -> 105,210,090 | K7: 111.4%
A8: 4. 감사헌금 | B8: ='9월 수입 상세'!B8 -> 35,000,000 | C8: ='12월 수입 상세'!C8 -> 8,664,000 | D8: =VLOOKUP(A8, '12월 수입 상세'!$A$4:$F$29, 4, FALSE) -> 35,677,000 | E8: 101.9% | F8: 4. 친교행사운영비 | H8: ='12월 지출 상세'!B38 -> 27,600,000 | I8: ='12월 지출 상세'!C38 -> 1,697,520 | J8: =VLOOKUP(F8, '12월 지출 상세'!$A$4:$G$96, 4, FALSE) -> 14,306,020 | K8: 51.8%
A9: 5. 교육부헌금 | B9: ='9월 수입 상세'!B9 -> 22,000,000 | C9: ='12월 수입 상세'!C9 -> 2,585,000 | D9: =VLOOKUP(A9, '12월 수입 상세'!$A$4:$F$29, 4, FALSE) -> 17,102,321 | E9: 77.7% | F9: 5. 사례비 | H9: ='12월 지출 상세'!B50 -> 266,770,000 | I9: ='12월 지출 상세'!C50 -> 23,075,000 | J9: =VLOOKUP(F9, '12월 지출 상세'!$A$4:$G$96, 4, FALSE) -> 205,159,000 | K9: 76.9%
A10: 6. 절기헌금 | B10: ='9월 수입 상세'!B15 -> 35,000,000 | C10: ='12월 수입 상세'!C15 -> 9,103,000 | D10: =VLOOKUP(A10, '12월 수입 상세'!$A$4:$F$29, 4, FALSE) -> 32,918,000 | E10: 94.1% | F10: 6. 행정운영비 | H10: ='12월 지출 상세'!B71 -> 91,784,670 | I10: ='12월 지출 상세'!C71 -> 7,482,000 | J10: =VLOOKUP(F10, '12월 지출 상세'!$A$4:$G$96, 4, FALSE) -> 73,387,186 | K10: 80.0%
A11: 7. 선교헌금 | B11: ='9월 수입 상세'!B19 -> 5,000,000 | C11: ='12월 수입 상세'!C19 -> 102,050 | D11: =VLOOKUP(A11, '12월 수입 상세'!$A$4:$F$29, 4, FALSE) -> 3,973,050 | E11: 79.5% | F11: 7. 장학금 | H11: ='12월 지출 상세'!B86 -> 66,720,000 | I11: ='12월 지출 상세'!C86 -> 0 | J11: =VLOOKUP(F11, '12월 지출 상세'!$A$4:$G$96, 4, FALSE) -> 49,300,000 | K11: 73.9%
A12: 8. 지정헌금 | B12: ='9월 수입 상세'!B22 -> 20,000,000 | C12: ='12월 수입 상세'!C22 -> 994,000 | D12: =VLOOKUP(A12, '12월 수입 상세'!$A$4:$F$29, 4, FALSE) -> 14,134,000 | E12: 70.7% | F12: 8. 예비비 | H12: ='12월 지출 상세'!B92 -> 32,750,000 | I12: ='12월 지출 상세'!C92 -> 0 | J12: =VLOOKUP(F12, '12월 지출 상세'!$A$4:$G$96, 4, FALSE) -> 17,035,670 | K12: 52.0%
A13: 9. 특별헌금(이웃사랑실천헌금 등) | B13: ='9월 수입 상세'!B23 -> 13,000,000 | C13: ='12월 수입 상세'!C23 -> 0 | D13: =VLOOKUP(A13, '12월 수입 상세'!$A$4:$F$29, 4, FALSE) -> 35,737,090 | E13: 274.9% | F13: 9. 이웃사랑기금적립 | H13: ='12월 지출 상세'!B93 -> 0 | I13: ='12월 지출 상세'!C93 -> 0 | J13: =VLOOKUP(F13, '12월 지출 상세'!$A$4:$G$96, 4, FALSE) -> 36,205,090
A14: 헌금 수입 소계 | B14: =SUM(B5:B13) -> 540,000,000 | C14: =SUM(C5:C13) -> 79,256,050 | D14: =SUM(D5:D13) -> 498,054,222 | E14: 92.2% | F14: 일반 지출 소계 | H14: =SUM(H5:H13) -> 633,304,670 | I14: =SUM(I5:I13) -> 36,016,120 | J14: =SUM(J5:J13) -> 536,443,261 | K14: =J14/H14 -> 84.7%
A15: 전기이월금 전입 | B15: ='12월 수입 상세'!B25 -> 40,000,000 | C15: ='12월 수입 상세'!C25 -> 0 | D15: ='12월 수입 상세'!D25 -> 40,000,000 | E15: 100.0% | F15: 차월이월 | I15: =C14-I14 -> 43,239,930 | J15: =D19-J14 -> 84,915,631
A16: 전기이월금 추가전입 | B16: ='12월 수입 상세'!B26 -> 53,304,670 | C16: ='12월 수입 상세'!C26 -> 0 | D16: ='12월 수입 상세'!D26 -> 53,304,670
A17: 헌금외 기금 | C17: ='12월 수입 상세'!C27 -> 28,000,000 | D17: ='12월 수입 상세'!D27 -> 30,000,000
A18: 전월이월금 | C18: ='12월 수입 상세'!C28 -> 41,675,701
A19: 수입부 총액 | B19: =SUM(B14:B18) -> 633,304,670 | C19: =SUM(C14:C18) -> 148,931,751 | D19: =SUM(D14:D18) -> 621,358,892 | E19: =D19/B19 -> 98.1% | F19: 지출부 총액 | H19: =SUM(H14:H18) -> 633,304,670 | I19: =SUM(I14:I18) -> 79,256,050 | J19: =SUM(J14:J18) -> 621,358,892 | K19: =J19/H19 -> 98.1%
A20: *지정헌금 내역(헌화헌금_840,000원, 대림절묵상집_154,000원)
A21: 기금 및 이월금 현황 (2023.8.31 기준) | F21: 헌금 수입 및 지출 누계 비교
A22: 기금명 | C22: 금액(이자포함) | G22: 2021년 12월 | H22: 2022년 12월 | I22: 2023년 12월
A23: 박명윤이행자선교기금(FAA003023) | C23: 53,656,313 | F23: 수입 누계 | G23: 487,256,908 | H23: 468,106,475 | I23: =D14 -> 498,054,222
A24: 대학교회건축기금(FBA113041) | C24: 0 | F24: 지출 누계 | G24: 407,345,130 | H24: 467,156,289 | I24: =J14 -> 536,443,261
A25: 국캠대학교회선교기금(FEA173001) | C25: 147,405
A26: 이웃사랑기금(FEA183001) | C26: 90,623,173
A27: 유초등부발전기금(FAA213008) | C27: 18,393,529
A28: 기금 총액 | C28: =SUM(C23:C27) -> 162,820,420
A30: *누적 이월금 (2023.3.1 기준 / 기금 및 전입금 제외) | C30: 453,597,137

Sheet 12월 수입 상세
A1: 12월 수입 상세
A2: 회계연도: 2023년도 | F2: (2023-12-31 현재)
A4: 분류항목 | B4: 예산 | C4: 당월 | D4: 누계 | E4: 집행률(%) | F4: 비고
A5: 1. 주일헌금 | B5: 160,000,000 | C5: 15,603,000 | D5: =SUM('11월 수입 상세'!D5+'12월 수입 상세'!C5) -> 129,974,324 | E5: =D5/B5 -> 81.2%
A6: 2. 십일조 | B6: 105,000,000 | C6: 26,185,000 | D6: =SUM('11월 수입 상세'!D6+'12월 수입 상세'!C6) -> 104,913,437 | E6: =D6/B6 -> 99.9%
A7: 3. 월정헌금 | B7: 145,000,000 | C7: 16,020,000 | D7: =SUM('11월 수입 상세'!D7+'12월 수입 상세'!C7) -> 123,625,000 | E7: 85.3%
A8: 4. 감사헌금 | B8: 35,000,000 | C8: 8,664,000 | D8: =SUM('11월 수입 상세'!D8+'12월 수입 상세'!C8) -> 35,677,000 | E8: 101.9%
A9: 5. 교육부헌금 | B9: =SUM(B10:B14) -> 22,000,000 | C9: =SUM(C10:C14) -> 2,585,000 | D9: =SUM('11월 수입 상세'!D9+'12월 수입 상세'!C9) -> 17,102,321 | E9: 77.7%
A10: 유치부 | B10: 700,000 | C10: 75,000 | D10: =SUM('11월 수입 상세'!D10+'12월 수입 상세'!C10) -> 923,049 | E10: 131.9%
A11: 초등부 | B11: 1,000,000 | C11: 118,000 | D11: =SUM('11월 수입 상세'!D11+'12월 수입 상세'!C11) -> 1,323,000 | E11: 132.3%
A12: 중고등부 | B12: 300,000 | C12: 30,000 | D12: =SUM('11월 수입 상세'!D12+'12월 수입 상세'!C12) -> 202,722 | E12: 67.6%
A13: 대학부(신촌) | B13: 7,000,000 | C13: 1,954,000 | D13: =SUM('11월 수입 상세'!D13+'12월 수입 상세'!C13) -> 10,263,338 | E13: 146.6%
A14: 대학부(국제) | B14: 13,000,000 | C14: 408,000 | D14: =SUM('11월 수입 상세'!D14+'12월 수입 상세'!C14) -> 4,390,212 | E14: 33.8%
A15: 6. 절기헌금 | B15: =SUM(B16:B18) -> 35,000,000 | C15: =SUM(C16:C18) -> 9,103,000 | D15: =SUM('11월 수입 상세'!D15+'12월 수입 상세'!C15) -> 32,918,000 | E15: 94.1%
A16: 부활절 | B16: 10,000,000 | C16: 0 | D16: =SUM('11월 수입 상세'!D16+'12월 수입 상세'!C16) -> 14,256,000 | E16: 142.6%
A17: 추수감사절 | B17: 10,000,000 | C17: 0 | D17: =SUM('11월 수입 상세'!D17+'12월 수입 상세'!C17) -> 8,859,000 | E17: 88.6%
A18: 성탄절 | B18: 15,000,000 | C18: 9,103,000 | D18: =SUM('11월 수입 상세'!D18+'12월 수입 상세'!C18) -> 9,803,000 | E18: 65.4%
A19: 7. 선교헌금 | B19: 5,000,000 | C19: =SUM(C20:C21) -> 102,050 | D19: =SUM('11월 수입 상세'!D19+'12월 수입 상세'!C19) -> 3,973,050 | E19: 79.5%
A20: 선교헌금 | B20: 2,500,000 | C20: 102,050 | D20: =SUM('11월 수입 상세'!D20+'12월 수입 상세'!C20) -> 3,973,050 | E20: 158.9%
A21: 특별선교헌금 | B21: 2,500,000 | C21: 0 | D21: =SUM('11월 수입 상세'!D21+'12월 수입 상세'!C21) -> 0 | E21: 0.0%
A22: 8. 지정헌금 | B22: 20,000,000 | C22: 994,000 | D22: =SUM('11월 수입 상세'!D22+'12월 수입 상세'!C22) -> 14,134,000 | E22: 70.7% | F22: 헌화헌금 840,000원 대림절 묵상집 154,000원
A23: 9. 특별헌금(이웃사랑실천헌금 등) | B23: 13,000,000 | C23: 0 | D23: =SUM('11월 수입 상세'!D23+'12월 수입 상세'!C23) -> 35,737,090 | E23: 274.9%
A24: 헌금 수입 소계 | B24: =SUM(B5,B6,B7,B8,B9,B15,B19,B22,B23) -> 540,000,000 | C24: =SUM(C5,C6,C7,C8,C9,C15,C19,C22,C23) -> 79,256,050 | D24: =SUM('11월 수입 상세'!D24+'12월 수입 상세'!C24) -> 498,054,222 | E24: 92.2%
A25: 전기이월금 전입 | B25: 40,000,000 | C25: 0 | D25: 40,000,000 | E25: 100.0%
A26: 전기이월금 추가전입 | B26: 53,304,670 | C26: 0 | D26: 53,304,670
A27: 헌금외 기금 | C27: 28,000,000 | D27: 30,000,000
A28: 전월이월금 | C28: ='11월 약식'!J15 -> 41,675,701
A29: 수입부 총액 | B29: =B24+B25+B26 -> 633,304,670 | C29: =SUM(C24:C28) -> 148,931,751 | D29: =SUM(D24:D28) -> 621,358,892 | E29: 98.1%

Sheet 12월 지출 상세
A1: 12월 지출 상세
A2: 회계연도: 2023년도
G3: (2023-12-31 현재)
A4: 분류항목 | B4: 예산 | C4: 당월 | D4: 누계 | E4: 집행률(%) | G4: 비고
A5: 1. 예배운영비 | B5: =SUM(B6:B9) -> 22,700,000 | C5: =SUM(C6:C9) -> 1,293,300 | D5: ='11월 지출 상세'!D5+'12월 지출 상세'!C5 -> 13,058,600 | E5: =D5/B5 -> 57.5% | F5: =SUM(F6:F9) -> 0
A6: 1.1 성례예식비 | B6: 1,200,000 | C6: 0 | D6: ='11월 지출 상세'!D6+'12월 지출 상세'!C6 -> 588,950 | E6: =D6/B6 -> 49.1% | F6: =IF($F$4="보정", 보정치!E4) -> FALSE
A7: 1.2 주보인쇄비 | B7: 4,000,000 | C7: 315,000 | D7: ='11월 지출 상세'!D7+'12월 지출 상세'!C7 -> 1,690,000 | E7: 42.3% | F7: =IF($F$4="보정", 보정치!E5) -> FALSE
A8: 1.3 강사접대비 | B8: 2,500,000 | C8: 34,650 | D8: ='11월 지출 상세'!D8+'12월 지출 상세'!C8 -> 1,178,900 | E8: 47.2% | F8: =IF($F$4="보정", 보정치!E6) -> FALSE
A9: 1.4 예배준비비 | B9: =SUM(B10:B12) -> 15,000,000 | C9: =SUM(C10:C12) -> 943,650 | D9: ='11월 지출 상세'!D9+'12월 지출 상세'!C9 -> 9,600,750 | E9: 64.0% | F9: =IF($F$4="보정", 보정치!E7) -> FALSE
A10: 1.4.1 성전 꽃꽂이 | B10: 10,000,000 | C10: 600,000 | D10: ='11월 지출 상세'!D10+'12월 지출 상세'!C10 -> 6,800,000 | E10: 68.0% | F10: =IF($F$4="보정", 보정치!E8) -> FALSE
A11: 1.4.2 봉사자 식사 | B11: 4,000,000 | C11: 343,650 | D11: ='11월 지출 상세'!D11+'12월 지출 상세'!C11 -> 2,690,950 | E11: 67.3% | F11: =IF($F$4="보정", 보정치!E9) -> FALSE
A12: 1.4.3 절기행사비 | B12: 1,000,000 | C12: 0 | D12: ='11월 지출 상세'!D12+'12월 지출 상세'!C12 -> 109,800 | E12: 11.0% | F12: =IF($F$4="보정", 보정치!E10) -> FALSE
A13: 2. 교육운영비 | B13: =SUM(B14:B21) -> 30,500,000 | C13: =SUM(C14:C21) -> 1,068,300 | D13: ='11월 지출 상세'!D13+'12월 지출 상세'!C13 -> 22,781,605 | E13: 74.7% | F13: =IF($F$4="보정", 보정치!E11) -> FALSE
A14: 2.1 주일성서연구운영비 | B14: 1,000,000 | C14: 0 | D14: ='11월 지출 상세'!D14+'12월 지출 상세'!C14 -> 0 | E14: 0.0% | F14: =IF($F$4="보정", 보정치!E12) -> FALSE
A15: 2.2 도서 및 교재 | B15: 2,000,000 | C15: 1,068,300 | D15: ='11월 지출 상세'!D15+'12월 지출 상세'!C15 -> 1,699,200 | E15: 85.0% | F15: =IF($F$4="보정", 보정치!E13) -> FALSE | G15: 대림절 묵상집, 다락방 구독료
A16: 2.3 전교인수양회 행사비 | B16: 14,000,000 | C16: 0 | D16: ='11월 지출 상세'!D16+'12월 지출 상세'!C16 -> 16,600,990 | E16: 118.6% | F16: =IF($F$4="보정", 보정치!E14) -> FALSE
A17: 2.4 교목연수비 | B17: 0 | C17: 0 | D17: ='11월 지출 상세'!D17+'12월 지출 상세'!C17 -> 0 | F17: =IF($F$4="보정", 보정치!E15) -> FALSE
A18: 2.5 교역자 교육훈련비 | B18: 3,000,000 | C18: 0 | D18: ='11월 지출 상세'!D18+'12월 지출 상세'!C18 -> 683,140 | E18: 22.8% | F18: =IF($F$4="보정", 보정치!E16) -> FALSE
A19: 2.6 교사세미나/교역자workshop | B19: 3,000,000 | C19: 0 | D19: ='11월 지출 상세'!D19+'12월 지출 상세'!C19 -> 2,166,275 | E19: 72.2% | F19: =IF($F$4="보정", 보정치!E17) -> FALSE
A20: 2.7 교육부 운영비 | B20: 7,500,000 | C20: 0 | D20: ='11월 지출 상세'!D20+'12월 지출 상세'!C20 -> 1,632,000 | E20: 21.8% | F20: =IF($F$4="보정", 보정치!E18) -> FALSE
A21: 2.8 교육운영 예비비 | B21: 0 | C21: 0 | D21: ='11월 지출 상세'!D21+'12월 지출 상세'!C21 -> 0 | F21: =IF($F$4="보정", 보정치!E19) -> FALSE
A22: 3. 선교비 | B22: =SUM(B23,B34,B35,B36,B37) -> 94,480,000 | C22: =SUM(C23,C34:C37) -> 1,400,000 | D22: ='11월 지출 상세'!D22+'12월 지출 상세'!C22 -> 105,210,090 | E22: 111.4% | F22: =SUM(F23,F32,F33,F34,F35) -> 0
A23: 3.1 학원선교 | B23: =SUM(B24:B33) -> 50,960,000 | C23: =SUM(C24:C33) -> 1,000,000 | D23: ='11월 지출 상세'!D23+'12월 지출 상세'!C23 -> 44,000,000 | E23: 86.3% | F23: =SUM(F24:F31) -> 0
A24: 3.1.1 간식나눔행사(신촌) | B24: 2,000,000 | C24: 0 | D24: ='11월 지출 상세'!D24+'12월 지출 상세'!C24 -> 2,000,000 | E24: 100.0% | F24: =IF($F$4="보정", 보정치!E22) -> FALSE
A25: 3.1.2 간식나눔행사(국제) | B25: 1,000,000 | C25: 0 | D25: ='11월 지출 상세'!D25+'12월 지출 상세'!C25 -> 0 | E25: 0.0% | F25: =IF($F$4="보정", 보정치!E23) -> FALSE
A26: 3.1.3 교목실 점심나눔 후원 | B26: 27,000,000 | C26: 0 | D26: ='11월 지출 상세'!D26+'12월 지출 상세'!C26 -> 27,000,000 | E26: 100.0% | F26: =IF($F$4="보정", 보정치!E24) -> FALSE
A27: 3.1.4 연세기독학생연합회 지원 | B27: 3,600,000 | C27: 300,000 | D27: ='11월 지출 상세'!D27+'12월 지출 상세'!C27 -> 3,000,000 | E27: 83.3% | F27: =IF($F$4="보정", 보정치!E25) -> FALSE
A28: 3.1.5 연세기독학생회찬양팀 후원 | B28: 2,400,000 | C28: 200,000 | D28: ='11월 지출 상세'!D28+'12월 지출 상세'!C28 -> 2,000,000 | E28: 83.3% | F28: =IF($F$4="보정", 보정치!E26) -> FALSE
A29: 3.1.6 YMK 후원 | B29: 3,600,000 | C29: 300,000 | D29: ='11월 지출 상세'!D29+'12월 지출 상세'!C29 -> 3,000,000 | E29: 83.3% | F29: =IF($F$4="보정", 보정치!E27) -> FALSE
A30: 3.1.7 통일한마당 | B30: 2,400,000 | C30: 200,000 | D30: ='11월 지출 상세'!D30+'12월 지출 상세'!C30 -> 2,000,000 | E30: 83.3% | F30: =IF($F$4="보정", 보정치!E28) -> FALSE
A31: 3.1.8 리틀언더우드 후원 | B31: 5,000,000 | C31: 0 | D31: ='11월 지출 상세'!D31+'12월 지출 상세'!C31 -> 5,000,000 | E31: 100.0% | F31: 0
A32: 3.1.9 멘토멘티프로그램 | B32: 3,960,000 | C32: 0 | D32: ='11월 지출 상세'!D32+'12월 지출 상세'!C32 -> 0 | E32: 0.0% | F32: 0
A33: 3.1.10 학원선교 기타 | B33: 0 | C33: 0 | D33: ='11월 지출 상세'!D33+'12월 지출 상세'!C33 -> 0 | F33: =IF($F$4="보정", 보정치!E31) -> FALSE
A34: 3.2 국외선교 | B34: 4,800,000 | C34: 400,000 | D34: ='11월 지출 상세'!D34+'12월 지출 상세'!C34 -> 4,000,000 | E34: 83.3% | F34: =IF($F$4="보정", 보정치!E32) -> FALSE | G34: 함정희, 노규래
A35: 3.3 이웃사랑 실천헌금 | B35: 9,000,000 | C35: 0 | D35: ='11월 지출 상세'!D35+'12월 지출 상세'!C35 -> 0 | E35: 0.0% | F35: =IF($F$4="보정", 보정치!E33) -> FALSE
A36: 3.4 지정헌금 | B36: 29,720,000 | C36: 0 | D36: ='11월 지출 상세'!D36+'12월 지출 상세'!C36 -> 57,210,090 | E36: 192.5% | F36: =IF($F$4="보정", 보정치!E34) -> FALSE
A37: 3.5 선교예비금 | B37: 0 | C37: 0 | D37: ='11월 지출 상세'!D37+'12월 지출 상세'!C37 -> 0 | F37: =IF($F$4="보정", 보정치!E35) -> FALSE
A38: 4. 친교행사운영비 | B38: =SUM(B39:B49)-B47 -> 27,600,000 | C38: =SUM(C39:C46,C48:C49) -> 1,697,520 | D38: ='11월 지출 상세'!D38+'12월 지출 상세'!C38 -> 14,306,020 | E38: 51.8% | F38: =SUM(F39:F49)-F47 -> 0
A39: 4.1 주일공동식사 | B39: 7,000,000 | C39: 0 | D39: ='11월 지출 상세'!D39+'12월 지출 상세'!C39 -> 4,429,400 | E39: 63.3% | F39: =IF($F$4="보정", 보정치!E37) -> FALSE
A40: 4.2 야외예배 행사비 | B40: 0 | C40: 0 | D40: ='11월 지출 상세'!D40+'12월 지출 상세'!C40 -> 0 | F40: =IF($F$4="보정", 보정치!E38) -> FALSE
A41: 4.3 경로행사비 | B41: 1,500,000 | C41: 0 | D41: ='11월 지출 상세'!D41+'12월 지출 상세'!C41 -> 1,500,000 | E41: 100.0% | F41: =IF($F$4="보정", 보정치!E39) -> FALSE
A42: 4.4 성탄행사비 | B42: 2,100,000 | C42: 125,000 | D42: ='11월 지출 상세'!D42+'12월 지출 상세'!C42 -> 125,000 | E42: 6.0% | F42: =IF($F$4="보정", 보정치!E40) -> FALSE | G42: 성탄음악회 악보구입비
A43: 4.5 주일다과비 | B43: 5,000,000 | C43: 75,420 | D43: ='11월 지출 상세'!D43+'12월 지출 상세'!C43 -> 921,290 | E43: 18.4% | F43: =IF($F$4="보정", 보정치!E41) -> FALSE
A44: 4.6 경조비 | B44: 4,000,000 | C44: 497,100 | D44: ='11월 지출 상세'!D44+'12월 지출 상세'!C44 -> 3,274,100 | E44: 81.9% | F44: =IF($F$4="보정", 보정치!E42) -> FALSE
A45: 4.7 교우친교비 | B45: 2,000,000 | C45: 0 | D45: ='11월 지출 상세'!D45+'12월 지출 상세'!C45 -> 1,096,440 | E45: 54.8% | F45: =IF($F$4="보정", 보정치!E43) -> FALSE
A46: 4.8 홍보출판비 | B46: 4,000,000 | C46: =C47 -> 1,000,000 | D46: ='11월 지출 상세'!D46+'12월 지출 상세'!C46 -> 2,000,000 | E46: 50.0% | F46: =IF($F$4="보정", 보정치!E44) -> FALSE
A47: 4.8.1 대학교회 회지 | B47: 4,000,000 | C47: 1,000,000 | D47: ='11월 지출 상세'!D47+'12월 지출 상세'!C47 -> 2,000,000 | E47: 50.0% | F47: =IF($F$4="보정", 보정치!E45) -> FALSE
A48: 4.9 교회봉사자 선물 | B48: 2,000,000 | C48: 0 | D48: ='11월 지출 상세'!D48+'12월 지출 상세'!C48 -> 959,790 | E48: 48.0% | F48: =IF($F$4="보정", 보정치!E46) -> FALSE
A49: 4.10 친교행사 예비비 | B49: 0 | C49: 0 | D49: ='11월 지출 상세'!D49+'12월 지출 상세'!C49 -> 0 | F49: =IF($F$4="보정", 보정치!E47) -> FALSE
A50: 5. 사례비 | B50: =SUM(B51:B66,B69,B70) -> 266,770,000 | C50: =SUM(C51:C66,C69:C70) -> 23,075,000 | D50: ='11월 지출 상세'!D50+'12월 지출 상세'!C50 -> 205,159,000 | E50: 76.9% | F50: =SUM(F51:F70) -> 0
A51: 5.1 외부강사 설교 사례 | B51: 12,000,000 | C51: 1,500,000 | D51: ='11월 지출 상세'!D51+'12월 지출 상세'!C51 -> 10,800,000 | E51: 90.0% | F51: =IF($F$4="보정", 보정치!E47) -> FALSE
A52: 5.2 외부강사 설교 사례(대학부-국제) | B52: 2,400,000 | C52: 200,000 | D52: ='11월 지출 상세'!D52+'12월 지출 상세'!C52 -> 200,000 | E52: 8.3% | F52: =IF($F$4="보정", 보정치!E48) -> FALSE
A53: 5.3 절기 예배 연주자 | B53: 800,000 | C53: 0 | D53: ='11월 지출 상세'!D53+'12월 지출 상세'!C53 -> 0 | E53: 0.0% | F53: =IF($F$4="보정", 보정치!E49) -> FALSE
A54: 5.4 국악 예배 연주자 | B54: 1,800,000 | C54: 0 | D54: ='11월 지출 상세'!D54+'12월 지출 상세'!C54 -> 1,800,000 | E54: 100.0% | F54: =IF($F$4="보정", 보정치!E50) -> FALSE
A55: 5.5 봉헌송 사례 | B55: 450,000 | C55: 0 | D55: ='11월 지출 상세'!D55+'12월 지출 상세'!C55 -> 300,000 | E55: 66.7% | F55: =IF($F$4="보정", 보정치!E51) -> FALSE
A56: 5.6 주일성서연구 강사사례 | B56: 4,000,000 | C56: 1,000,000 | D56: ='11월 지출 상세'!D56+'12월 지출 상세'!C56 -> 4,000,000 | E56: 100.0% | F56: =IF($F$4="보정", 보정치!E52) -> FALSE
A57: 5.8 담임목사 | B57: 14,400,000 | C57: 1,200,000 | D57: ='11월 지출 상세'!D57+'12월 지출 상세'!C57 -> 12,000,000 | E57: 83.3% | F57: =IF($F$4="보정", 보정치!E53) -> FALSE
A58: 5.9 동역목사 | B58: 12,000,000 | C58: 400,000 | D58: ='11월 지출 상세'!D58+'12월 지출 상세'!C58 -> 4,200,000 | E58: 35.0% | F58: =IF($F$4="보정", 보정치!E54) -> FALSE
A59: 5.10 전임교역자 | B59: 100,000,000 | C59: 10,000,000 | D59: ='11월 지출 상세'!D59+'12월 지출 상세'!C59 -> 79,900,000 | E59: 79.9% | F59: =IF($F$4="보정", 보정치!E55) -> FALSE | G59: 전임교역자 퇴직금 정산
A60: 5.11 성가대지휘자 | B60: 12,000,000 | C60: 1,000,000 | D60: ='11월 지출 상세'!D60+'12월 지출 상세'!C60 -> 10,000,000 | E60: 83.3% | F60: =IF($F$4="보정", 보정치!E56) -> FALSE
A61: 5.12 오르가니스트 | B61: 12,000,000 | C61: 1,000,000 | D61: ='11월 지출 상세'!D61+'12월 지출 상세'!C61 -> 10,000,000 | E61: 83.3% | F61: =IF($F$4="보정", 보정치!E57) -> FALSE
A62: 5.13 교육부서 담당교역자 | B62: 38,400,000 | C62: 2,400,000 | D62: ='11월 지출 상세'!D62+'12월 지출 상세'!C62 -> 28,800,000 | E62: 75.0% | F62: =IF($F$4="보정", 보정치!E58) -> FALSE
A63: 5.14 성인 솔리스트 | B63: 23,520,000 | C63: 1,960,000 | D63: ='11월 지출 상세'!D63+'12월 지출 상세'!C63 -> 19,260,000 | E63: 81.9% | F63: =IF($F$4="보정", 보정치!E59) -> FALSE
A64: 5.15 통역자 | B64: 4,000,000 | C64: 375,000 | D64: ='11월 지출 상세'!D64+'12월 지출 상세'!C64 -> 3,300,000 | E64: 82.5% | F64: =IF($F$4="보정", 보정치!E60) -> FALSE
A65: 5.16 방송담당 | B65: 12,000,000 | C65: 1,125,000 | D65: ='11월 지출 상세'!D65+'12월 지출 상세'!C65 -> 9,900,000 | E65: 82.5% | F65: =IF($F$4="보정", 보정치!E61) -> FALSE
A66: 5.17 용원 사례비 | B66: =SUM(B67:B68) -> 11,000,000 | C66: =SUM(C67:C68) -> 915,000 | D66: ='11월 지출 상세'!D66+'12월 지출 상세'!C66 -> 8,499,000 | E66: 77.3% | F66: =IF($F$4="보정", 보정치!E62) -> FALSE
A67: 5.17.1 관리실 여사 | B67: 6,000,000 | C67: 510,000 | D67: ='11월 지출 상세'!D67+'12월 지출 상세'!C67 -> 5,016,000 | E67: 83.6% | F67: =IF($F$4="보정", 보정치!E63) -> FALSE
A68: 5.17.2 관리실 반장 | B68: 5,000,000 | C68: 405,000 | D68: ='11월 지출 상세'!D68+'12월 지출 상세'!C68 -> 3,483,000 | E68: 69.7% | F68: =IF($F$4="보정", 보정치!E64) -> FALSE
A69: 5.18 퇴직위로금 | B69: 3,000,000 | C69: 0 | D69: ='11월 지출 상세'!D69+'12월 지출 상세'!C69 -> 0 | E69: 0.0% | F69: =IF($F$4="보정", 보정치!E65) -> FALSE
A70: 5.19 기타(교역자휴가 및 기타인건비) | B70: 3,000,000 | C70: 0 | D70: ='11월 지출 상세'!D70+'12월 지출 상세'!C70 -> 2,200,000 | E70: 73.3% | F70: =IF($F$4="보정", 보정치!E66) -> FALSE
A71: 6. 행정운영비 | B71: =SUM(B72:B74,B81,B82,B83,B84,B85) -> 91,784,670 | C71: =SUM(C72:C74,C81:C85) -> 7,482,000 | D71: ='11월 지출 상세'!D71+'12월 지출 상세'!C71 -> 73,387,186 | E71: 80.0% | F71: =SUM(F72:F74,F81,F82,F83,F84,F85) -> 0
A72: 6.1 회의 및 교회위원회 | B72: 6,131,500 | C72: 670,160 | D72: ='11월 지출 상세'!D72+'12월 지출 상세'!C72 -> 4,652,110 | E72: 75.9% | F72: =IF($F$4="보정", 보정치!E70) -> FALSE
A73: 6.2 사무운영비 | B73: 13,377,270 | C73: 651,830 | D73: ='11월 지출 상세'!D73+'12월 지출 상세'!C73 -> 7,889,316 | E73: =D73/B73 -> 59.0% | F73: =IF($F$4="보정", 보정치!E71) -> FALSE
A74: 6.3 부서운영비 | B74: =SUM(B75:B80) -> 52,204,200 | C74: =SUM(C75:C80) -> 4,985,500 | D74: ='11월 지출 상세'!D74+'12월 지출 상세'!C74 -> 46,245,180 | E74: 88.6% | F74: =IF($F$4="보정", 보정치!E72) -> FALSE
A75: 6.3.1 성가대 | B75: 14,504,200 | C75: 1,375,000 | D75: ='11월 지출 상세'!D75+'12월 지출 상세'!C75 -> 12,813,200 | E75: 88.3% | F75: =IF($F$4="보정", 보정치!E73) -> FALSE
A76: 6.3.2 유치부 | B76: 4,500,000 | C76: 400,000 | D76: ='11월 지출 상세'!D76+'12월 지출 상세'!C76 -> 4,100,000 | E76: 91.1% | F76: =IF($F$4="보정", 보정치!E74) -> FALSE
A77: 6.3.3 초등부 | B77: 7,100,000 | C77: 600,000 | D77: ='11월 지출 상세'!D77+'12월 지출 상세'!C77 -> 6,500,000 | E77: 91.5% | F77: =IF($F$4="보정", 보정치!E75) -> FALSE
A78: 6.3.4 중고등부 | B78: 5,100,000 | C78: 500,000 | D78: ='11월 지출 상세'!D78+'12월 지출 상세'!C78 -> 5,100,000 | E78: 100.0% | F78: =IF($F$4="보정", 보정치!E76) -> FALSE
A79: 6.3.5 대학부(신촌) | B79: 12,000,000 | C79: 1,210,500 | D79: ='11월 지출 상세'!D79+'12월 지출 상세'!C79 -> 9,631,980 | E79: 80.3% | F79: =IF($F$4="보정", 보정치!E77) -> FALSE
A80: 6.3.6 대학부(국제) | B80: 9,000,000 | C80: 900,000 | D80: ='11월 지출 상세'!D80+'12월 지출 상세'!C80 -> 8,100,000 | E80: 90.0% | F80: =IF($F$4="보정", 보정치!E78) -> FALSE
A81: 6.4 목회활동비 | B81: 7,571,700 | C81: 409,900 | D81: ='11월 지출 상세'!D81+'12월 지출 상세'!C81 -> 6,193,040 | E81: 81.8% | F81: =IF($F$4="보정", 보정치!E79) -> FALSE
A82: 6.5 용품 및 수리비 | B82: 5,000,000 | C82: 100,900 | D82: ='11월 지출 상세'!D82+'12월 지출 상세'!C82 -> 4,622,280 | E82: 92.4% | F82: =IF($F$4="보정", 보정치!E80) -> FALSE
A83: 6.6 연료비 및 통신비 | B83: 4,000,000 | C83: 663,710 | D83: ='11월 지출 상세'!D83+'12월 지출 상세'!C83 -> 2,695,260 | E83: =D83/B83 -> 67.4% | F83: =IF($F$4="보정", 보정치!E81) -> FALSE
A84: 6.7 악기구입 및 보수 | B84: 3,500,000 | C84: 0 | D84: ='11월 지출 상세'!D84+'12월 지출 상세'!C84 -> 1,090,000 | E84: =D84/B84 -> 31.1% | F84: =IF($F$4="보정", 보정치!E82) -> FALSE
A85: 6.8 행정운영 예비비 | B85: 0 | C85: 0 | D85: ='11월 지출 상세'!D85+'12월 지출 상세'!C85 -> 0 | F85: =IF($F$4="보정", 보정치!E83) -> FALSE
A86: 7. 장학금 | B86: =SUM(B87:B91) -> 66,720,000 | C86: =SUM(C87:C91) -> 0 | D86: ='11월 지출 상세'!D86+'12월 지출 상세'!C86 -> 49,300,000 | E86: 73.9% | F86: =SUM(F87:F91) -> 0
A87: 7.1 교회학교 교사 | B87: 21,000,000 | C87: 0 | D87: ='11월 지출 상세'!D87+'12월 지출 상세'!C87 -> 8,400,000 | E87: 40.0% | F87: =IF($F$4="보정", 보정치!E83) -> FALSE
A88: 7.2 신촌 대학청년부 | B88: 12,000,000 | C88: 0 | D88: ='11월 지출 상세'!D88+'12월 지출 상세'!C88 -> 10,500,000 | E88: 87.5% | F88: =IF($F$4="보정", 보정치!E84) -> FALSE
A89: 7.3 국제 대학부 | B89: 9,000,000 | C89: 0 | D89: ='11월 지출 상세'!D89+'12월 지출 상세'!C89 -> 7,200,000 | E89: 80.0% | F89: =IF($F$4="보정", 보정치!E85) -> FALSE
A90: 7.4 학생 솔리스트 | B90: 16,320,000 | C90: 0 | D90: ='11월 지출 상세'!D90+'12월 지출 상세'!C90 -> 15,640,000 | E90: 95.8% | F90: =IF($F$4="보정", 보정치!E86) -> FALSE
A91: 7.5 기숙사지원 | B91: 8,400,000 | C91: 0 | D91: ='11월 지출 상세'!D91+'12월 지출 상세'!C91 -> 7,560,000 | E91: 90.0% | F91: =IF($F$4="보정", 보정치!E87) -> FALSE
A92: 8. 예비비 | B92: 32,750,000 | C92: 0 | D92: ='11월 지출 상세'!D92+'12월 지출 상세'!C92 -> 17,035,670 | E92: 52.0% | F92: =IF($F$4="보정", 보정치!E90) -> FALSE
A93: 9. 이웃사랑기금적립 | B93: 0 | C93: 0 | D93: ='11월 지출 상세'!D93+'12월 지출 상세'!C93 -> 36,205,090 | E93: 0.0% | F93: =IF($F$4="보정", 보정치!E91) -> FALSE
A94: 일반 지출 소계 | B94: =SUM(B5,B13,B22,B38,B50,B71,B86,B92,B93) -> 633,304,670 | C94: =SUM(C5,C13,C22,C38,C50,C71,C86,C92,C93) -> 36,016,120 | D94: ='11월 지출 상세'!D94+'12월 지출 상세'!C94 -> 536,443,261 | E94: 84.7% | F94: =SUM(F86,F71,F50,F38,F22,F13,F5) -> 0
A95: 차월이월 | C95: ='12월 수입 상세'!C24-'12월 지출 상세'!C94 -> 43,239,930 | D95: ='12월 수입 상세'!D29-'12월 지출 상세'!D94 -> 84,915,631
A96: 지출부 총액 | B96: =B94+B95 -> 633,304,670 | C96: =C94+C95 -> 79,256,050 | D96: =D94+D95 -> 621,358,892 | E96: 98.1%

Sheet 1월 약식
A1: 2023년 1월 결산보고서(약식)
A2: 회계년도: 2023년도 | I2: (2023-1-31 현재)
A3: 수입의 부 | F3: 지출의 부
A4: 항 목 | B4: 예산 | C4: 당월 수입 | D4: 수입 누계 | E4: 집행률(%) | F4: 항 목 | H4: 예산 | I4: 당월 지출 | J4: 지출 누계 | K4: 집행률(%)
A5: 1. 주일헌금 | B5: ='9월 수입 상세'!B5 -> 160,000,000 | C5: ='1월 수입 상세'!C5 -> 9,769,900 | D5: =VLOOKUP(A5, '1월 수입 상세'!$A$4:$F$29, 4, FALSE) -> 139,744,224 | E5: =D5/B5 -> 87.3% | F5: 1. 예배운영비 | H5: ='1월 지출 상세'!B5 -> 22,700,000 | I5: ='1월 지출 상세'!C5 -> 2,486,150 | J5: =VLOOKUP(F5, '1월 지출 상세'!$A$4:$G$96, 4, FALSE) -> 15,544,750 | K5: =J5/H5 -> 68.5%
A6: 2. 십일조 | B6: ='9월 수입 상세'!B6 -> 105,000,000 | C6: ='1월 수입 상세'!C6 -> 8,532,000 | D6: =VLOOKUP(A6, '1월 수입 상세'!$A$4:$F$29, 4, FALSE) -> 113,445,437 | E6: 108.0% | F6: 2. 교육운영비 | H6: ='1월 지출 상세'!B13 -> 30,500,000 | I6: ='1월 지출 상세'!C13 -> 520,000 | J6: =VLOOKUP(F6, '1월 지출 상세'!$A$4:$G$96, 4, FALSE) -> 23,301,605 | K6: 76.4%
A7: 3. 월정헌금 | B7: ='9월 수입 상세'!B7 -> 145,000,000 | C7: ='1월 수입 상세'!C7 -> 9,850,000 | D7: =VLOOKUP(A7, '1월 수입 상세'!$A$4:$F$29, 4, FALSE) -> 133,475,000 | E7: 92.1% | F7: 3. 선교비 | H7: ='1월 지출 상세'!B22 -> 94,480,000 | I7: ='1월 지출 상세'!C22 -> 1,868,300 | J7: =VLOOKUP(F7, '1월 지출 상세'!$A$4:$G$96, 4, FALSE) -> 107,078,390 | K7: 113.3%
A8: 4. 감사헌금 | B8: ='9월 수입 상세'!B8 -> 35,000,000 | C8: ='1월 수입 상세'!C8 -> 3,691,000 | D8: =VLOOKUP(A8, '1월 수입 상세'!$A$4:$F$29, 4, FALSE) -> 39,368,000 | E8: 112.5% | F8: 4. 친교행사운영비 | H8: ='1월 지출 상세'!B38 -> 27,600,000 | I8: ='1월 지출 상세'!C38 -> 3,721,350 | J8: =VLOOKUP(F8, '1월 지출 상세'!$A$4:$G$96, 4, FALSE) -> 18,027,370 | K8: 65.3%
A9: 5. 교육부헌금 | B9: ='9월 수입 상세'!B9 -> 22,000,000 | C9: ='1월 수입 상세'!C9 -> 1,943,000 | D9: =VLOOKUP(A9, '1월 수입 상세'!$A$4:$F$29, 4, FALSE) -> 19,045,321 | E9: 86.6% | F9: 5. 사례비 | H9: ='1월 지출 상세'!B50 -> 266,770,000 | I9: ='1월 지출 상세'!C50 -> 22,106,000 | J9: =VLOOKUP(F9, '1월 지출 상세'!$A$4:$G$96, 4, FALSE) -> 227,265,000 | K9: 85.2%
A10: 6. 절기헌금 | B10: ='9월 수입 상세'!B15 -> 35,000,000 | C10: ='1월 수입 상세'!C15 -> 0 | D10: =VLOOKUP(A10, '1월 수입 상세'!$A$4:$F$29, 4, FALSE) -> 32,918,000 | E10: 94.1% | F10: 6. 행정운영비 | H10: ='1월 지출 상세'!B71 -> 91,784,670 | I10: ='1월 지출 상세'!C71 -> 7,365,100 | J10: =VLOOKUP(F10, '1월 지출 상세'!$A$4:$G$96, 4, FALSE) -> 80,752,286 | K10: 88.0%
A11: 7. 선교헌금 | B11: ='9월 수입 상세'!B19 -> 5,000,000 | C11: ='1월 수입 상세'!C19 -> 0 | D11: =VLOOKUP(A11, '1월 수입 상세'!$A$4:$F$29, 4, FALSE) -> 3,973,050 | E11: 79.5% | F11: 7. 장학금 | H11: ='1월 지출 상세'!B86 -> 66,720,000 | I11: ='1월 지출 상세'!C86 -> 0 | J11: =VLOOKUP(F11, '1월 지출 상세'!$A$4:$G$96, 4, FALSE) -> 49,300,000 | K11: 73.9%
A12: 8. 지정헌금 | B12: ='9월 수입 상세'!B22 -> 20,000,000 | C12: ='1월 수입 상세'!C22 -> 3,570,000 | D12: =VLOOKUP(A12, '1월 수입 상세'!$A$4:$F$29, 4, FALSE) -> 17,704,000 | E12: 88.5% | F12: 8. 예비비 | H12: ='1월 지출 상세'!B92 -> 32,750,000 | I12: ='1월 지출 상세'!C92 -> 10,000,000 | J12: =VLOOKUP(F12, '1월 지출 상세'!$A$4:$G$96, 4, FALSE) -> 27,035,670 | K12: 82.6%
A13: 9. 특별헌금(이웃사랑실천헌금 등) | B13: ='9월 수입 상세'!B23 -> 13,000,000 | C13: ='1월 수입 상세'!C23 -> 0 | D13: =VLOOKUP(A13, '1월 수입 상세'!$A$4:$F$29, 4, FALSE) -> 35,737,090 | E13: 274.9% | F13: 9. 이웃사랑기금적립 | H13: ='1월 지출 상세'!B93 -> 0 | I13: ='1월 지출 상세'!C93 -> 0 | J13: =VLOOKUP(F13, '1월 지출 상세'!$A$4:$G$96, 4, FALSE) -> 36,205,090
A14: 헌금 수입 소계 | B14: =SUM(B5:B13) -> 540,000,000 | C14: =SUM(C5:C13) -> 37,355,900 | D14: =SUM(D5:D13) -> 535,410,122 | E14: 99.2% | F14: 일반 지출 소계 | H14: =SUM(H5:H13) -> 633,304,670 | I14: =SUM(I5:I13) -> 48,066,900 | J14: =SUM(J5:J13) -> 584,510,161 | K14: =J14/H14 -> 92.3%
A15: 전기이월금 전입 | B15: ='1월 수입 상세'!B25 -> 40,000,000 | C15: ='1월 수입 상세'!C25 -> 0 | D15: ='1월 수입 상세'!D25 -> 40,000,000 | E15: 100.0% | F15: 차월이월 | I15: =C14-I14 -> -10,711,000 | J15: =D19-J14 -> 74,204,631
A16: 전기이월금 추가전입 | B16: ='1월 수입 상세'!B26 -> 53,304,670 | C16: ='1월 수입 상세'!C26 -> 0 | D16: ='1월 수입 상세'!D26 -> 53,304,670
A17: 헌금외 기금 | C17: ='1월 수입 상세'!C27 -> 0 | D17: ='1월 수입 상세'!D27 -> 30,000,000
A18: 전월이월금 | C18: ='1월 수입 상세'!C28 -> 84,915,631
A19: 수입부 총액 | B19: =SUM(B14:B18) -> 633,304,670 | C19: =SUM(C14:C18) -> 122,271,531 | D19: =SUM(D14:D18) -> 658,714,792 | E19: =D19/B19 -> 104.0% | F19: 지출부 총액 | H19: =SUM(H14:H18) -> 633,304,670 | I19: =SUM(I14:I18) -> 37,355,900 | J19: =SUM(J14:J18) -> 658,714,792 | K19: =J19/H19 -> 104.0%
A20: *지정헌금 내역(헌화헌금_3,570,000원)
A21: 기금 및 이월금 현황 (2023.8.31 기준) | F21: 헌금 수입 및 지출 누계 비교
A22: 기금명 | C22: 금액(이자포함) | G22: 2022년 1월 | H22: 2023년 1월 | I22: 2024년 1월
A23: 박명윤이행자선교기금(FAA003023) | C23: 53,656,313 | F23: 수입 누계 | G23: 524,601,108 | H23: 530,848,475 | I23: =D14 -> 535,410,122
A24: 대학교회건축기금(FBA113041) | C24: 0 | F24: 지출 누계 | G24: 440,038,131 | H24: 505,404,958 | I24: =J14 -> 584,510,161
A25: 국캠대학교회선교기금(FEA173001) | C25: 147,405
A26: 이웃사랑기금(FEA183001) | C26: 90,623,173
A27: 유초등부발전기금(FAA213008) | C27: 18,393,529
A28: 기금 총액 | C28: =SUM(C23:C27) -> 162,820,420
A30: *누적 이월금 (2023.3.1 기준 / 기금 및 전입금 제외) | C30: 453,597,137

Sheet 1월 수입 상세
A1: 1월 수입 상세
A2: 회계연도: 2023년도 | F2: (2023-1-31 현재)
A4: 분류항목 | B4: 예산 | C4: 당월 | D4: 누계 | E4: 집행률(%) | F4: 비고
A5: 1. 주일헌금 | B5: 160,000,000 | C5: 9,769,900 | D5: =SUM('12월 수입 상세'!D5+'1월 수입 상세'!C5) -> 139,744,224 | E5: =D5/B5 -> 87.3%
A6: 2. 십일조 | B6: 105,000,000 | C6: 8,532,000 | D6: =SUM('12월 수입 상세'!D6+'1월 수입 상세'!C6) -> 113,445,437 | E6: =D6/B6 -> 108.0%
A7: 3. 월정헌금 | B7: 145,000,000 | C7: 9,850,000 | D7: =SUM('12월 수입 상세'!D7+'1월 수입 상세'!C7) -> 133,475,000 | E7: 92.1%
A8: 4. 감사헌금 | B8: 35,000,000 | C8: 3,691,000 | D8: =SUM('12월 수입 상세'!D8+'1월 수입 상세'!C8) -> 39,368,000 | E8: 112.5%
A9: 5. 교육부헌금 | B9: =SUM(B10:B14) -> 22,000,000 | C9: =SUM(C10:C14) -> 1,943,000 | D9: =SUM('12월 수입 상세'!D9+'1월 수입 상세'!C9) -> 19,045,321 | E9: 86.6%
A10: 유치부 | B10: 700,000 | C10: 39,000 | D10: =SUM('12월 수입 상세'!D10+'1월 수입 상세'!C10) -> 962,049 | E10: 137.4%
A11: 초등부 | B11: 1,000,000 | C11: 146,000 | D11: =SUM('12월 수입 상세'!D11+'1월 수입 상세'!C11) -> 1,469,000 | E11: 146.9%
A12: 중고등부 | B12: 300,000 | C12: 20,000 | D12: =SUM('12월 수입 상세'!D12+'1월 수입 상세'!C12) -> 222,722 | E12: 74.2%
A13: 대학부(신촌) | B13: 7,000,000 | C13: 1,619,000 | D13: =SUM('12월 수입 상세'!D13+'1월 수입 상세'!C13) -> 11,882,338 | E13: 169.7%
A14: 대학부(국제) | B14: 13,000,000 | C14: 119,000 | D14: =SUM('12월 수입 상세'!D14+'1월 수입 상세'!C14) -> 4,509,212 | E14: 34.7%
A15: 6. 절기헌금 | B15: =SUM(B16:B18) -> 35,000,000 | C15: =SUM(C16:C18) -> 0 | D15: =SUM('12월 수입 상세'!D15+'1월 수입 상세'!C15) -> 32,918,000 | E15: 94.1%
A16: 부활절 | B16: 10,000,000 | C16: 0 | D16: =SUM('12월 수입 상세'!D16+'1월 수입 상세'!C16) -> 14,256,000 | E16: 142.6%
A17: 추수감사절 | B17: 10,000,000 | C17: 0 | D17: =SUM('12월 수입 상세'!D17+'1월 수입 상세'!C17) -> 8,859,000 | E17: 88.6%
A18: 성탄절 | B18: 15,000,000 | C18: 0 | D18: =SUM('12월 수입 상세'!D18+'1월 수입 상세'!C18) -> 9,803,000 | E18: 65.4%
A19: 7. 선교헌금 | B19: 5,000,000 | C19: =SUM(C20:C21) -> 0 | D19: =SUM('12월 수입 상세'!D19+'1월 수입 상세'!C19) -> 3,973,050 | E19: 79.5%
A20: 선교헌금 | B20: 2,500,000 | C20: 0 | D20: =SUM('12월 수입 상세'!D20+'1월 수입 상세'!C20) -> 3,973,050 | E20: 158.9%
A21: 특별선교헌금 | B21: 2,500,000 | C21: 0 | D21: =SUM('12월 수입 상세'!D21+'1월 수입 상세'!C21) -> 0 | E21: 0.0%
A22: 8. 지정헌금 | B22: 20,000,000 | C22: 3,570,000 | D22: =SUM('12월 수입 상세'!D22+'1월 수입 상세'!C22) -> 17,704,000 | E22: 88.5% | F22: 헌화헌금 3,570,000원
A23: 9. 특별헌금(이웃사랑실천헌금 등) | B23: 13,000,000 | C23: 0 | D23: =SUM('12월 수입 상세'!D23+'1월 수입 상세'!C23) -> 35,737,090 | E23: 274.9%
A24: 헌금 수입 소계 | B24: =SUM(B5,B6,B7,B8,B9,B15,B19,B22,B23) -> 540,000,000 | C24: =SUM(C5,C6,C7,C8,C9,C15,C19,C22,C23) -> 37,355,900 | D24: =SUM('12월 수입 상세'!D24+'1월 수입 상세'!C24) -> 535,410,122 | E24: 99.2%
A25: 전기이월금 전입 | B25: 40,000,000 | C25: 0 | D25: 40,000,000 | E25: 100.0%
A26: 전기이월금 추가전입 | B26: 53,304,670 | C26: 0 | D26: 53,304,670
A27: 헌금외 기금 | C27: 0 | D27: 30,000,000
A28: 전월이월금 | C28: ='12월 약식'!J15 -> 84,915,631
A29: 수입부 총액 | B29: =B24+B25+B26 -> 633,304,670 | C29: =SUM(C24:C28) -> 122,271,531 | D29: =SUM(D24:D28) -> 658,714,792 | E29: 104.0%

Sheet 1월 지출 상세
A1: 1월 지출 상세
A2: 회계연도: 2023년도
G3: (2023-1-31 현재)
A4: 분류항목 | B4: 예산 | C4: 당월 | D4: 누계 | E4: 집행률(%) | G4: 비고
A5: 1. 예배운영비 | B5: =SUM(B6:B9) -> 22,700,000 | C5: =SUM(C6:C9) -> 2,486,150 | D5: ='12월 지출 상세'!D5+'1월 지출 상세'!C5 -> 15,544,750 | E5: =D5/B5 -> 68.5% | F5: =SUM(F6:F9) -> 0
A6: 1.1 성례예식비 | B6: 1,200,000 | C6: 336,400 | D6: ='12월 지출 상세'!D6+'1월 지출 상세'!C6 -> 925,350 | E6: =D6/B6 -> 77.1% | F6: =IF($F$4="보정", 보정치!E4) -> FALSE
A7: 1.2 주보인쇄비 | B7: 4,000,000 | C7: 185,200 | D7: ='12월 지출 상세'!D7+'1월 지출 상세'!C7 -> 1,875,200 | E7: 46.9% | F7: =IF($F$4="보정", 보정치!E5) -> FALSE
A8: 1.3 강사접대비 | B8: 2,500,000 | C8: 210,700 | D8: ='12월 지출 상세'!D8+'1월 지출 상세'!C8 -> 1,389,600 | E8: 55.6% | F8: =IF($F$4="보정", 보정치!E6) -> FALSE
A9: 1.4 예배준비비 | B9: =SUM(B10:B12) -> 15,000,000 | C9: =SUM(C10:C12) -> 1,753,850 | D9: ='12월 지출 상세'!D9+'1월 지출 상세'!C9 -> 11,354,600 | E9: 75.7% | F9: =IF($F$4="보정", 보정치!E7) -> FALSE
A10: 1.4.1 성전 꽃꽂이 | B10: 10,000,000 | C10: 1,240,000 | D10: ='12월 지출 상세'!D10+'1월 지출 상세'!C10 -> 8,040,000 | E10: 80.4% | F10: =IF($F$4="보정", 보정치!E8) -> FALSE
A11: 1.4.2 봉사자 식사 | B11: 4,000,000 | C11: 484,350 | D11: ='12월 지출 상세'!D11+'1월 지출 상세'!C11 -> 3,175,300 | E11: 79.4% | F11: =IF($F$4="보정", 보정치!E9) -> FALSE
A12: 1.4.3 절기행사비 | B12: 1,000,000 | C12: 29,500 | D12: ='12월 지출 상세'!D12+'1월 지출 상세'!C12 -> 139,300 | E12: 13.9% | F12: =IF($F$4="보정", 보정치!E10) -> FALSE
A13: 2. 교육운영비 | B13: =SUM(B14:B21) -> 30,500,000 | C13: =SUM(C14:C21) -> 520,000 | D13: ='12월 지출 상세'!D13+'1월 지출 상세'!C13 -> 23,301,605 | E13: 76.4% | F13: =IF($F$4="보정", 보정치!E11) -> FALSE
A14: 2.1 주일성서연구운영비 | B14: 1,000,000 | C14: 0 | D14: ='12월 지출 상세'!D14+'1월 지출 상세'!C14 -> 0 | E14: 0.0% | F14: =IF($F$4="보정", 보정치!E12) -> FALSE
A15: 2.2 도서 및 교재 | B15: 2,000,000 | C15: 0 | D15: ='12월 지출 상세'!D15+'1월 지출 상세'!C15 -> 1,699,200 | E15: 85.0% | F15: =IF($F$4="보정", 보정치!E13) -> FALSE
A16: 2.3 전교인수양회 행사비 | B16: 14,000,000 | C16: 0 | D16: ='12월 지출 상세'!D16+'1월 지출 상세'!C16 -> 16,600,990 | E16: 118.6% | F16: =IF($F$4="보정", 보정치!E14) -> FALSE
A17: 2.4 교목연수비 | B17: 0 | C17: 0 | D17: ='12월 지출 상세'!D17+'1월 지출 상세'!C17 -> 0 | F17: =IF($F$4="보정", 보정치!E15) -> FALSE
A18: 2.5 교역자 교육훈련비 | B18: 3,000,000 | C18: 41,400 | D18: ='12월 지출 상세'!D18+'1월 지출 상세'!C18 -> 724,540 | E18: 24.2% | F18: =IF($F$4="보정", 보정치!E16) -> FALSE
A19: 2.6 교사세미나/교역자workshop | B19: 3,000,000 | C19: 0 | D19: ='12월 지출 상세'!D19+'1월 지출 상세'!C19 -> 2,166,275 | E19: 72.2% | F19: =IF($F$4="보정", 보정치!E17) -> FALSE
A20: 2.7 교육부 운영비 | B20: 7,500,000 | C20: 478,600 | D20: ='12월 지출 상세'!D20+'1월 지출 상세'!C20 -> 2,110,600 | E20: 28.1% | F20: =IF($F$4="보정", 보정치!E18) -> FALSE
A21: 2.8 교육운영 예비비 | B21: 0 | C21: 0 | D21: ='12월 지출 상세'!D21+'1월 지출 상세'!C21 -> 0 | F21: =IF($F$4="보정", 보정치!E19) -> FALSE
A22: 3. 선교비 | B22: =SUM(B23,B34,B35,B36,B37) -> 94,480,000 | C22: =SUM(C23,C34:C37) -> 1,868,300 | D22: ='12월 지출 상세'!D22+'1월 지출 상세'!C22 -> 107,078,390 | E22: 113.3% | F22: =SUM(F23,F32,F33,F34,F35) -> 0
A23: 3.1 학원선교 | B23: =SUM(B24:B33) -> 50,960,000 | C23: =SUM(C24:C33) -> 1,468,300 | D23: ='12월 지출 상세'!D23+'1월 지출 상세'!C23 -> 45,468,300 | E23: 89.2% | F23: =SUM(F24:F31) -> 0
A24: 3.1.1 간식나눔행사(신촌) | B24: 2,000,000 | C24: 0 | D24: ='12월 지출 상세'!D24+'1월 지출 상세'!C24 -> 2,000,000 | E24: 100.0% | F24: =IF($F$4="보정", 보정치!E22) -> FALSE
A25: 3.1.2 간식나눔행사(국제) | B25: 1,000,000 | C25: 668,300 | D25: ='12월 지출 상세'!D25+'1월 지출 상세'!C25 -> 668,300 | E25: 66.8% | F25: =IF($F$4="보정", 보정치!E23) -> FALSE
A26: 3.1.3 교목실 점심나눔 후원 | B26: 27,000,000 | C26: 0 | D26: ='12월 지출 상세'!D26+'1월 지출 상세'!C26 -> 27,000,000 | E26: 100.0% | F26: =IF($F$4="보정", 보정치!E24) -> FALSE
A27: 3.1.4 연세기독학생연합회 지원 | B27: 3,600,000 | C27: 300,000 | D27: ='12월 지출 상세'!D27+'1월 지출 상세'!C27 -> 3,300,000 | E27: 91.7% | F27: =IF($F$4="보정", 보정치!E25) -> FALSE
A28: 3.1.5 연세기독학생회찬양팀 후원 | B28: 2,400,000 | C28: 200,000 | D28: ='12월 지출 상세'!D28+'1월 지출 상세'!C28 -> 2,200,000 | E28: 91.7% | F28: =IF($F$4="보정", 보정치!E26) -> FALSE
A29: 3.1.6 YMK 후원 | B29: 3,600,000 | C29: 300,000 | D29: ='12월 지출 상세'!D29+'1월 지출 상세'!C29 -> 3,300,000 | E29: 91.7% | F29: =IF($F$4="보정", 보정치!E27) -> FALSE
A30: 3.1.7 통일한마당 | B30: 2,400,000 | C30: 0 | D30: ='12월 지출 상세'!D30+'1월 지출 상세'!C30 -> 2,000,000 | E30: 83.3% | F30: =IF($F$4="보정", 보정치!E28) -> FALSE
A31: 3.1.8 리틀언더우드 후원 | B31: 5,000,000 | C31: 0 | D31: ='12월 지출 상세'!D31+'1월 지출 상세'!C31 -> 5,000,000 | E31: 100.0% | F31: 0
A32: 3.1.9 멘토멘티프로그램 | B32: 3,960,000 | C32: 0 | D32: ='12월 지출 상세'!D32+'1월 지출 상세'!C32 -> 0 | E32: 0.0% | F32: 0
A33: 3.1.10 학원선교 기타 | B33: 0 | C33: 0 | D33: ='12월 지출 상세'!D33+'1월 지출 상세'!C33 -> 0 | F33: =IF($F$4="보정", 보정치!E31) -> FALSE
A34: 3.2 국외선교 | B34: 4,800,000 | C34: 400,000 | D34: ='12월 지출 상세'!D34+'1월 지출 상세'!C34 -> 4,400,000 | E34: 91.7% | F34: =IF($F$4="보정", 보정치!E32) -> FALSE | G34: 함정희, 노규래
A35: 3.3 이웃사랑 실천헌금 | B35: 9,000,000 | C35: 0 | D35: ='12월 지출 상세'!D35+'1월 지출 상세'!C35 -> 0 | E35: 0.0% | F35: =IF($F$4="보정", 보정치!E33) -> FALSE
A36: 3.4 지정헌금 | B36: 29,720,000 | C36: 0 | D36: ='12월 지출 상세'!D36+'1월 지출 상세'!C36 -> 57,210,090 | E36: 192.5% | F36: =IF($F$4="보정", 보정치!E34) -> FALSE
A37: 3.5 선교예비금 | B37: 0 | C37: 0 | D37: ='12월 지출 상세'!D37+'1월 지출 상세'!C37 -> 0 | F37: =IF($F$4="보정", 보정치!E35) -> FALSE
A38: 4. 친교행사운영비 | B38: =SUM(B39:B49)-B47 -> 27,600,000 | C38: =SUM(C39:C46,C48:C49) -> 3,721,350 | D38: ='12월 지출 상세'!D38+'1월 지출 상세'!C38 -> 18,027,370 | E38: 65.3% | F38: =SUM(F39:F49)-F47 -> 0
A39: 4.1 주일공동식사 | B39: 7,000,000 | C39: 814,200 | D39: ='12월 지출 상세'!D39+'1월 지출 상세'!C39 -> 5,243,600 | E39: 74.9% | F39: =IF($F$4="보정", 보정치!E37) -> FALSE
A40: 4.2 야외예배 행사비 | B40: 0 | C40: 0 | D40: ='12월 지출 상세'!D40+'1월 지출 상세'!C40 -> 0 | F40: =IF($F$4="보정", 보정치!E38) -> FALSE
A41: 4.3 경로행사비 | B41: 1,500,000 | C41: 0 | D41: ='12월 지출 상세'!D41+'1월 지출 상세'!C41 -> 1,500,000 | E41: 100.0% | F41: =IF($F$4="보정", 보정치!E39) -> FALSE
A42: 4.4 성탄행사비 | B42: 2,100,000 | C42: 1,961,650 | D42: ='12월 지출 상세'!D42+'1월 지출 상세'!C42 -> 2,086,650 | E42: 99.4% | F42: =IF($F$4="보정", 보정치!E40) -> FALSE
A43: 4.5 주일다과비 | B43: 5,000,000 | C43: 865,500 | D43: ='12월 지출 상세'!D43+'1월 지출 상세'!C43 -> 1,786,790 | E43: 35.7% | F43: =IF($F$4="보정", 보정치!E41) -> FALSE
A44: 4.6 경조비 | B44: 4,000,000 | C44: 80,000 | D44: ='12월 지출 상세'!D44+'1월 지출 상세'!C44 -> 3,354,100 | E44: 83.9% | F44: =IF($F$4="보정", 보정치!E42) -> FALSE
A45: 4.7 교우친교비 | B45: 2,000,000 | C45: 0 | D45: ='12월 지출 상세'!D45+'1월 지출 상세'!C45 -> 1,096,440 | E45: 54.8% | F45: =IF($F$4="보정", 보정치!E43) -> FALSE
A46: 4.8 홍보출판비 | B46: 4,000,000 | C46: =C47 -> 0 | D46: ='12월 지출 상세'!D46+'1월 지출 상세'!C46 -> 2,000,000 | E46: 50.0% | F46: =IF($F$4="보정", 보정치!E44) -> FALSE
A47: 4.8.1 대학교회 회지 | B47: 4,000,000 | C47: 0 | D47: ='12월 지출 상세'!D47+'1월 지출 상세'!C47 -> 2,000,000 | E47: 50.0% | F47: =IF($F$4="보정", 보정치!E45) -> FALSE
A48: 4.9 교회봉사자 선물 | B48: 2,000,000 | C48: 0 | D48: ='12월 지출 상세'!D48+'1월 지출 상세'!C48 -> 959,790 | E48: 48.0% | F48: =IF($F$4="보정", 보정치!E46) -> FALSE
A49: 4.10 친교행사 예비비 | B49: 0 | C49: 0 | D49: ='12월 지출 상세'!D49+'1월 지출 상세'!C49 -> 0 | F49: =IF($F$4="보정", 보정치!E47) -> FALSE
A50: 5. 사례비 | B50: =SUM(B51:B66,B69,B70) -> 266,770,000 | C50: =SUM(C51:C66,C69:C70) -> 22,106,000 | D50: ='12월 지출 상세'!D50+'1월 지출 상세'!C50 -> 227,265,000 | E50: 85.2% | F50: =SUM(F51:F70) -> 0
A51: 5.1 외부강사 설교 사례 | B51: 12,000,000 | C51: 900,000 | D51: ='12월 지출 상세'!D51+'1월 지출 상세'!C51 -> 11,700,000 | E51: 97.5% | F51: =IF($F$4="보정", 보정치!E47) -> FALSE
A52: 5.2 외부강사 설교 사례(대학부-국제) | B52: 2,400,000 | C52: 300,000 | D52: ='12월 지출 상세'!D52+'1월 지출 상세'!C52 -> 500,000 | E52: 20.8% | F52: =IF($F$4="보정", 보정치!E48) -> FALSE
A53: 5.3 절기 예배 연주자 | B53: 800,000 | C53: 0 | D53: ='12월 지출 상세'!D53+'1월 지출 상세'!C53 -> 0 | E53: 0.0% | F53: =IF($F$4="보정", 보정치!E49) -> FALSE
A54: 5.4 국악 예배 연주자 | B54: 1,800,000 | C54: 0 | D54: ='12월 지출 상세'!D54+'1월 지출 상세'!C54 -> 1,800,000 | E54: 100.0% | F54: =IF($F$4="보정", 보정치!E50) -> FALSE
A55: 5.5 봉헌송 사례 | B55: 450,000 | C55: 0 | D55: ='12월 지출 상세'!D55+'1월 지출 상세'!C55 -> 300,000 | E55: 66.7% | F55: =IF($F$4="보정", 보정치!E51) -> FALSE
A56: 5.6 주일성서연구 강사사례 | B56: 4,000,000 | C56: 0 | D56: ='12월 지출 상세'!D56+'1월 지출 상세'!C56 -> 4,000,000 | E56: 100.0% | F56: =IF($F$4="보정", 보정치!E52) -> FALSE
A57: 5.8 담임목사 | B57: 14,400,000 | C57: 1,200,000 | D57: ='12월 지출 상세'!D57+'1월 지출 상세'!C57 -> 13,200,000 | E57: 91.7% | F57: =IF($F$4="보정", 보정치!E53) -> FALSE
A58: 5.9 동역목사 | B58: 12,000,000 | C58: 200,000 | D58: ='12월 지출 상세'!D58+'1월 지출 상세'!C58 -> 4,400,000 | E58: 36.7% | F58: =IF($F$4="보정", 보정치!E54) -> FALSE
A59: 5.10 전임교역자 | B59: 100,000,000 | C59: 10,000,000 | D59: ='12월 지출 상세'!D59+'1월 지출 상세'!C59 -> 89,900,000 | E59: 89.9% | F59: =IF($F$4="보정", 보정치!E55) -> FALSE | G59: 전임교역자 퇴직금 정산
A60: 5.11 성가대지휘자 | B60: 12,000,000 | C60: 1,000,000 | D60: ='12월 지출 상세'!D60+'1월 지출 상세'!C60 -> 11,000,000 | E60: 91.7% | F60: =IF($F$4="보정", 보정치!E56) -> FALSE
A61: 5.12 오르가니스트 | B61: 12,000,000 | C61: 1,000,000 | D61: ='12월 지출 상세'!D61+'1월 지출 상세'!C61 -> 11,000,000 | E61: 91.7% | F61: =IF($F$4="보정", 보정치!E57) -> FALSE
A62: 5.13 교육부서 담당교역자 | B62: 38,400,000 | C62: 3,200,000 | D62: ='12월 지출 상세'!D62+'1월 지출 상세'!C62 -> 32,000,000 | E62: 83.3% | F62: =IF($F$4="보정", 보정치!E58) -> FALSE
A63: 5.14 성인 솔리스트 | B63: 23,520,000 | C63: 1,960,000 | D63: ='12월 지출 상세'!D63+'1월 지출 상세'!C63 -> 21,220,000 | E63: 90.2% | F63: =IF($F$4="보정", 보정치!E59) -> FALSE
A64: 5.15 통역자 | B64: 4,000,000 | C64: 300,000 | D64: ='12월 지출 상세'!D64+'1월 지출 상세'!C64 -> 3,600,000 | E64: 90.0% | F64: =IF($F$4="보정", 보정치!E60) -> FALSE
A65: 5.16 방송담당 | B65: 12,000,000 | C65: 1,050,000 | D65: ='12월 지출 상세'!D65+'1월 지출 상세'!C65 -> 10,950,000 | E65: 91.3% | F65: =IF($F$4="보정", 보정치!E61) -> FALSE
A66: 5.17 용원 사례비 | B66: =SUM(B67:B68) -> 11,000,000 | C66: =SUM(C67:C68) -> 996,000 | D66: ='12월 지출 상세'!D66+'1월 지출 상세'!C66 -> 9,495,000 | E66: 86.3% | F66: =IF($F$4="보정", 보정치!E62) -> FALSE
A67: 5.17.1 관리실 여사 | B67: 6,000,000 | C67: 510,000 | D67: ='12월 지출 상세'!D67+'1월 지출 상세'!C67 -> 5,526,000 | E67: 92.1% | F67: =IF($F$4="보정", 보정치!E63) -> FALSE
A68: 5.17.2 관리실 반장 | B68: 5,000,000 | C68: 486,000 | D68: ='12월 지출 상세'!D68+'1월 지출 상세'!C68 -> 3,969,000 | E68: 79.4% | F68: =IF($F$4="보정", 보정치!E64) -> FALSE
A69: 5.18 퇴직위로금 | B69: 3,000,000 | C69: 0 | D69: ='12월 지출 상세'!D69+'1월 지출 상세'!C69 -> 0 | E69: 0.0% | F69: =IF($F$4="보정", 보정치!E65) -> FALSE
A70: 5.19 기타(교역자휴가 및 기타인건비) | B70: 3,000,000 | C70: 0 | D70: ='12월 지출 상세'!D70+'1월 지출 상세'!C70 -> 2,200,000 | E70: 73.3% | F70: =IF($F$4="보정", 보정치!E66) -> FALSE
A71: 6. 행정운영비 | B71: =SUM(B72:B74,B81,B82,B83,B84,B85) -> 91,784,670 | C71: =SUM(C72:C74,C81:C85) -> 7,365,100 | D71: ='12월 지출 상세'!D71+'1월 지출 상세'!C71 -> 80,752,286 | E71: 88.0% | F71: =SUM(F72:F74,F81,F82,F83,F84,F85) -> 0
A72: 6.1 회의 및 교회위원회 | B72: 6,131,500 | C72: 1,135,030 | D72: ='12월 지출 상세'!D72+'1월 지출 상세'!C72 -> 5,787,140 | E72: 94.4% | F72: =IF($F$4="보정", 보정치!E70) -> FALSE
A73: 6.2 사무운영비 | B73: 13,377,270 | C73: 1,401,430 | D73: ='12월 지출 상세'!D73+'1월 지출 상세'!C73 -> 9,290,746 | E73: =D73/B73 -> 69.5% | F73: =IF($F$4="보정", 보정치!E71) -> FALSE
A74: 6.3 부서운영비 | B74: =SUM(B75:B80) -> 52,204,200 | C74: =SUM(C75:C80) -> 3,807,000 | D74: ='12월 지출 상세'!D74+'1월 지출 상세'!C74 -> 50,052,180 | E74: 95.9% | F74: =IF($F$4="보정", 보정치!E72) -> FALSE
A75: 6.3.1 성가대 | B75: 14,504,200 | C75: 1,100,000 | D75: ='12월 지출 상세'!D75+'1월 지출 상세'!C75 -> 13,913,200 | E75: 95.9% | F75: =IF($F$4="보정", 보정치!E73) -> FALSE
A76: 6.3.2 유치부 | B76: 4,500,000 | C76: 400,000 | D76: ='12월 지출 상세'!D76+'1월 지출 상세'!C76 -> 4,500,000 | E76: 100.0% | F76: =IF($F$4="보정", 보정치!E74) -> FALSE
A77: 6.3.3 초등부 | B77: 7,100,000 | C77: 600,000 | D77: ='12월 지출 상세'!D77+'1월 지출 상세'!C77 -> 7,100,000 | E77: 100.0% | F77: =IF($F$4="보정", 보정치!E75) -> FALSE
A78: 6.3.4 중고등부 | B78: 5,100,000 | C78: 0 | D78: ='12월 지출 상세'!D78+'1월 지출 상세'!C78 -> 5,100,000 | E78: 100.0% | F78: =IF($F$4="보정", 보정치!E76) -> FALSE
A79: 6.3.5 대학부(신촌) | B79: 12,000,000 | C79: 1,257,000 | D79: ='12월 지출 상세'!D79+'1월 지출 상세'!C79 -> 10,888,980 | E79: 90.7% | F79: =IF($F$4="보정", 보정치!E77) -> FALSE
A80: 6.3.6 대학부(국제) | B80: 9,000,000 | C80: 450,000 | D80: ='12월 지출 상세'!D80+'1월 지출 상세'!C80 -> 8,550,000 | E80: 95.0% | F80: =IF($F$4="보정", 보정치!E78) -> FALSE
A81: 6.4 목회활동비 | B81: 7,571,700 | C81: 806,400 | D81: ='12월 지출 상세'!D81+'1월 지출 상세'!C81 -> 6,999,440 | E81: 92.4% | F81: =IF($F$4="보정", 보정치!E79) -> FALSE
A82: 6.5 용품 및 수리비 | B82: 5,000,000 | C82: 202,400 | D82: ='12월 지출 상세'!D82+'1월 지출 상세'!C82 -> 4,824,680 | E82: 96.5% | F82: =IF($F$4="보정", 보정치!E80) -> FALSE
A83: 6.6 연료비 및 통신비 | B83: 4,000,000 | C83: 12,840 | D83: ='12월 지출 상세'!D83+'1월 지출 상세'!C83 -> 2,708,100 | E83: =D83/B83 -> 67.7% | F83: =IF($F$4="보정", 보정치!E81) -> FALSE
A84: 6.7 악기구입 및 보수 | B84: 3,500,000 | C84: 0 | D84: ='12월 지출 상세'!D84+'1월 지출 상세'!C84 -> 1,090,000 | E84: =D84/B84 -> 31.1% | F84: =IF($F$4="보정", 보정치!E82) -> FALSE
A85: 6.8 행정운영 예비비 | B85: 0 | C85: 0 | D85: ='12월 지출 상세'!D85+'1월 지출 상세'!C85 -> 0 | F85: =IF($F$4="보정", 보정치!E83) -> FALSE
A86: 7. 장학금 | B86: =SUM(B87:B91) -> 66,720,000 | C86: =SUM(C87:C91) -> 0 | D86: ='12월 지출 상세'!D86+'1월 지출 상세'!C86 -> 49,300,000 | E86: 73.9% | F86: =SUM(F87:F91) -> 0
A87: 7.1 교회학교 교사 | B87: 21,000,000 | C87: 0 | D87: ='12월 지출 상세'!D87+'1월 지출 상세'!C87 -> 8,400,000 | E87: 40.0% | F87: =IF($F$4="보정", 보정치!E83) -> FALSE
A88: 7.2 신촌 대학청년부 | B88: 12,000,000 | C88: 0 | D88: ='12월 지출 상세'!D88+'1월 지출 상세'!C88 -> 10,500,000 | E88: 87.5% | F88: =IF($F$4="보정", 보정치!E84) -> FALSE
A89: 7.3 국제 대학부 | B89: 9,000,000 | C89: 0 | D89: ='12월 지출 상세'!D89+'1월 지출 상세'!C89 -> 7,200,000 | E89: 80.0% | F89: =IF($F$4="보정", 보정치!E85) -> FALSE
A90: 7.4 학생 솔리스트 | B90: 16,320,000 | C90: 0 | D90: ='12월 지출 상세'!D90+'1월 지출 상세'!C90 -> 15,640,000 | E90: 95.8% | F90: =IF($F$4="보정", 보정치!E86) -> FALSE
A91: 7.5 기숙사지원 | B91: 8,400,000 | C91: 0 | D91: ='12월 지출 상세'!D91+'1월 지출 상세'!C91 -> 7,560,000 | E91: 90.0% | F91: =IF($F$4="보정", 보정치!E87) -> FALSE
A92: 8. 예비비 | B92: 32,750,000 | C92: 10,000,000 | D92: ='12월 지출 상세'!D92+'1월 지출 상세'!C92 -> 27,035,670 | E92: 82.6% | F92: =IF($F$4="보정", 보정치!E90) -> FALSE | G92: 성탄헌금 구제후원
A93: 9. 이웃사랑기금적립 | B93: 0 | C93: 0 | D93: ='12월 지출 상세'!D93+'1월 지출 상세'!C93 -> 36,205,090 | F93: =IF($F$4="보정", 보정치!E91) -> FALSE
A94: 일반 지출 소계 | B94: =SUM(B5,B13,B22,B38,B50,B71,B86,B92,B93) -> 633,304,670 | C94: =SUM(C5,C13,C22,C38,C50,C71,C86,C92,C93) -> 48,066,900 | D94: ='12월 지출 상세'!D94+'1월 지출 상세'!C94 -> 584,510,161 | E94: 92.3% | F94: =SUM(F86,F71,F50,F38,F22,F13,F5) -> 0
A95: 차월이월 | C95: ='1월 수입 상세'!C24-'1월 지출 상세'!C94 -> -10,711,000 | D95: ='1월 수입 상세'!D29-'1월 지출 상세'!D94 -> 74,204,631
A96: 지출부 총액 | B96: =B94+B95 -> 633,304,670 | C96: =C94+C95 -> 37,355,900 | D96: =D94+D95 -> 658,714,792 | E96: 104.0%
